Workbook

Sheet Sample Report (hidden)
A2: Date
A3: Hen
A4: Program
A5: Start at 999999
A6: Sequence component 1 | B6: Time 1 | C6: Seqeunce Component 2 | D6: Time 2 | E6: Seqeunce Component 3 | F6: Time 3 | G6: Correct 0 = No 1=Yes | J6: Seqeunce | K6: Time
A7: 12 | B7: 7 | C7: 12 | D7: 42 | E7: 13 | F7: 18 | G7: if 77 new line, if 31 or 41 = yes new line on 77, | J7: =string of Seqeunce compponent 1, 2 & 3 | K7: =time 3
A8: This continues until ther is a 1 on its own to indicate start of summary data
J9: 10-19 =1
A10: Summary Data | J10: 20-29 =2
A11: Correct | B11: Incorrect | C11: Rft | D11: total | E11: Av Correct | F11: Av Incorrect | G11: Percent correct | H11: Time | J11: in this example the seqeunce would be 111
A12: 40 | B12: 33 | C12: 40 | D12: 73 | E12: 23.95 | F12: 15 | G12: 54 | H12: 806

Sheet Summary
A2: Day | B2: Date | C2: Average Response Rate | D2: Target % | E2: RF for non correct sequence | F2: U Value | K2: Block 1 | L2: Block 2 | M2: Block 3 | N2: Block 4 | O2: Block 5 | P2: Block 6
A3: 1 | B3: ='!M830B1T.AYL'!B2:C2 -> <date> | C3: =('!M830B1T.AYL'!F142/60)/'!M830B1T.AYL'!Q3 -> 2.248161765 | D3: ='!M830B1T.AYL'!N20/'!M830B1T.AYL'!Q3 -> 0 | E3: =SUM('!M830B1T.AYL'!L20:Q20)/'!M830B1T.AYL'!Q3 -> 1.147058824 | F3: ='!M830B1T.AYL'!Q16 -> 0.3209281527 | J3: Average Response Rate | K3: =AVERAGE(C3:C7) -> 2.227724 | L3: =AVERAGE(C8:C12) -> 2.003195323 | M3: =AVERAGE(C13:C17) -> 3.015849494 | N3: =AVERAGE(C18:C22) -> 2.709472222 | O3: =AVERAGE(C23:C27) -> 3.490672764 | P3: =AVERAGE(C28:C32) -> 2.086219697
A4: 2 | B4: ='!M831B1T.AYL'!B2:C2 -> <date> | C4: =('!M831B1T.AYL'!F118/60)/'!M831B1T.AYL'!Q3 -> 2.597619048 | D4: ='!M831B1T.AYL'!N20/'!M831B1T.AYL'!Q3 -> 0.3303571429 | E4: =SUM('!M831B1T.AYL'!L20:Q20)/'!M831B1T.AYL'!Q3 -> 1.741071429 | F4: ='!M831B1T.AYL'!Q16 -> 0.3848210054 | J4: Target % | K4: =AVERAGE(D3:D7) -> 0.5134103641 | L4: =AVERAGE(D8:D12) -> 0.9154767598 | M4: =AVERAGE(D13:D17) -> 0.9164334266 | N4: =AVERAGE(D18:D22) -> 0.9904761905 | O4: =AVERAGE(D23:D27) -> 0.9951219512 | P4: =AVERAGE(D28:D32) -> 0.7772727273
A5: 3 | B5: ='!M901A0T.AYL'!B2:C2 -> <date> | C5: =('!M901A0T.AYL'!F84/60)/'!M901A0T.AYL'!Q3 -> 2.221153846 | D5: ='!M901A0T.AYL'!N20/'!M901A0T.AYL'!Q3 -> 0.5 | E5: =SUM('!M901A0T.AYL'!L20:Q20)/'!M901A0T.AYL'!Q3 -> 3.679487179 | F5: ='!M901A0T.AYL'!Q16 -> 0.3524088366 | J5: CCRF | K5: =AVERAGE(E3:E7) -> 3.721926848 | L5: =AVERAGE(E8:E12) -> 5.920799913 | M5: =AVERAGE(E13:E17) -> 6.022161136 | N5: =AVERAGE(E18:E22) -> 6.814285714 | O5: =AVERAGE(E23:E27) -> 6.846341463 | P5: =AVERAGE(E28:E32) -> 5.379545455
A6: 4 | B6: ='!M902A1T.AYL'!B2:C2 -> <date> | C6: =('!M902A1T.AYL'!F57/60)/'!M902A1T.AYL'!Q3 -> 2.10620915 | D6: ='!M902A1T.AYL'!N20/'!M902A1T.AYL'!Q3 -> 0.7843137255 | E6: =SUM('!M902A1T.AYL'!L20:Q20)/'!M902A1T.AYL'!Q3 -> 5.470588235 | F6: ='!M902A1T.AYL'!Q16 -> 0.1742746903 | J6: U Value | K6: =AVERAGE(F3:F7) -> 0.2584967526 | L6: =AVERAGE(F8:F12) -> 0.08683826431 | M6: =AVERAGE(F13:F17) -> 0.06685632781 | N6: =AVERAGE(F18:F22) -> 0.01024403447 | O6: =AVERAGE(F23:F27) -> 0.006175470956 | P6: =AVERAGE(F28:F32) -> 0.02441930625
A7: 5 | B7: ='!M903C3T.AYL'!B2:C2 -> <date> | C7: =('!M903C3T.AYL'!F48/60)/'!M903C3T.AYL'!Q3 -> 1.96547619 | D7: ='!M903C3T.AYL'!N20/'!M903C3T.AYL'!Q3 -> 0.9523809524 | E7: =SUM('!M903C3T.AYL'!L20:Q20)/'!M903C3T.AYL'!Q3 -> 6.571428571 | F7: ='!M903C3T.AYL'!Q16 -> 0.06005107821
A8: 6 | B8: ='!M904A4T.AYL'!B2:C2 -> <date> | C8: =('!M904A4T.AYL'!F57/60)/'!M904A4T.AYL'!Q3 -> 1.949346405 | D8: ='!M904A4T.AYL'!N20/'!M904A4T.AYL'!Q3 -> 0.7843137255 | E8: =SUM('!M904A4T.AYL'!L20:Q20)/'!M904A4T.AYL'!Q3 -> 3.294117647 | F8: ='!M904A4T.AYL'!Q16 -> 0.1941000015
A9: 7 | B9: ='!M905A4T.AYL'!B2:C2 -> <date> | C9: =('!M905A4T.AYL'!F47/60)/'!M905A4T.AYL'!Q3 -> 2.022357724 | D9: ='!M905A4T.AYL'!N20/'!M905A4T.AYL'!Q3 -> 0.9756097561 | E9: =SUM('!M905A4T.AYL'!L20:Q20)/'!M905A4T.AYL'!Q3 -> 6.731707317 | F9: ='!M905A4T.AYL'!Q16 -> 0.03087735478 | G9: =K3 -> 2.227724 | H9: =L3 -> 2.003195323 | I9: 3.015849494 | J9: 2.709472222 | K9: 3.490672764 | L9: 2.086219697 | M9: =K4 -> 0.5134103641 | N9: =L4 -> 0.9154767598 | O9: 0.9164334266 | P9: 0.9904761905 | Q9: 0.9951219512 | R9: 0.7772727273 | S9: =K6 -> 0.2584967526 | T9: =L6 -> 0.08683826431 | U9: 0.06685632781 | V9: 0.01024403447 | W9: 0.006175470956 | X9: 0.02441930625
A10: 8 | B10: ='!M906B1T.AYL'!B2:C2 -> <date> | C10: =('!M906B1T.AYL'!F51/60)/'!M906B1T.AYL'!Q3 -> 1.908518519 | D10: ='!M906B1T.AYL'!N20/'!M906B1T.AYL'!Q3 -> 0.8888888889 | E10: =SUM('!M906B1T.AYL'!L20:Q20)/'!M906B1T.AYL'!Q3 -> 6.155555556 | F10: ='!M906B1T.AYL'!Q16 -> 0.1193743108
A11: 9 | B11: ='!M907A5T.AYL'!B2:C2 -> <date> | C11: =('!M907A5T.AYL'!F46/60)/'!M907A5T.AYL'!Q3 -> 1.9675 | D11: ='!M907A5T.AYL'!N20/'!M907A5T.AYL'!Q3 -> 1 | E11: =SUM('!M907A5T.AYL'!L20:Q20)/'!M907A5T.AYL'!Q3 -> 6.875 | F11: ='!M907A5T.AYL'!Q16 -> 0
A12: 10 | B12: ='!M908A5T.AYL'!B2:C2 -> <date> | C12: =('!M908A5T.AYL'!F48/60)/'!M908A5T.AYL'!Q3 -> 2.168253968 | D12: ='!M908A5T.AYL'!N20/'!M908A5T.AYL'!Q3 -> 0.9285714286 | E12: =SUM('!M908A5T.AYL'!L20:Q20)/'!M908A5T.AYL'!Q3 -> 6.547619048 | F12: ='!M908A5T.AYL'!Q16 -> 0.08983965443
A13: 11 | B13: ='!M910B5T.AYL'!B2:C2 -> <date> | C13: =('!M910B5T.AYL'!F67/60)/'!M910B5T.AYL'!Q3 -> 2.095355191 | D13: ='!M910B5T.AYL'!N20/'!M910B5T.AYL'!Q3 -> 0.606557377 | E13: =SUM('!M910B5T.AYL'!L20:Q20)/'!M910B5T.AYL'!Q3 -> 2.754098361 | F13: ='!M910B5T.AYL'!Q16 -> 0.3034042842
A14: 12 | B14: ='!M911A3T.AYL'!B2:C2 -> <date> | C14: =('!M911A3T.AYL'!F46/60)/'!M911A3T.AYL'!Q3 -> 4.921666667 | D14: ='!M911A3T.AYL'!N20/'!M911A3T.AYL'!Q3 -> 1 | E14: =SUM('!M911A3T.AYL'!L20:Q20)/'!M911A3T.AYL'!Q3 -> 6.875 | F14: ='!M911A3T.AYL'!Q16 -> 0
A15: 13 | B15: ='!M912A4T.AYL'!B2:C2 -> <date> | C15: =('!M912A4T.AYL'!F47/60)/'!M912A4T.AYL'!Q3 -> 4.227642276 | D15: ='!M912A4T.AYL'!N20/'!M912A4T.AYL'!Q3 -> 0.9756097561 | E15: =SUM('!M912A4T.AYL'!L20:Q20)/'!M912A4T.AYL'!Q3 -> 6.731707317 | F15: ='!M912A4T.AYL'!Q16 -> 0.03087735478
A16: 14 | B16: ='!M913A0T.AYL'!B2:C2 -> <date> | C16: =('!M913A0T.AYL'!F46/60)/'!M913A0T.AYL'!Q3 -> 1.96625 | D16: ='!M913A0T.AYL'!N20/'!M913A0T.AYL'!Q3 -> 1 | E16: =SUM('!M913A0T.AYL'!L20:Q20)/'!M913A0T.AYL'!Q3 -> 6.875 | F16: ='!M913A0T.AYL'!Q16 -> 0
A17: 15 | B17: ='!M914B3T.AYL'!B2:C2 -> <date> | C17: =('!M914B3T.AYL'!F46/60)/'!M914B3T.AYL'!Q3 -> 1.868333333 | D17: ='!M914B3T.AYL'!N20/'!M914B3T.AYL'!Q3 -> 1 | E17: =SUM('!M914B3T.AYL'!L20:Q20)/'!M914B3T.AYL'!Q3 -> 6.875 | F17: ='!M914B3T.AYL'!Q16 -> 0
A18: 16 | B18: ='!M915B2T.AYL'!B2:C2 -> <date> | C18: =('!M915B2T.AYL'!F46/60)/'!M915B2T.AYL'!Q3 -> 1.866666667 | D18: ='!M915B2T.AYL'!N20/'!M915B2T.AYL'!Q3 -> 1 | E18: =SUM('!M915B2T.AYL'!L20:Q20)/'!M915B2T.AYL'!Q3 -> 6.875 | F18: ='!M915B2T.AYL'!Q16 -> 0
A19: 17 | B19: ='!M916A4T.AYL'!B2:C2 -> <date> | C19: =('!M916A4T.AYL'!F46/60)/'!M916A4T.AYL'!Q3 -> 2.375833333 | D19: ='!M916A4T.AYL'!N20/'!M916A4T.AYL'!Q3 -> 1 | E19: =SUM('!M916A4T.AYL'!L20:Q20)/'!M916A4T.AYL'!Q3 -> 6.875 | F19: ='!M916A4T.AYL'!Q16 -> 0
A20: 18 | B20: ='!M917A4T.AYL'!B2:C2 -> <date> | C20: =('!M917A4T.AYL'!F46/60)/'!M917A4T.AYL'!Q3 -> 2.504166667 | D20: ='!M917A4T.AYL'!N20/'!M917A4T.AYL'!Q3 -> 1 | E20: =SUM('!M917A4T.AYL'!L20:Q20)/'!M917A4T.AYL'!Q3 -> 6.875 | F20: ='!M917A4T.AYL'!Q16 -> 0
A21: 19 | B21: ='!M918A2T.AYL'!B2:C2 -> <date> | C21: =('!M918A2T.AYL'!F46/60)/'!M918A2T.AYL'!Q3 -> 2.85625 | D21: ='!M918A2T.AYL'!N20/'!M918A2T.AYL'!Q3 -> 1 | E21: =SUM('!M918A2T.AYL'!L20:Q20)/'!M918A2T.AYL'!Q3 -> 6.875 | F21: ='!M918A2T.AYL'!Q16 -> 0
A22: 20 | B22: ='!M919A3T.AYL'!B2:C2 -> <date> | C22: =('!M919A3T.AYL'!F48/60)/'!M919A3T.AYL'!Q3 -> 3.944444444 | D22: ='!M919A3T.AYL'!N20/'!M919A3T.AYL'!Q3 -> 0.9523809524 | E22: =SUM('!M919A3T.AYL'!L20:Q20)/'!M919A3T.AYL'!Q3 -> 6.571428571 | F22: ='!M919A3T.AYL'!Q16 -> 0.05122017233
A23: 21 | B23: ='!M92095T.AYL'!B2:C2 -> <date> | C23: =('!M92095T.AYL'!F46/60)/'!M92095T.AYL'!Q3 -> 1.864583333 | D23: ='!M92095T.AYL'!N20/'!M92095T.AYL'!Q3 -> 1 | E23: =SUM('!M92095T.AYL'!L20:Q20)/'!M92095T.AYL'!Q3 -> 6.875 | F23: ='!M92095T.AYL'!Q16 -> 0
A24: 22 | B24: ='!M92190T.AYL'!B2:C2 -> <date> | C24: =('!M92190T.AYL'!F46/60)/'!M92190T.AYL'!Q3 -> 2.338333333 | D24: ='!M92190T.AYL'!N20/'!M92190T.AYL'!Q3 -> 1 | E24: =SUM('!M92190T.AYL'!L20:Q20)/'!M92190T.AYL'!Q3 -> 6.875 | F24: ='!M92190T.AYL'!Q16 -> 0
A25: 23 | B25: ='!M922B2T.AYL'!B2:C2 -> <date> | C25: =('!M922B2T.AYL'!F47/60)/'!M922B2T.AYL'!Q3 -> 3.548780488 | D25: ='!M922B2T.AYL'!N20/'!M922B2T.AYL'!Q3 -> 0.9756097561 | E25: =SUM('!M922B2T.AYL'!L20:Q20)/'!M922B2T.AYL'!Q3 -> 6.731707317 | F25: ='!M922B2T.AYL'!Q16 -> 0.03087735478
A26: 24 | B26: ='!M923A0T.AYL'!B2:C2 -> <date> | C26: =('!M923A0T.AYL'!F46/60)/'!M923A0T.AYL'!Q3 -> 4.278333333 | D26: ='!M923A0T.AYL'!N20/'!M923A0T.AYL'!Q3 -> 1 | E26: =SUM('!M923A0T.AYL'!L20:Q20)/'!M923A0T.AYL'!Q3 -> 6.875 | F26: ='!M923A0T.AYL'!Q16 -> 0
A27: 25 | B27: ='!M924B0T.AYL'!B2:C2 -> <date> | C27: =('!M924B0T.AYL'!F46/60)/'!M924B0T.AYL'!Q3 -> 5.423333333 | D27: ='!M924B0T.AYL'!N20/'!M924B0T.AYL'!Q3 -> 1 | E27: =SUM('!M924B0T.AYL'!L20:Q20)/'!M924B0T.AYL'!Q3 -> 6.875 | F27: ='!M924B0T.AYL'!Q16 -> 0
A28: 26 | B28: ='!M92693T.AYL'!B2:C2 -> <date> | C28: =('!M92693T.AYL'!F46/60)/'!M92693T.AYL'!Q3 -> 2.05125 | D28: ='!M92693T.AYL'!N20/'!M92693T.AYL'!Q3 -> 1 | E28: =SUM('!M92693T.AYL'!L20:Q20)/'!M92693T.AYL'!Q3 -> 6.875 | F28: ='!M92693T.AYL'!Q16 -> 0
A29: 27 | B29: ='!M927A2T.AYL'!B2:C2 -> <date> | C29: 0 | D29: 0 | E29: 0 | F29: 0
A30: 28 | B30: ='!M92891T.AYL'!B2:C2 -> <date> | C30: =('!M92891T.AYL'!F46/60)/'!M92891T.AYL'!Q3 -> 2.8825 | D30: ='!M92891T.AYL'!N20/'!M92891T.AYL'!Q3 -> 1 | E30: =SUM('!M92891T.AYL'!L20:Q20)/'!M92891T.AYL'!Q3 -> 6.875 | F30: ='!M92891T.AYL'!Q16 -> 0
A31: 29 | B31: ='!M930B0T.AYL'!B2:C2 -> <date> | C31: =('!M930B0T.AYL'!F46/60)/'!M930B0T.AYL'!Q3 -> 2.391666667 | D31: ='!M930B0T.AYL'!N20/'!M930B0T.AYL'!Q3 -> 1 | E31: =SUM('!M930B0T.AYL'!L20:Q20)/'!M930B0T.AYL'!Q3 -> 6.875 | F31: ='!M930B0T.AYL'!Q16 -> 0
A32: 30 | B32: ='!MA01A5T.AYL'!B2:C2 -> <date> | C32: =('!MA01A5T.AYL'!F50/60)/'!MA01A5T.AYL'!Q3 -> 3.105681818 | D32: ='!MA01A5T.AYL'!N20/'!MA01A5T.AYL'!Q3 -> 0.8863636364 | E32: =SUM('!MA01A5T.AYL'!L20:Q20)/'!MA01A5T.AYL'!Q3 -> 6.272727273 | F32: ='!MA01A5T.AYL'!Q16 -> 0.1220965313

Sheet Start
F1: Use Folder 51 | H1: Auto Clean Up | J1: Correct sequence
F2: FALSE | H2: TRUE | J2: 222
A4: Working with Folder | G4: Process All/Or Pick A number: ALL or an integer
A5: F:\Possum Chapter\Raw Data\Taylor\New Phase RRR VAR\ | G5: ALL
A6: Filenames:
A7: !M92693T.AYL | G7: Paint Cells
A8: !M927A2T.AYL | G8: FALSE
A9: !M92891T.AYL
A10: !M930B0T.AYL
A11: !M830B1T.AYL
A12: !M831B1T.AYL
A13: !M901A0T.AYL
A14: !M902A1T.AYL
A15: !M903C3T.AYL
A16: !M904A4T.AYL
A17: !M905A4T.AYL
A18: !M906B1T.AYL
A19: !M907A5T.AYL
A20: !M908A5T.AYL
A21: !M910B5T.AYL
A22: !M911A3T.AYL
A23: !M912A4T.AYL
A24: !M913A0T.AYL
A25: !M914B3T.AYL
A26: !M915B2T.AYL
A27: !M916A4T.AYL
A28: !M917A4T.AYL
A29: !M918A2T.AYL
A30: !M919A3T.AYL
A31: !M92095T.AYL
A32: !M92190T.AYL
A33: !M922B2T.AYL
A34: !M923A0T.AYL
A35: !M924B0T.AYL
A36: !MA01A5T.AYL

Sheet !M830B1T.AYL
A1: Report for:!M830B1T.AYL
A2: Date: | B2: <date>
A3: Hen: | B3: <hen> | F3: Correct Sequence | G3: =Start!J2 -> 222 | P3: Total Sequences in Data | Q3: =4994-COUNTBLANK(L7:L5000) -> 136 | V3: Total Sequences in Block Data | W3: =COUNTA(L7:L29) -> 23 | AA3: Total Sequences in Block Data | AB3: =COUNTA(L30:L51) -> 22 | AF3: Total Sequences in Block Data | AG3: =COUNTA(L52:L74) -> 23 | AK3: Total Sequences in Block Data | AL3: =COUNTA(L75:L97) -> 23 | AP3: Total Sequences in Block Data | AQ3: =COUNTA(L98:L119) -> 22 | AU3: Total Sequences in Block Data | AV3: =COUNTA(L120:L142) -> 23
P4: Total Sequences in Summary | Q4: =SUM(O7:O14) -> 136 | V4: Total Sequences in Block Summary | W4: =SUM(U7:U14) -> 23 | AA4: Total Sequences in Block Summary | AB4: =SUM(Z7:Z14) -> 22 | AF4: Total Sequences in Block Summary | AG4: =SUM(AE7:AE14) -> 23 | AK4: Total Sequences in Block Summary | AL4: =SUM(AJ7:AJ14) -> 23 | AP4: Total Sequences in Block Summary | AQ4: =SUM(AO7:AO14) -> 22 | AU4: Total Sequences in Block Summary | AV4: =SUM(AT7:AT14) -> 23
T5: Block 1 | Y5: Block 2 | AD5: Block 3 | AI5: Block 4 | AN5: Block 5 | AS5: Block 6
A6: Sequence Component 1 | B6: Time 1 | C6: Sequence Component 2 | D6: Time 2 | E6: Sequence Component 3 | F6: Time 3 | G6: Sequence Component 4 | H6: Time 4 | I6: Sequence Component 5 | J6: Time 5 | K6: Correct? 0=No 1=Yes | L6: Sequence | N6: Frequency | P6: Relative Frequency | Q6: Variability | T6: Frequency | V6: Relative Frequency | W6: Variability | Y6: Frequency | AA6: Relative Frequency | AB6: Variability | AD6: Frequency | AF6: Relative Frequency | AG6: Variability | AI6: Frequency | AK6: Relative Frequency | AL6: Variability | AN6: Frequency | AP6: Relative Frequency | AQ6: Variability | AS6: Frequency | AU6: Relative Frequency | AV6: Variability
A7: 12 | B7: 113 | C7: 14 | D7: 118 | E7: 14 | F7: 122 | K7: 0 | L7: 111 | N7: 111 | O7: =COUNTIF($L$7:$L$500,N7) -> 53 | P7: =O7/$Q$4 -> 0.3897058824 | Q7: =IF(P7=0,0,(P7*((LOG(P7))/LOG(2)))) -> -0.5298216654 | T7: =N7 -> 111 | U7: =COUNTIF(L7:L29,T7) -> 11 | V7: =U7/(W4-U14) -> 0.4782608696 | W7: =IF(V7=0,0,(V7*((LOG(V7))/LOG(2)))) -> -0.5089319005 | Y7: =N7 -> 111 | Z7: =COUNTIF(L30:L51,Y7) -> 12 | AA7: =Z7/(AB4-Z14) -> 0.5454545455 | AB7: =IF(AA7=0,0,(AA7*((LOG(AA7))/LOG(2)))) -> -0.4769831552 | AD7: =N7 -> 111 | AE7: =COUNTIF(L52:L74,AD7) -> 6 | AF7: =AE7/(AG4-AE14) -> 0.2608695652 | AG7: =IF(AF7=0,0,(AF7*((LOG(AF7))/LOG(2)))) -> -0.505721597 | AI7: =N7 -> 111 | AJ7: =COUNTIF(L75:L97,AI7) -> 5 | AK7: =AJ7/(AL4-AJ14) -> 0.2173913043 | AL7: =IF(AK7=0,0,(AK7*((LOG(AK7))/LOG(2)))) -> -0.4786160568 | AN7: =N7 -> 111 | AO7: =COUNTIF(L98:L119,AN7) -> 8 | AP7: =AO7/(AQ4-AO14) -> 0.3636363636 | AQ7: =IF(AP7=0,0,(AP7*((LOG(AP7))/LOG(2)))) -> -0.5307024068 | AS7: =N7 -> 111 | AT7: =COUNTIF(L120:L142,AS7) -> 11 | AU7: =AT7/(AV4-AT14) -> 0.4782608696 | AV7: =IF(AU7=0,0,(AU7*((LOG(AU7))/LOG(2)))) -> -0.5089319005
A8: 12 | B8: 247 | C8: 14 | D8: 251 | E8: 14 | F8: 254 | K8: 0 | L8: 111 | N8: 112 | O8: =COUNTIF($L$7:$L$500,N8) -> 11 | P8: =O8/$Q$4 -> 0.08088235294 | Q8: =IF(P8=0,0,(P8*((LOG(P8))/LOG(2)))) -> -0.2934437018 | T8: =N8 -> 112 | U8: =COUNTIF(L7:L29,T8) -> 1 | V8: =U8/(W4-U14) -> 0.04347826087 | W8: =IF(V8=0,0,(V8*((LOG(V8))/LOG(2)))) -> -0.1966766068 | Y8: =N8 -> 112 | Z8: =COUNTIF(L30:L51,Y8) -> 2 | AA8: =Z8/(AB4-Z14) -> 0.09090909091 | AB8: =IF(AA8=0,0,(AA8*((LOG(AA8))/LOG(2)))) -> -0.3144937835 | AD8: =N8 -> 112 | AE8: =COUNTIF(L52:L74,AD8) -> 2 | AF8: =AE8/(AG4-AE14) -> 0.08695652174 | AG8: =IF(AF8=0,0,(AF8*((LOG(AF8))/LOG(2)))) -> -0.3063966918 | AI8: =N8 -> 112 | AJ8: =COUNTIF(L75:L97,AI8) -> 3 | AK8: =AJ8/(AL4-AJ14) -> 0.1304347826 | AL8: =IF(AK8=0,0,(AK8*((LOG(AK8))/LOG(2)))) -> -0.3832955811 | AN8: =N8 -> 112 | AO8: =COUNTIF(L98:L119,AN8) -> 1 | AP8: =AO8/(AQ4-AO14) -> 0.04545454545 | AQ8: =IF(AP8=0,0,(AP8*((LOG(AP8))/LOG(2)))) -> -0.2027014372 | AS8: =N8 -> 112 | AT8: =COUNTIF(L120:L142,AS8) -> 2 | AU8: =AT8/(AV4-AT14) -> 0.08695652174 | AV8: =IF(AU8=0,0,(AU8*((LOG(AU8))/LOG(2)))) -> -0.3063966918
A9: 12 | B9: 402 | C9: 14 | D9: 404 | E9: 14 | F9: 409 | K9: 0 | L9: 111 | N9: 121 | O9: =COUNTIF($L$7:$L$500,N9) -> 36 | P9: =O9/$Q$4 -> 0.2647058824 | Q9: =IF(P9=0,0,(P9*((LOG(P9))/LOG(2)))) -> -0.5075835458 | T9: =N9 -> 121 | U9: =COUNTIF(L7:L29,T9) -> 5 | V9: =U9/(W4-U14) -> 0.2173913043 | W9: =IF(V9=0,0,(V9*((LOG(V9))/LOG(2)))) -> -0.4786160568 | Y9: =N9 -> 121 | Z9: =COUNTIF(L30:L51,Y9) -> 5 | AA9: =Z9/(AB4-Z14) -> 0.2272727273 | AB9: =IF(AA9=0,0,(AA9*((LOG(AA9))/LOG(2)))) -> -0.4857962554 | AD9: =N9 -> 121 | AE9: =COUNTIF(L52:L74,AD9) -> 10 | AF9: =AE9/(AG4-AE14) -> 0.4347826087 | AG9: =IF(AF9=0,0,(AF9*((LOG(AF9))/LOG(2)))) -> -0.5224495049 | AI9: =N9 -> 121 | AJ9: =COUNTIF(L75:L97,AI9) -> 9 | AK9: =AJ9/(AL4-AJ14) -> 0.3913043478 | AL9: =IF(AK9=0,0,(AK9*((LOG(AK9))/LOG(2)))) -> -0.5296840257 | AN9: =N9 -> 121 | AO9: =COUNTIF(L98:L119,AN9) -> 3 | AP9: =AO9/(AQ4-AO14) -> 0.1363636364 | AQ9: =IF(AP9=0,0,(AP9*((LOG(AP9))/LOG(2)))) -> -0.3919730615 | AS9: =N9 -> 121 | AT9: =COUNTIF(L120:L142,AS9) -> 4 | AU9: =AT9/(AV4-AT14) -> 0.1739130435 | AV9: =IF(AU9=0,0,(AU9*((LOG(AU9))/LOG(2)))) -> -0.4388803402
A10: 12 | B10: 507 | C10: 23 | D10: 510 | E10: 14 | F10: 515 | K10: 0 | L10: 121 | N10: 122 | O10: =COUNTIF($L$7:$L$500,N10) -> 3 | P10: =O10/$Q$4 -> 0.02205882353 | Q10: =IF(P10=0,0,(P10*((LOG(P10))/LOG(2)))) -> -0.121378684 | T10: =N10 -> 122 | U10: =COUNTIF(L7:L29,T10) -> 0 | V10: =U10/(W4-U14) -> 0 | W10: =IF(V10=0,0,(V10*((LOG(V10))/LOG(2)))) -> 0 | Y10: =N10 -> 122 | Z10: =COUNTIF(L30:L51,Y10) -> 0 | AA10: =Z10/(AB4-Z14) -> 0 | AB10: =IF(AA10=0,0,(AA10*((LOG(AA10))/LOG(2)))) -> 0 | AD10: =N10 -> 122 | AE10: =COUNTIF(L52:L74,AD10) -> 0 | AF10: =AE10/(AG4-AE14) -> 0 | AG10: =IF(AF10=0,0,(AF10*((LOG(AF10))/LOG(2)))) -> 0 | AI10: =N10 -> 122 | AJ10: =COUNTIF(L75:L97,AI10) -> 1 | AK10: =AJ10/(AL4-AJ14) -> 0.04347826087 | AL10: =IF(AK10=0,0,(AK10*((LOG(AK10))/LOG(2)))) -> -0.1966766068 | AN10: =N10 -> 122 | AO10: =COUNTIF(L98:L119,AN10) -> 0 | AP10: =AO10/(AQ4-AO14) -> 0 | AQ10: =IF(AP10=0,0,(AP10*((LOG(AP10))/LOG(2)))) -> 0 | AS10: =N10 -> 122 | AT10: =COUNTIF(L120:L142,AS10) -> 2 | AU10: =AT10/(AV4-AT14) -> 0.08695652174 | AV10: =IF(AU10=0,0,(AU10*((LOG(AU10))/LOG(2)))) -> -0.3063966918
A11: 21 | B11: 634 | C11: 21 | D11: 642 | E11: 12 | F11: 647 | K11: 0 | L11: 221 | N11: 211 | O11: =COUNTIF($L$7:$L$500,N11) -> 20 | P11: =O11/$Q$4 -> 0.1470588235 | Q11: =IF(P11=0,0,(P11*((LOG(P11))/LOG(2)))) -> -0.4066962862 | T11: =N11 -> 211 | U11: =COUNTIF(L7:L29,T11) -> 3 | V11: =U11/(W4-U14) -> 0.1304347826 | W11: =IF(V11=0,0,(V11*((LOG(V11))/LOG(2)))) -> -0.3832955811 | Y11: =N11 -> 211 | Z11: =COUNTIF(L30:L51,Y11) -> 2 | AA11: =Z11/(AB4-Z14) -> 0.09090909091 | AB11: =IF(AA11=0,0,(AA11*((LOG(AA11))/LOG(2)))) -> -0.3144937835 | AD11: =N11 -> 211 | AE11: =COUNTIF(L52:L74,AD11) -> 3 | AF11: =AE11/(AG4-AE14) -> 0.1304347826 | AG11: =IF(AF11=0,0,(AF11*((LOG(AF11))/LOG(2)))) -> -0.3832955811 | AI11: =N11 -> 211 | AJ11: =COUNTIF(L75:L97,AI11) -> 2 | AK11: =AJ11/(AL4-AJ14) -> 0.08695652174 | AL11: =IF(AK11=0,0,(AK11*((LOG(AK11))/LOG(2)))) -> -0.3063966918 | AN11: =N11 -> 211 | AO11: =COUNTIF(L98:L119,AN11) -> 6 | AP11: =AO11/(AQ4-AO14) -> 0.2727272727 | AQ11: =IF(AP11=0,0,(AP11*((LOG(AP11))/LOG(2)))) -> -0.5112188503 | AS11: =N11 -> 211 | AT11: =COUNTIF(L120:L142,AS11) -> 4 | AU11: =AT11/(AV4-AT14) -> 0.1739130435 | AV11: =IF(AU11=0,0,(AU11*((LOG(AU11))/LOG(2)))) -> -0.4388803402
A12: 12 | B12: 746 | C12: 23 | D12: 749 | E12: 14 | F12: 755 | K12: 0 | L12: 121 | N12: 212 | O12: =COUNTIF($L$7:$L$500,N12) -> 5 | P12: =O12/$Q$4 -> 0.03676470588 | Q12: =IF(P12=0,0,(P12*((LOG(P12))/LOG(2)))) -> -0.1752034833 | T12: =N12 -> 212 | U12: =COUNTIF(L7:L29,T12) -> 0 | V12: =U12/(W4-U14) -> 0 | W12: =IF(V12=0,0,(V12*((LOG(V12))/LOG(2)))) -> 0 | Y12: =N12 -> 212 | Z12: =COUNTIF(L30:L51,Y12) -> 1 | AA12: =Z12/(AB4-Z14) -> 0.04545454545 | AB12: =IF(AA12=0,0,(AA12*((LOG(AA12))/LOG(2)))) -> -0.2027014372 | AD12: =N12 -> 212 | AE12: =COUNTIF(L52:L74,AD12) -> 1 | AF12: =AE12/(AG4-AE14) -> 0.04347826087 | AG12: =IF(AF12=0,0,(AF12*((LOG(AF12))/LOG(2)))) -> -0.1966766068 | AI12: =N12 -> 212 | AJ12: =COUNTIF(L75:L97,AI12) -> 1 | AK12: =AJ12/(AL4-AJ14) -> 0.04347826087 | AL12: =IF(AK12=0,0,(AK12*((LOG(AK12))/LOG(2)))) -> -0.1966766068 | AN12: =N12 -> 212 | AO12: =COUNTIF(L98:L119,AN12) -> 2 | AP12: =AO12/(AQ4-AO14) -> 0.09090909091 | AQ12: =IF(AP12=0,0,(AP12*((LOG(AP12))/LOG(2)))) -> -0.3144937835 | AS12: =N12 -> 212 | AT12: =COUNTIF(L120:L142,AS12) -> 0 | AU12: =AT12/(AV4-AT14) -> 0 | AV12: =IF(AU12=0,0,(AU12*((LOG(AU12))/LOG(2)))) -> 0
A13: 21 | B13: 856 | C13: 12 | D13: 864 | E13: 14 | F13: 867 | K13: 0 | L13: 211 | N13: 221 | O13: =COUNTIF($L$7:$L$500,N13) -> 8 | P13: =O13/$Q$4 -> 0.05882352941 | Q13: =IF(P13=0,0,(P13*((LOG(P13))/LOG(2)))) -> -0.2404389907 | T13: =N13 -> 221 | U13: =COUNTIF(L7:L29,T13) -> 3 | V13: =U13/(W4-U14) -> 0.1304347826 | W13: =IF(V13=0,0,(V13*((LOG(V13))/LOG(2)))) -> -0.3832955811 | Y13: =N13 -> 221 | Z13: =COUNTIF(L30:L51,Y13) -> 0 | AA13: =Z13/(AB4-Z14) -> 0 | AB13: =IF(AA13=0,0,(AA13*((LOG(AA13))/LOG(2)))) -> 0 | AD13: =N13 -> 221 | AE13: =COUNTIF(L52:L74,AD13) -> 1 | AF13: =AE13/(AG4-AE14) -> 0.04347826087 | AG13: =IF(AF13=0,0,(AF13*((LOG(AF13))/LOG(2)))) -> -0.1966766068 | AI13: =N13 -> 221 | AJ13: =COUNTIF(L75:L97,AI13) -> 2 | AK13: =AJ13/(AL4-AJ14) -> 0.08695652174 | AL13: =IF(AK13=0,0,(AK13*((LOG(AK13))/LOG(2)))) -> -0.3063966918 | AN13: =N13 -> 221 | AO13: =COUNTIF(L98:L119,AN13) -> 2 | AP13: =AO13/(AQ4-AO14) -> 0.09090909091 | AQ13: =IF(AP13=0,0,(AP13*((LOG(AP13))/LOG(2)))) -> -0.3144937835 | AS13: =N13 -> 221 | AT13: =COUNTIF(L120:L142,AS13) -> 0 | AU13: =AT13/(AV4-AT14) -> 0 | AV13: =IF(AU13=0,0,(AU13*((LOG(AU13))/LOG(2)))) -> 0
A14: 21 | B14: 968 | C14: 12 | D14: 976 | E14: 14 | F14: 980 | K14: 0 | L14: 211 | N14: 222 | O14: =COUNTIF($L$7:$L$500,N14) -> 0 | P14: =O14/$Q$4 -> 0 | Q14: =IF(P14=0,0,(P14*((LOG(P14))/LOG(2)))) -> 0 | T14: =N14 -> 222 | U14: =COUNTIF(L7:L29,T14) -> 0 | Y14: =N14 -> 222 | Z14: =COUNTIF(L30:L51,Y14) -> 0 | AD14: =N14 -> 222 | AE14: =COUNTIF(L52:L74,AD14) -> 0 | AI14: =N14 -> 222 | AJ14: =COUNTIF(L75:L97,AI14) -> 0 | AN14: =N14 -> 222 | AO14: =COUNTIF(L98:L119,AN14) -> 0 | AS14: =N14 -> 222 | AT14: =COUNTIF(L120:L142,AS14) -> 0
A15: 21 | B15: 1073 | C15: 21 | D15: 1078 | E15: 12 | F15: 1092 | K15: 0 | L15: 221 | P15: =SUM(P7:P14) -> 1 | Q15: =-SUM(Q7:Q14) -> 2.274566357 | V15: =SUM(V7:V14) -> 1 | W15: =-SUM(W7:W14) -> 1.950815726 | AA15: =SUM(AA7:AA14) -> 1 | AB15: =-SUM(AB7:AB14) -> 1.794468415 | AF15: =SUM(AF7:AF14) -> 1 | AG15: =-SUM(AG7:AG14) -> 2.111216588 | AK15: =SUM(AK7:AK14) -> 1 | AL15: =-SUM(AL7:AL14) -> 2.397742261 | AP15: =SUM(AP7:AP14) -> 1 | AQ15: =-SUM(AQ7:AQ14) -> 2.265583323 | AU15: =SUM(AU7:AU14) -> 1 | AV15: =-SUM(AV7:AV14) -> 1.999485965
A16: 12 | B16: 1101 | C16: 23 | D16: 1104 | E16: 14 | F16: 1106 | K16: 0 | L16: 121 | P16: U= | Q16: =Q15/(LOG(Q4)/LOG(2)) -> 0.3209281527 | V16: U1= | W16: =W15/(LOG(W4)/LOG(2)) -> 0.4312565508 | AA16: U2= | AB16: =AB15/(LOG(AB4)/LOG(2)) -> 0.4023984598 | AF16: U3= | AG16: =AG15/(LOG(AG4)/LOG(2)) -> 0.4667155239 | AK16: U4= | AL16: =AL15/(LOG(AL4)/LOG(2)) -> 0.5300562442 | AP16: U5= | AQ16: =AQ15/(LOG(AQ4)/LOG(2)) -> 0.5080430684 | AU16: U6= | AV16: =AV15/(LOG(AV4)/LOG(2)) -> 0.4420158238
A17: 12 | B17: 1204 | C17: 14 | D17: 1208 | E17: 14 | F17: 1211 | K17: 0 | L17: 111
A18: 12 | B18: 1311 | C18: 14 | D18: 1315 | E18: 14 | F18: 1319 | K18: 0 | L18: 111
A19: 12 | B19: 1628 | C19: 14 | D19: 1632 | E19: 23 | F19: 1634 | K19: 0 | L19: 112 | N19: Total Target Seq
A20: 12 | B20: 1754 | C20: 14 | D20: 1763 | E20: 14 | F20: 1770 | K20: 0 | L20: 111 | N20: =COUNTIF(L7:L142,G3) -> 0 | P20: 23 | Q20: 22 | R20: 23 | S20: 23 | T20: 22 | U20: 23
A21: 21 | B21: 1889 | C21: 21 | D21: 1896 | E21: 12 | F21: 1910 | K21: 0 | L21: 221 | P21: % of reinforcement given in 6 equal intervals based on number of trials
A22: 12 | B22: 2093 | C22: 14 | D22: 2117 | E22: 14 | F22: 2127 | K22: 0 | L22: 111 | P22: %_1 | Q22: %_2 | R22: %_3 | S22: %_4 | T22: %_5 | U22: %_6
A23: 12 | B23: 2262 | C23: 14 | D23: 2268 | E23: 14 | F23: 2274 | K23: 0 | L23: 111 | O23: target sequence | P23: =$G$3 -> 222 | Q23: =$G$3 -> 222 | R23: =$G$3 -> 222 | S23: =$G$3 -> 222 | T23: =$G$3 -> 222 | U23: =$G$3 -> 222
A24: 12 | B24: 2391 | C24: 14 | D24: 2399 | E24: 14 | F24: 2405 | K24: 0 | L24: 111 | O24: total reinforcement | P24: =U14 -> 0 | Q24: =Z14 -> 0 | R24: =AE14 -> 0 | S24: =AJ14 -> 0 | T24: =AO14 -> 0 | U24: =AT14 -> 0
A25: 21 | B25: 2559 | C25: 12 | D25: 2571 | E25: 14 | F25: 2576 | K25: 0 | L25: 211 | O25: % target
A26: 12 | B26: 2769 | C26: 23 | D26: 2771 | E26: 14 | F26: 2774 | K26: 0 | L26: 121 | O26: CCRF
A27: 12 | B27: 2897 | C27: 14 | D27: 2901 | E27: 14 | F27: 2906 | K27: 0 | L27: 111 | O27: % CCRf
A28: 12 | B28: 3010 | C28: 23 | D28: 3013 | E28: 14 | F28: 3017 | K28: 0 | L28: 121 | O28: average response rate | P28: =F29/P20 -> 137.2608696 | Q28: =(F51-F29)/Q20 -> 117.5454545 | R28: =(F74-F51)/R20 -> 119 | S28: =(F97-F74)/S20 -> 130.8695652 | T28: =(F119-F97)/T20 -> 137.4090909 | U28: =(F142-F119)/U20 -> 166.6086957
A29: 12 | B29: 3122 | C29: 14 | D29: 3150 | E29: 14 | F29: 3157 | K29: 0 | L29: 111
A30: 12 | B30: 3272 | C30: 14 | D30: 3276 | E30: 14 | F30: 3280 | K30: 0 | L30: 111
A31: 12 | B31: 3378 | C31: 23 | D31: 3383 | E31: 14 | F31: 3385 | K31: 0 | L31: 121
A32: 21 | B32: 3492 | C32: 12 | D32: 3504 | E32: 14 | F32: 3509 | K32: 0 | L32: 211
A33: 12 | B33: 3653 | C33: 23 | D33: 3656 | E33: 14 | F33: 3661 | K33: 0 | L33: 121
A34: 12 | B34: 3764 | C34: 14 | D34: 3772 | E34: 14 | F34: 3778 | K34: 0 | L34: 111
A35: 12 | B35: 3899 | C35: 14 | D35: 3902 | E35: 14 | F35: 3906 | K35: 0 | L35: 111
A36: 12 | B36: 4005 | C36: 23 | D36: 4007 | E36: 14 | F36: 4008 | K36: 0 | L36: 121
A37: 12 | B37: 4131 | C37: 14 | D37: 4134 | E37: 14 | F37: 4138 | K37: 0 | L37: 111
A38: 12 | B38: 4242 | C38: 14 | D38: 4247 | E38: 14 | F38: 4251 | K38: 0 | L38: 111
A39: 12 | B39: 4349 | C39: 14 | D39: 4354 | E39: 14 | F39: 4358 | K39: 0 | L39: 111
A40: 12 | B40: 4458 | C40: 14 | D40: 4462 | E40: 14 | F40: 4465 | K40: 0 | L40: 111
A41: 12 | B41: 4574 | C41: 23 | D41: 4578 | E41: 14 | F41: 4586 | K41: 0 | L41: 121
A42: 12 | B42: 4688 | C42: 14 | D42: 4695 | E42: 14 | F42: 4701 | K42: 0 | L42: 111
A43: 12 | B43: 4804 | C43: 14 | D43: 4808 | E43: 14 | F43: 4812 | K43: 0 | L43: 111
A44: 12 | B44: 4914 | C44: 14 | D44: 4918 | E44: 14 | F44: 4921 | K44: 0 | L44: 111
A45: 12 | B45: 5023 | C45: 14 | D45: 5026 | E45: 23 | F45: 5028 | K45: 0 | L45: 112
A46: 12 | B46: 5126 | C46: 14 | D46: 5130 | E46: 23 | F46: 5134 | K46: 0 | L46: 112
A47: 12 | B47: 5237 | C47: 14 | D47: 5241 | E47: 14 | F47: 5246 | K47: 0 | L47: 111
A48: 21 | B48: 5362 | C48: 12 | D48: 5368 | E48: 14 | F48: 5370 | K48: 0 | L48: 211
A49: 21 | B49: 5471 | C49: 12 | D49: 5479 | E49: 23 | F49: 5483 | K49: 0 | L49: 212
A50: 12 | B50: 5618 | C50: 14 | D50: 5621 | E50: 14 | F50: 5625 | K50: 0 | L50: 111
A51: 12 | B51: 5735 | C51: 23 | D51: 5739 | E51: 14 | F51: 5743 | K51: 0 | L51: 121
A52: 12 | B52: 5842 | C52: 14 | D52: 5848 | E52: 23 | F52: 5854 | K52: 0 | L52: 112
A53: 12 | B53: 6011 | C53: 23 | D53: 6013 | E53: 14 | F53: 6017 | K53: 0 | L53: 121
A54: 21 | B54: 6118 | C54: 12 | D54: 6130 | E54: 14 | F54: 6134 | K54: 0 | L54: 211
A55: 21 | B55: 6246 | C55: 12 | D55: 6249 | E55: 14 | F55: 6252 | K55: 0 | L55: 211
A56: 21 | B56: 6355 | C56: 12 | D56: 6358 | E56: 14 | F56: 6366 | K56: 0 | L56: 211
A57: 21 | B57: 6488 | C57: 21 | D57: 6494 | E57: 12 | F57: 6498 | K57: 0 | L57: 221
A58: 12 | B58: 6602 | C58: 14 | D58: 6608 | E58: 14 | F58: 6611 | K58: 0 | L58: 111
A59: 12 | B59: 6706 | C59: 14 | D59: 6709 | E59: 14 | F59: 6713 | K59: 0 | L59: 111
A60: 21 | B60: 6825 | C60: 12 | D60: 6829 | E60: 23 | F60: 6832 | K60: 0 | L60: 212
A61: 12 | B61: 6941 | C61: 14 | D61: 6943 | E61: 14 | F61: 6949 | K61: 0 | L61: 111
A62: 12 | B62: 7050 | C62: 23 | D62: 7052 | E62: 14 | F62: 7053 | K62: 0 | L62: 121
A63: 12 | B63: 7154 | C63: 14 | D63: 7157 | E63: 14 | F63: 7161 | K63: 0 | L63: 111
A64: 12 | B64: 7264 | C64: 23 | D64: 7266 | E64: 14 | F64: 7268 | K64: 0 | L64: 121
A65: 12 | B65: 7381 | C65: 14 | D65: 7386 | E65: 14 | F65: 7391 | K65: 0 | L65: 111
A66: 12 | B66: 7555 | C66: 23 | D66: 7558 | E66: 14 | F66: 7563 | K66: 0 | L66: 121
A67: 12 | B67: 7661 | C67: 23 | D67: 7666 | E67: 14 | F67: 7668 | K67: 0 | L67: 121
A68: 12 | B68: 7770 | C68: 23 | D68: 7775 | E68: 14 | F68: 7776 | K68: 0 | L68: 121
A69: 12 | B69: 7883 | C69: 23 | D69: 7887 | E69: 14 | F69: 7892 | K69: 0 | L69: 121
A70: 12 | B70: 7991 | C70: 23 | D70: 7993 | E70: 14 | F70: 7994 | K70: 0 | L70: 121
A71: 12 | B71: 8092 | C71: 23 | D71: 8095 | E71: 14 | F71: 8099 | K71: 0 | L71: 121
A72: 12 | B72: 8253 | C72: 14 | D72: 8257 | E72: 23 | F72: 8259 | K72: 0 | L72: 112
A73: 12 | B73: 8357 | C73: 23 | D73: 8363 | E73: 14 | F73: 8367 | K73: 0 | L73: 121
A74: 12 | B74: 8468 | C74: 14 | D74: 8474 | E74: 14 | F74: 8480 | K74: 0 | L74: 111
A75: 12 | B75: 8590 | C75: 14 | D75: 8594 | E75: 14 | F75: 8597 | K75: 0 | L75: 111
A76: 12 | B76: 8730 | C76: 14 | D76: 8734 | E76: 14 | F76: 8737 | K76: 0 | L76: 111
A77: 12 | B77: 8860 | C77: 14 | D77: 8864 | E77: 23 | F77: 8866 | K77: 0 | L77: 112
A78: 12 | B78: 8968 | C78: 14 | D78: 8975 | E78: 23 | F78: 8977 | K78: 0 | L78: 112
A79: 12 | B79: 9076 | C79: 14 | D79: 9080 | E79: 23 | F79: 9081 | K79: 0 | L79: 112
A80: 12 | B80: 9179 | C80: 23 | D80: 9182 | E80: 14 | F80: 9189 | K80: 0 | L80: 121
A81: 12 | B81: 9286 | C81: 23 | D81: 9289 | E81: 14 | F81: 9293 | K81: 0 | L81: 121
A82: 12 | B82: 9393 | C82: 23 | D82: 9396 | E82: 14 | F82: 9400 | K82: 0 | L82: 121
A83: 21 | B83: 9559 | C83: 12 | D83: 9565 | E83: 14 | F83: 9571 | K83: 0 | L83: 211
A84: 12 | B84: 9688 | C84: 23 | D84: 9690 | E84: 14 | F84: 9695 | K84: 0 | L84: 121
A85: 21 | B85: 9811 | C85: 12 | D85: 9815 | E85: 14 | F85: 9820 | K85: 0 | L85: 211
A86: 12 | B86: 9930 | C86: 23 | D86: 9939 | E86: 23 | F86: 9942 | K86: 0 | L86: 122
A87: 12 | B87: 10065 | C87: 23 | D87: 10068 | E87: 14 | F87: 10072 | K87: 0 | L87: 121
A88: 12 | B88: 10171 | C88: 23 | D88: 10173 | E88: 14 | F88: 10183 | K88: 0 | L88: 121
A89: 12 | B89: 10282 | C89: 23 | D89: 10292 | E89: 14 | F89: 10299 | K89: 0 | L89: 121
A90: 12 | B90: 10526 | C90: 14 | D90: 10530 | E90: 14 | F90: 10533 | K90: 0 | L90: 111
A91: 12 | B91: 10661 | C91: 23 | D91: 10667 | E91: 14 | F91: 10669 | K91: 0 | L91: 121
A92: 12 | B92: 10911 | C92: 14 | D92: 10915 | E92: 14 | F92: 10921 | K92: 0 | L92: 111
A93: 12 | B93: 11026 | C93: 14 | D93: 11029 | E93: 14 | F93: 11031 | K93: 0 | L93: 111
A94: 12 | B94: 11132 | C94: 23 | D94: 11138 | E94: 14 | F94: 11140 | K94: 0 | L94: 121
A95: 21 | B95: 11239 | C95: 21 | D95: 11246 | E95: 12 | F95: 11254 | K95: 0 | L95: 221
A96: 21 | B96: 11359 | C96: 12 | D96: 11371 | E96: 23 | F96: 11380 | K96: 0 | L96: 212
A97: 21 | B97: 11480 | C97: 21 | D97: 11486 | E97: 12 | F97: 11490 | K97: 0 | L97: 221
A98: 21 | B98: 11595 | C98: 12 | D98: 11601 | E98: 14 | F98: 11605 | K98: 0 | L98: 211
A99: 21 | B99: 11728 | C99: 12 | D99: 11730 | E99: 23 | F99: 11735 | K99: 0 | L99: 212
A100: 12 | B100: 11870 | C100: 14 | D100: 11873 | E100: 14 | F100: 11876 | K100: 0 | L100: 111
A101: 21 | B101: 12000 | C101: 12 | D101: 12003 | E101: 14 | F101: 12006 | K101: 0 | L101: 211
A102: 12 | B102: 12110 | C102: 23 | D102: 12115 | E102: 14 | F102: 12120 | K102: 0 | L102: 121
A103: 12 | B103: 12223 | C103: 14 | D103: 12228 | E103: 14 | F103: 12241 | K103: 0 | L103: 111
A104: 12 | B104: 12513 | C104: 14 | D104: 12516 | E104: 14 | F104: 12523 | K104: 0 | L104: 111
A105: 12 | B105: 12642 | C105: 14 | D105: 12649 | E105: 14 | F105: 12652 | K105: 0 | L105: 111
A106: 21 | B106: 12766 | C106: 12 | D106: 12770 | E106: 14 | F106: 12777 | K106: 0 | L106: 211
A107: 21 | B107: 12949 | C107: 12 | D107: 12954 | E107: 14 | F107: 12959 | K107: 0 | L107: 211
A108: 21 | B108: 13058 | C108: 12 | D108: 13063 | E108: 14 | F108: 13067 | K108: 0 | L108: 211
A109: 12 | B109: 13177 | C109: 14 | D109: 13181 | E109: 14 | F109: 13186 | K109: 0 | L109: 111
A110: 21 | B110: 13289 | C110: 21 | D110: 13298 | E110: 12 | F110: 13305 | K110: 0 | L110: 221
A111: 12 | B111: 13445 | C111: 23 | D111: 13449 | E111: 14 | F111: 13452 | K111: 0 | L111: 121
A112: 21 | B112: 13561 | C112: 12 | D112: 13585 | E112: 14 | F112: 13592 | K112: 0 | L112: 211
A113: 12 | B113: 13763 | C113: 14 | D113: 13766 | E113: 23 | F113: 13768 | K113: 0 | L113: 112
A114: 21 | B114: 13877 | C114: 21 | D114: 13882 | E114: 12 | F114: 13894 | K114: 0 | L114: 221
A115: 12 | B115: 13994 | C115: 14 | D115: 13997 | E115: 14 | F115: 14001 | K115: 0 | L115: 111
A116: 12 | B116: 14155 | C116: 14 | D116: 14160 | E116: 14 | F116: 14164 | K116: 0 | L116: 111
A117: 12 | B117: 14289 | C117: 14 | D117: 14292 | E117: 14 | F117: 14295 | K117: 0 | L117: 111
A118: 12 | B118: 14396 | C118: 23 | D118: 14397 | E118: 14 | F118: 14399 | K118: 0 | L118: 121
A119: 21 | B119: 14507 | C119: 12 | D119: 14511 | E119: 23 | F119: 14513 | K119: 0 | L119: 212
A120: 12 | B120: 14612 | C120: 23 | D120: 14614 | E120: 14 | F120: 14618 | K120: 0 | L120: 121
A121: 12 | B121: 14761 | C121: 14 | D121: 14765 | E121: 14 | F121: 14768 | K121: 0 | L121: 111
A122: 12 | B122: 14880 | C122: 14 | D122: 14882 | E122: 14 | F122: 14884 | K122: 0 | L122: 111
A123: 12 | B123: 14985 | C123: 23 | D123: 14991 | E123: 14 | F123: 14993 | K123: 0 | L123: 121
A124: 12 | B124: 15116 | C124: 23 | D124: 15124 | E124: 23 | F124: 15131 | K124: 0 | L124: 122
A125: 21 | B125: 15257 | C125: 12 | D125: 15265 | E125: 14 | F125: 15270 | K125: 0 | L125: 211
A126: 12 | B126: 15447 | C126: 14 | D126: 15451 | E126: 23 | F126: 15453 | K126: 0 | L126: 112
A127: 12 | B127: 15613 | C127: 14 | D127: 15617 | E127: 14 | F127: 15622 | K127: 0 | L127: 111
A128: 12 | B128: 15745 | C128: 23 | D128: 15747 | E128: 14 | F128: 15752 | K128: 0 | L128: 121
A129: 12 | B129: 15970 | C129: 23 | D129: 15972 | E129: 14 | F129: 15974 | K129: 0 | L129: 121
A130: 12 | B130: 16074 | C130: 14 | D130: 16078 | E130: 14 | F130: 16082 | K130: 0 | L130: 111
A131: 12 | B131: 16188 | C131: 14 | D131: 16192 | E131: 14 | F131: 16214 | K131: 0 | L131: 111
A132: 12 | B132: 16325 | C132: 14 | D132: 16329 | E132: 14 | F132: 16332 | K132: 0 | L132: 111
A133: 12 | B133: 16441 | C133: 14 | D133: 16445 | E133: 14 | F133: 16447 | K133: 0 | L133: 111
A134: 21 | B134: 16545 | C134: 12 | D134: 16556 | E134: 14 | F134: 16561 | K134: 0 | L134: 211
A135: 21 | B135: 16659 | C135: 12 | D135: 16667 | E135: 14 | F135: 16672 | K135: 0 | L135: 211
A136: 12 | B136: 16777 | C136: 14 | D136: 16780 | E136: 14 | F136: 16786 | K136: 0 | L136: 111
A137: 12 | B137: 16911 | C137: 14 | D137: 16915 | E137: 14 | F137: 16920 | K137: 0 | L137: 111
A138: 12 | B138: 17025 | C138: 14 | D138: 17029 | E138: 14 | F138: 17035 | K138: 0 | L138: 111
A139: 12 | B139: 17133 | C139: 23 | D139: 17135 | E139: 23 | F139: 17143 | K139: 0 | L139: 122
A140: 21 | B140: 17259 | C140: 12 | D140: 17292 | E140: 14 | F140: 17298 | K140: 0 | L140: 211
A141: 12 | B141: 18226 | C141: 14 | D141: 18231 | E141: 23 | F141: 18240 | K141: 0 | L141: 112
A142: 12 | B142: 18338 | C142: 14 | D142: 18342 | E142: 14 | F142: 18345 | K142: 0 | L142: 111

Sheet !M831B1T.AYL
A1: Report for:!M831B1T.AYL
A2: Date: | B2: <date>
A3: Hen: | B3: <hen> | F3: Correct Sequence | G3: =Start!J2 -> 222 | P3: Total Sequences in Data | Q3: =4994-COUNTBLANK(L7:L5000) -> 112 | V3: Total Sequences in Block Data | W3: =COUNTA(L7:L25) -> 19 | AA3: Total Sequences in Block Data | AB3: =COUNTA(L26:L43) -> 18 | AF3: Total Sequences in Block Data | AG3: =COUNTA(L44:L62) -> 19 | AK3: Total Sequences in Block Data | AL3: =COUNTA(L63:L81) -> 19 | AP3: Total Sequences in Block Data | AQ3: =COUNTA(L82:L99) -> 18 | AU3: Total Sequences in Block Data | AV3: =COUNTA(L100:L118) -> 19
P4: Total Sequences in Summary | Q4: =SUM(O7:O14) -> 112 | V4: Total Sequences in Block Summary | W4: =SUM(U7:U14) -> 19 | AA4: Total Sequences in Block Summary | AB4: =SUM(Z7:Z14) -> 18 | AF4: Total Sequences in Block Summary | AG4: =SUM(AE7:AE14) -> 19 | AK4: Total Sequences in Block Summary | AL4: =SUM(AJ7:AJ14) -> 19 | AP4: Total Sequences in Block Summary | AQ4: =SUM(AO7:AO14) -> 18 | AU4: Total Sequences in Block Summary | AV4: =SUM(AT7:AT14) -> 19
T5: Block 1 | Y5: Block 2 | AD5: Block 3 | AI5: Block 4 | AN5: Block 5 | AS5: Block 6
A6: Sequence Component 1 | B6: Time 1 | C6: Sequence Component 2 | D6: Time 2 | E6: Sequence Component 3 | F6: Time 3 | G6: Sequence Component 4 | H6: Time 4 | I6: Sequence Component 5 | J6: Time 5 | K6: Correct? 0=No 1=Yes | L6: Sequence | N6: Frequency | P6: Relative Frequency | Q6: Variability | T6: Frequency | V6: Relative Frequency | W6: Variability | Y6: Frequency | AA6: Relative Frequency | AB6: Variability | AD6: Frequency | AF6: Relative Frequency | AG6: Variability | AI6: Frequency | AK6: Relative Frequency | AL6: Variability | AN6: Frequency | AP6: Relative Frequency | AQ6: Variability | AS6: Frequency | AU6: Relative Frequency | AV6: Variability
A7: 12 | B7: 7 | C7: 23 | D7: 10 | E7: 14 | F7: 16 | K7: 0 | L7: 121 | N7: 111 | O7: =COUNTIF($L$7:$L$500,N7) -> 22 | P7: =O7/$Q$4 -> 0.1964285714 | Q7: =IF(P7=0,0,(P7*((LOG(P7))/LOG(2)))) -> -0.4611992203 | T7: =N7 -> 111 | U7: =COUNTIF(L7:L25,T7) -> 8 | V7: =U7/(W4-U14) -> 0.4444444444 | W7: =IF(V7=0,0,(V7*((LOG(V7))/LOG(2)))) -> -0.5199666673 | Y7: =N7 -> 111 | Z7: =COUNTIF(L26:L43,Y7) -> 4 | AA7: =Z7/(AB4-Z14) -> 0.2222222222 | AB7: =IF(AA7=0,0,(AA7*((LOG(AA7))/LOG(2)))) -> -0.4822055559 | AD7: =N7 -> 111 | AE7: =COUNTIF(L44:L62,AD7) -> 4 | AF7: =AE7/(AG4-AE14) -> 0.25 | AG7: =IF(AF7=0,0,(AF7*((LOG(AF7))/LOG(2)))) -> -0.5 | AI7: =N7 -> 111 | AJ7: =COUNTIF(L63:L81,AI7) -> 5 | AK7: =AJ7/(AL4-AJ14) -> 0.4545454545 | AL7: =IF(AK7=0,0,(AK7*((LOG(AK7))/LOG(2)))) -> -0.5170470562 | AN7: =N7 -> 111 | AO7: =COUNTIF(L82:L99,AN7) -> 1 | AP7: =AO7/(AQ4-AO14) -> 0.1666666667 | AQ7: =IF(AP7=0,0,(AP7*((LOG(AP7))/LOG(2)))) -> -0.4308270835 | AS7: =N7 -> 111 | AT7: =COUNTIF(L100:L118,AS7) -> 0 | AU7: =AT7/(AV4-AT14) -> 0 | AV7: =IF(AU7=0,0,(AU7*((LOG(AU7))/LOG(2)))) -> 0
A8: 12 | B8: 120 | C8: 14 | D8: 125 | E8: 14 | F8: 127 | K8: 0 | L8: 111 | N8: 112 | O8: =COUNTIF($L$7:$L$500,N8) -> 11 | P8: =O8/$Q$4 -> 0.09821428571 | Q8: =IF(P8=0,0,(P8*((LOG(P8))/LOG(2)))) -> -0.3288138959 | T8: =N8 -> 112 | U8: =COUNTIF(L7:L25,T8) -> 2 | V8: =U8/(W4-U14) -> 0.1111111111 | W8: =IF(V8=0,0,(V8*((LOG(V8))/LOG(2)))) -> -0.352213889 | Y8: =N8 -> 112 | Z8: =COUNTIF(L26:L43,Y8) -> 2 | AA8: =Z8/(AB4-Z14) -> 0.1111111111 | AB8: =IF(AA8=0,0,(AA8*((LOG(AA8))/LOG(2)))) -> -0.352213889 | AD8: =N8 -> 112 | AE8: =COUNTIF(L44:L62,AD8) -> 4 | AF8: =AE8/(AG4-AE14) -> 0.25 | AG8: =IF(AF8=0,0,(AF8*((LOG(AF8))/LOG(2)))) -> -0.5 | AI8: =N8 -> 112 | AJ8: =COUNTIF(L63:L81,AI8) -> 2 | AK8: =AJ8/(AL4-AJ14) -> 0.1818181818 | AL8: =IF(AK8=0,0,(AK8*((LOG(AK8))/LOG(2)))) -> -0.4471693852 | AN8: =N8 -> 112 | AO8: =COUNTIF(L82:L99,AN8) -> 1 | AP8: =AO8/(AQ4-AO14) -> 0.1666666667 | AQ8: =IF(AP8=0,0,(AP8*((LOG(AP8))/LOG(2)))) -> -0.4308270835 | AS8: =N8 -> 112 | AT8: =COUNTIF(L100:L118,AS8) -> 0 | AU8: =AT8/(AV4-AT14) -> 0 | AV8: =IF(AU8=0,0,(AU8*((LOG(AU8))/LOG(2)))) -> 0
A9: 12 | B9: 224 | C9: 23 | D9: 227 | E9: 14 | F9: 232 | K9: 0 | L9: 121 | N9: 121 | O9: =COUNTIF($L$7:$L$500,N9) -> 12 | P9: =O9/$Q$4 -> 0.1071428571 | Q9: =IF(P9=0,0,(P9*((LOG(P9))/LOG(2)))) -> -0.3452563309 | T9: =N9 -> 121 | U9: =COUNTIF(L7:L25,T9) -> 5 | V9: =U9/(W4-U14) -> 0.2777777778 | W9: =IF(V9=0,0,(V9*((LOG(V9))/LOG(2)))) -> -0.513332474 | Y9: =N9 -> 121 | Z9: =COUNTIF(L26:L43,Y9) -> 5 | AA9: =Z9/(AB4-Z14) -> 0.2777777778 | AB9: =IF(AA9=0,0,(AA9*((LOG(AA9))/LOG(2)))) -> -0.513332474 | AD9: =N9 -> 121 | AE9: =COUNTIF(L44:L62,AD9) -> 2 | AF9: =AE9/(AG4-AE14) -> 0.125 | AG9: =IF(AF9=0,0,(AF9*((LOG(AF9))/LOG(2)))) -> -0.375 | AI9: =N9 -> 121 | AJ9: =COUNTIF(L63:L81,AI9) -> 0 | AK9: =AJ9/(AL4-AJ14) -> 0 | AL9: =IF(AK9=0,0,(AK9*((LOG(AK9))/LOG(2)))) -> 0 | AN9: =N9 -> 121 | AO9: =COUNTIF(L82:L99,AN9) -> 0 | AP9: =AO9/(AQ4-AO14) -> 0 | AQ9: =IF(AP9=0,0,(AP9*((LOG(AP9))/LOG(2)))) -> 0 | AS9: =N9 -> 121 | AT9: =COUNTIF(L100:L118,AS9) -> 0 | AU9: =AT9/(AV4-AT14) -> 0 | AV9: =IF(AU9=0,0,(AU9*((LOG(AU9))/LOG(2)))) -> 0
A10: 12 | B10: 332 | C10: 14 | D10: 337 | E10: 14 | F10: 341 | K10: 0 | L10: 111 | N10: 122 | O10: =COUNTIF($L$7:$L$500,N10) -> 4 | P10: =O10/$Q$4 -> 0.03571428571 | Q10: =IF(P10=0,0,(P10*((LOG(P10))/LOG(2)))) -> -0.1716912472 | T10: =N10 -> 122 | U10: =COUNTIF(L7:L25,T10) -> 0 | V10: =U10/(W4-U14) -> 0 | W10: =IF(V10=0,0,(V10*((LOG(V10))/LOG(2)))) -> 0 | Y10: =N10 -> 122 | Z10: =COUNTIF(L26:L43,Y10) -> 1 | AA10: =Z10/(AB4-Z14) -> 0.05555555556 | AB10: =IF(AA10=0,0,(AA10*((LOG(AA10))/LOG(2)))) -> -0.2316625001 | AD10: =N10 -> 122 | AE10: =COUNTIF(L44:L62,AD10) -> 1 | AF10: =AE10/(AG4-AE14) -> 0.0625 | AG10: =IF(AF10=0,0,(AF10*((LOG(AF10))/LOG(2)))) -> -0.25 | AI10: =N10 -> 122 | AJ10: =COUNTIF(L63:L81,AI10) -> 1 | AK10: =AJ10/(AL4-AJ14) -> 0.09090909091 | AL10: =IF(AK10=0,0,(AK10*((LOG(AK10))/LOG(2)))) -> -0.3144937835 | AN10: =N10 -> 122 | AO10: =COUNTIF(L82:L99,AN10) -> 1 | AP10: =AO10/(AQ4-AO14) -> 0.1666666667 | AQ10: =IF(AP10=0,0,(AP10*((LOG(AP10))/LOG(2)))) -> -0.4308270835 | AS10: =N10 -> 122 | AT10: =COUNTIF(L100:L118,AS10) -> 0 | AU10: =AT10/(AV4-AT14) -> 0 | AV10: =IF(AU10=0,0,(AU10*((LOG(AU10))/LOG(2)))) -> 0
A11: 12 | B11: 445 | C11: 14 | D11: 448 | E11: 14 | F11: 454 | K11: 0 | L11: 111 | N11: 211 | O11: =COUNTIF($L$7:$L$500,N11) -> 4 | P11: =O11/$Q$4 -> 0.03571428571 | Q11: =IF(P11=0,0,(P11*((LOG(P11))/LOG(2)))) -> -0.1716912472 | T11: =N11 -> 211 | U11: =COUNTIF(L7:L25,T11) -> 1 | V11: =U11/(W4-U14) -> 0.05555555556 | W11: =IF(V11=0,0,(V11*((LOG(V11))/LOG(2)))) -> -0.2316625001 | Y11: =N11 -> 211 | Z11: =COUNTIF(L26:L43,Y11) -> 3 | AA11: =Z11/(AB4-Z14) -> 0.1666666667 | AB11: =IF(AA11=0,0,(AA11*((LOG(AA11))/LOG(2)))) -> -0.4308270835 | AD11: =N11 -> 211 | AE11: =COUNTIF(L44:L62,AD11) -> 0 | AF11: =AE11/(AG4-AE14) -> 0 | AG11: =IF(AF11=0,0,(AF11*((LOG(AF11))/LOG(2)))) -> 0 | AI11: =N11 -> 211 | AJ11: =COUNTIF(L63:L81,AI11) -> 0 | AK11: =AJ11/(AL4-AJ14) -> 0 | AL11: =IF(AK11=0,0,(AK11*((LOG(AK11))/LOG(2)))) -> 0 | AN11: =N11 -> 211 | AO11: =COUNTIF(L82:L99,AN11) -> 0 | AP11: =AO11/(AQ4-AO14) -> 0 | AQ11: =IF(AP11=0,0,(AP11*((LOG(AP11))/LOG(2)))) -> 0 | AS11: =N11 -> 211 | AT11: =COUNTIF(L100:L118,AS11) -> 0 | AU11: =AT11/(AV4-AT14) -> 0 | AV11: =IF(AU11=0,0,(AU11*((LOG(AU11))/LOG(2)))) -> 0
A12: 21 | B12: 575 | C12: 12 | D12: 591 | E12: 14 | F12: 596 | K12: 0 | L12: 211 | N12: 212 | O12: =COUNTIF($L$7:$L$500,N12) -> 17 | P12: =O12/$Q$4 -> 0.1517857143 | Q12: =IF(P12=0,0,(P12*((LOG(P12))/LOG(2)))) -> -0.4128407623 | T12: =N12 -> 212 | U12: =COUNTIF(L7:L25,T12) -> 1 | V12: =U12/(W4-U14) -> 0.05555555556 | W12: =IF(V12=0,0,(V12*((LOG(V12))/LOG(2)))) -> -0.2316625001 | Y12: =N12 -> 212 | Z12: =COUNTIF(L26:L43,Y12) -> 3 | AA12: =Z12/(AB4-Z14) -> 0.1666666667 | AB12: =IF(AA12=0,0,(AA12*((LOG(AA12))/LOG(2)))) -> -0.4308270835 | AD12: =N12 -> 212 | AE12: =COUNTIF(L44:L62,AD12) -> 2 | AF12: =AE12/(AG4-AE14) -> 0.125 | AG12: =IF(AF12=0,0,(AF12*((LOG(AF12))/LOG(2)))) -> -0.375 | AI12: =N12 -> 212 | AJ12: =COUNTIF(L63:L81,AI12) -> 3 | AK12: =AJ12/(AL4-AJ14) -> 0.2727272727 | AL12: =IF(AK12=0,0,(AK12*((LOG(AK12))/LOG(2)))) -> -0.5112188503 | AN12: =N12 -> 212 | AO12: =COUNTIF(L82:L99,AN12) -> 2 | AP12: =AO12/(AQ4-AO14) -> 0.3333333333 | AQ12: =IF(AP12=0,0,(AP12*((LOG(AP12))/LOG(2)))) -> -0.5283208336 | AS12: =N12 -> 212 | AT12: =COUNTIF(L100:L118,AS12) -> 6 | AU12: =AT12/(AV4-AT14) -> 1 | AV12: =IF(AU12=0,0,(AU12*((LOG(AU12))/LOG(2)))) -> 0
A13: 12 | B13: 717 | C13: 14 | D13: 722 | E13: 14 | F13: 725 | K13: 0 | L13: 111 | N13: 221 | O13: =COUNTIF($L$7:$L$500,N13) -> 5 | P13: =O13/$Q$4 -> 0.04464285714 | Q13: =IF(P13=0,0,(P13*((LOG(P13))/LOG(2)))) -> -0.2002422691 | T13: =N13 -> 221 | U13: =COUNTIF(L7:L25,T13) -> 1 | V13: =U13/(W4-U14) -> 0.05555555556 | W13: =IF(V13=0,0,(V13*((LOG(V13))/LOG(2)))) -> -0.2316625001 | Y13: =N13 -> 221 | Z13: =COUNTIF(L26:L43,Y13) -> 0 | AA13: =Z13/(AB4-Z14) -> 0 | AB13: =IF(AA13=0,0,(AA13*((LOG(AA13))/LOG(2)))) -> 0 | AD13: =N13 -> 221 | AE13: =COUNTIF(L44:L62,AD13) -> 3 | AF13: =AE13/(AG4-AE14) -> 0.1875 | AG13: =IF(AF13=0,0,(AF13*((LOG(AF13))/LOG(2)))) -> -0.4528195311 | AI13: =N13 -> 221 | AJ13: =COUNTIF(L63:L81,AI13) -> 0 | AK13: =AJ13/(AL4-AJ14) -> 0 | AL13: =IF(AK13=0,0,(AK13*((LOG(AK13))/LOG(2)))) -> 0 | AN13: =N13 -> 221 | AO13: =COUNTIF(L82:L99,AN13) -> 1 | AP13: =AO13/(AQ4-AO14) -> 0.1666666667 | AQ13: =IF(AP13=0,0,(AP13*((LOG(AP13))/LOG(2)))) -> -0.4308270835 | AS13: =N13 -> 221 | AT13: =COUNTIF(L100:L118,AS13) -> 0 | AU13: =AT13/(AV4-AT14) -> 0 | AV13: =IF(AU13=0,0,(AU13*((LOG(AU13))/LOG(2)))) -> 0
A14: 21 | B14: 826 | C14: 21 | D14: 830 | E14: 12 | F14: 840 | K14: 0 | L14: 221 | N14: 222 | O14: =COUNTIF($L$7:$L$500,N14) -> 37 | P14: =O14/$Q$4 -> 0.3303571429 | Q14: =IF(P14=0,0,(P14*((LOG(P14))/LOG(2)))) -> -0.5278781927 | T14: =N14 -> 222 | U14: =COUNTIF(L7:L25,T14) -> 1 | Y14: =N14 -> 222 | Z14: =COUNTIF(L26:L43,Y14) -> 0 | AD14: =N14 -> 222 | AE14: =COUNTIF(L44:L62,AD14) -> 3 | AI14: =N14 -> 222 | AJ14: =COUNTIF(L63:L81,AI14) -> 8 | AN14: =N14 -> 222 | AO14: =COUNTIF(L82:L99,AN14) -> 12 | AS14: =N14 -> 222 | AT14: =COUNTIF(L100:L118,AS14) -> 13
A15: 12 | B15: 855 | C15: 14 | D15: 862 | E15: 14 | F15: 867 | K15: 0 | L15: 111 | P15: =SUM(P7:P14) -> 1 | Q15: =-SUM(Q7:Q14) -> 2.619613166 | V15: =SUM(V7:V14) -> 1 | W15: =-SUM(W7:W14) -> 2.080500531 | AA15: =SUM(AA7:AA14) -> 1 | AB15: =-SUM(AB7:AB14) -> 2.441068586 | AF15: =SUM(AF7:AF14) -> 1 | AG15: =-SUM(AG7:AG14) -> 2.452819531 | AK15: =SUM(AK7:AK14) -> 1 | AL15: =-SUM(AL7:AL14) -> 1.789929075 | AP15: =SUM(AP7:AP14) -> 1 | AQ15: =-SUM(AQ7:AQ14) -> 2.251629167 | AU15: =SUM(AU7:AU14) -> 1 | AV15: =-SUM(AV7:AV14) -> 0
A16: 12 | B16: 1005 | C16: 14 | D16: 1013 | E16: 14 | F16: 1018 | K16: 0 | L16: 111 | P16: U= | Q16: =Q15/(LOG(Q4)/LOG(2)) -> 0.3848210054 | V16: U1= | W16: =W15/(LOG(W4)/LOG(2)) -> 0.4897683692 | AA16: U2= | AB16: =AB15/(LOG(AB4)/LOG(2)) -> 0.5853986787 | AF16: U3= | AG16: =AG15/(LOG(AG4)/LOG(2)) -> 0.5774155805 | AK16: U4= | AL16: =AL15/(LOG(AL4)/LOG(2)) -> 0.4213652586 | AP16: U5= | AQ16: =AQ15/(LOG(AQ4)/LOG(2)) -> 0.5399687444 | AU16: U6= | AV16: =AV15/(LOG(AV4)/LOG(2)) -> 0
A17: 12 | B17: 1159 | C17: 14 | D17: 1162 | E17: 23 | F17: 1166 | K17: 0 | L17: 112
A18: 12 | B18: 1292 | C18: 23 | D18: 1295 | E18: 14 | F18: 1302 | K18: 0 | L18: 121
A19: 12 | B19: 1495 | C19: 14 | D19: 1503 | E19: 14 | F19: 1509 | K19: 0 | L19: 111 | N19: Total Target Seq
A20: 12 | B20: 1608 | C20: 23 | D20: 1610 | E20: 14 | F20: 1615 | K20: 0 | L20: 121 | N20: =COUNTIF(L7:L118,G3) -> 37 | P20: 19 | Q20: 18 | R20: 19 | S20: 19 | T20: 18 | U20: 19
A21: 12 | B21: 1714 | C21: 23 | D21: 1717 | E21: 14 | F21: 1723 | K21: 0 | L21: 121 | P21: % of reinforcement given in 6 equal intervals based on number of trials
A22: 12 | B22: 1827 | C22: 14 | D22: 1831 | E22: 14 | F22: 1836 | K22: 0 | L22: 111 | P22: %_1 | Q22: %_2 | R22: %_3 | S22: %_4 | T22: %_5 | U22: %_6
A23: 12 | B23: 1942 | C23: 14 | D23: 1947 | E23: 23 | F23: 1956 | K23: 0 | L23: 112 | O23: target sequence | P23: =$G$3 -> 222 | Q23: =$G$3 -> 222 | R23: =$G$3 -> 222 | S23: =$G$3 -> 222 | T23: =$G$3 -> 222 | U23: =$G$3 -> 222
A24: 21 | B24: 2060 | C24: 12 | D24: 2072 | E24: 23 | F24: 2079 | K24: 0 | L24: 212 | O24: total reinforcement | P24: =U14 -> 1 | Q24: =Z14 -> 0 | R24: =AE14 -> 3 | S24: =AJ14 -> 8 | T24: =AO14 -> 12 | U24: =AT14 -> 13
A25: 21 | B25: 2262 | C25: 21 | D25: 2274 | E25: 21 | F25: 2286 | K25: 0 | L25: 222 | O25: % target
A26: 12 | B26: 2384 | C26: 14 | D26: 2389 | E26: 14 | F26: 2393 | K26: 0 | L26: 111 | O26: CCRF
A27: 12 | B27: 2499 | C27: 23 | D27: 2503 | E27: 14 | F27: 2508 | K27: 0 | L27: 121 | O27: % CCRf
A28: 21 | B28: 2607 | C28: 12 | D28: 2620 | E28: 23 | F28: 2627 | K28: 0 | L28: 212 | O28: average response rate | P28: =F25/P20 -> 120.3157895 | Q28: =(F43-F25)/Q20 -> 220.8888889 | R28: =(F62-F43)/R20 -> 143.2105263 | S28: =(F81-F62)/S20 -> 151.9473684 | T28: =(F99-F81)/T20 -> 161.2777778 | U28: =(F118-F99)/U20 -> 141.2105263
A29: 12 | B29: 2728 | C29: 23 | D29: 2730 | E29: 14 | F29: 2734 | K29: 0 | L29: 121
A30: 21 | B30: 2830 | C30: 12 | D30: 2838 | E30: 23 | F30: 2846 | K30: 0 | L30: 212
A31: 12 | B31: 2986 | C31: 14 | D31: 2991 | E31: 23 | F31: 3000 | K31: 0 | L31: 112
A32: 12 | B32: 3124 | C32: 23 | D32: 3131 | E32: 23 | F32: 3137 | K32: 0 | L32: 122
A33: 12 | B33: 3237 | C33: 14 | D33: 3239 | E33: 14 | F33: 3244 | K33: 0 | L33: 111
A34: 21 | B34: 3550 | C34: 12 | D34: 3561 | E34: 23 | F34: 3569 | K34: 0 | L34: 212
A35: 21 | B35: 3674 | C35: 12 | D35: 3684 | E35: 14 | F35: 3688 | K35: 0 | L35: 211
A36: 12 | B36: 3829 | C36: 23 | D36: 3831 | E36: 14 | F36: 3833 | K36: 0 | L36: 121
A37: 12 | B37: 4092 | C37: 23 | D37: 4095 | E37: 14 | F37: 4100 | K37: 0 | L37: 121
A38: 12 | B38: 5540 | C38: 14 | D38: 5544 | E38: 14 | F38: 5549 | K38: 0 | L38: 111
A39: 12 | B39: 5745 | C39: 14 | D39: 5748 | E39: 23 | F39: 5750 | K39: 0 | L39: 112
A40: 21 | B40: 5922 | C40: 12 | D40: 5924 | E40: 14 | F40: 5927 | K40: 0 | L40: 211
A41: 12 | B41: 6035 | C41: 23 | D41: 6040 | E41: 14 | F41: 6041 | K41: 0 | L41: 121
A42: 21 | B42: 6142 | C42: 12 | D42: 6152 | E42: 14 | F42: 6154 | K42: 0 | L42: 211
A43: 12 | B43: 6257 | C43: 14 | D43: 6259 | E43: 14 | F43: 6262 | K43: 0 | L43: 111
A44: 12 | B44: 6482 | C44: 14 | D44: 6490 | E44: 14 | F44: 6493 | K44: 0 | L44: 111
A45: 21 | B45: 6596 | C45: 21 | D45: 6612 | E45: 21 | F45: 6616 | K45: 0 | L45: 222
A46: 12 | B46: 6765 | C46: 14 | D46: 6767 | E46: 23 | F46: 6769 | K46: 0 | L46: 112
A47: 12 | B47: 6865 | C47: 23 | D47: 6868 | E47: 14 | F47: 6870 | K47: 0 | L47: 121
A48: 21 | B48: 6964 | C48: 21 | D48: 6967 | E48: 12 | F48: 6979 | K48: 0 | L48: 221
A49: 12 | B49: 7077 | C49: 14 | D49: 7081 | E49: 23 | F49: 7083 | K49: 0 | L49: 112
A50: 21 | B50: 7187 | C50: 21 | D50: 7189 | E50: 12 | F50: 7200 | K50: 0 | L50: 221
A51: 21 | B51: 7297 | C51: 12 | D51: 7310 | E51: 23 | F51: 7319 | K51: 0 | L51: 212
A52: 21 | B52: 7437 | C52: 21 | D52: 7466 | E52: 21 | F52: 7477 | K52: 0 | L52: 222
A53: 12 | B53: 7658 | C53: 14 | D53: 7662 | E53: 14 | F53: 7667 | K53: 0 | L53: 111
A54: 21 | B54: 7838 | C54: 21 | D54: 7842 | E54: 12 | F54: 7855 | K54: 0 | L54: 221
A55: 12 | B55: 7955 | C55: 23 | D55: 7963 | E55: 23 | F55: 7975 | K55: 0 | L55: 122
A56: 12 | B56: 8159 | C56: 23 | D56: 8164 | E56: 14 | F56: 8168 | K56: 0 | L56: 121
A57: 21 | B57: 8266 | C57: 12 | D57: 8279 | E57: 23 | F57: 8285 | K57: 0 | L57: 212
A58: 12 | B58: 8411 | C58: 14 | D58: 8416 | E58: 14 | F58: 8421 | K58: 0 | L58: 111
A59: 21 | B59: 8525 | C59: 21 | D59: 8540 | E59: 21 | F59: 8550 | K59: 0 | L59: 222
A60: 12 | B60: 8744 | C60: 14 | D60: 8747 | E60: 23 | F60: 8750 | K60: 0 | L60: 112
A61: 12 | B61: 8846 | C61: 14 | D61: 8850 | E61: 14 | F61: 8856 | K61: 0 | L61: 111
A62: 12 | B62: 8976 | C62: 14 | D62: 8980 | E62: 23 | F62: 8983 | K62: 0 | L62: 112
A63: 12 | B63: 9085 | C63: 14 | D63: 9090 | E63: 14 | F63: 9096 | K63: 0 | L63: 111
A64: 21 | B64: 9199 | C64: 12 | D64: 9208 | E64: 23 | F64: 9219 | K64: 0 | L64: 212
A65: 21 | B65: 9318 | C65: 21 | D65: 9333 | E65: 21 | F65: 9339 | K65: 0 | L65: 222
A66: 12 | B66: 9515 | C66: 14 | D66: 9518 | E66: 14 | F66: 9522 | K66: 0 | L66: 111
A67: 12 | B67: 9627 | C67: 14 | D67: 9630 | E67: 14 | F67: 9635 | K67: 0 | L67: 111
A68: 21 | B68: 9733 | C68: 21 | D68: 9736 | E68: 21 | F68: 9752 | K68: 0 | L68: 222
A69: 12 | B69: 9953 | C69: 14 | D69: 9959 | E69: 23 | F69: 9962 | K69: 0 | L69: 112
A70: 21 | B70: 10061 | C70: 12 | D70: 10073 | E70: 23 | F70: 10082 | K70: 0 | L70: 212
A71: 12 | B71: 10213 | C71: 23 | D71: 10219 | E71: 23 | F71: 10225 | K71: 0 | L71: 122
A72: 21 | B72: 10328 | C72: 21 | D72: 10342 | E72: 21 | F72: 10347 | K72: 0 | L72: 222
A73: 21 | B73: 10493 | C73: 12 | D73: 10496 | E73: 23 | F73: 10500 | K73: 0 | L73: 212
A74: 21 | B74: 10606 | C74: 21 | D74: 10612 | E74: 21 | F74: 10616 | K74: 0 | L74: 222
A75: 21 | B75: 10749 | C75: 21 | D75: 10759 | E75: 21 | F75: 10765 | K75: 0 | L75: 222
A76: 12 | B76: 10885 | C76: 14 | D76: 10996 | E76: 23 | F76: 10998 | K76: 0 | L76: 112
A77: 21 | B77: 11102 | C77: 21 | D77: 11110 | E77: 21 | F77: 11117 | K77: 0 | L77: 222
A78: 12 | B78: 11290 | C78: 14 | D78: 11294 | E78: 14 | F78: 11298 | K78: 0 | L78: 111
A79: 21 | B79: 11432 | C79: 21 | D79: 11456 | E79: 21 | F79: 11467 | K79: 0 | L79: 222
A80: 12 | B80: 11675 | C80: 14 | D80: 11678 | E80: 14 | F80: 11680 | K80: 0 | L80: 111
A81: 21 | B81: 11853 | C81: 21 | D81: 11866 | E81: 21 | F81: 11870 | K81: 0 | L81: 222
A82: 21 | B82: 12055 | C82: 21 | D82: 12070 | E82: 21 | F82: 12084 | K82: 0 | L82: 222
A83: 21 | B83: 12283 | C83: 21 | D83: 12297 | E83: 21 | F83: 12302 | K83: 0 | L83: 222
A84: 21 | B84: 12405 | C84: 21 | D84: 12409 | E84: 21 | F84: 12418 | K84: 0 | L84: 222
A85: 21 | B85: 12614 | C85: 21 | D85: 12625 | E85: 21 | F85: 12631 | K85: 0 | L85: 222
A86: 21 | B86: 12782 | C86: 21 | D86: 12789 | E86: 21 | F86: 12794 | K86: 0 | L86: 222
A87: 21 | B87: 12900 | C87: 21 | D87: 12908 | E87: 21 | F87: 12914 | K87: 0 | L87: 222
A88: 21 | B88: 13071 | C88: 21 | D88: 13087 | E88: 21 | F88: 13096 | K88: 0 | L88: 222
A89: 12 | B89: 13191 | C89: 23 | D89: 13195 | E89: 23 | F89: 13203 | K89: 0 | L89: 122
A90: 21 | B90: 13319 | C90: 21 | D90: 13321 | E90: 21 | F90: 13325 | K90: 0 | L90: 222
A91: 21 | B91: 13510 | C91: 21 | D91: 13536 | E91: 21 | F91: 13546 | K91: 0 | L91: 222
A92: 21 | B92: 13711 | C92: 21 | D92: 13719 | E92: 12 | F92: 13729 | K92: 0 | L92: 221
A93: 12 | B93: 13826 | C93: 14 | D93: 13833 | E93: 14 | F93: 13836 | K93: 0 | L93: 111
A94: 12 | B94: 13935 | C94: 14 | D94: 13938 | E94: 23 | F94: 13945 | K94: 0 | L94: 112
A95: 21 | B95: 14048 | C95: 21 | D95: 14065 | E95: 21 | F95: 14076 | K95: 0 | L95: 222
A96: 21 | B96: 14332 | C96: 21 | D96: 14362 | E96: 21 | F96: 14374 | K96: 0 | L96: 222
A97: 21 | B97: 14492 | C97: 12 | D97: 14503 | E97: 23 | F97: 14510 | K97: 0 | L97: 212
A98: 21 | B98: 14608 | C98: 21 | D98: 14627 | E98: 21 | F98: 14636 | K98: 0 | L98: 222
A99: 21 | B99: 14757 | C99: 12 | D99: 14767 | E99: 23 | F99: 14773 | K99: 0 | L99: 212
A100: 21 | B100: 14870 | C100: 12 | D100: 14879 | E100: 23 | F100: 14885 | K100: 0 | L100: 212
A101: 21 | B101: 14982 | C101: 21 | D101: 14985 | E101: 21 | F101: 14999 | K101: 0 | L101: 222
A102: 21 | B102: 15115 | C102: 21 | D102: 15123 | E102: 21 | F102: 15139 | K102: 0 | L102: 222
A103: 21 | B103: 15233 | C103: 12 | D103: 15246 | E103: 23 | F103: 15252 | K103: 0 | L103: 212
A104: 21 | B104: 15362 | C104: 21 | D104: 15364 | E104: 21 | F104: 15383 | K104: 0 | L104: 222
A105: 21 | B105: 15480 | C105: 12 | D105: 15493 | E105: 23 | F105: 15496 | K105: 0 | L105: 212
A106: 21 | B106: 15595 | C106: 12 | D106: 15603 | E106: 23 | F106: 15610 | K106: 0 | L106: 212
A107: 21 | B107: 15710 | C107: 21 | D107: 15726 | E107: 21 | F107: 15734 | K107: 0 | L107: 222
A108: 21 | B108: 15864 | C108: 21 | D108: 15869 | E108: 21 | F108: 15885 | K108: 0 | L108: 222
A109: 21 | B109: 15993 | C109: 21 | D109: 16009 | E109: 21 | F109: 16019 | K109: 0 | L109: 222
A110: 21 | B110: 16175 | C110: 12 | D110: 16184 | E110: 23 | F110: 16192 | K110: 0 | L110: 212
A111: 21 | B111: 16289 | C111: 21 | D111: 16304 | E111: 21 | F111: 16306 | K111: 0 | L111: 222
A112: 21 | B112: 16458 | C112: 21 | D112: 16462 | E112: 21 | F112: 16476 | K112: 0 | L112: 222
A113: 21 | B113: 16568 | C113: 12 | D113: 16583 | E113: 23 | F113: 16591 | K113: 0 | L113: 212
A114: 21 | B114: 16689 | C114: 21 | D114: 16691 | E114: 21 | F114: 16729 | K114: 0 | L114: 222
A115: 21 | B115: 16931 | C115: 21 | D115: 16935 | E115: 21 | F115: 16949 | K115: 0 | L115: 222
A116: 21 | B116: 17081 | C116: 21 | D116: 17099 | E116: 21 | F116: 17106 | K116: 0 | L116: 222
A117: 21 | B117: 17215 | C117: 21 | D117: 17223 | E117: 21 | F117: 17229 | K117: 0 | L117: 222
A118: 21 | B118: 17432 | C118: 21 | D118: 17451 | E118: 21 | F118: 17456 | K118: 1 | L118: 222

Sheet !M901A0T.AYL
A1: Report for:!M901A0T.AYL
A2: Date: | B2: <date>
A3: Hen: | B3: <hen> | F3: Correct Sequence | G3: =Start!J2 -> 222 | P3: Total Sequences in Data | Q3: =4994-COUNTBLANK(L7:L5000) -> 78 | V3: Total Sequences in Block Data | W3: =COUNTA(L7:L19) -> 13 | AA3: Total Sequences in Block Data | AB3: =COUNTA(L20:L32) -> 13 | AF3: Total Sequences in Block Data | AG3: =COUNTA(L33:L45) -> 13 | AK3: Total Sequences in Block Data | AL3: =COUNTA(L46:L58) -> 13 | AP3: Total Sequences in Block Data | AQ3: =COUNTA(L59:L71) -> 13 | AU3: Total Sequences in Block Data | AV3: =COUNTA(L72:L84) -> 13
P4: Total Sequences in Summary | Q4: =SUM(O7:O14) -> 78 | V4: Total Sequences in Block Summary | W4: =SUM(U7:U14) -> 13 | AA4: Total Sequences in Block Summary | AB4: =SUM(Z7:Z14) -> 13 | AF4: Total Sequences in Block Summary | AG4: =SUM(AE7:AE14) -> 13 | AK4: Total Sequences in Block Summary | AL4: =SUM(AJ7:AJ14) -> 13 | AP4: Total Sequences in Block Summary | AQ4: =SUM(AO7:AO14) -> 13 | AU4: Total Sequences in Block Summary | AV4: =SUM(AT7:AT14) -> 13
T5: Block 1 | Y5: Block 2 | AD5: Block 3 | AI5: Block 4 | AN5: Block 5 | AS5: Block 6
A6: Sequence Component 1 | B6: Time 1 | C6: Sequence Component 2 | D6: Time 2 | E6: Sequence Component 3 | F6: Time 3 | G6: Sequence Component 4 | H6: Time 4 | I6: Sequence Component 5 | J6: Time 5 | K6: Correct? 0=No 1=Yes | L6: Sequence | N6: Frequency | P6: Relative Frequency | Q6: Variability | T6: Frequency | V6: Relative Frequency | W6: Variability | Y6: Frequency | AA6: Relative Frequency | AB6: Variability | AD6: Frequency | AF6: Relative Frequency | AG6: Variability | AI6: Frequency | AK6: Relative Frequency | AL6: Variability | AN6: Frequency | AP6: Relative Frequency | AQ6: Variability | AS6: Frequency | AU6: Relative Frequency | AV6: Variability
A7: 12 | B7: 15 | C7: 23 | D7: 23 | E7: 23 | F7: 28 | K7: 0 | L7: 122 | N7: 111 | O7: =COUNTIF($L$7:$L$500,N7) -> 4 | P7: =O7/$Q$4 -> 0.05128205128 | Q7: =IF(P7=0,0,(P7*((LOG(P7))/LOG(2)))) -> -0.2197642164 | T7: =N7 -> 111 | U7: =COUNTIF(L7:L19,T7) -> 2 | V7: =U7/(W4-U14) -> 0.2 | W7: =IF(V7=0,0,(V7*((LOG(V7))/LOG(2)))) -> -0.464385619 | Y7: =N7 -> 111 | Z7: =COUNTIF(L20:L32,Y7) -> 1 | AA7: =Z7/(AB4-Z14) -> 0.125 | AB7: =IF(AA7=0,0,(AA7*((LOG(AA7))/LOG(2)))) -> -0.375 | AD7: =N7 -> 111 | AE7: =COUNTIF(L33:L45,AD7) -> 1 | AF7: =AE7/(AG4-AE14) -> 0.25 | AG7: =IF(AF7=0,0,(AF7*((LOG(AF7))/LOG(2)))) -> -0.5 | AI7: =N7 -> 111 | AJ7: =COUNTIF(L46:L58,AI7) -> 0 | AK7: =AJ7/(AL4-AJ14) -> 0 | AL7: =IF(AK7=0,0,(AK7*((LOG(AK7))/LOG(2)))) -> 0 | AN7: =N7 -> 111 | AO7: =COUNTIF(L59:L71,AN7) -> 0 | AP7: =AO7/(AQ4-AO14) -> 0 | AQ7: =IF(AP7=0,0,(AP7*((LOG(AP7))/LOG(2)))) -> 0 | AS7: =N7 -> 111 | AT7: =COUNTIF(L72:L84,AS7) -> 0 | AU7: =AT7/(AV4-AT14) -> 0 | AV7: =IF(AU7=0,0,(AU7*((LOG(AU7))/LOG(2)))) -> 0
A8: 21 | B8: 128 | C8: 21 | D8: 132 | E8: 12 | F8: 137 | K8: 0 | L8: 221 | N8: 112 | O8: =COUNTIF($L$7:$L$500,N8) -> 4 | P8: =O8/$Q$4 -> 0.05128205128 | Q8: =IF(P8=0,0,(P8*((LOG(P8))/LOG(2)))) -> -0.2197642164 | T8: =N8 -> 112 | U8: =COUNTIF(L7:L19,T8) -> 1 | V8: =U8/(W4-U14) -> 0.1 | W8: =IF(V8=0,0,(V8*((LOG(V8))/LOG(2)))) -> -0.3321928095 | Y8: =N8 -> 112 | Z8: =COUNTIF(L20:L32,Y8) -> 0 | AA8: =Z8/(AB4-Z14) -> 0 | AB8: =IF(AA8=0,0,(AA8*((LOG(AA8))/LOG(2)))) -> 0 | AD8: =N8 -> 112 | AE8: =COUNTIF(L33:L45,AD8) -> 0 | AF8: =AE8/(AG4-AE14) -> 0 | AG8: =IF(AF8=0,0,(AF8*((LOG(AF8))/LOG(2)))) -> 0 | AI8: =N8 -> 112 | AJ8: =COUNTIF(L46:L58,AI8) -> 1 | AK8: =AJ8/(AL4-AJ14) -> 0.1428571429 | AL8: =IF(AK8=0,0,(AK8*((LOG(AK8))/LOG(2)))) -> -0.4010507032 | AN8: =N8 -> 112 | AO8: =COUNTIF(L59:L71,AN8) -> 2 | AP8: =AO8/(AQ4-AO14) -> 0.2857142857 | AQ8: =IF(AP8=0,0,(AP8*((LOG(AP8))/LOG(2)))) -> -0.5163871206 | AS8: =N8 -> 112 | AT8: =COUNTIF(L72:L84,AS8) -> 0 | AU8: =AT8/(AV4-AT14) -> 0 | AV8: =IF(AU8=0,0,(AU8*((LOG(AU8))/LOG(2)))) -> 0
A9: 21 | B9: 247 | C9: 12 | D9: 259 | E9: 23 | F9: 265 | K9: 0 | L9: 212 | N9: 121 | O9: =COUNTIF($L$7:$L$500,N9) -> 1 | P9: =O9/$Q$4 -> 0.01282051282 | Q9: =IF(P9=0,0,(P9*((LOG(P9))/LOG(2)))) -> -0.08058207973 | T9: =N9 -> 121 | U9: =COUNTIF(L7:L19,T9) -> 0 | V9: =U9/(W4-U14) -> 0 | W9: =IF(V9=0,0,(V9*((LOG(V9))/LOG(2)))) -> 0 | Y9: =N9 -> 121 | Z9: =COUNTIF(L20:L32,Y9) -> 0 | AA9: =Z9/(AB4-Z14) -> 0 | AB9: =IF(AA9=0,0,(AA9*((LOG(AA9))/LOG(2)))) -> 0 | AD9: =N9 -> 121 | AE9: =COUNTIF(L33:L45,AD9) -> 0 | AF9: =AE9/(AG4-AE14) -> 0 | AG9: =IF(AF9=0,0,(AF9*((LOG(AF9))/LOG(2)))) -> 0 | AI9: =N9 -> 121 | AJ9: =COUNTIF(L46:L58,AI9) -> 0 | AK9: =AJ9/(AL4-AJ14) -> 0 | AL9: =IF(AK9=0,0,(AK9*((LOG(AK9))/LOG(2)))) -> 0 | AN9: =N9 -> 121 | AO9: =COUNTIF(L59:L71,AN9) -> 0 | AP9: =AO9/(AQ4-AO14) -> 0 | AQ9: =IF(AP9=0,0,(AP9*((LOG(AP9))/LOG(2)))) -> 0 | AS9: =N9 -> 121 | AT9: =COUNTIF(L72:L84,AS9) -> 1 | AU9: =AT9/(AV4-AT14) -> 0.3333333333 | AV9: =IF(AU9=0,0,(AU9*((LOG(AU9))/LOG(2)))) -> -0.5283208336
A10: 12 | B10: 381 | C10: 14 | D10: 386 | E10: 14 | F10: 395 | K10: 0 | L10: 111 | N10: 122 | O10: =COUNTIF($L$7:$L$500,N10) -> 8 | P10: =O10/$Q$4 -> 0.1025641026 | Q10: =IF(P10=0,0,(P10*((LOG(P10))/LOG(2)))) -> -0.3369643301 | T10: =N10 -> 122 | U10: =COUNTIF(L7:L19,T10) -> 1 | V10: =U10/(W4-U14) -> 0.1 | W10: =IF(V10=0,0,(V10*((LOG(V10))/LOG(2)))) -> -0.3321928095 | Y10: =N10 -> 122 | Z10: =COUNTIF(L20:L32,Y10) -> 3 | AA10: =Z10/(AB4-Z14) -> 0.375 | AB10: =IF(AA10=0,0,(AA10*((LOG(AA10))/LOG(2)))) -> -0.5306390622 | AD10: =N10 -> 122 | AE10: =COUNTIF(L33:L45,AD10) -> 0 | AF10: =AE10/(AG4-AE14) -> 0 | AG10: =IF(AF10=0,0,(AF10*((LOG(AF10))/LOG(2)))) -> 0 | AI10: =N10 -> 122 | AJ10: =COUNTIF(L46:L58,AI10) -> 2 | AK10: =AJ10/(AL4-AJ14) -> 0.2857142857 | AL10: =IF(AK10=0,0,(AK10*((LOG(AK10))/LOG(2)))) -> -0.5163871206 | AN10: =N10 -> 122 | AO10: =COUNTIF(L59:L71,AN10) -> 1 | AP10: =AO10/(AQ4-AO14) -> 0.1428571429 | AQ10: =IF(AP10=0,0,(AP10*((LOG(AP10))/LOG(2)))) -> -0.4010507032 | AS10: =N10 -> 122 | AT10: =COUNTIF(L72:L84,AS10) -> 1 | AU10: =AT10/(AV4-AT14) -> 0.3333333333 | AV10: =IF(AU10=0,0,(AU10*((LOG(AU10))/LOG(2)))) -> -0.5283208336
A11: 21 | B11: 495 | C11: 21 | D11: 499 | E11: 12 | F11: 507 | K11: 0 | L11: 221 | N11: 211 | O11: =COUNTIF($L$7:$L$500,N11) -> 3 | P11: =O11/$Q$4 -> 0.03846153846 | Q11: =IF(P11=0,0,(P11*((LOG(P11))/LOG(2)))) -> -0.180786143 | T11: =N11 -> 211 | U11: =COUNTIF(L7:L19,T11) -> 1 | V11: =U11/(W4-U14) -> 0.1 | W11: =IF(V11=0,0,(V11*((LOG(V11))/LOG(2)))) -> -0.3321928095 | Y11: =N11 -> 211 | Z11: =COUNTIF(L20:L32,Y11) -> 1 | AA11: =Z11/(AB4-Z14) -> 0.125 | AB11: =IF(AA11=0,0,(AA11*((LOG(AA11))/LOG(2)))) -> -0.375 | AD11: =N11 -> 211 | AE11: =COUNTIF(L33:L45,AD11) -> 0 | AF11: =AE11/(AG4-AE14) -> 0 | AG11: =IF(AF11=0,0,(AF11*((LOG(AF11))/LOG(2)))) -> 0 | AI11: =N11 -> 211 | AJ11: =COUNTIF(L46:L58,AI11) -> 1 | AK11: =AJ11/(AL4-AJ14) -> 0.1428571429 | AL11: =IF(AK11=0,0,(AK11*((LOG(AK11))/LOG(2)))) -> -0.4010507032 | AN11: =N11 -> 211 | AO11: =COUNTIF(L59:L71,AN11) -> 0 | AP11: =AO11/(AQ4-AO14) -> 0 | AQ11: =IF(AP11=0,0,(AP11*((LOG(AP11))/LOG(2)))) -> 0 | AS11: =N11 -> 211 | AT11: =COUNTIF(L72:L84,AS11) -> 0 | AU11: =AT11/(AV4-AT14) -> 0 | AV11: =IF(AU11=0,0,(AU11*((LOG(AU11))/LOG(2)))) -> 0
A12: 21 | B12: 620 | C12: 21 | D12: 629 | E12: 21 | F12: 635 | K12: 0 | L12: 222 | N12: 212 | O12: =COUNTIF($L$7:$L$500,N12) -> 15 | P12: =O12/$Q$4 -> 0.1923076923 | Q12: =IF(P12=0,0,(P12*((LOG(P12))/LOG(2)))) -> -0.4574060814 | T12: =N12 -> 212 | U12: =COUNTIF(L7:L19,T12) -> 2 | V12: =U12/(W4-U14) -> 0.2 | W12: =IF(V12=0,0,(V12*((LOG(V12))/LOG(2)))) -> -0.464385619 | Y12: =N12 -> 212 | Z12: =COUNTIF(L20:L32,Y12) -> 3 | AA12: =Z12/(AB4-Z14) -> 0.375 | AB12: =IF(AA12=0,0,(AA12*((LOG(AA12))/LOG(2)))) -> -0.5306390622 | AD12: =N12 -> 212 | AE12: =COUNTIF(L33:L45,AD12) -> 3 | AF12: =AE12/(AG4-AE14) -> 0.75 | AG12: =IF(AF12=0,0,(AF12*((LOG(AF12))/LOG(2)))) -> -0.3112781245 | AI12: =N12 -> 212 | AJ12: =COUNTIF(L46:L58,AI12) -> 2 | AK12: =AJ12/(AL4-AJ14) -> 0.2857142857 | AL12: =IF(AK12=0,0,(AK12*((LOG(AK12))/LOG(2)))) -> -0.5163871206 | AN12: =N12 -> 212 | AO12: =COUNTIF(L59:L71,AN12) -> 4 | AP12: =AO12/(AQ4-AO14) -> 0.5714285714 | AQ12: =IF(AP12=0,0,(AP12*((LOG(AP12))/LOG(2)))) -> -0.4613456697 | AS12: =N12 -> 212 | AT12: =COUNTIF(L72:L84,AS12) -> 1 | AU12: =AT12/(AV4-AT14) -> 0.3333333333 | AV12: =IF(AU12=0,0,(AU12*((LOG(AU12))/LOG(2)))) -> -0.5283208336
A13: 12 | B13: 732 | C13: 14 | D13: 737 | E13: 23 | F13: 746 | K13: 0 | L13: 112 | N13: 221 | O13: =COUNTIF($L$7:$L$500,N13) -> 4 | P13: =O13/$Q$4 -> 0.05128205128 | Q13: =IF(P13=0,0,(P13*((LOG(P13))/LOG(2)))) -> -0.2197642164 | T13: =N13 -> 221 | U13: =COUNTIF(L7:L19,T13) -> 3 | V13: =U13/(W4-U14) -> 0.3 | W13: =IF(V13=0,0,(V13*((LOG(V13))/LOG(2)))) -> -0.5210896782 | Y13: =N13 -> 221 | Z13: =COUNTIF(L20:L32,Y13) -> 0 | AA13: =Z13/(AB4-Z14) -> 0 | AB13: =IF(AA13=0,0,(AA13*((LOG(AA13))/LOG(2)))) -> 0 | AD13: =N13 -> 221 | AE13: =COUNTIF(L33:L45,AD13) -> 0 | AF13: =AE13/(AG4-AE14) -> 0 | AG13: =IF(AF13=0,0,(AF13*((LOG(AF13))/LOG(2)))) -> 0 | AI13: =N13 -> 221 | AJ13: =COUNTIF(L46:L58,AI13) -> 1 | AK13: =AJ13/(AL4-AJ14) -> 0.1428571429 | AL13: =IF(AK13=0,0,(AK13*((LOG(AK13))/LOG(2)))) -> -0.4010507032 | AN13: =N13 -> 221 | AO13: =COUNTIF(L59:L71,AN13) -> 0 | AP13: =AO13/(AQ4-AO14) -> 0 | AQ13: =IF(AP13=0,0,(AP13*((LOG(AP13))/LOG(2)))) -> 0 | AS13: =N13 -> 221 | AT13: =COUNTIF(L72:L84,AS13) -> 0 | AU13: =AT13/(AV4-AT14) -> 0 | AV13: =IF(AU13=0,0,(AU13*((LOG(AU13))/LOG(2)))) -> 0
A14: 21 | B14: 846 | C14: 12 | D14: 855 | E14: 23 | F14: 862 | K14: 0 | L14: 212 | N14: 222 | O14: =COUNTIF($L$7:$L$500,N14) -> 39 | P14: =O14/$Q$4 -> 0.5 | Q14: =IF(P14=0,0,(P14*((LOG(P14))/LOG(2)))) -> -0.5 | T14: =N14 -> 222 | U14: =COUNTIF(L7:L19,T14) -> 3 | Y14: =N14 -> 222 | Z14: =COUNTIF(L20:L32,Y14) -> 5 | AD14: =N14 -> 222 | AE14: =COUNTIF(L33:L45,AD14) -> 9 | AI14: =N14 -> 222 | AJ14: =COUNTIF(L46:L58,AI14) -> 6 | AN14: =N14 -> 222 | AO14: =COUNTIF(L59:L71,AN14) -> 6 | AS14: =N14 -> 222 | AT14: =COUNTIF(L72:L84,AS14) -> 10
A15: 21 | B15: 968 | C15: 21 | D15: 971 | E15: 12 | F15: 979 | K15: 0 | L15: 221 | P15: =SUM(P7:P14) -> 1 | Q15: =-SUM(Q7:Q14) -> 2.215031283 | V15: =SUM(V7:V14) -> 1 | W15: =-SUM(W7:W14) -> 2.446439345 | AA15: =SUM(AA7:AA14) -> 1 | AB15: =-SUM(AB7:AB14) -> 1.811278124 | AF15: =SUM(AF7:AF14) -> 1 | AG15: =-SUM(AG7:AG14) -> 0.8112781245 | AK15: =SUM(AK7:AK14) -> 1 | AL15: =-SUM(AL7:AL14) -> 2.235926351 | AP15: =SUM(AP7:AP14) -> 1 | AQ15: =-SUM(AQ7:AQ14) -> 1.378783493 | AU15: =SUM(AU7:AU14) -> 1 | AV15: =-SUM(AV7:AV14) -> 1.584962501
A16: 12 | B16: 1077 | C16: 14 | D16: 1078 | E16: 14 | F16: 1080 | K16: 0 | L16: 111 | P16: U= | Q16: =Q15/(LOG(Q4)/LOG(2)) -> 0.3524088366 | V16: U1= | W16: =W15/(LOG(W4)/LOG(2)) -> 0.6611212534 | AA16: U2= | AB16: =AB15/(LOG(AB4)/LOG(2)) -> 0.4894764575 | AF16: U3= | AG16: =AG15/(LOG(AG4)/LOG(2)) -> 0.2192383031 | AK16: U4= | AL16: =AL15/(LOG(AL4)/LOG(2)) -> 0.6042326104 | AP16: U5= | AQ16: =AQ15/(LOG(AQ4)/LOG(2)) -> 0.3725999066 | AU16: U6= | AV16: =AV15/(LOG(AV4)/LOG(2)) -> 0.428317341
A17: 21 | B17: 1239 | C17: 12 | D17: 1243 | E17: 14 | F17: 1248 | K17: 0 | L17: 211
A18: 21 | B18: 1354 | C18: 21 | D18: 1369 | E18: 21 | F18: 1380 | K18: 0 | L18: 222
A19: 21 | B19: 1532 | C19: 21 | D19: 1549 | E19: 21 | F19: 1558 | K19: 0 | L19: 222 | N19: Total Target Seq
A20: 21 | B20: 1653 | C20: 21 | D20: 1672 | E20: 21 | F20: 1681 | K20: 0 | L20: 222 | N20: =COUNTIF(L7:L84,G3) -> 39 | P20: 13 | Q20: 13 | R20: 13 | S20: 13 | T20: 13 | U20: 13
A21: 21 | B21: 1774 | C21: 21 | D21: 1794 | E21: 21 | F21: 1800 | K21: 0 | L21: 222 | P21: % of reinforcement given in 6 equal intervals based on number of trials
A22: 21 | B22: 1918 | C22: 21 | D22: 1930 | E22: 21 | F22: 1953 | K22: 0 | L22: 222 | P22: %_1 | Q22: %_2 | R22: %_3 | S22: %_4 | T22: %_5 | U22: %_6
A23: 12 | B23: 2122 | C23: 23 | D23: 2130 | E23: 23 | F23: 2133 | K23: 0 | L23: 122 | O23: target sequence | P23: =$G$3 -> 222 | Q23: =$G$3 -> 222 | R23: =$G$3 -> 222 | S23: =$G$3 -> 222 | T23: =$G$3 -> 222 | U23: =$G$3 -> 222
A24: 12 | B24: 2232 | C24: 23 | D24: 2240 | E24: 23 | F24: 2243 | K24: 0 | L24: 122 | O24: total reinforcement | P24: =U14 -> 3 | Q24: =Z14 -> 5 | R24: =AE14 -> 9 | S24: =AJ14 -> 6 | T24: =AO14 -> 6 | U24: =AT14 -> 10
A25: 21 | B25: 2345 | C25: 12 | D25: 2354 | E25: 23 | F25: 2365 | K25: 0 | L25: 212 | O25: % target
A26: 12 | B26: 2471 | C26: 14 | D26: 2474 | E26: 14 | F26: 2478 | K26: 0 | L26: 111 | O26: CCRF
A27: 21 | B27: 2574 | C27: 21 | D27: 2589 | E27: 21 | F27: 2603 | K27: 0 | L27: 222 | O27: % CCRf
A28: 12 | B28: 2767 | C28: 23 | D28: 2774 | E28: 23 | F28: 2778 | K28: 0 | L28: 122 | O28: average response rate | P28: =F19/P20 -> 119.8461538 | Q28: =(F32-F19)/Q20 -> 143.7692308 | R28: =(F45-F32)/R20 -> 140.9230769 | S28: =(F58-F45)/S20 -> 135.3846154 | T28: =(F71-F58)/T20 -> 125.3076923 | U28: =(F84-F71)/U20 -> 134.3846154
A29: 21 | B29: 2880 | C29: 12 | D29: 2892 | E29: 23 | F29: 2898 | K29: 0 | L29: 212
A30: 21 | B30: 3042 | C30: 21 | D30: 3060 | E30: 21 | F30: 3076 | K30: 0 | L30: 222
A31: 21 | B31: 3188 | C31: 12 | D31: 3202 | E31: 14 | F31: 3208 | K31: 0 | L31: 211
A32: 21 | B32: 3409 | C32: 12 | D32: 3419 | E32: 23 | F32: 3427 | K32: 0 | L32: 212
A33: 21 | B33: 3527 | C33: 21 | D33: 3529 | E33: 21 | F33: 3543 | K33: 0 | L33: 222
A34: 21 | B34: 3643 | C34: 12 | D34: 3659 | E34: 23 | F34: 3665 | K34: 0 | L34: 212
A35: 21 | B35: 3762 | C35: 21 | D35: 3778 | E35: 21 | F35: 3783 | K35: 0 | L35: 222
A36: 21 | B36: 3886 | C36: 21 | D36: 3907 | E36: 21 | F36: 3920 | K36: 0 | L36: 222
A37: 21 | B37: 4039 | C37: 21 | D37: 4060 | E37: 21 | F37: 4063 | K37: 0 | L37: 222
A38: 21 | B38: 4207 | C38: 12 | D38: 4216 | E38: 23 | F38: 4224 | K38: 0 | L38: 212
A39: 12 | B39: 4435 | C39: 14 | D39: 4440 | E39: 14 | F39: 4443 | K39: 0 | L39: 111
A40: 21 | B40: 4543 | C40: 21 | D40: 4558 | E40: 21 | F40: 4566 | K40: 0 | L40: 222
A41: 21 | B41: 4712 | C41: 21 | D41: 4715 | E41: 21 | F41: 4732 | K41: 0 | L41: 222
A42: 21 | B42: 4826 | C42: 21 | D42: 4830 | E42: 21 | F42: 4849 | K42: 0 | L42: 222
A43: 21 | B43: 4995 | C43: 21 | D43: 4999 | E43: 21 | F43: 5014 | K43: 0 | L43: 222
A44: 21 | B44: 5107 | C44: 12 | D44: 5118 | E44: 23 | F44: 5125 | K44: 0 | L44: 212
A45: 21 | B45: 5240 | C45: 21 | D45: 5256 | E45: 21 | F45: 5259 | K45: 0 | L45: 222
A46: 21 | B46: 5382 | C46: 12 | D46: 5399 | E46: 23 | F46: 5407 | K46: 0 | L46: 212
A47: 12 | B47: 5505 | C47: 23 | D47: 5517 | E47: 23 | F47: 5521 | K47: 0 | L47: 122
A48: 21 | B48: 5617 | C48: 21 | D48: 5637 | E48: 21 | F48: 5641 | K48: 0 | L48: 222
A49: 21 | B49: 5768 | C49: 21 | D49: 5774 | E49: 21 | F49: 5793 | K49: 0 | L49: 222
A50: 21 | B50: 5889 | C50: 12 | D50: 5900 | E50: 23 | F50: 5910 | K50: 0 | L50: 212
A51: 21 | B51: 6009 | C51: 21 | D51: 6024 | E51: 21 | F51: 6027 | K51: 0 | L51: 222
A52: 21 | B52: 6158 | C52: 21 | D52: 6163 | E52: 12 | F52: 6172 | K52: 0 | L52: 221
A53: 21 | B53: 6268 | C53: 21 | D53: 6288 | E53: 21 | F53: 6291 | K53: 0 | L53: 222
A54: 21 | B54: 6459 | C54: 12 | D54: 6468 | E54: 14 | F54: 6471 | K54: 0 | L54: 211
A55: 12 | B55: 6578 | C55: 14 | D55: 6582 | E55: 23 | F55: 6588 | K55: 0 | L55: 112
A56: 21 | B56: 6745 | C56: 21 | D56: 6759 | E56: 21 | F56: 6761 | K56: 0 | L56: 222
A57: 21 | B57: 6894 | C57: 21 | D57: 6911 | E57: 21 | F57: 6914 | K57: 0 | L57: 222
A58: 12 | B58: 7010 | C58: 23 | D58: 7017 | E58: 23 | F58: 7019 | K58: 0 | L58: 122
A59: 21 | B59: 7146 | C59: 21 | D59: 7162 | E59: 21 | F59: 7166 | K59: 0 | L59: 222
A60: 12 | B60: 7262 | C60: 23 | D60: 7265 | E60: 23 | F60: 7272 | K60: 0 | L60: 122
A61: 21 | B61: 7371 | C61: 21 | D61: 7386 | E61: 21 | F61: 7402 | K61: 0 | L61: 222
A62: 21 | B62: 7580 | C62: 21 | D62: 7582 | E62: 21 | F62: 7595 | K62: 0 | L62: 222
A63: 12 | B63: 7689 | C63: 14 | D63: 7692 | E63: 23 | F63: 7699 | K63: 0 | L63: 112
A64: 21 | B64: 7798 | C64: 21 | D64: 7812 | E64: 21 | F64: 7819 | K64: 0 | L64: 222
A65: 12 | B65: 7925 | C65: 14 | D65: 7930 | E65: 23 | F65: 7937 | K65: 0 | L65: 112
A66: 21 | B66: 8034 | C66: 12 | D66: 8046 | E66: 23 | F66: 8051 | K66: 0 | L66: 212
A67: 21 | B67: 8148 | C67: 21 | D67: 8164 | E67: 21 | F67: 8170 | K67: 0 | L67: 222
A68: 21 | B68: 8267 | C68: 12 | D68: 8280 | E68: 23 | F68: 8286 | K68: 0 | L68: 212
A69: 21 | B69: 8383 | C69: 12 | D69: 8396 | E69: 23 | F69: 8406 | K69: 0 | L69: 212
A70: 21 | B70: 8503 | C70: 21 | D70: 8505 | E70: 21 | F70: 8520 | K70: 0 | L70: 222
A71: 21 | B71: 8630 | C71: 12 | D71: 8641 | E71: 23 | F71: 8648 | K71: 0 | L71: 212
A72: 21 | B72: 8744 | C72: 21 | D72: 8761 | E72: 21 | F72: 8777 | K72: 0 | L72: 222
A73: 12 | B73: 8894 | C73: 23 | D73: 8897 | E73: 14 | F73: 8905 | K73: 0 | L73: 121
A74: 21 | B74: 9036 | C74: 21 | D74: 9039 | E74: 21 | F74: 9051 | K74: 0 | L74: 222
A75: 21 | B75: 9165 | C75: 21 | D75: 9180 | E75: 21 | F75: 9191 | K75: 0 | L75: 222
A76: 21 | B76: 9305 | C76: 21 | D76: 9327 | E76: 21 | F76: 9331 | K76: 0 | L76: 222
A77: 21 | B77: 9446 | C77: 21 | D77: 9461 | E77: 21 | F77: 9467 | K77: 0 | L77: 222
A78: 21 | B78: 9562 | C78: 12 | D78: 9589 | E78: 23 | F78: 9602 | K78: 0 | L78: 212
A79: 12 | B79: 9709 | C79: 23 | D79: 9718 | E79: 23 | F79: 9722 | K79: 0 | L79: 122
A80: 21 | B80: 9821 | C80: 21 | D80: 9834 | E80: 21 | F80: 9841 | K80: 0 | L80: 222
A81: 21 | B81: 9966 | C81: 21 | D81: 9969 | E81: 21 | F81: 9972 | K81: 0 | L81: 222
A82: 21 | B82: 10071 | C82: 21 | D82: 10089 | E82: 21 | F82: 10093 | K82: 0 | L82: 222
A83: 21 | B83: 10209 | C83: 21 | D83: 10222 | E83: 21 | F83: 10226 | K83: 0 | L83: 222
A84: 21 | B84: 10383 | C84: 21 | D84: 10389 | E84: 21 | F84: 10395 | K84: 1 | L84: 222

Sheet !M902A1T.AYL
A1: Report for:!M902A1T.AYL
A2: Date: | B2: <date>
A3: Hen: | B3: <hen> | F3: Correct Sequence | G3: =Start!J2 -> 222 | P3: Total Sequences in Data | Q3: =4994-COUNTBLANK(L7:L5000) -> 51 | V3: Total Sequences in Block Data | W3: =COUNTA(L7:L15) -> 9 | AA3: Total Sequences in Block Data | AB3: =COUNTA(L16:L23) -> 8 | AF3: Total Sequences in Block Data | AG3: =COUNTA(L24:L32) -> 9 | AK3: Total Sequences in Block Data | AL3: =COUNTA(L33:L40) -> 8 | AP3: Total Sequences in Block Data | AQ3: =COUNTA(L41:L49) -> 9 | AU3: Total Sequences in Block Data | AV3: =COUNTA(L50:L57) -> 8
P4: Total Sequences in Summary | Q4: =SUM(O7:O14) -> 51 | V4: Total Sequences in Block Summary | W4: =SUM(U7:U14) -> 9 | AA4: Total Sequences in Block Summary | AB4: =SUM(Z7:Z14) -> 8 | AF4: Total Sequences in Block Summary | AG4: =SUM(AE7:AE14) -> 9 | AK4: Total Sequences in Block Summary | AL4: =SUM(AJ7:AJ14) -> 8 | AP4: Total Sequences in Block Summary | AQ4: =SUM(AO7:AO14) -> 9 | AU4: Total Sequences in Block Summary | AV4: =SUM(AT7:AT14) -> 8
T5: Block 1 | Y5: Block 2 | AD5: Block 3 | AI5: Block 4 | AN5: Block 5 | AS5: Block 6
A6: Sequence Component 1 | B6: Time 1 | C6: Sequence Component 2 | D6: Time 2 | E6: Sequence Component 3 | F6: Time 3 | G6: Sequence Component 4 | H6: Time 4 | I6: Sequence Component 5 | J6: Time 5 | K6: Correct? 0=No 1=Yes | L6: Sequence | N6: Frequency | P6: Relative Frequency | Q6: Variability | T6: Frequency | V6: Relative Frequency | W6: Variability | Y6: Frequency | AA6: Relative Frequency | AB6: Variability | AD6: Frequency | AF6: Relative Frequency | AG6: Variability | AI6: Frequency | AK6: Relative Frequency | AL6: Variability | AN6: Frequency | AP6: Relative Frequency | AQ6: Variability | AS6: Frequency | AU6: Relative Frequency | AV6: Variability
A7: 12 | B7: 22 | C7: 23 | D7: 28 | E7: 23 | F7: 35 | K7: 0 | L7: 122 | N7: 111 | O7: =COUNTIF($L$7:$L$500,N7) -> 0 | P7: =O7/$Q$4 -> 0 | Q7: =IF(P7=0,0,(P7*((LOG(P7))/LOG(2)))) -> 0 | T7: =N7 -> 111 | U7: =COUNTIF(L7:L15,T7) -> 0 | V7: =U7/(W4-U14) -> 0 | W7: =IF(V7=0,0,(V7*((LOG(V7))/LOG(2)))) -> 0 | Y7: =N7 -> 111 | Z7: =COUNTIF(L16:L23,Y7) -> 0 | AA7: =Z7/(AB4-Z14) -> 0 | AB7: =IF(AA7=0,0,(AA7*((LOG(AA7))/LOG(2)))) -> 0 | AD7: =N7 -> 111 | AE7: =COUNTIF(L24:L32,AD7) -> 0 | AF7: =AE7/(AG4-AE14) -> 0 | AG7: =IF(AF7=0,0,(AF7*((LOG(AF7))/LOG(2)))) -> 0 | AI7: =N7 -> 111 | AJ7: =COUNTIF(L33:L40,AI7) -> 0 | AK7: =AJ7/(AL4-AJ14) -> 0 | AL7: =IF(AK7=0,0,(AK7*((LOG(AK7))/LOG(2)))) -> 0 | AN7: =N7 -> 111 | AO7: =COUNTIF(L41:L49,AN7) -> 0 | AP7: =AO7/(AQ4-AO14) ->  | AQ7: =IF(AP7=0,0,(AP7*((LOG(AP7))/LOG(2)))) ->  | AS7: =N7 -> 111 | AT7: =COUNTIF(L50:L57,AS7) -> 0 | AU7: =AT7/(AV4-AT14) ->  | AV7: =IF(AU7=0,0,(AU7*((LOG(AU7))/LOG(2)))) -> 
A8: 12 | B8: 134 | C8: 23 | D8: 144 | E8: 23 | F8: 148 | K8: 0 | L8: 122 | N8: 112 | O8: =COUNTIF($L$7:$L$500,N8) -> 0 | P8: =O8/$Q$4 -> 0 | Q8: =IF(P8=0,0,(P8*((LOG(P8))/LOG(2)))) -> 0 | T8: =N8 -> 112 | U8: =COUNTIF(L7:L15,T8) -> 0 | V8: =U8/(W4-U14) -> 0 | W8: =IF(V8=0,0,(V8*((LOG(V8))/LOG(2)))) -> 0 | Y8: =N8 -> 112 | Z8: =COUNTIF(L16:L23,Y8) -> 0 | AA8: =Z8/(AB4-Z14) -> 0 | AB8: =IF(AA8=0,0,(AA8*((LOG(AA8))/LOG(2)))) -> 0 | AD8: =N8 -> 112 | AE8: =COUNTIF(L24:L32,AD8) -> 0 | AF8: =AE8/(AG4-AE14) -> 0 | AG8: =IF(AF8=0,0,(AF8*((LOG(AF8))/LOG(2)))) -> 0 | AI8: =N8 -> 112 | AJ8: =COUNTIF(L33:L40,AI8) -> 0 | AK8: =AJ8/(AL4-AJ14) -> 0 | AL8: =IF(AK8=0,0,(AK8*((LOG(AK8))/LOG(2)))) -> 0 | AN8: =N8 -> 112 | AO8: =COUNTIF(L41:L49,AN8) -> 0 | AP8: =AO8/(AQ4-AO14) ->  | AQ8: =IF(AP8=0,0,(AP8*((LOG(AP8))/LOG(2)))) ->  | AS8: =N8 -> 112 | AT8: =COUNTIF(L50:L57,AS8) -> 0 | AU8: =AT8/(AV4-AT14) ->  | AV8: =IF(AU8=0,0,(AU8*((LOG(AU8))/LOG(2)))) -> 
A9: 12 | B9: 260 | C9: 23 | D9: 266 | E9: 23 | F9: 270 | K9: 0 | L9: 122 | N9: 121 | O9: =COUNTIF($L$7:$L$500,N9) -> 0 | P9: =O9/$Q$4 -> 0 | Q9: =IF(P9=0,0,(P9*((LOG(P9))/LOG(2)))) -> 0 | T9: =N9 -> 121 | U9: =COUNTIF(L7:L15,T9) -> 0 | V9: =U9/(W4-U14) -> 0 | W9: =IF(V9=0,0,(V9*((LOG(V9))/LOG(2)))) -> 0 | Y9: =N9 -> 121 | Z9: =COUNTIF(L16:L23,Y9) -> 0 | AA9: =Z9/(AB4-Z14) -> 0 | AB9: =IF(AA9=0,0,(AA9*((LOG(AA9))/LOG(2)))) -> 0 | AD9: =N9 -> 121 | AE9: =COUNTIF(L24:L32,AD9) -> 0 | AF9: =AE9/(AG4-AE14) -> 0 | AG9: =IF(AF9=0,0,(AF9*((LOG(AF9))/LOG(2)))) -> 0 | AI9: =N9 -> 121 | AJ9: =COUNTIF(L33:L40,AI9) -> 0 | AK9: =AJ9/(AL4-AJ14) -> 0 | AL9: =IF(AK9=0,0,(AK9*((LOG(AK9))/LOG(2)))) -> 0 | AN9: =N9 -> 121 | AO9: =COUNTIF(L41:L49,AN9) -> 0 | AP9: =AO9/(AQ4-AO14) ->  | AQ9: =IF(AP9=0,0,(AP9*((LOG(AP9))/LOG(2)))) ->  | AS9: =N9 -> 121 | AT9: =COUNTIF(L50:L57,AS9) -> 0 | AU9: =AT9/(AV4-AT14) ->  | AV9: =IF(AU9=0,0,(AU9*((LOG(AU9))/LOG(2)))) -> 
A10: 21 | B10: 371 | C10: 21 | D10: 374 | E10: 21 | F10: 393 | K10: 0 | L10: 222 | N10: 122 | O10: =COUNTIF($L$7:$L$500,N10) -> 8 | P10: =O10/$Q$4 -> 0.1568627451 | Q10: =IF(P10=0,0,(P10*((LOG(P10))/LOG(2)))) -> -0.4192039752 | T10: =N10 -> 122 | U10: =COUNTIF(L7:L15,T10) -> 3 | V10: =U10/(W4-U14) -> 0.75 | W10: =IF(V10=0,0,(V10*((LOG(V10))/LOG(2)))) -> -0.3112781245 | Y10: =N10 -> 122 | Z10: =COUNTIF(L16:L23,Y10) -> 1 | AA10: =Z10/(AB4-Z14) -> 0.3333333333 | AB10: =IF(AA10=0,0,(AA10*((LOG(AA10))/LOG(2)))) -> -0.5283208336 | AD10: =N10 -> 122 | AE10: =COUNTIF(L24:L32,AD10) -> 2 | AF10: =AE10/(AG4-AE14) -> 1 | AG10: =IF(AF10=0,0,(AF10*((LOG(AF10))/LOG(2)))) -> 0 | AI10: =N10 -> 122 | AJ10: =COUNTIF(L33:L40,AI10) -> 2 | AK10: =AJ10/(AL4-AJ14) -> 1 | AL10: =IF(AK10=0,0,(AK10*((LOG(AK10))/LOG(2)))) -> 0 | AN10: =N10 -> 122 | AO10: =COUNTIF(L41:L49,AN10) -> 0 | AP10: =AO10/(AQ4-AO14) ->  | AQ10: =IF(AP10=0,0,(AP10*((LOG(AP10))/LOG(2)))) ->  | AS10: =N10 -> 122 | AT10: =COUNTIF(L50:L57,AS10) -> 0 | AU10: =AT10/(AV4-AT14) ->  | AV10: =IF(AU10=0,0,(AU10*((LOG(AU10))/LOG(2)))) -> 
A11: 21 | B11: 507 | C11: 21 | D11: 513 | E11: 21 | F11: 519 | K11: 0 | L11: 222 | N11: 211 | O11: =COUNTIF($L$7:$L$500,N11) -> 1 | P11: =O11/$Q$4 -> 0.01960784314 | Q11: =IF(P11=0,0,(P11*((LOG(P11))/LOG(2)))) -> -0.1112240263 | T11: =N11 -> 211 | U11: =COUNTIF(L7:L15,T11) -> 1 | V11: =U11/(W4-U14) -> 0.25 | W11: =IF(V11=0,0,(V11*((LOG(V11))/LOG(2)))) -> -0.5 | Y11: =N11 -> 211 | Z11: =COUNTIF(L16:L23,Y11) -> 0 | AA11: =Z11/(AB4-Z14) -> 0 | AB11: =IF(AA11=0,0,(AA11*((LOG(AA11))/LOG(2)))) -> 0 | AD11: =N11 -> 211 | AE11: =COUNTIF(L24:L32,AD11) -> 0 | AF11: =AE11/(AG4-AE14) -> 0 | AG11: =IF(AF11=0,0,(AF11*((LOG(AF11))/LOG(2)))) -> 0 | AI11: =N11 -> 211 | AJ11: =COUNTIF(L33:L40,AI11) -> 0 | AK11: =AJ11/(AL4-AJ14) -> 0 | AL11: =IF(AK11=0,0,(AK11*((LOG(AK11))/LOG(2)))) -> 0 | AN11: =N11 -> 211 | AO11: =COUNTIF(L41:L49,AN11) -> 0 | AP11: =AO11/(AQ4-AO14) ->  | AQ11: =IF(AP11=0,0,(AP11*((LOG(AP11))/LOG(2)))) ->  | AS11: =N11 -> 211 | AT11: =COUNTIF(L50:L57,AS11) -> 0 | AU11: =AT11/(AV4-AT14) ->  | AV11: =IF(AU11=0,0,(AU11*((LOG(AU11))/LOG(2)))) -> 
A12: 21 | B12: 620 | C12: 21 | D12: 623 | E12: 21 | F12: 637 | K12: 0 | L12: 222 | N12: 212 | O12: =COUNTIF($L$7:$L$500,N12) -> 2 | P12: =O12/$Q$4 -> 0.03921568627 | Q12: =IF(P12=0,0,(P12*((LOG(P12))/LOG(2)))) -> -0.1832323664 | T12: =N12 -> 212 | U12: =COUNTIF(L7:L15,T12) -> 0 | V12: =U12/(W4-U14) -> 0 | W12: =IF(V12=0,0,(V12*((LOG(V12))/LOG(2)))) -> 0 | Y12: =N12 -> 212 | Z12: =COUNTIF(L16:L23,Y12) -> 2 | AA12: =Z12/(AB4-Z14) -> 0.6666666667 | AB12: =IF(AA12=0,0,(AA12*((LOG(AA12))/LOG(2)))) -> -0.3899750005 | AD12: =N12 -> 212 | AE12: =COUNTIF(L24:L32,AD12) -> 0 | AF12: =AE12/(AG4-AE14) -> 0 | AG12: =IF(AF12=0,0,(AF12*((LOG(AF12))/LOG(2)))) -> 0 | AI12: =N12 -> 212 | AJ12: =COUNTIF(L33:L40,AI12) -> 0 | AK12: =AJ12/(AL4-AJ14) -> 0 | AL12: =IF(AK12=0,0,(AK12*((LOG(AK12))/LOG(2)))) -> 0 | AN12: =N12 -> 212 | AO12: =COUNTIF(L41:L49,AN12) -> 0 | AP12: =AO12/(AQ4-AO14) ->  | AQ12: =IF(AP12=0,0,(AP12*((LOG(AP12))/LOG(2)))) ->  | AS12: =N12 -> 212 | AT12: =COUNTIF(L50:L57,AS12) -> 0 | AU12: =AT12/(AV4-AT14) ->  | AV12: =IF(AU12=0,0,(AU12*((LOG(AU12))/LOG(2)))) -> 
A13: 21 | B13: 737 | C13: 21 | D13: 740 | E13: 21 | F13: 761 | K13: 0 | L13: 222 | N13: 221 | O13: =COUNTIF($L$7:$L$500,N13) -> 0 | P13: =O13/$Q$4 -> 0 | Q13: =IF(P13=0,0,(P13*((LOG(P13))/LOG(2)))) -> 0 | T13: =N13 -> 221 | U13: =COUNTIF(L7:L15,T13) -> 0 | V13: =U13/(W4-U14) -> 0 | W13: =IF(V13=0,0,(V13*((LOG(V13))/LOG(2)))) -> 0 | Y13: =N13 -> 221 | Z13: =COUNTIF(L16:L23,Y13) -> 0 | AA13: =Z13/(AB4-Z14) -> 0 | AB13: =IF(AA13=0,0,(AA13*((LOG(AA13))/LOG(2)))) -> 0 | AD13: =N13 -> 221 | AE13: =COUNTIF(L24:L32,AD13) -> 0 | AF13: =AE13/(AG4-AE14) -> 0 | AG13: =IF(AF13=0,0,(AF13*((LOG(AF13))/LOG(2)))) -> 0 | AI13: =N13 -> 221 | AJ13: =COUNTIF(L33:L40,AI13) -> 0 | AK13: =AJ13/(AL4-AJ14) -> 0 | AL13: =IF(AK13=0,0,(AK13*((LOG(AK13))/LOG(2)))) -> 0 | AN13: =N13 -> 221 | AO13: =COUNTIF(L41:L49,AN13) -> 0 | AP13: =AO13/(AQ4-AO14) ->  | AQ13: =IF(AP13=0,0,(AP13*((LOG(AP13))/LOG(2)))) ->  | AS13: =N13 -> 221 | AT13: =COUNTIF(L50:L57,AS13) -> 0 | AU13: =AT13/(AV4-AT14) ->  | AV13: =IF(AU13=0,0,(AU13*((LOG(AU13))/LOG(2)))) -> 
A14: 21 | B14: 856 | C14: 21 | D14: 870 | E14: 21 | F14: 875 | K14: 0 | L14: 222 | N14: 222 | O14: =COUNTIF($L$7:$L$500,N14) -> 40 | P14: =O14/$Q$4 -> 0.7843137255 | Q14: =IF(P14=0,0,(P14*((LOG(P14))/LOG(2)))) -> -0.2748998016 | T14: =N14 -> 222 | U14: =COUNTIF(L7:L15,T14) -> 5 | Y14: =N14 -> 222 | Z14: =COUNTIF(L16:L23,Y14) -> 5 | AD14: =N14 -> 222 | AE14: =COUNTIF(L24:L32,AD14) -> 7 | AI14: =N14 -> 222 | AJ14: =COUNTIF(L33:L40,AI14) -> 6 | AN14: =N14 -> 222 | AO14: =COUNTIF(L41:L49,AN14) -> 9 | AS14: =N14 -> 222 | AT14: =COUNTIF(L50:L57,AS14) -> 8
A15: 21 | B15: 971 | C15: 12 | D15: 981 | E15: 14 | F15: 987 | K15: 0 | L15: 211 | P15: =SUM(P7:P14) -> 1 | Q15: =-SUM(Q7:Q14) -> 0.9885601695 | V15: =SUM(V7:V14) -> 1 | W15: =-SUM(W7:W14) -> 0.8112781245 | AA15: =SUM(AA7:AA14) -> 1 | AB15: =-SUM(AB7:AB14) -> 0.9182958341 | AF15: =SUM(AF7:AF14) -> 1 | AG15: =-SUM(AG7:AG14) -> 0 | AK15: =SUM(AK7:AK14) -> 1 | AL15: =-SUM(AL7:AL14) -> 0 | AP15: =SUM(AP7:AP14) ->  | AQ15: =-SUM(AQ7:AQ14) ->  | AU15: =SUM(AU7:AU14) ->  | AV15: =-SUM(AV7:AV14) -> 
A16: 21 | B16: 1080 | C16: 21 | D16: 1086 | E16: 21 | F16: 1099 | K16: 0 | L16: 222 | P16: U= | Q16: =Q15/(LOG(Q4)/LOG(2)) -> 0.1742746903 | V16: U1= | W16: =W15/(LOG(W4)/LOG(2)) -> 0.2559297536 | AA16: U2= | AB16: =AB15/(LOG(AB4)/LOG(2)) -> 0.3060986114 | AF16: U3= | AG16: =AG15/(LOG(AG4)/LOG(2)) -> 0 | AK16: U4= | AL16: =AL15/(LOG(AL4)/LOG(2)) -> 0 | AP16: U5= | AQ16: =AQ15/(LOG(AQ4)/LOG(2)) ->  | AU16: U6= | AV16: =AV15/(LOG(AV4)/LOG(2)) -> 
A17: 21 | B17: 1192 | C17: 12 | D17: 1201 | E17: 23 | F17: 1213 | K17: 0 | L17: 212
A18: 12 | B18: 1331 | C18: 23 | D18: 1341 | E18: 23 | F18: 1352 | K18: 0 | L18: 122
A19: 21 | B19: 1452 | C19: 21 | D19: 1468 | E19: 21 | F19: 1471 | K19: 0 | L19: 222 | N19: Total Target Seq
A20: 21 | B20: 1703 | C20: 21 | D20: 1717 | E20: 21 | F20: 1720 | K20: 0 | L20: 222 | N20: =COUNTIF(L7:L57,G3) -> 40 | P20: 9 | Q20: 8 | R20: 9 | S20: 8 | T20: 9 | U20: 8
A21: 21 | B21: 1811 | C21: 12 | D21: 1825 | E21: 23 | F21: 1831 | K21: 0 | L21: 212 | P21: % of reinforcement given in 6 equal intervals based on number of trials
A22: 21 | B22: 1927 | C22: 21 | D22: 1930 | E22: 21 | F22: 1941 | K22: 0 | L22: 222 | P22: %_1 | Q22: %_2 | R22: %_3 | S22: %_4 | T22: %_5 | U22: %_6
A23: 21 | B23: 2038 | C23: 21 | D23: 2056 | E23: 21 | F23: 2060 | K23: 0 | L23: 222 | O23: target sequence | P23: =$G$3 -> 222 | Q23: =$G$3 -> 222 | R23: =$G$3 -> 222 | S23: =$G$3 -> 222 | T23: =$G$3 -> 222 | U23: =$G$3 -> 222
A24: 21 | B24: 2156 | C24: 21 | D24: 2173 | E24: 21 | F24: 2175 | K24: 0 | L24: 222 | O24: total reinforcement | P24: =U14 -> 5 | Q24: =Z14 -> 5 | R24: =AE14 -> 7 | S24: =AJ14 -> 6 | T24: =AO14 -> 9 | U24: =AT14 -> 8
A25: 21 | B25: 2298 | C25: 21 | D25: 2304 | E25: 21 | F25: 2314 | K25: 0 | L25: 222 | O25: % target
A26: 21 | B26: 2522 | C26: 21 | D26: 2535 | E26: 21 | F26: 2547 | K26: 0 | L26: 222 | O26: CCRF
A27: 21 | B27: 2721 | C27: 21 | D27: 2735 | E27: 21 | F27: 2739 | K27: 0 | L27: 222 | O27: % CCRf
A28: 21 | B28: 2844 | C28: 21 | D28: 2849 | E28: 21 | F28: 2855 | K28: 0 | L28: 222 | O28: average response rate | P28: =F15/P20 -> 109.6666667 | Q28: =(F23-F15)/Q20 -> 134.125 | R28: =(F32-F23)/R20 -> 148.3333333 | S28: =(F40-F32)/S20 -> 122.375 | T28: =(F49-F40)/T20 -> 120.2222222 | U28: =(F57-F49)/U20 -> 123.625
A29: 21 | B29: 2973 | C29: 21 | D29: 2986 | E29: 21 | F29: 2996 | K29: 0 | L29: 222
A30: 21 | B30: 3101 | C30: 21 | D30: 3118 | E30: 21 | F30: 3122 | K30: 0 | L30: 222
A31: 12 | B31: 3268 | C31: 23 | D31: 3275 | E31: 23 | F31: 3279 | K31: 0 | L31: 122
A32: 12 | B32: 3381 | C32: 23 | D32: 3390 | E32: 23 | F32: 3395 | K32: 0 | L32: 122
A33: 12 | B33: 3496 | C33: 23 | D33: 3504 | E33: 23 | F33: 3515 | K33: 0 | L33: 122
A34: 21 | B34: 3629 | C34: 21 | D34: 3632 | E34: 21 | F34: 3637 | K34: 0 | L34: 222
A35: 12 | B35: 3733 | C35: 23 | D35: 3744 | E35: 23 | F35: 3747 | K35: 0 | L35: 122
A36: 21 | B36: 3845 | C36: 21 | D36: 3858 | E36: 21 | F36: 3861 | K36: 0 | L36: 222
A37: 21 | B37: 3953 | C37: 21 | D37: 3967 | E37: 21 | F37: 3971 | K37: 0 | L37: 222
A38: 21 | B38: 4104 | C38: 21 | D38: 4118 | E38: 21 | F38: 4121 | K38: 0 | L38: 222
A39: 21 | B39: 4237 | C39: 21 | D39: 4257 | E39: 21 | F39: 4263 | K39: 0 | L39: 222
A40: 21 | B40: 4356 | C40: 21 | D40: 4370 | E40: 21 | F40: 4374 | K40: 0 | L40: 222
A41: 21 | B41: 4471 | C41: 21 | D41: 4486 | E41: 21 | F41: 4500 | K41: 0 | L41: 222
A42: 21 | B42: 4608 | C42: 21 | D42: 4628 | E42: 21 | F42: 4630 | K42: 0 | L42: 222
A43: 21 | B43: 4720 | C43: 21 | D43: 4736 | E43: 21 | F43: 4749 | K43: 0 | L43: 222
A44: 21 | B44: 4842 | C44: 21 | D44: 4861 | E44: 21 | F44: 4866 | K44: 0 | L44: 222
A45: 21 | B45: 4963 | C45: 21 | D45: 4983 | E45: 21 | F45: 4989 | K45: 0 | L45: 222
A46: 21 | B46: 5082 | C46: 21 | D46: 5085 | E46: 21 | F46: 5098 | K46: 0 | L46: 222
A47: 21 | B47: 5191 | C47: 21 | D47: 5196 | E47: 21 | F47: 5200 | K47: 0 | L47: 222
A48: 21 | B48: 5311 | C48: 21 | D48: 5332 | E48: 21 | F48: 5343 | K48: 0 | L48: 222
A49: 21 | B49: 5436 | C49: 21 | D49: 5440 | E49: 21 | F49: 5456 | K49: 0 | L49: 222
A50: 21 | B50: 5551 | C50: 21 | D50: 5564 | E50: 21 | F50: 5573 | K50: 0 | L50: 222
A51: 21 | B51: 5663 | C51: 21 | D51: 5668 | E51: 21 | F51: 5682 | K51: 0 | L51: 222
A52: 21 | B52: 5775 | C52: 21 | D52: 5780 | E52: 21 | F52: 5795 | K52: 0 | L52: 222
A53: 21 | B53: 5901 | C53: 21 | D53: 5909 | E53: 21 | F53: 5926 | K53: 0 | L53: 222
A54: 21 | B54: 6016 | C54: 21 | D54: 6029 | E54: 21 | F54: 6034 | K54: 0 | L54: 222
A55: 21 | B55: 6140 | C55: 21 | D55: 6145 | E55: 21 | F55: 6164 | K55: 0 | L55: 222
A56: 21 | B56: 6254 | C56: 21 | D56: 6259 | E56: 21 | F56: 6276 | K56: 0 | L56: 222
A57: 21 | B57: 6428 | C57: 21 | D57: 6431 | E57: 21 | F57: 6445 | K57: 1 | L57: 222

Sheet !M903C3T.AYL
A1: Report for:!M903C3T.AYL
A2: Date: | B2: <date>
A3: Hen: | B3: <hen> | F3: Correct Sequence | G3: =Start!J2 -> 222 | P3: Total Sequences in Data | Q3: =4994-COUNTBLANK(L7:L5000) -> 42 | V3: Total Sequences in Block Data | W3: =COUNTA(L7:L13) -> 7 | AA3: Total Sequences in Block Data | AB3: =COUNTA(L14:L20) -> 7 | AF3: Total Sequences in Block Data | AG3: =COUNTA(L21:L27) -> 7 | AK3: Total Sequences in Block Data | AL3: =COUNTA(L28:L34) -> 7 | AP3: Total Sequences in Block Data | AQ3: =COUNTA(L35:L41) -> 7 | AU3: Total Sequences in Block Data | AV3: =COUNTA(L42:L48) -> 7
P4: Total Sequences in Summary | Q4: =SUM(O7:O14) -> 42 | V4: Total Sequences in Block Summary | W4: =SUM(U7:U14) -> 7 | AA4: Total Sequences in Block Summary | AB4: =SUM(Z7:Z14) -> 7 | AF4: Total Sequences in Block Summary | AG4: =SUM(AE7:AE14) -> 7 | AK4: Total Sequences in Block Summary | AL4: =SUM(AJ7:AJ14) -> 7 | AP4: Total Sequences in Block Summary | AQ4: =SUM(AO7:AO14) -> 7 | AU4: Total Sequences in Block Summary | AV4: =SUM(AT7:AT14) -> 7
T5: Block 1 | Y5: Block 2 | AD5: Block 3 | AI5: Block 4 | AN5: Block 5 | AS5: Block 6
A6: Sequence Component 1 | B6: Time 1 | C6: Sequence Component 2 | D6: Time 2 | E6: Sequence Component 3 | F6: Time 3 | G6: Sequence Component 4 | H6: Time 4 | I6: Sequence Component 5 | J6: Time 5 | K6: Correct? 0=No 1=Yes | L6: Sequence | N6: Frequency | P6: Relative Frequency | Q6: Variability | T6: Frequency | V6: Relative Frequency | W6: Variability | Y6: Frequency | AA6: Relative Frequency | AB6: Variability | AD6: Frequency | AF6: Relative Frequency | AG6: Variability | AI6: Frequency | AK6: Relative Frequency | AL6: Variability | AN6: Frequency | AP6: Relative Frequency | AQ6: Variability | AS6: Frequency | AU6: Relative Frequency | AV6: Variability
A7: 12 | B7: 10 | C7: 23 | D7: 19 | E7: 23 | F7: 23 | K7: 0 | L7: 122 | N7: 111 | O7: =COUNTIF($L$7:$L$500,N7) -> 1 | P7: =O7/$Q$4 -> 0.02380952381 | Q7: =IF(P7=0,0,(P7*((LOG(P7))/LOG(2)))) -> -0.1283885101 | T7: =N7 -> 111 | U7: =COUNTIF(L7:L13,T7) -> 1 | V7: =U7/(W4-U14) -> 0.5 | W7: =IF(V7=0,0,(V7*((LOG(V7))/LOG(2)))) -> -0.5 | Y7: =N7 -> 111 | Z7: =COUNTIF(L14:L20,Y7) -> 0 | AA7: =Z7/(AB4-Z14) ->  | AB7: =IF(AA7=0,0,(AA7*((LOG(AA7))/LOG(2)))) ->  | AD7: =N7 -> 111 | AE7: =COUNTIF(L21:L27,AD7) -> 0 | AF7: =AE7/(AG4-AE14) ->  | AG7: =IF(AF7=0,0,(AF7*((LOG(AF7))/LOG(2)))) ->  | AI7: =N7 -> 111 | AJ7: =COUNTIF(L28:L34,AI7) -> 0 | AK7: =AJ7/(AL4-AJ14) ->  | AL7: =IF(AK7=0,0,(AK7*((LOG(AK7))/LOG(2)))) ->  | AN7: =N7 -> 111 | AO7: =COUNTIF(L35:L41,AN7) -> 0 | AP7: =AO7/(AQ4-AO14) ->  | AQ7: =IF(AP7=0,0,(AP7*((LOG(AP7))/LOG(2)))) ->  | AS7: =N7 -> 111 | AT7: =COUNTIF(L42:L48,AS7) -> 0 | AU7: =AT7/(AV4-AT14) ->  | AV7: =IF(AU7=0,0,(AU7*((LOG(AU7))/LOG(2)))) -> 
A8: 12 | B8: 121 | C8: 14 | D8: 124 | E8: 14 | F8: 128 | K8: 0 | L8: 111 | N8: 112 | O8: =COUNTIF($L$7:$L$500,N8) -> 0 | P8: =O8/$Q$4 -> 0 | Q8: =IF(P8=0,0,(P8*((LOG(P8))/LOG(2)))) -> 0 | T8: =N8 -> 112 | U8: =COUNTIF(L7:L13,T8) -> 0 | V8: =U8/(W4-U14) -> 0 | W8: =IF(V8=0,0,(V8*((LOG(V8))/LOG(2)))) -> 0 | Y8: =N8 -> 112 | Z8: =COUNTIF(L14:L20,Y8) -> 0 | AA8: =Z8/(AB4-Z14) ->  | AB8: =IF(AA8=0,0,(AA8*((LOG(AA8))/LOG(2)))) ->  | AD8: =N8 -> 112 | AE8: =COUNTIF(L21:L27,AD8) -> 0 | AF8: =AE8/(AG4-AE14) ->  | AG8: =IF(AF8=0,0,(AF8*((LOG(AF8))/LOG(2)))) ->  | AI8: =N8 -> 112 | AJ8: =COUNTIF(L28:L34,AI8) -> 0 | AK8: =AJ8/(AL4-AJ14) ->  | AL8: =IF(AK8=0,0,(AK8*((LOG(AK8))/LOG(2)))) ->  | AN8: =N8 -> 112 | AO8: =COUNTIF(L35:L41,AN8) -> 0 | AP8: =AO8/(AQ4-AO14) ->  | AQ8: =IF(AP8=0,0,(AP8*((LOG(AP8))/LOG(2)))) ->  | AS8: =N8 -> 112 | AT8: =COUNTIF(L42:L48,AS8) -> 0 | AU8: =AT8/(AV4-AT14) ->  | AV8: =IF(AU8=0,0,(AU8*((LOG(AU8))/LOG(2)))) -> 
A9: 21 | B9: 225 | C9: 21 | D9: 243 | E9: 21 | F9: 249 | K9: 0 | L9: 222 | N9: 121 | O9: =COUNTIF($L$7:$L$500,N9) -> 0 | P9: =O9/$Q$4 -> 0 | Q9: =IF(P9=0,0,(P9*((LOG(P9))/LOG(2)))) -> 0 | T9: =N9 -> 121 | U9: =COUNTIF(L7:L13,T9) -> 0 | V9: =U9/(W4-U14) -> 0 | W9: =IF(V9=0,0,(V9*((LOG(V9))/LOG(2)))) -> 0 | Y9: =N9 -> 121 | Z9: =COUNTIF(L14:L20,Y9) -> 0 | AA9: =Z9/(AB4-Z14) ->  | AB9: =IF(AA9=0,0,(AA9*((LOG(AA9))/LOG(2)))) ->  | AD9: =N9 -> 121 | AE9: =COUNTIF(L21:L27,AD9) -> 0 | AF9: =AE9/(AG4-AE14) ->  | AG9: =IF(AF9=0,0,(AF9*((LOG(AF9))/LOG(2)))) ->  | AI9: =N9 -> 121 | AJ9: =COUNTIF(L28:L34,AI9) -> 0 | AK9: =AJ9/(AL4-AJ14) ->  | AL9: =IF(AK9=0,0,(AK9*((LOG(AK9))/LOG(2)))) ->  | AN9: =N9 -> 121 | AO9: =COUNTIF(L35:L41,AN9) -> 0 | AP9: =AO9/(AQ4-AO14) ->  | AQ9: =IF(AP9=0,0,(AP9*((LOG(AP9))/LOG(2)))) ->  | AS9: =N9 -> 121 | AT9: =COUNTIF(L42:L48,AS9) -> 0 | AU9: =AT9/(AV4-AT14) ->  | AV9: =IF(AU9=0,0,(AU9*((LOG(AU9))/LOG(2)))) -> 
A10: 21 | B10: 361 | C10: 21 | D10: 376 | E10: 21 | F10: 380 | K10: 0 | L10: 222 | N10: 122 | O10: =COUNTIF($L$7:$L$500,N10) -> 1 | P10: =O10/$Q$4 -> 0.02380952381 | Q10: =IF(P10=0,0,(P10*((LOG(P10))/LOG(2)))) -> -0.1283885101 | T10: =N10 -> 122 | U10: =COUNTIF(L7:L13,T10) -> 1 | V10: =U10/(W4-U14) -> 0.5 | W10: =IF(V10=0,0,(V10*((LOG(V10))/LOG(2)))) -> -0.5 | Y10: =N10 -> 122 | Z10: =COUNTIF(L14:L20,Y10) -> 0 | AA10: =Z10/(AB4-Z14) ->  | AB10: =IF(AA10=0,0,(AA10*((LOG(AA10))/LOG(2)))) ->  | AD10: =N10 -> 122 | AE10: =COUNTIF(L21:L27,AD10) -> 0 | AF10: =AE10/(AG4-AE14) ->  | AG10: =IF(AF10=0,0,(AF10*((LOG(AF10))/LOG(2)))) ->  | AI10: =N10 -> 122 | AJ10: =COUNTIF(L28:L34,AI10) -> 0 | AK10: =AJ10/(AL4-AJ14) ->  | AL10: =IF(AK10=0,0,(AK10*((LOG(AK10))/LOG(2)))) ->  | AN10: =N10 -> 122 | AO10: =COUNTIF(L35:L41,AN10) -> 0 | AP10: =AO10/(AQ4-AO14) ->  | AQ10: =IF(AP10=0,0,(AP10*((LOG(AP10))/LOG(2)))) ->  | AS10: =N10 -> 122 | AT10: =COUNTIF(L42:L48,AS10) -> 0 | AU10: =AT10/(AV4-AT14) ->  | AV10: =IF(AU10=0,0,(AU10*((LOG(AU10))/LOG(2)))) -> 
A11: 21 | B11: 577 | C11: 21 | D11: 581 | E11: 21 | F11: 593 | K11: 0 | L11: 222 | N11: 211 | O11: =COUNTIF($L$7:$L$500,N11) -> 0 | P11: =O11/$Q$4 -> 0 | Q11: =IF(P11=0,0,(P11*((LOG(P11))/LOG(2)))) -> 0 | T11: =N11 -> 211 | U11: =COUNTIF(L7:L13,T11) -> 0 | V11: =U11/(W4-U14) -> 0 | W11: =IF(V11=0,0,(V11*((LOG(V11))/LOG(2)))) -> 0 | Y11: =N11 -> 211 | Z11: =COUNTIF(L14:L20,Y11) -> 0 | AA11: =Z11/(AB4-Z14) ->  | AB11: =IF(AA11=0,0,(AA11*((LOG(AA11))/LOG(2)))) ->  | AD11: =N11 -> 211 | AE11: =COUNTIF(L21:L27,AD11) -> 0 | AF11: =AE11/(AG4-AE14) ->  | AG11: =IF(AF11=0,0,(AF11*((LOG(AF11))/LOG(2)))) ->  | AI11: =N11 -> 211 | AJ11: =COUNTIF(L28:L34,AI11) -> 0 | AK11: =AJ11/(AL4-AJ14) ->  | AL11: =IF(AK11=0,0,(AK11*((LOG(AK11))/LOG(2)))) ->  | AN11: =N11 -> 211 | AO11: =COUNTIF(L35:L41,AN11) -> 0 | AP11: =AO11/(AQ4-AO14) ->  | AQ11: =IF(AP11=0,0,(AP11*((LOG(AP11))/LOG(2)))) ->  | AS11: =N11 -> 211 | AT11: =COUNTIF(L42:L48,AS11) -> 0 | AU11: =AT11/(AV4-AT14) ->  | AV11: =IF(AU11=0,0,(AU11*((LOG(AU11))/LOG(2)))) -> 
A12: 21 | B12: 730 | C12: 21 | D12: 734 | E12: 21 | F12: 748 | K12: 0 | L12: 222 | N12: 212 | O12: =COUNTIF($L$7:$L$500,N12) -> 0 | P12: =O12/$Q$4 -> 0 | Q12: =IF(P12=0,0,(P12*((LOG(P12))/LOG(2)))) -> 0 | T12: =N12 -> 212 | U12: =COUNTIF(L7:L13,T12) -> 0 | V12: =U12/(W4-U14) -> 0 | W12: =IF(V12=0,0,(V12*((LOG(V12))/LOG(2)))) -> 0 | Y12: =N12 -> 212 | Z12: =COUNTIF(L14:L20,Y12) -> 0 | AA12: =Z12/(AB4-Z14) ->  | AB12: =IF(AA12=0,0,(AA12*((LOG(AA12))/LOG(2)))) ->  | AD12: =N12 -> 212 | AE12: =COUNTIF(L21:L27,AD12) -> 0 | AF12: =AE12/(AG4-AE14) ->  | AG12: =IF(AF12=0,0,(AF12*((LOG(AF12))/LOG(2)))) ->  | AI12: =N12 -> 212 | AJ12: =COUNTIF(L28:L34,AI12) -> 0 | AK12: =AJ12/(AL4-AJ14) ->  | AL12: =IF(AK12=0,0,(AK12*((LOG(AK12))/LOG(2)))) ->  | AN12: =N12 -> 212 | AO12: =COUNTIF(L35:L41,AN12) -> 0 | AP12: =AO12/(AQ4-AO14) ->  | AQ12: =IF(AP12=0,0,(AP12*((LOG(AP12))/LOG(2)))) ->  | AS12: =N12 -> 212 | AT12: =COUNTIF(L42:L48,AS12) -> 0 | AU12: =AT12/(AV4-AT14) ->  | AV12: =IF(AU12=0,0,(AU12*((LOG(AU12))/LOG(2)))) -> 
A13: 21 | B13: 840 | C13: 21 | D13: 856 | E13: 21 | F13: 859 | K13: 0 | L13: 222 | N13: 221 | O13: =COUNTIF($L$7:$L$500,N13) -> 0 | P13: =O13/$Q$4 -> 0 | Q13: =IF(P13=0,0,(P13*((LOG(P13))/LOG(2)))) -> 0 | T13: =N13 -> 221 | U13: =COUNTIF(L7:L13,T13) -> 0 | V13: =U13/(W4-U14) -> 0 | W13: =IF(V13=0,0,(V13*((LOG(V13))/LOG(2)))) -> 0 | Y13: =N13 -> 221 | Z13: =COUNTIF(L14:L20,Y13) -> 0 | AA13: =Z13/(AB4-Z14) ->  | AB13: =IF(AA13=0,0,(AA13*((LOG(AA13))/LOG(2)))) ->  | AD13: =N13 -> 221 | AE13: =COUNTIF(L21:L27,AD13) -> 0 | AF13: =AE13/(AG4-AE14) ->  | AG13: =IF(AF13=0,0,(AF13*((LOG(AF13))/LOG(2)))) ->  | AI13: =N13 -> 221 | AJ13: =COUNTIF(L28:L34,AI13) -> 0 | AK13: =AJ13/(AL4-AJ14) ->  | AL13: =IF(AK13=0,0,(AK13*((LOG(AK13))/LOG(2)))) ->  | AN13: =N13 -> 221 | AO13: =COUNTIF(L35:L41,AN13) -> 0 | AP13: =AO13/(AQ4-AO14) ->  | AQ13: =IF(AP13=0,0,(AP13*((LOG(AP13))/LOG(2)))) ->  | AS13: =N13 -> 221 | AT13: =COUNTIF(L42:L48,AS13) -> 0 | AU13: =AT13/(AV4-AT14) ->  | AV13: =IF(AU13=0,0,(AU13*((LOG(AU13))/LOG(2)))) -> 
A14: 21 | B14: 957 | C14: 21 | D14: 959 | E14: 21 | F14: 973 | K14: 0 | L14: 222 | N14: 222 | O14: =COUNTIF($L$7:$L$500,N14) -> 40 | P14: =O14/$Q$4 -> 0.9523809524 | Q14: =IF(P14=0,0,(P14*((LOG(P14))/LOG(2)))) -> -0.06703745513 | T14: =N14 -> 222 | U14: =COUNTIF(L7:L13,T14) -> 5 | Y14: =N14 -> 222 | Z14: =COUNTIF(L14:L20,Y14) -> 7 | AD14: =N14 -> 222 | AE14: =COUNTIF(L21:L27,AD14) -> 7 | AI14: =N14 -> 222 | AJ14: =COUNTIF(L28:L34,AI14) -> 7 | AN14: =N14 -> 222 | AO14: =COUNTIF(L35:L41,AN14) -> 7 | AS14: =N14 -> 222 | AT14: =COUNTIF(L42:L48,AS14) -> 7
A15: 21 | B15: 1064 | C15: 21 | D15: 1085 | E15: 21 | F15: 1096 | K15: 0 | L15: 222 | P15: =SUM(P7:P14) -> 1 | Q15: =-SUM(Q7:Q14) -> 0.3238144753 | V15: =SUM(V7:V14) -> 1 | W15: =-SUM(W7:W14) -> 1 | AA15: =SUM(AA7:AA14) ->  | AB15: =-SUM(AB7:AB14) ->  | AF15: =SUM(AF7:AF14) ->  | AG15: =-SUM(AG7:AG14) ->  | AK15: =SUM(AK7:AK14) ->  | AL15: =-SUM(AL7:AL14) ->  | AP15: =SUM(AP7:AP14) ->  | AQ15: =-SUM(AQ7:AQ14) ->  | AU15: =SUM(AU7:AU14) ->  | AV15: =-SUM(AV7:AV14) -> 
A16: 21 | B16: 1203 | C16: 21 | D16: 1210 | E16: 21 | F16: 1222 | K16: 0 | L16: 222 | P16: U= | Q16: =Q15/(LOG(Q4)/LOG(2)) -> 0.06005107821 | V16: U1= | W16: =W15/(LOG(W4)/LOG(2)) -> 0.3562071871 | AA16: U2= | AB16: =AB15/(LOG(AB4)/LOG(2)) ->  | AF16: U3= | AG16: =AG15/(LOG(AG4)/LOG(2)) ->  | AK16: U4= | AL16: =AL15/(LOG(AL4)/LOG(2)) ->  | AP16: U5= | AQ16: =AQ15/(LOG(AQ4)/LOG(2)) ->  | AU16: U6= | AV16: =AV15/(LOG(AV4)/LOG(2)) -> 
A17: 21 | B17: 1315 | C17: 21 | D17: 1333 | E17: 21 | F17: 1343 | K17: 0 | L17: 222
A18: 21 | B18: 1439 | C18: 21 | D18: 1442 | E18: 21 | F18: 1457 | K18: 0 | L18: 222
A19: 21 | B19: 1554 | C19: 21 | D19: 1558 | E19: 21 | F19: 1573 | K19: 0 | L19: 222 | N19: Total Target Seq
A20: 21 | B20: 1675 | C20: 21 | D20: 1678 | E20: 21 | F20: 1691 | K20: 0 | L20: 222 | N20: =COUNTIF(L7:L48,G3) -> 40 | P20: 7 | Q20: 7 | R20: 7 | S20: 7 | T20: 7 | U20: 7
A21: 21 | B21: 1801 | C21: 21 | D21: 1803 | E21: 21 | F21: 1815 | K21: 0 | L21: 222 | P21: % of reinforcement given in 6 equal intervals based on number of trials
A22: 21 | B22: 1909 | C22: 21 | D22: 1922 | E22: 21 | F22: 1931 | K22: 0 | L22: 222 | P22: %_1 | Q22: %_2 | R22: %_3 | S22: %_4 | T22: %_5 | U22: %_6
A23: 21 | B23: 2047 | C23: 21 | D23: 2050 | E23: 21 | F23: 2061 | K23: 0 | L23: 222 | O23: target sequence | P23: =$G$3 -> 222 | Q23: =$G$3 -> 222 | R23: =$G$3 -> 222 | S23: =$G$3 -> 222 | T23: =$G$3 -> 222 | U23: =$G$3 -> 222
A24: 21 | B24: 2156 | C24: 21 | D24: 2158 | E24: 21 | F24: 2172 | K24: 0 | L24: 222 | O24: total reinforcement | P24: =U14 -> 5 | Q24: =Z14 -> 7 | R24: =AE14 -> 7 | S24: =AJ14 -> 7 | T24: =AO14 -> 7 | U24: =AT14 -> 7
A25: 21 | B25: 2263 | C25: 21 | D25: 2266 | E25: 21 | F25: 2283 | K25: 0 | L25: 222 | O25: % target
A26: 21 | B26: 2375 | C26: 21 | D26: 2392 | E26: 21 | F26: 2412 | K26: 0 | L26: 222 | O26: CCRF
A27: 21 | B27: 2506 | C27: 21 | D27: 2508 | E27: 21 | F27: 2524 | K27: 0 | L27: 222 | O27: % CCRf
A28: 21 | B28: 2618 | C28: 21 | D28: 2624 | E28: 21 | F28: 2625 | K28: 0 | L28: 222 | O28: average response rate | P28: =F13/P20 -> 122.7142857 | Q28: =(F20-F13)/Q20 -> 118.8571429 | R28: =(F27-F20)/R20 -> 119 | S28: =(F34-F27)/S20 -> 110.1428571 | T28: =(F41-F34)/T20 -> 126.1428571 | U28: =(F48-F41)/U20 -> 110.7142857
A29: 21 | B29: 2718 | C29: 21 | D29: 2720 | E29: 21 | F29: 2726 | K29: 0 | L29: 222
A30: 21 | B30: 2820 | C30: 21 | D30: 2835 | E30: 21 | F30: 2841 | K30: 0 | L30: 222
A31: 21 | B31: 2933 | C31: 21 | D31: 2946 | E31: 21 | F31: 2950 | K31: 0 | L31: 222
A32: 21 | B32: 3064 | C32: 21 | D32: 3080 | E32: 21 | F32: 3086 | K32: 0 | L32: 222
A33: 21 | B33: 3180 | C33: 21 | D33: 3187 | E33: 21 | F33: 3189 | K33: 0 | L33: 222
A34: 21 | B34: 3289 | C34: 21 | D34: 3294 | E34: 21 | F34: 3295 | K34: 0 | L34: 222
A35: 21 | B35: 3392 | C35: 21 | D35: 3408 | E35: 21 | F35: 3427 | K35: 0 | L35: 222
A36: 21 | B36: 3523 | C36: 21 | D36: 3539 | E36: 21 | F36: 3545 | K36: 0 | L36: 222
A37: 21 | B37: 3640 | C37: 21 | D37: 3657 | E37: 21 | F37: 3661 | K37: 0 | L37: 222
A38: 21 | B38: 3758 | C38: 21 | D38: 3763 | E38: 21 | F38: 3777 | K38: 0 | L38: 222
A39: 21 | B39: 3921 | C39: 21 | D39: 3934 | E39: 21 | F39: 3943 | K39: 0 | L39: 222
A40: 21 | B40: 4031 | C40: 21 | D40: 4041 | E40: 21 | F40: 4057 | K40: 0 | L40: 222
A41: 21 | B41: 4167 | C41: 21 | D41: 4172 | E41: 21 | F41: 4178 | K41: 0 | L41: 222
A42: 21 | B42: 4270 | C42: 21 | D42: 4272 | E42: 21 | F42: 4289 | K42: 0 | L42: 222
A43: 21 | B43: 4385 | C43: 21 | D43: 4392 | E43: 21 | F43: 4397 | K43: 0 | L43: 222
A44: 21 | B44: 4491 | C44: 21 | D44: 4494 | E44: 21 | F44: 4503 | K44: 0 | L44: 222
A45: 21 | B45: 4596 | C45: 21 | D45: 4602 | E45: 21 | F45: 4608 | K45: 0 | L45: 222
A46: 21 | B46: 4707 | C46: 21 | D46: 4715 | E46: 21 | F46: 4721 | K46: 0 | L46: 222
A47: 21 | B47: 4836 | C47: 21 | D47: 4841 | E47: 21 | F47: 4847 | K47: 0 | L47: 222
A48: 21 | B48: 4938 | C48: 21 | D48: 4943 | E48: 21 | F48: 4953 | K48: 1 | L48: 222

Sheet !M904A4T.AYL
A1: Report for:!M904A4T.AYL
A2: Date: | B2: <date>
A3: Hen: | B3: <hen> | F3: Correct Sequence | G3: =Start!J2 -> 222 | P3: Total Sequences in Data | Q3: =4994-COUNTBLANK(L7:L5000) -> 51 | V3: Total Sequences in Block Data | W3: =COUNTA(L7:L15) -> 9 | AA3: Total Sequences in Block Data | AB3: =COUNTA(L16:L23) -> 8 | AF3: Total Sequences in Block Data | AG3: =COUNTA(L24:L32) -> 9 | AK3: Total Sequences in Block Data | AL3: =COUNTA(L33:L40) -> 8 | AP3: Total Sequences in Block Data | AQ3: =COUNTA(L41:L49) -> 9 | AU3: Total Sequences in Block Data | AV3: =COUNTA(L50:L57) -> 8
P4: Total Sequences in Summary | Q4: =SUM(O7:O14) -> 51 | V4: Total Sequences in Block Summary | W4: =SUM(U7:U14) -> 9 | AA4: Total Sequences in Block Summary | AB4: =SUM(Z7:Z14) -> 8 | AF4: Total Sequences in Block Summary | AG4: =SUM(AE7:AE14) -> 9 | AK4: Total Sequences in Block Summary | AL4: =SUM(AJ7:AJ14) -> 8 | AP4: Total Sequences in Block Summary | AQ4: =SUM(AO7:AO14) -> 9 | AU4: Total Sequences in Block Summary | AV4: =SUM(AT7:AT14) -> 8
T5: Block 1 | Y5: Block 2 | AD5: Block 3 | AI5: Block 4 | AN5: Block 5 | AS5: Block 6
A6: Sequence Component 1 | B6: Time 1 | C6: Sequence Component 2 | D6: Time 2 | E6: Sequence Component 3 | F6: Time 3 | G6: Sequence Component 4 | H6: Time 4 | I6: Sequence Component 5 | J6: Time 5 | K6: Correct? 0=No 1=Yes | L6: Sequence | N6: Frequency | P6: Relative Frequency | Q6: Variability | T6: Frequency | V6: Relative Frequency | W6: Variability | Y6: Frequency | AA6: Relative Frequency | AB6: Variability | AD6: Frequency | AF6: Relative Frequency | AG6: Variability | AI6: Frequency | AK6: Relative Frequency | AL6: Variability | AN6: Frequency | AP6: Relative Frequency | AQ6: Variability | AS6: Frequency | AU6: Relative Frequency | AV6: Variability
A7: 12 | B7: 15 | C7: 23 | D7: 22 | E7: 23 | F7: 26 | K7: 0 | L7: 122 | N7: 111 | O7: =COUNTIF($L$7:$L$500,N7) -> 6 | P7: =O7/$Q$4 -> 0.1176470588 | Q7: =IF(P7=0,0,(P7*((LOG(P7))/LOG(2)))) -> -0.3632309225 | T7: =N7 -> 111 | U7: =COUNTIF(L7:L15,T7) -> 2 | V7: =U7/(W4-U14) -> 0.6666666667 | W7: =IF(V7=0,0,(V7*((LOG(V7))/LOG(2)))) -> -0.3899750005 | Y7: =N7 -> 111 | Z7: =COUNTIF(L16:L23,Y7) -> 3 | AA7: =Z7/(AB4-Z14) -> 0.4285714286 | AB7: =IF(AA7=0,0,(AA7*((LOG(AA7))/LOG(2)))) -> -0.5238824663 | AD7: =N7 -> 111 | AE7: =COUNTIF(L24:L32,AD7) -> 1 | AF7: =AE7/(AG4-AE14) -> 1 | AG7: =IF(AF7=0,0,(AF7*((LOG(AF7))/LOG(2)))) -> 0 | AI7: =N7 -> 111 | AJ7: =COUNTIF(L33:L40,AI7) -> 0 | AK7: =AJ7/(AL4-AJ14) ->  | AL7: =IF(AK7=0,0,(AK7*((LOG(AK7))/LOG(2)))) ->  | AN7: =N7 -> 111 | AO7: =COUNTIF(L41:L49,AN7) -> 0 | AP7: =AO7/(AQ4-AO14) ->  | AQ7: =IF(AP7=0,0,(AP7*((LOG(AP7))/LOG(2)))) ->  | AS7: =N7 -> 111 | AT7: =COUNTIF(L50:L57,AS7) -> 0 | AU7: =AT7/(AV4-AT14) ->  | AV7: =IF(AU7=0,0,(AU7*((LOG(AU7))/LOG(2)))) -> 
A8: 12 | B8: 125 | C8: 14 | D8: 130 | E8: 14 | F8: 133 | K8: 0 | L8: 111 | N8: 112 | O8: =COUNTIF($L$7:$L$500,N8) -> 0 | P8: =O8/$Q$4 -> 0 | Q8: =IF(P8=0,0,(P8*((LOG(P8))/LOG(2)))) -> 0 | T8: =N8 -> 112 | U8: =COUNTIF(L7:L15,T8) -> 0 | V8: =U8/(W4-U14) -> 0 | W8: =IF(V8=0,0,(V8*((LOG(V8))/LOG(2)))) -> 0 | Y8: =N8 -> 112 | Z8: =COUNTIF(L16:L23,Y8) -> 0 | AA8: =Z8/(AB4-Z14) -> 0 | AB8: =IF(AA8=0,0,(AA8*((LOG(AA8))/LOG(2)))) -> 0 | AD8: =N8 -> 112 | AE8: =COUNTIF(L24:L32,AD8) -> 0 | AF8: =AE8/(AG4-AE14) -> 0 | AG8: =IF(AF8=0,0,(AF8*((LOG(AF8))/LOG(2)))) -> 0 | AI8: =N8 -> 112 | AJ8: =COUNTIF(L33:L40,AI8) -> 0 | AK8: =AJ8/(AL4-AJ14) ->  | AL8: =IF(AK8=0,0,(AK8*((LOG(AK8))/LOG(2)))) ->  | AN8: =N8 -> 112 | AO8: =COUNTIF(L41:L49,AN8) -> 0 | AP8: =AO8/(AQ4-AO14) ->  | AQ8: =IF(AP8=0,0,(AP8*((LOG(AP8))/LOG(2)))) ->  | AS8: =N8 -> 112 | AT8: =COUNTIF(L50:L57,AS8) -> 0 | AU8: =AT8/(AV4-AT14) ->  | AV8: =IF(AU8=0,0,(AU8*((LOG(AU8))/LOG(2)))) -> 
A9: 21 | B9: 231 | C9: 21 | D9: 235 | E9: 21 | F9: 247 | K9: 0 | L9: 222 | N9: 121 | O9: =COUNTIF($L$7:$L$500,N9) -> 0 | P9: =O9/$Q$4 -> 0 | Q9: =IF(P9=0,0,(P9*((LOG(P9))/LOG(2)))) -> 0 | T9: =N9 -> 121 | U9: =COUNTIF(L7:L15,T9) -> 0 | V9: =U9/(W4-U14) -> 0 | W9: =IF(V9=0,0,(V9*((LOG(V9))/LOG(2)))) -> 0 | Y9: =N9 -> 121 | Z9: =COUNTIF(L16:L23,Y9) -> 0 | AA9: =Z9/(AB4-Z14) -> 0 | AB9: =IF(AA9=0,0,(AA9*((LOG(AA9))/LOG(2)))) -> 0 | AD9: =N9 -> 121 | AE9: =COUNTIF(L24:L32,AD9) -> 0 | AF9: =AE9/(AG4-AE14) -> 0 | AG9: =IF(AF9=0,0,(AF9*((LOG(AF9))/LOG(2)))) -> 0 | AI9: =N9 -> 121 | AJ9: =COUNTIF(L33:L40,AI9) -> 0 | AK9: =AJ9/(AL4-AJ14) ->  | AL9: =IF(AK9=0,0,(AK9*((LOG(AK9))/LOG(2)))) ->  | AN9: =N9 -> 121 | AO9: =COUNTIF(L41:L49,AN9) -> 0 | AP9: =AO9/(AQ4-AO14) ->  | AQ9: =IF(AP9=0,0,(AP9*((LOG(AP9))/LOG(2)))) ->  | AS9: =N9 -> 121 | AT9: =COUNTIF(L50:L57,AS9) -> 0 | AU9: =AT9/(AV4-AT14) ->  | AV9: =IF(AU9=0,0,(AU9*((LOG(AU9))/LOG(2)))) -> 
A10: 12 | B10: 369 | C10: 14 | D10: 374 | E10: 14 | F10: 381 | K10: 0 | L10: 111 | N10: 122 | O10: =COUNTIF($L$7:$L$500,N10) -> 3 | P10: =O10/$Q$4 -> 0.05882352941 | Q10: =IF(P10=0,0,(P10*((LOG(P10))/LOG(2)))) -> -0.2404389907 | T10: =N10 -> 122 | U10: =COUNTIF(L7:L15,T10) -> 1 | V10: =U10/(W4-U14) -> 0.3333333333 | W10: =IF(V10=0,0,(V10*((LOG(V10))/LOG(2)))) -> -0.5283208336 | Y10: =N10 -> 122 | Z10: =COUNTIF(L16:L23,Y10) -> 2 | AA10: =Z10/(AB4-Z14) -> 0.2857142857 | AB10: =IF(AA10=0,0,(AA10*((LOG(AA10))/LOG(2)))) -> -0.5163871206 | AD10: =N10 -> 122 | AE10: =COUNTIF(L24:L32,AD10) -> 0 | AF10: =AE10/(AG4-AE14) -> 0 | AG10: =IF(AF10=0,0,(AF10*((LOG(AF10))/LOG(2)))) -> 0 | AI10: =N10 -> 122 | AJ10: =COUNTIF(L33:L40,AI10) -> 0 | AK10: =AJ10/(AL4-AJ14) ->  | AL10: =IF(AK10=0,0,(AK10*((LOG(AK10))/LOG(2)))) ->  | AN10: =N10 -> 122 | AO10: =COUNTIF(L41:L49,AN10) -> 0 | AP10: =AO10/(AQ4-AO14) ->  | AQ10: =IF(AP10=0,0,(AP10*((LOG(AP10))/LOG(2)))) ->  | AS10: =N10 -> 122 | AT10: =COUNTIF(L50:L57,AS10) -> 0 | AU10: =AT10/(AV4-AT14) ->  | AV10: =IF(AU10=0,0,(AU10*((LOG(AU10))/LOG(2)))) -> 
A11: 21 | B11: 479 | C11: 21 | D11: 494 | E11: 21 | F11: 497 | K11: 0 | L11: 222 | N11: 211 | O11: =COUNTIF($L$7:$L$500,N11) -> 1 | P11: =O11/$Q$4 -> 0.01960784314 | Q11: =IF(P11=0,0,(P11*((LOG(P11))/LOG(2)))) -> -0.1112240263 | T11: =N11 -> 211 | U11: =COUNTIF(L7:L15,T11) -> 0 | V11: =U11/(W4-U14) -> 0 | W11: =IF(V11=0,0,(V11*((LOG(V11))/LOG(2)))) -> 0 | Y11: =N11 -> 211 | Z11: =COUNTIF(L16:L23,Y11) -> 1 | AA11: =Z11/(AB4-Z14) -> 0.1428571429 | AB11: =IF(AA11=0,0,(AA11*((LOG(AA11))/LOG(2)))) -> -0.4010507032 | AD11: =N11 -> 211 | AE11: =COUNTIF(L24:L32,AD11) -> 0 | AF11: =AE11/(AG4-AE14) -> 0 | AG11: =IF(AF11=0,0,(AF11*((LOG(AF11))/LOG(2)))) -> 0 | AI11: =N11 -> 211 | AJ11: =COUNTIF(L33:L40,AI11) -> 0 | AK11: =AJ11/(AL4-AJ14) ->  | AL11: =IF(AK11=0,0,(AK11*((LOG(AK11))/LOG(2)))) ->  | AN11: =N11 -> 211 | AO11: =COUNTIF(L41:L49,AN11) -> 0 | AP11: =AO11/(AQ4-AO14) ->  | AQ11: =IF(AP11=0,0,(AP11*((LOG(AP11))/LOG(2)))) ->  | AS11: =N11 -> 211 | AT11: =COUNTIF(L50:L57,AS11) -> 0 | AU11: =AT11/(AV4-AT14) ->  | AV11: =IF(AU11=0,0,(AU11*((LOG(AU11))/LOG(2)))) -> 
A12: 21 | B12: 597 | C12: 21 | D12: 599 | E12: 21 | F12: 608 | K12: 0 | L12: 222 | N12: 212 | O12: =COUNTIF($L$7:$L$500,N12) -> 1 | P12: =O12/$Q$4 -> 0.01960784314 | Q12: =IF(P12=0,0,(P12*((LOG(P12))/LOG(2)))) -> -0.1112240263 | T12: =N12 -> 212 | U12: =COUNTIF(L7:L15,T12) -> 0 | V12: =U12/(W4-U14) -> 0 | W12: =IF(V12=0,0,(V12*((LOG(V12))/LOG(2)))) -> 0 | Y12: =N12 -> 212 | Z12: =COUNTIF(L16:L23,Y12) -> 1 | AA12: =Z12/(AB4-Z14) -> 0.1428571429 | AB12: =IF(AA12=0,0,(AA12*((LOG(AA12))/LOG(2)))) -> -0.4010507032 | AD12: =N12 -> 212 | AE12: =COUNTIF(L24:L32,AD12) -> 0 | AF12: =AE12/(AG4-AE14) -> 0 | AG12: =IF(AF12=0,0,(AF12*((LOG(AF12))/LOG(2)))) -> 0 | AI12: =N12 -> 212 | AJ12: =COUNTIF(L33:L40,AI12) -> 0 | AK12: =AJ12/(AL4-AJ14) ->  | AL12: =IF(AK12=0,0,(AK12*((LOG(AK12))/LOG(2)))) ->  | AN12: =N12 -> 212 | AO12: =COUNTIF(L41:L49,AN12) -> 0 | AP12: =AO12/(AQ4-AO14) ->  | AQ12: =IF(AP12=0,0,(AP12*((LOG(AP12))/LOG(2)))) ->  | AS12: =N12 -> 212 | AT12: =COUNTIF(L50:L57,AS12) -> 0 | AU12: =AT12/(AV4-AT14) ->  | AV12: =IF(AU12=0,0,(AU12*((LOG(AU12))/LOG(2)))) -> 
A13: 21 | B13: 709 | C13: 21 | D13: 718 | E13: 21 | F13: 731 | K13: 0 | L13: 222 | N13: 221 | O13: =COUNTIF($L$7:$L$500,N13) -> 0 | P13: =O13/$Q$4 -> 0 | Q13: =IF(P13=0,0,(P13*((LOG(P13))/LOG(2)))) -> 0 | T13: =N13 -> 221 | U13: =COUNTIF(L7:L15,T13) -> 0 | V13: =U13/(W4-U14) -> 0 | W13: =IF(V13=0,0,(V13*((LOG(V13))/LOG(2)))) -> 0 | Y13: =N13 -> 221 | Z13: =COUNTIF(L16:L23,Y13) -> 0 | AA13: =Z13/(AB4-Z14) -> 0 | AB13: =IF(AA13=0,0,(AA13*((LOG(AA13))/LOG(2)))) -> 0 | AD13: =N13 -> 221 | AE13: =COUNTIF(L24:L32,AD13) -> 0 | AF13: =AE13/(AG4-AE14) -> 0 | AG13: =IF(AF13=0,0,(AF13*((LOG(AF13))/LOG(2)))) -> 0 | AI13: =N13 -> 221 | AJ13: =COUNTIF(L33:L40,AI13) -> 0 | AK13: =AJ13/(AL4-AJ14) ->  | AL13: =IF(AK13=0,0,(AK13*((LOG(AK13))/LOG(2)))) ->  | AN13: =N13 -> 221 | AO13: =COUNTIF(L41:L49,AN13) -> 0 | AP13: =AO13/(AQ4-AO14) ->  | AQ13: =IF(AP13=0,0,(AP13*((LOG(AP13))/LOG(2)))) ->  | AS13: =N13 -> 221 | AT13: =COUNTIF(L50:L57,AS13) -> 0 | AU13: =AT13/(AV4-AT14) ->  | AV13: =IF(AU13=0,0,(AU13*((LOG(AU13))/LOG(2)))) -> 
A14: 21 | B14: 842 | C14: 21 | D14: 844 | E14: 21 | F14: 874 | K14: 0 | L14: 222 | N14: 222 | O14: =COUNTIF($L$7:$L$500,N14) -> 40 | P14: =O14/$Q$4 -> 0.7843137255 | Q14: =IF(P14=0,0,(P14*((LOG(P14))/LOG(2)))) -> -0.2748998016 | T14: =N14 -> 222 | U14: =COUNTIF(L7:L15,T14) -> 6 | Y14: =N14 -> 222 | Z14: =COUNTIF(L16:L23,Y14) -> 1 | AD14: =N14 -> 222 | AE14: =COUNTIF(L24:L32,AD14) -> 8 | AI14: =N14 -> 222 | AJ14: =COUNTIF(L33:L40,AI14) -> 8 | AN14: =N14 -> 222 | AO14: =COUNTIF(L41:L49,AN14) -> 9 | AS14: =N14 -> 222 | AT14: =COUNTIF(L50:L57,AS14) -> 8
A15: 21 | B15: 969 | C15: 21 | D15: 990 | E15: 21 | F15: 1023 | K15: 0 | L15: 222 | P15: =SUM(P7:P14) -> 1 | Q15: =-SUM(Q7:Q14) -> 1.101017767 | V15: =SUM(V7:V14) -> 1 | W15: =-SUM(W7:W14) -> 0.9182958341 | AA15: =SUM(AA7:AA14) -> 1 | AB15: =-SUM(AB7:AB14) -> 1.842370993 | AF15: =SUM(AF7:AF14) -> 1 | AG15: =-SUM(AG7:AG14) -> 0 | AK15: =SUM(AK7:AK14) ->  | AL15: =-SUM(AL7:AL14) ->  | AP15: =SUM(AP7:AP14) ->  | AQ15: =-SUM(AQ7:AQ14) ->  | AU15: =SUM(AU7:AU14) ->  | AV15: =-SUM(AV7:AV14) -> 
A16: 21 | B16: 1114 | C16: 12 | D16: 1133 | E16: 14 | F16: 1134 | K16: 0 | L16: 211 | P16: U= | Q16: =Q15/(LOG(Q4)/LOG(2)) -> 0.1941000015 | V16: U1= | W16: =W15/(LOG(W4)/LOG(2)) -> 0.2896900821 | AA16: U2= | AB16: =AB15/(LOG(AB4)/LOG(2)) -> 0.6141236644 | AF16: U3= | AG16: =AG15/(LOG(AG4)/LOG(2)) -> 0 | AK16: U4= | AL16: =AL15/(LOG(AL4)/LOG(2)) ->  | AP16: U5= | AQ16: =AQ15/(LOG(AQ4)/LOG(2)) ->  | AU16: U6= | AV16: =AV15/(LOG(AV4)/LOG(2)) -> 
A17: 12 | B17: 1230 | C17: 23 | D17: 1240 | E17: 23 | F17: 1243 | K17: 0 | L17: 122
A18: 12 | B18: 1347 | C18: 14 | D18: 1353 | E18: 14 | F18: 1356 | K18: 0 | L18: 111
A19: 12 | B19: 1457 | C19: 14 | D19: 1465 | E19: 14 | F19: 1467 | K19: 0 | L19: 111 | N19: Total Target Seq
A20: 12 | B20: 1561 | C20: 14 | D20: 1564 | E20: 14 | F20: 1568 | K20: 0 | L20: 111 | N20: =COUNTIF(L7:L57,G3) -> 40 | P20: 9 | Q20: 8 | R20: 9 | S20: 8 | T20: 9 | U20: 8
A21: 21 | B21: 1665 | C21: 12 | D21: 1672 | E21: 23 | F21: 1679 | K21: 0 | L21: 212 | P21: % of reinforcement given in 6 equal intervals based on number of trials
A22: 12 | B22: 1775 | C22: 23 | D22: 1783 | E22: 23 | F22: 1787 | K22: 0 | L22: 122 | P22: %_1 | Q22: %_2 | R22: %_3 | S22: %_4 | T22: %_5 | U22: %_6
A23: 21 | B23: 1892 | C23: 21 | D23: 1896 | E23: 21 | F23: 1911 | K23: 0 | L23: 222 | O23: target sequence | P23: =$G$3 -> 222 | Q23: =$G$3 -> 222 | R23: =$G$3 -> 222 | S23: =$G$3 -> 222 | T23: =$G$3 -> 222 | U23: =$G$3 -> 222
A24: 12 | B24: 2045 | C24: 14 | D24: 2051 | E24: 14 | F24: 2056 | K24: 0 | L24: 111 | O24: total reinforcement | P24: =U14 -> 6 | Q24: =Z14 -> 1 | R24: =AE14 -> 8 | S24: =AJ14 -> 8 | T24: =AO14 -> 9 | U24: =AT14 -> 8
A25: 21 | B25: 2152 | C25: 21 | D25: 2154 | E25: 21 | F25: 2156 | K25: 0 | L25: 222 | O25: % target
A26: 21 | B26: 2264 | C26: 21 | D26: 2280 | E26: 21 | F26: 2284 | K26: 0 | L26: 222 | O26: CCRF
A27: 21 | B27: 2375 | C27: 21 | D27: 2390 | E27: 21 | F27: 2394 | K27: 0 | L27: 222 | O27: % CCRf
A28: 21 | B28: 2519 | C28: 21 | D28: 2532 | E28: 21 | F28: 2536 | K28: 0 | L28: 222 | O28: average response rate | P28: =F15/P20 -> 113.6666667 | Q28: =(F23-F15)/Q20 -> 111 | R28: =(F32-F23)/R20 -> 123.6666667 | S28: =(F40-F32)/S20 -> 129.25 | T28: =(F49-F40)/T20 -> 110.2222222 | U28: =(F57-F49)/U20 -> 114.375
A29: 21 | B29: 2628 | C29: 21 | D29: 2631 | E29: 21 | F29: 2643 | K29: 0 | L29: 222
A30: 21 | B30: 2751 | C30: 21 | D30: 2771 | E30: 21 | F30: 2779 | K30: 0 | L30: 222
A31: 21 | B31: 2872 | C31: 21 | D31: 2890 | E31: 21 | F31: 2908 | K31: 0 | L31: 222
A32: 21 | B32: 2999 | C32: 21 | D32: 3015 | E32: 21 | F32: 3024 | K32: 0 | L32: 222
A33: 21 | B33: 3160 | C33: 21 | D33: 3162 | E33: 21 | F33: 3178 | K33: 0 | L33: 222
A34: 21 | B34: 3272 | C34: 21 | D34: 3276 | E34: 21 | F34: 3289 | K34: 0 | L34: 222
A35: 21 | B35: 3414 | C35: 21 | D35: 3418 | E35: 21 | F35: 3431 | K35: 0 | L35: 222
A36: 21 | B36: 3523 | C36: 21 | D36: 3525 | E36: 21 | F36: 3539 | K36: 0 | L36: 222
A37: 21 | B37: 3674 | C37: 21 | D37: 3677 | E37: 21 | F37: 3690 | K37: 0 | L37: 222
A38: 21 | B38: 3794 | C38: 21 | D38: 3813 | E38: 21 | F38: 3824 | K38: 0 | L38: 222
A39: 21 | B39: 3918 | C39: 21 | D39: 3923 | E39: 21 | F39: 3939 | K39: 0 | L39: 222
A40: 21 | B40: 4027 | C40: 21 | D40: 4030 | E40: 21 | F40: 4058 | K40: 0 | L40: 222
A41: 21 | B41: 4158 | C41: 21 | D41: 4161 | E41: 21 | F41: 4176 | K41: 0 | L41: 222
A42: 21 | B42: 4269 | C42: 21 | D42: 4285 | E42: 21 | F42: 4289 | K42: 0 | L42: 222
A43: 21 | B43: 4381 | C43: 21 | D43: 4385 | E43: 21 | F43: 4401 | K43: 0 | L43: 222
A44: 21 | B44: 4507 | C44: 21 | D44: 4510 | E44: 21 | F44: 4529 | K44: 0 | L44: 222
A45: 21 | B45: 4618 | C45: 21 | D45: 4622 | E45: 21 | F45: 4625 | K45: 0 | L45: 222
A46: 21 | B46: 4715 | C46: 21 | D46: 4724 | E46: 21 | F46: 4725 | K46: 0 | L46: 222
A47: 21 | B47: 4817 | C47: 21 | D47: 4820 | E47: 21 | F47: 4824 | K47: 0 | L47: 222
A48: 21 | B48: 4916 | C48: 21 | D48: 4931 | E48: 21 | F48: 4935 | K48: 0 | L48: 222
A49: 21 | B49: 5033 | C49: 21 | D49: 5034 | E49: 21 | F49: 5050 | K49: 0 | L49: 222
A50: 21 | B50: 5176 | C50: 21 | D50: 5181 | E50: 21 | F50: 5198 | K50: 0 | L50: 222
A51: 21 | B51: 5289 | C51: 21 | D51: 5296 | E51: 21 | F51: 5302 | K51: 0 | L51: 222
A52: 21 | B52: 5405 | C52: 21 | D52: 5408 | E52: 21 | F52: 5414 | K52: 0 | L52: 222
A53: 21 | B53: 5518 | C53: 21 | D53: 5522 | E53: 21 | F53: 5525 | K53: 0 | L53: 222
A54: 21 | B54: 5619 | C54: 21 | D54: 5623 | E54: 21 | F54: 5638 | K54: 0 | L54: 222
A55: 21 | B55: 5730 | C55: 21 | D55: 5734 | E55: 21 | F55: 5748 | K55: 0 | L55: 222
A56: 21 | B56: 5836 | C56: 21 | D56: 5839 | E56: 21 | F56: 5853 | K56: 0 | L56: 222
A57: 21 | B57: 5950 | C57: 21 | D57: 5952 | E57: 21 | F57: 5965 | K57: 1 | L57: 222

Sheet !M905A4T.AYL
A1: Report for:!M905A4T.AYL
A2: Date: | B2: <date>
A3: Hen: | B3: <hen> | F3: Correct Sequence | G3: =Start!J2 -> 222 | P3: Total Sequences in Data | Q3: =4994-COUNTBLANK(L7:L5000) -> 41 | V3: Total Sequences in Block Data | W3: =COUNTA(L7:L13) -> 7 | AA3: Total Sequences in Block Data | AB3: =COUNTA(L14:L20) -> 7 | AF3: Total Sequences in Block Data | AG3: =COUNTA(L21:L26) -> 6 | AK3: Total Sequences in Block Data | AL3: =COUNTA(L27:L33) -> 7 | AP3: Total Sequences in Block Data | AQ3: =COUNTA(L34:L40) -> 7 | AU3: Total Sequences in Block Data | AV3: =COUNTA(L41:L47) -> 7
P4: Total Sequences in Summary | Q4: =SUM(O7:O14) -> 41 | V4: Total Sequences in Block Summary | W4: =SUM(U7:U14) -> 7 | AA4: Total Sequences in Block Summary | AB4: =SUM(Z7:Z14) -> 7 | AF4: Total Sequences in Block Summary | AG4: =SUM(AE7:AE14) -> 6 | AK4: Total Sequences in Block Summary | AL4: =SUM(AJ7:AJ14) -> 7 | AP4: Total Sequences in Block Summary | AQ4: =SUM(AO7:AO14) -> 7 | AU4: Total Sequences in Block Summary | AV4: =SUM(AT7:AT14) -> 7
T5: Block 1 | Y5: Block 2 | AD5: Block 3 | AI5: Block 4 | AN5: Block 5 | AS5: Block 6
A6: Sequence Component 1 | B6: Time 1 | C6: Sequence Component 2 | D6: Time 2 | E6: Sequence Component 3 | F6: Time 3 | G6: Sequence Component 4 | H6: Time 4 | I6: Sequence Component 5 | J6: Time 5 | K6: Correct? 0=No 1=Yes | L6: Sequence | N6: Frequency | P6: Relative Frequency | Q6: Variability | T6: Frequency | V6: Relative Frequency | W6: Variability | Y6: Frequency | AA6: Relative Frequency | AB6: Variability | AD6: Frequency | AF6: Relative Frequency | AG6: Variability | AI6: Frequency | AK6: Relative Frequency | AL6: Variability | AN6: Frequency | AP6: Relative Frequency | AQ6: Variability | AS6: Frequency | AU6: Relative Frequency | AV6: Variability
A7: 12 | B7: 30 | C7: 23 | D7: 32 | E7: 23 | F7: 40 | K7: 0 | L7: 122 | N7: 111 | O7: =COUNTIF($L$7:$L$500,N7) -> 0 | P7: =O7/$Q$4 -> 0 | Q7: =IF(P7=0,0,(P7*((LOG(P7))/LOG(2)))) -> 0 | T7: =N7 -> 111 | U7: =COUNTIF(L7:L13,T7) -> 0 | V7: =U7/(W4-U14) -> 0 | W7: =IF(V7=0,0,(V7*((LOG(V7))/LOG(2)))) -> 0 | Y7: =N7 -> 111 | Z7: =COUNTIF(L14:L20,Y7) -> 0 | AA7: =Z7/(AB4-Z14) ->  | AB7: =IF(AA7=0,0,(AA7*((LOG(AA7))/LOG(2)))) ->  | AD7: =N7 -> 111 | AE7: =COUNTIF(L21:L26,AD7) -> 0 | AF7: =AE7/(AG4-AE14) ->  | AG7: =IF(AF7=0,0,(AF7*((LOG(AF7))/LOG(2)))) ->  | AI7: =N7 -> 111 | AJ7: =COUNTIF(L27:L33,AI7) -> 0 | AK7: =AJ7/(AL4-AJ14) ->  | AL7: =IF(AK7=0,0,(AK7*((LOG(AK7))/LOG(2)))) ->  | AN7: =N7 -> 111 | AO7: =COUNTIF(L34:L40,AN7) -> 0 | AP7: =AO7/(AQ4-AO14) ->  | AQ7: =IF(AP7=0,0,(AP7*((LOG(AP7))/LOG(2)))) ->  | AS7: =N7 -> 111 | AT7: =COUNTIF(L41:L47,AS7) -> 0 | AU7: =AT7/(AV4-AT14) ->  | AV7: =IF(AU7=0,0,(AU7*((LOG(AU7))/LOG(2)))) -> 
A8: 21 | B8: 135 | C8: 21 | D8: 156 | E8: 21 | F8: 159 | K8: 0 | L8: 222 | N8: 112 | O8: =COUNTIF($L$7:$L$500,N8) -> 0 | P8: =O8/$Q$4 -> 0 | Q8: =IF(P8=0,0,(P8*((LOG(P8))/LOG(2)))) -> 0 | T8: =N8 -> 112 | U8: =COUNTIF(L7:L13,T8) -> 0 | V8: =U8/(W4-U14) -> 0 | W8: =IF(V8=0,0,(V8*((LOG(V8))/LOG(2)))) -> 0 | Y8: =N8 -> 112 | Z8: =COUNTIF(L14:L20,Y8) -> 0 | AA8: =Z8/(AB4-Z14) ->  | AB8: =IF(AA8=0,0,(AA8*((LOG(AA8))/LOG(2)))) ->  | AD8: =N8 -> 112 | AE8: =COUNTIF(L21:L26,AD8) -> 0 | AF8: =AE8/(AG4-AE14) ->  | AG8: =IF(AF8=0,0,(AF8*((LOG(AF8))/LOG(2)))) ->  | AI8: =N8 -> 112 | AJ8: =COUNTIF(L27:L33,AI8) -> 0 | AK8: =AJ8/(AL4-AJ14) ->  | AL8: =IF(AK8=0,0,(AK8*((LOG(AK8))/LOG(2)))) ->  | AN8: =N8 -> 112 | AO8: =COUNTIF(L34:L40,AN8) -> 0 | AP8: =AO8/(AQ4-AO14) ->  | AQ8: =IF(AP8=0,0,(AP8*((LOG(AP8))/LOG(2)))) ->  | AS8: =N8 -> 112 | AT8: =COUNTIF(L41:L47,AS8) -> 0 | AU8: =AT8/(AV4-AT14) ->  | AV8: =IF(AU8=0,0,(AU8*((LOG(AU8))/LOG(2)))) -> 
A9: 21 | B9: 304 | C9: 21 | D9: 307 | E9: 21 | F9: 322 | K9: 0 | L9: 222 | N9: 121 | O9: =COUNTIF($L$7:$L$500,N9) -> 0 | P9: =O9/$Q$4 -> 0 | Q9: =IF(P9=0,0,(P9*((LOG(P9))/LOG(2)))) -> 0 | T9: =N9 -> 121 | U9: =COUNTIF(L7:L13,T9) -> 0 | V9: =U9/(W4-U14) -> 0 | W9: =IF(V9=0,0,(V9*((LOG(V9))/LOG(2)))) -> 0 | Y9: =N9 -> 121 | Z9: =COUNTIF(L14:L20,Y9) -> 0 | AA9: =Z9/(AB4-Z14) ->  | AB9: =IF(AA9=0,0,(AA9*((LOG(AA9))/LOG(2)))) ->  | AD9: =N9 -> 121 | AE9: =COUNTIF(L21:L26,AD9) -> 0 | AF9: =AE9/(AG4-AE14) ->  | AG9: =IF(AF9=0,0,(AF9*((LOG(AF9))/LOG(2)))) ->  | AI9: =N9 -> 121 | AJ9: =COUNTIF(L27:L33,AI9) -> 0 | AK9: =AJ9/(AL4-AJ14) ->  | AL9: =IF(AK9=0,0,(AK9*((LOG(AK9))/LOG(2)))) ->  | AN9: =N9 -> 121 | AO9: =COUNTIF(L34:L40,AN9) -> 0 | AP9: =AO9/(AQ4-AO14) ->  | AQ9: =IF(AP9=0,0,(AP9*((LOG(AP9))/LOG(2)))) ->  | AS9: =N9 -> 121 | AT9: =COUNTIF(L41:L47,AS9) -> 0 | AU9: =AT9/(AV4-AT14) ->  | AV9: =IF(AU9=0,0,(AU9*((LOG(AU9))/LOG(2)))) -> 
A10: 21 | B10: 417 | C10: 21 | D10: 436 | E10: 21 | F10: 441 | K10: 0 | L10: 222 | N10: 122 | O10: =COUNTIF($L$7:$L$500,N10) -> 1 | P10: =O10/$Q$4 -> 0.0243902439 | Q10: =IF(P10=0,0,(P10*((LOG(P10))/LOG(2)))) -> -0.1306720001 | T10: =N10 -> 122 | U10: =COUNTIF(L7:L13,T10) -> 1 | V10: =U10/(W4-U14) -> 1 | W10: =IF(V10=0,0,(V10*((LOG(V10))/LOG(2)))) -> 0 | Y10: =N10 -> 122 | Z10: =COUNTIF(L14:L20,Y10) -> 0 | AA10: =Z10/(AB4-Z14) ->  | AB10: =IF(AA10=0,0,(AA10*((LOG(AA10))/LOG(2)))) ->  | AD10: =N10 -> 122 | AE10: =COUNTIF(L21:L26,AD10) -> 0 | AF10: =AE10/(AG4-AE14) ->  | AG10: =IF(AF10=0,0,(AF10*((LOG(AF10))/LOG(2)))) ->  | AI10: =N10 -> 122 | AJ10: =COUNTIF(L27:L33,AI10) -> 0 | AK10: =AJ10/(AL4-AJ14) ->  | AL10: =IF(AK10=0,0,(AK10*((LOG(AK10))/LOG(2)))) ->  | AN10: =N10 -> 122 | AO10: =COUNTIF(L34:L40,AN10) -> 0 | AP10: =AO10/(AQ4-AO14) ->  | AQ10: =IF(AP10=0,0,(AP10*((LOG(AP10))/LOG(2)))) ->  | AS10: =N10 -> 122 | AT10: =COUNTIF(L41:L47,AS10) -> 0 | AU10: =AT10/(AV4-AT14) ->  | AV10: =IF(AU10=0,0,(AU10*((LOG(AU10))/LOG(2)))) -> 
A11: 21 | B11: 534 | C11: 21 | D11: 537 | E11: 21 | F11: 555 | K11: 0 | L11: 222 | N11: 211 | O11: =COUNTIF($L$7:$L$500,N11) -> 0 | P11: =O11/$Q$4 -> 0 | Q11: =IF(P11=0,0,(P11*((LOG(P11))/LOG(2)))) -> 0 | T11: =N11 -> 211 | U11: =COUNTIF(L7:L13,T11) -> 0 | V11: =U11/(W4-U14) -> 0 | W11: =IF(V11=0,0,(V11*((LOG(V11))/LOG(2)))) -> 0 | Y11: =N11 -> 211 | Z11: =COUNTIF(L14:L20,Y11) -> 0 | AA11: =Z11/(AB4-Z14) ->  | AB11: =IF(AA11=0,0,(AA11*((LOG(AA11))/LOG(2)))) ->  | AD11: =N11 -> 211 | AE11: =COUNTIF(L21:L26,AD11) -> 0 | AF11: =AE11/(AG4-AE14) ->  | AG11: =IF(AF11=0,0,(AF11*((LOG(AF11))/LOG(2)))) ->  | AI11: =N11 -> 211 | AJ11: =COUNTIF(L27:L33,AI11) -> 0 | AK11: =AJ11/(AL4-AJ14) ->  | AL11: =IF(AK11=0,0,(AK11*((LOG(AK11))/LOG(2)))) ->  | AN11: =N11 -> 211 | AO11: =COUNTIF(L34:L40,AN11) -> 0 | AP11: =AO11/(AQ4-AO14) ->  | AQ11: =IF(AP11=0,0,(AP11*((LOG(AP11))/LOG(2)))) ->  | AS11: =N11 -> 211 | AT11: =COUNTIF(L41:L47,AS11) -> 0 | AU11: =AT11/(AV4-AT14) ->  | AV11: =IF(AU11=0,0,(AU11*((LOG(AU11))/LOG(2)))) -> 
A12: 21 | B12: 658 | C12: 21 | D12: 662 | E12: 21 | F12: 681 | K12: 0 | L12: 222 | N12: 212 | O12: =COUNTIF($L$7:$L$500,N12) -> 0 | P12: =O12/$Q$4 -> 0 | Q12: =IF(P12=0,0,(P12*((LOG(P12))/LOG(2)))) -> 0 | T12: =N12 -> 212 | U12: =COUNTIF(L7:L13,T12) -> 0 | V12: =U12/(W4-U14) -> 0 | W12: =IF(V12=0,0,(V12*((LOG(V12))/LOG(2)))) -> 0 | Y12: =N12 -> 212 | Z12: =COUNTIF(L14:L20,Y12) -> 0 | AA12: =Z12/(AB4-Z14) ->  | AB12: =IF(AA12=0,0,(AA12*((LOG(AA12))/LOG(2)))) ->  | AD12: =N12 -> 212 | AE12: =COUNTIF(L21:L26,AD12) -> 0 | AF12: =AE12/(AG4-AE14) ->  | AG12: =IF(AF12=0,0,(AF12*((LOG(AF12))/LOG(2)))) ->  | AI12: =N12 -> 212 | AJ12: =COUNTIF(L27:L33,AI12) -> 0 | AK12: =AJ12/(AL4-AJ14) ->  | AL12: =IF(AK12=0,0,(AK12*((LOG(AK12))/LOG(2)))) ->  | AN12: =N12 -> 212 | AO12: =COUNTIF(L34:L40,AN12) -> 0 | AP12: =AO12/(AQ4-AO14) ->  | AQ12: =IF(AP12=0,0,(AP12*((LOG(AP12))/LOG(2)))) ->  | AS12: =N12 -> 212 | AT12: =COUNTIF(L41:L47,AS12) -> 0 | AU12: =AT12/(AV4-AT14) ->  | AV12: =IF(AU12=0,0,(AU12*((LOG(AU12))/LOG(2)))) -> 
A13: 21 | B13: 774 | C13: 21 | D13: 780 | E13: 21 | F13: 783 | K13: 0 | L13: 222 | N13: 221 | O13: =COUNTIF($L$7:$L$500,N13) -> 0 | P13: =O13/$Q$4 -> 0 | Q13: =IF(P13=0,0,(P13*((LOG(P13))/LOG(2)))) -> 0 | T13: =N13 -> 221 | U13: =COUNTIF(L7:L13,T13) -> 0 | V13: =U13/(W4-U14) -> 0 | W13: =IF(V13=0,0,(V13*((LOG(V13))/LOG(2)))) -> 0 | Y13: =N13 -> 221 | Z13: =COUNTIF(L14:L20,Y13) -> 0 | AA13: =Z13/(AB4-Z14) ->  | AB13: =IF(AA13=0,0,(AA13*((LOG(AA13))/LOG(2)))) ->  | AD13: =N13 -> 221 | AE13: =COUNTIF(L21:L26,AD13) -> 0 | AF13: =AE13/(AG4-AE14) ->  | AG13: =IF(AF13=0,0,(AF13*((LOG(AF13))/LOG(2)))) ->  | AI13: =N13 -> 221 | AJ13: =COUNTIF(L27:L33,AI13) -> 0 | AK13: =AJ13/(AL4-AJ14) ->  | AL13: =IF(AK13=0,0,(AK13*((LOG(AK13))/LOG(2)))) ->  | AN13: =N13 -> 221 | AO13: =COUNTIF(L34:L40,AN13) -> 0 | AP13: =AO13/(AQ4-AO14) ->  | AQ13: =IF(AP13=0,0,(AP13*((LOG(AP13))/LOG(2)))) ->  | AS13: =N13 -> 221 | AT13: =COUNTIF(L41:L47,AS13) -> 0 | AU13: =AT13/(AV4-AT14) ->  | AV13: =IF(AU13=0,0,(AU13*((LOG(AU13))/LOG(2)))) -> 
A14: 21 | B14: 879 | C14: 21 | D14: 884 | E14: 21 | F14: 902 | K14: 0 | L14: 222 | N14: 222 | O14: =COUNTIF($L$7:$L$500,N14) -> 40 | P14: =O14/$Q$4 -> 0.9756097561 | Q14: =IF(P14=0,0,(P14*((LOG(P14))/LOG(2)))) -> -0.03475503388 | T14: =N14 -> 222 | U14: =COUNTIF(L7:L13,T14) -> 6 | Y14: =N14 -> 222 | Z14: =COUNTIF(L14:L20,Y14) -> 7 | AD14: =N14 -> 222 | AE14: =COUNTIF(L21:L26,AD14) -> 6 | AI14: =N14 -> 222 | AJ14: =COUNTIF(L27:L33,AI14) -> 7 | AN14: =N14 -> 222 | AO14: =COUNTIF(L34:L40,AN14) -> 7 | AS14: =N14 -> 222 | AT14: =COUNTIF(L41:L47,AS14) -> 7
A15: 21 | B15: 995 | C15: 21 | D15: 1003 | E15: 21 | F15: 1009 | K15: 0 | L15: 222 | P15: =SUM(P7:P14) -> 1 | Q15: =-SUM(Q7:Q14) -> 0.165427034 | V15: =SUM(V7:V14) -> 1 | W15: =-SUM(W7:W14) -> 0 | AA15: =SUM(AA7:AA14) ->  | AB15: =-SUM(AB7:AB14) ->  | AF15: =SUM(AF7:AF14) ->  | AG15: =-SUM(AG7:AG14) ->  | AK15: =SUM(AK7:AK14) ->  | AL15: =-SUM(AL7:AL14) ->  | AP15: =SUM(AP7:AP14) ->  | AQ15: =-SUM(AQ7:AQ14) ->  | AU15: =SUM(AU7:AU14) ->  | AV15: =-SUM(AV7:AV14) -> 
A16: 21 | B16: 1105 | C16: 21 | D16: 1117 | E16: 21 | F16: 1126 | K16: 0 | L16: 222 | P16: U= | Q16: =Q15/(LOG(Q4)/LOG(2)) -> 0.03087735478 | V16: U1= | W16: =W15/(LOG(W4)/LOG(2)) -> 0 | AA16: U2= | AB16: =AB15/(LOG(AB4)/LOG(2)) ->  | AF16: U3= | AG16: =AG15/(LOG(AG4)/LOG(2)) ->  | AK16: U4= | AL16: =AL15/(LOG(AL4)/LOG(2)) ->  | AP16: U5= | AQ16: =AQ15/(LOG(AQ4)/LOG(2)) ->  | AU16: U6= | AV16: =AV15/(LOG(AV4)/LOG(2)) -> 
A17: 21 | B17: 1219 | C17: 21 | D17: 1232 | E17: 21 | F17: 1245 | K17: 0 | L17: 222
A18: 21 | B18: 1340 | C18: 21 | D18: 1344 | E18: 21 | F18: 1358 | K18: 0 | L18: 222
A19: 21 | B19: 1445 | C19: 21 | D19: 1453 | E19: 21 | F19: 1458 | K19: 0 | L19: 222 | N19: Total Target Seq
A20: 21 | B20: 1552 | C20: 21 | D20: 1558 | E20: 21 | F20: 1561 | K20: 0 | L20: 222 | N20: =COUNTIF(L7:L47,G3) -> 40 | P20: 7 | Q20: 7 | R20: 6 | S20: 7 | T20: 7 | U20: 7
A21: 21 | B21: 1678 | C21: 21 | D21: 1684 | E21: 21 | F21: 1689 | K21: 0 | L21: 222 | P21: % of reinforcement given in 6 equal intervals based on number of trials
A22: 21 | B22: 1807 | C22: 21 | D22: 1811 | E22: 21 | F22: 1830 | K22: 0 | L22: 222 | P22: %_1 | Q22: %_2 | R22: %_3 | S22: %_4 | T22: %_5 | U22: %_6
A23: 21 | B23: 1923 | C23: 21 | D23: 1933 | E23: 21 | F23: 1940 | K23: 0 | L23: 222 | O23: target sequence | P23: =$G$3 -> 222 | Q23: =$G$3 -> 222 | R23: =$G$3 -> 222 | S23: =$G$3 -> 222 | T23: =$G$3 -> 222 | U23: =$G$3 -> 222
A24: 21 | B24: 2037 | C24: 21 | D24: 2042 | E24: 21 | F24: 2055 | K24: 0 | L24: 222 | O24: total reinforcement | P24: =U14 -> 6 | Q24: =Z14 -> 7 | R24: =AE14 -> 6 | S24: =AJ14 -> 7 | T24: =AO14 -> 7 | U24: =AT14 -> 7
A25: 21 | B25: 2145 | C25: 21 | D25: 2161 | E25: 21 | F25: 2177 | K25: 0 | L25: 222 | O25: % target
A26: 21 | B26: 2291 | C26: 21 | D26: 2309 | E26: 21 | F26: 2325 | K26: 0 | L26: 222 | O26: CCRF
A27: 21 | B27: 2499 | C27: 21 | D27: 2506 | E27: 21 | F27: 2520 | K27: 0 | L27: 222 | O27: % CCRf
A28: 21 | B28: 2617 | C28: 21 | D28: 2621 | E28: 21 | F28: 2624 | K28: 0 | L28: 222 | O28: average response rate | P28: =F13/P20 -> 111.8571429 | Q28: =(F20-F13)/Q20 -> 111.1428571 | R28: =(F26-F20)/R20 -> 127.3333333 | S28: =(F33-F26)/S20 -> 129.1428571 | T28: =(F40-F33)/T20 -> 121.4285714 | U28: =(F47-F40)/U20 -> 128
A29: 21 | B29: 2717 | C29: 21 | D29: 2722 | E29: 21 | F29: 2728 | K29: 0 | L29: 222
A30: 21 | B30: 2861 | C30: 21 | D30: 2865 | E30: 21 | F30: 2869 | K30: 0 | L30: 222
A31: 21 | B31: 2980 | C31: 21 | D31: 2983 | E31: 21 | F31: 2988 | K31: 0 | L31: 222
A32: 21 | B32: 3104 | C32: 21 | D32: 3115 | E32: 21 | F32: 3125 | K32: 0 | L32: 222
A33: 21 | B33: 3224 | C33: 21 | D33: 3226 | E33: 21 | F33: 3229 | K33: 0 | L33: 222
A34: 21 | B34: 3345 | C34: 21 | D34: 3352 | E34: 21 | F34: 3363 | K34: 0 | L34: 222
A35: 21 | B35: 3470 | C35: 21 | D35: 3472 | E35: 21 | F35: 3475 | K35: 0 | L35: 222
A36: 21 | B36: 3571 | C36: 21 | D36: 3575 | E36: 21 | F36: 3581 | K36: 0 | L36: 222
A37: 21 | B37: 3678 | C37: 21 | D37: 3682 | E37: 21 | F37: 3693 | K37: 0 | L37: 222
A38: 21 | B38: 3869 | C38: 21 | D38: 3871 | E38: 21 | F38: 3876 | K38: 0 | L38: 222
A39: 21 | B39: 3969 | C39: 21 | D39: 3973 | E39: 21 | F39: 3980 | K39: 0 | L39: 222
A40: 21 | B40: 4073 | C40: 21 | D40: 4076 | E40: 21 | F40: 4079 | K40: 0 | L40: 222
A41: 21 | B41: 4173 | C41: 21 | D41: 4185 | E41: 21 | F41: 4190 | K41: 0 | L41: 222
A42: 21 | B42: 4298 | C42: 21 | D42: 4302 | E42: 21 | F42: 4320 | K42: 0 | L42: 222
A43: 21 | B43: 4484 | C43: 21 | D43: 4486 | E43: 21 | F43: 4497 | K43: 0 | L43: 222
A44: 21 | B44: 4595 | C44: 21 | D44: 4604 | E44: 21 | F44: 4611 | K44: 0 | L44: 222
A45: 21 | B45: 4739 | C45: 21 | D45: 4744 | E45: 21 | F45: 4748 | K45: 0 | L45: 222
A46: 21 | B46: 4846 | C46: 21 | D46: 4850 | E46: 21 | F46: 4856 | K46: 0 | L46: 222
A47: 21 | B47: 4953 | C47: 21 | D47: 4959 | E47: 21 | F47: 4975 | K47: 1 | L47: 222

Sheet !M906B1T.AYL
A1: Report for:!M906B1T.AYL
A2: Date: | B2: <date>
A3: Hen: | B3: <hen> | F3: Correct Sequence | G3: =Start!J2 -> 222 | P3: Total Sequences in Data | Q3: =4994-COUNTBLANK(L7:L5000) -> 45 | V3: Total Sequences in Block Data | W3: =COUNTA(L7:L14) -> 8 | AA3: Total Sequences in Block Data | AB3: =COUNTA(L15:L21) -> 7 | AF3: Total Sequences in Block Data | AG3: =COUNTA(L22:L29) -> 8 | AK3: Total Sequences in Block Data | AL3: =COUNTA(L30:L36) -> 7 | AP3: Total Sequences in Block Data | AQ3: =COUNTA(L37:L44) -> 8 | AU3: Total Sequences in Block Data | AV3: =COUNTA(L45:L51) -> 7
P4: Total Sequences in Summary | Q4: =SUM(O7:O14) -> 45 | V4: Total Sequences in Block Summary | W4: =SUM(U7:U14) -> 8 | AA4: Total Sequences in Block Summary | AB4: =SUM(Z7:Z14) -> 7 | AF4: Total Sequences in Block Summary | AG4: =SUM(AE7:AE14) -> 8 | AK4: Total Sequences in Block Summary | AL4: =SUM(AJ7:AJ14) -> 7 | AP4: Total Sequences in Block Summary | AQ4: =SUM(AO7:AO14) -> 8 | AU4: Total Sequences in Block Summary | AV4: =SUM(AT7:AT14) -> 7
T5: Block 1 | Y5: Block 2 | AD5: Block 3 | AI5: Block 4 | AN5: Block 5 | AS5: Block 6
A6: Sequence Component 1 | B6: Time 1 | C6: Sequence Component 2 | D6: Time 2 | E6: Sequence Component 3 | F6: Time 3 | G6: Sequence Component 4 | H6: Time 4 | I6: Sequence Component 5 | J6: Time 5 | K6: Correct? 0=No 1=Yes | L6: Sequence | N6: Frequency | P6: Relative Frequency | Q6: Variability | T6: Frequency | V6: Relative Frequency | W6: Variability | Y6: Frequency | AA6: Relative Frequency | AB6: Variability | AD6: Frequency | AF6: Relative Frequency | AG6: Variability | AI6: Frequency | AK6: Relative Frequency | AL6: Variability | AN6: Frequency | AP6: Relative Frequency | AQ6: Variability | AS6: Frequency | AU6: Relative Frequency | AV6: Variability
A7: 12 | B7: 16 | C7: 14 | D7: 22 | E7: 23 | F7: 31 | K7: 0 | L7: 112 | N7: 111 | O7: =COUNTIF($L$7:$L$500,N7) -> 1 | P7: =O7/$Q$4 -> 0.02222222222 | Q7: =IF(P7=0,0,(P7*((LOG(P7))/LOG(2)))) -> -0.1220411799 | T7: =N7 -> 111 | U7: =COUNTIF(L7:L14,T7) -> 1 | V7: =U7/(W4-U14) -> 0.25 | W7: =IF(V7=0,0,(V7*((LOG(V7))/LOG(2)))) -> -0.5 | Y7: =N7 -> 111 | Z7: =COUNTIF(L15:L21,Y7) -> 0 | AA7: =Z7/(AB4-Z14) ->  | AB7: =IF(AA7=0,0,(AA7*((LOG(AA7))/LOG(2)))) ->  | AD7: =N7 -> 111 | AE7: =COUNTIF(L22:L29,AD7) -> 0 | AF7: =AE7/(AG4-AE14) ->  | AG7: =IF(AF7=0,0,(AF7*((LOG(AF7))/LOG(2)))) ->  | AI7: =N7 -> 111 | AJ7: =COUNTIF(L30:L36,AI7) -> 0 | AK7: =AJ7/(AL4-AJ14) -> 0 | AL7: =IF(AK7=0,0,(AK7*((LOG(AK7))/LOG(2)))) -> 0 | AN7: =N7 -> 111 | AO7: =COUNTIF(L37:L44,AN7) -> 0 | AP7: =AO7/(AQ4-AO14) ->  | AQ7: =IF(AP7=0,0,(AP7*((LOG(AP7))/LOG(2)))) ->  | AS7: =N7 -> 111 | AT7: =COUNTIF(L45:L51,AS7) -> 0 | AU7: =AT7/(AV4-AT14) ->  | AV7: =IF(AU7=0,0,(AU7*((LOG(AU7))/LOG(2)))) -> 
A8: 12 | B8: 127 | C8: 14 | D8: 131 | E8: 23 | F8: 138 | K8: 0 | L8: 112 | N8: 112 | O8: =COUNTIF($L$7:$L$500,N8) -> 3 | P8: =O8/$Q$4 -> 0.06666666667 | Q8: =IF(P8=0,0,(P8*((LOG(P8))/LOG(2)))) -> -0.260459373 | T8: =N8 -> 112 | U8: =COUNTIF(L7:L14,T8) -> 2 | V8: =U8/(W4-U14) -> 0.5 | W8: =IF(V8=0,0,(V8*((LOG(V8))/LOG(2)))) -> -0.5 | Y8: =N8 -> 112 | Z8: =COUNTIF(L15:L21,Y8) -> 0 | AA8: =Z8/(AB4-Z14) ->  | AB8: =IF(AA8=0,0,(AA8*((LOG(AA8))/LOG(2)))) ->  | AD8: =N8 -> 112 | AE8: =COUNTIF(L22:L29,AD8) -> 0 | AF8: =AE8/(AG4-AE14) ->  | AG8: =IF(AF8=0,0,(AF8*((LOG(AF8))/LOG(2)))) ->  | AI8: =N8 -> 112 | AJ8: =COUNTIF(L30:L36,AI8) -> 1 | AK8: =AJ8/(AL4-AJ14) -> 1 | AL8: =IF(AK8=0,0,(AK8*((LOG(AK8))/LOG(2)))) -> 0 | AN8: =N8 -> 112 | AO8: =COUNTIF(L37:L44,AN8) -> 0 | AP8: =AO8/(AQ4-AO14) ->  | AQ8: =IF(AP8=0,0,(AP8*((LOG(AP8))/LOG(2)))) ->  | AS8: =N8 -> 112 | AT8: =COUNTIF(L45:L51,AS8) -> 0 | AU8: =AT8/(AV4-AT14) ->  | AV8: =IF(AU8=0,0,(AU8*((LOG(AU8))/LOG(2)))) -> 
A9: 12 | B9: 240 | C9: 14 | D9: 244 | E9: 14 | F9: 248 | K9: 0 | L9: 111 | N9: 121 | O9: =COUNTIF($L$7:$L$500,N9) -> 0 | P9: =O9/$Q$4 -> 0 | Q9: =IF(P9=0,0,(P9*((LOG(P9))/LOG(2)))) -> 0 | T9: =N9 -> 121 | U9: =COUNTIF(L7:L14,T9) -> 0 | V9: =U9/(W4-U14) -> 0 | W9: =IF(V9=0,0,(V9*((LOG(V9))/LOG(2)))) -> 0 | Y9: =N9 -> 121 | Z9: =COUNTIF(L15:L21,Y9) -> 0 | AA9: =Z9/(AB4-Z14) ->  | AB9: =IF(AA9=0,0,(AA9*((LOG(AA9))/LOG(2)))) ->  | AD9: =N9 -> 121 | AE9: =COUNTIF(L22:L29,AD9) -> 0 | AF9: =AE9/(AG4-AE14) ->  | AG9: =IF(AF9=0,0,(AF9*((LOG(AF9))/LOG(2)))) ->  | AI9: =N9 -> 121 | AJ9: =COUNTIF(L30:L36,AI9) -> 0 | AK9: =AJ9/(AL4-AJ14) -> 0 | AL9: =IF(AK9=0,0,(AK9*((LOG(AK9))/LOG(2)))) -> 0 | AN9: =N9 -> 121 | AO9: =COUNTIF(L37:L44,AN9) -> 0 | AP9: =AO9/(AQ4-AO14) ->  | AQ9: =IF(AP9=0,0,(AP9*((LOG(AP9))/LOG(2)))) ->  | AS9: =N9 -> 121 | AT9: =COUNTIF(L45:L51,AS9) -> 0 | AU9: =AT9/(AV4-AT14) ->  | AV9: =IF(AU9=0,0,(AU9*((LOG(AU9))/LOG(2)))) -> 
A10: 21 | B10: 341 | C10: 12 | D10: 346 | E10: 23 | F10: 353 | K10: 0 | L10: 212 | N10: 122 | O10: =COUNTIF($L$7:$L$500,N10) -> 0 | P10: =O10/$Q$4 -> 0 | Q10: =IF(P10=0,0,(P10*((LOG(P10))/LOG(2)))) -> 0 | T10: =N10 -> 122 | U10: =COUNTIF(L7:L14,T10) -> 0 | V10: =U10/(W4-U14) -> 0 | W10: =IF(V10=0,0,(V10*((LOG(V10))/LOG(2)))) -> 0 | Y10: =N10 -> 122 | Z10: =COUNTIF(L15:L21,Y10) -> 0 | AA10: =Z10/(AB4-Z14) ->  | AB10: =IF(AA10=0,0,(AA10*((LOG(AA10))/LOG(2)))) ->  | AD10: =N10 -> 122 | AE10: =COUNTIF(L22:L29,AD10) -> 0 | AF10: =AE10/(AG4-AE14) ->  | AG10: =IF(AF10=0,0,(AF10*((LOG(AF10))/LOG(2)))) ->  | AI10: =N10 -> 122 | AJ10: =COUNTIF(L30:L36,AI10) -> 0 | AK10: =AJ10/(AL4-AJ14) -> 0 | AL10: =IF(AK10=0,0,(AK10*((LOG(AK10))/LOG(2)))) -> 0 | AN10: =N10 -> 122 | AO10: =COUNTIF(L37:L44,AN10) -> 0 | AP10: =AO10/(AQ4-AO14) ->  | AQ10: =IF(AP10=0,0,(AP10*((LOG(AP10))/LOG(2)))) ->  | AS10: =N10 -> 122 | AT10: =COUNTIF(L45:L51,AS10) -> 0 | AU10: =AT10/(AV4-AT14) ->  | AV10: =IF(AU10=0,0,(AU10*((LOG(AU10))/LOG(2)))) -> 
A11: 21 | B11: 449 | C11: 21 | D11: 463 | E11: 21 | F11: 466 | K11: 0 | L11: 222 | N11: 211 | O11: =COUNTIF($L$7:$L$500,N11) -> 0 | P11: =O11/$Q$4 -> 0 | Q11: =IF(P11=0,0,(P11*((LOG(P11))/LOG(2)))) -> 0 | T11: =N11 -> 211 | U11: =COUNTIF(L7:L14,T11) -> 0 | V11: =U11/(W4-U14) -> 0 | W11: =IF(V11=0,0,(V11*((LOG(V11))/LOG(2)))) -> 0 | Y11: =N11 -> 211 | Z11: =COUNTIF(L15:L21,Y11) -> 0 | AA11: =Z11/(AB4-Z14) ->  | AB11: =IF(AA11=0,0,(AA11*((LOG(AA11))/LOG(2)))) ->  | AD11: =N11 -> 211 | AE11: =COUNTIF(L22:L29,AD11) -> 0 | AF11: =AE11/(AG4-AE14) ->  | AG11: =IF(AF11=0,0,(AF11*((LOG(AF11))/LOG(2)))) ->  | AI11: =N11 -> 211 | AJ11: =COUNTIF(L30:L36,AI11) -> 0 | AK11: =AJ11/(AL4-AJ14) -> 0 | AL11: =IF(AK11=0,0,(AK11*((LOG(AK11))/LOG(2)))) -> 0 | AN11: =N11 -> 211 | AO11: =COUNTIF(L37:L44,AN11) -> 0 | AP11: =AO11/(AQ4-AO14) ->  | AQ11: =IF(AP11=0,0,(AP11*((LOG(AP11))/LOG(2)))) ->  | AS11: =N11 -> 211 | AT11: =COUNTIF(L45:L51,AS11) -> 0 | AU11: =AT11/(AV4-AT14) ->  | AV11: =IF(AU11=0,0,(AU11*((LOG(AU11))/LOG(2)))) -> 
A12: 21 | B12: 658 | C12: 21 | D12: 664 | E12: 21 | F12: 668 | K12: 0 | L12: 222 | N12: 212 | O12: =COUNTIF($L$7:$L$500,N12) -> 1 | P12: =O12/$Q$4 -> 0.02222222222 | Q12: =IF(P12=0,0,(P12*((LOG(P12))/LOG(2)))) -> -0.1220411799 | T12: =N12 -> 212 | U12: =COUNTIF(L7:L14,T12) -> 1 | V12: =U12/(W4-U14) -> 0.25 | W12: =IF(V12=0,0,(V12*((LOG(V12))/LOG(2)))) -> -0.5 | Y12: =N12 -> 212 | Z12: =COUNTIF(L15:L21,Y12) -> 0 | AA12: =Z12/(AB4-Z14) ->  | AB12: =IF(AA12=0,0,(AA12*((LOG(AA12))/LOG(2)))) ->  | AD12: =N12 -> 212 | AE12: =COUNTIF(L22:L29,AD12) -> 0 | AF12: =AE12/(AG4-AE14) ->  | AG12: =IF(AF12=0,0,(AF12*((LOG(AF12))/LOG(2)))) ->  | AI12: =N12 -> 212 | AJ12: =COUNTIF(L30:L36,AI12) -> 0 | AK12: =AJ12/(AL4-AJ14) -> 0 | AL12: =IF(AK12=0,0,(AK12*((LOG(AK12))/LOG(2)))) -> 0 | AN12: =N12 -> 212 | AO12: =COUNTIF(L37:L44,AN12) -> 0 | AP12: =AO12/(AQ4-AO14) ->  | AQ12: =IF(AP12=0,0,(AP12*((LOG(AP12))/LOG(2)))) ->  | AS12: =N12 -> 212 | AT12: =COUNTIF(L45:L51,AS12) -> 0 | AU12: =AT12/(AV4-AT14) ->  | AV12: =IF(AU12=0,0,(AU12*((LOG(AU12))/LOG(2)))) -> 
A13: 21 | B13: 774 | C13: 21 | D13: 779 | E13: 21 | F13: 793 | K13: 0 | L13: 222 | N13: 221 | O13: =COUNTIF($L$7:$L$500,N13) -> 0 | P13: =O13/$Q$4 -> 0 | Q13: =IF(P13=0,0,(P13*((LOG(P13))/LOG(2)))) -> 0 | T13: =N13 -> 221 | U13: =COUNTIF(L7:L14,T13) -> 0 | V13: =U13/(W4-U14) -> 0 | W13: =IF(V13=0,0,(V13*((LOG(V13))/LOG(2)))) -> 0 | Y13: =N13 -> 221 | Z13: =COUNTIF(L15:L21,Y13) -> 0 | AA13: =Z13/(AB4-Z14) ->  | AB13: =IF(AA13=0,0,(AA13*((LOG(AA13))/LOG(2)))) ->  | AD13: =N13 -> 221 | AE13: =COUNTIF(L22:L29,AD13) -> 0 | AF13: =AE13/(AG4-AE14) ->  | AG13: =IF(AF13=0,0,(AF13*((LOG(AF13))/LOG(2)))) ->  | AI13: =N13 -> 221 | AJ13: =COUNTIF(L30:L36,AI13) -> 0 | AK13: =AJ13/(AL4-AJ14) -> 0 | AL13: =IF(AK13=0,0,(AK13*((LOG(AK13))/LOG(2)))) -> 0 | AN13: =N13 -> 221 | AO13: =COUNTIF(L37:L44,AN13) -> 0 | AP13: =AO13/(AQ4-AO14) ->  | AQ13: =IF(AP13=0,0,(AP13*((LOG(AP13))/LOG(2)))) ->  | AS13: =N13 -> 221 | AT13: =COUNTIF(L45:L51,AS13) -> 0 | AU13: =AT13/(AV4-AT14) ->  | AV13: =IF(AU13=0,0,(AU13*((LOG(AU13))/LOG(2)))) -> 
A14: 21 | B14: 888 | C14: 21 | D14: 891 | E14: 21 | F14: 908 | K14: 0 | L14: 222 | N14: 222 | O14: =COUNTIF($L$7:$L$500,N14) -> 40 | P14: =O14/$Q$4 -> 0.8888888889 | Q14: =IF(P14=0,0,(P14*((LOG(P14))/LOG(2)))) -> -0.1510444457 | T14: =N14 -> 222 | U14: =COUNTIF(L7:L14,T14) -> 4 | Y14: =N14 -> 222 | Z14: =COUNTIF(L15:L21,Y14) -> 7 | AD14: =N14 -> 222 | AE14: =COUNTIF(L22:L29,AD14) -> 8 | AI14: =N14 -> 222 | AJ14: =COUNTIF(L30:L36,AI14) -> 6 | AN14: =N14 -> 222 | AO14: =COUNTIF(L37:L44,AN14) -> 8 | AS14: =N14 -> 222 | AT14: =COUNTIF(L45:L51,AS14) -> 7
A15: 21 | B15: 1001 | C15: 21 | D15: 1005 | E15: 21 | F15: 1019 | K15: 0 | L15: 222 | P15: =SUM(P7:P14) -> 1 | Q15: =-SUM(Q7:Q14) -> 0.6555861786 | V15: =SUM(V7:V14) -> 1 | W15: =-SUM(W7:W14) -> 1.5 | AA15: =SUM(AA7:AA14) ->  | AB15: =-SUM(AB7:AB14) ->  | AF15: =SUM(AF7:AF14) ->  | AG15: =-SUM(AG7:AG14) ->  | AK15: =SUM(AK7:AK14) -> 1 | AL15: =-SUM(AL7:AL14) -> 0 | AP15: =SUM(AP7:AP14) ->  | AQ15: =-SUM(AQ7:AQ14) ->  | AU15: =SUM(AU7:AU14) ->  | AV15: =-SUM(AV7:AV14) -> 
A16: 21 | B16: 1111 | C16: 21 | D16: 1114 | E16: 21 | F16: 1129 | K16: 0 | L16: 222 | P16: U= | Q16: =Q15/(LOG(Q4)/LOG(2)) -> 0.1193743108 | V16: U1= | W16: =W15/(LOG(W4)/LOG(2)) -> 0.5 | AA16: U2= | AB16: =AB15/(LOG(AB4)/LOG(2)) ->  | AF16: U3= | AG16: =AG15/(LOG(AG4)/LOG(2)) ->  | AK16: U4= | AL16: =AL15/(LOG(AL4)/LOG(2)) -> 0 | AP16: U5= | AQ16: =AQ15/(LOG(AQ4)/LOG(2)) ->  | AU16: U6= | AV16: =AV15/(LOG(AV4)/LOG(2)) -> 
A17: 21 | B17: 1223 | C17: 21 | D17: 1240 | E17: 21 | F17: 1246 | K17: 0 | L17: 222
A18: 21 | B18: 1339 | C18: 21 | D18: 1362 | E18: 21 | F18: 1371 | K18: 0 | L18: 222
A19: 21 | B19: 1463 | C19: 21 | D19: 1466 | E19: 21 | F19: 1480 | K19: 0 | L19: 222 | N19: Total Target Seq
A20: 21 | B20: 1575 | C20: 21 | D20: 1577 | E20: 21 | F20: 1581 | K20: 0 | L20: 222 | N20: =COUNTIF(L7:L51,G3) -> 40 | P20: 8 | Q20: 7 | R20: 8 | S20: 7 | T20: 8 | U20: 7
A21: 21 | B21: 1673 | C21: 21 | D21: 1683 | E21: 21 | F21: 1689 | K21: 0 | L21: 222 | P21: % of reinforcement given in 6 equal intervals based on number of trials
A22: 21 | B22: 1836 | C22: 21 | D22: 1844 | E22: 21 | F22: 1851 | K22: 0 | L22: 222 | P22: %_1 | Q22: %_2 | R22: %_3 | S22: %_4 | T22: %_5 | U22: %_6
A23: 21 | B23: 1953 | C23: 21 | D23: 1955 | E23: 21 | F23: 1971 | K23: 0 | L23: 222 | O23: target sequence | P23: =$G$3 -> 222 | Q23: =$G$3 -> 222 | R23: =$G$3 -> 222 | S23: =$G$3 -> 222 | T23: =$G$3 -> 222 | U23: =$G$3 -> 222
A24: 21 | B24: 2064 | C24: 21 | D24: 2067 | E24: 21 | F24: 2074 | K24: 0 | L24: 222 | O24: total reinforcement | P24: =U14 -> 4 | Q24: =Z14 -> 7 | R24: =AE14 -> 8 | S24: =AJ14 -> 6 | T24: =AO14 -> 8 | U24: =AT14 -> 7
A25: 21 | B25: 2178 | C25: 21 | D25: 2181 | E25: 21 | F25: 2187 | K25: 0 | L25: 222 | O25: % target
A26: 21 | B26: 2282 | C26: 21 | D26: 2289 | E26: 21 | F26: 2297 | K26: 0 | L26: 222 | O26: CCRF
A27: 21 | B27: 2394 | C27: 21 | D27: 2397 | E27: 21 | F27: 2403 | K27: 0 | L27: 222 | O27: % CCRf
A28: 21 | B28: 2495 | C28: 21 | D28: 2509 | E28: 21 | F28: 2515 | K28: 0 | L28: 222 | O28: average response rate | P28: =F14/P20 -> 113.5 | Q28: =(F21-F14)/Q20 -> 111.5714286 | R28: =(F29-F21)/R20 -> 117.125 | S28: =(F36-F29)/S20 -> 116.8571429 | T28: =(F44-F36)/T20 -> 110 | U28: =(F51-F44)/U20 -> 118.4285714
A29: 21 | B29: 2614 | C29: 21 | D29: 2619 | E29: 21 | F29: 2626 | K29: 0 | L29: 222
A30: 12 | B30: 2797 | C30: 14 | D30: 2799 | E30: 23 | F30: 2810 | K30: 0 | L30: 112
A31: 21 | B31: 2917 | C31: 21 | D31: 2921 | E31: 21 | F31: 2925 | K31: 0 | L31: 222
A32: 21 | B32: 3012 | C32: 21 | D32: 3022 | E32: 21 | F32: 3026 | K32: 0 | L32: 222
A33: 21 | B33: 3116 | C33: 21 | D33: 3120 | E33: 21 | F33: 3125 | K33: 0 | L33: 222
A34: 21 | B34: 3218 | C34: 21 | D34: 3224 | E34: 21 | F34: 3230 | K34: 0 | L34: 222
A35: 21 | B35: 3328 | C35: 21 | D35: 3331 | E35: 21 | F35: 3337 | K35: 0 | L35: 222
A36: 21 | B36: 3427 | C36: 21 | D36: 3430 | E36: 21 | F36: 3444 | K36: 0 | L36: 222
A37: 21 | B37: 3535 | C37: 21 | D37: 3538 | E37: 21 | F37: 3544 | K37: 0 | L37: 222
A38: 21 | B38: 3649 | C38: 21 | D38: 3657 | E38: 21 | F38: 3663 | K38: 0 | L38: 222
A39: 21 | B39: 3756 | C39: 21 | D39: 3761 | E39: 21 | F39: 3768 | K39: 0 | L39: 222
A40: 21 | B40: 3862 | C40: 21 | D40: 3868 | E40: 21 | F40: 3873 | K40: 0 | L40: 222
A41: 21 | B41: 3976 | C41: 21 | D41: 3980 | E41: 21 | F41: 3986 | K41: 0 | L41: 222
A42: 21 | B42: 4093 | C42: 21 | D42: 4096 | E42: 21 | F42: 4106 | K42: 0 | L42: 222
A43: 21 | B43: 4212 | C43: 21 | D43: 4215 | E43: 21 | F43: 4218 | K43: 0 | L43: 222
A44: 21 | B44: 4309 | C44: 21 | D44: 4312 | E44: 21 | F44: 4324 | K44: 0 | L44: 222
A45: 21 | B45: 4419 | C45: 21 | D45: 4427 | E45: 21 | F45: 4439 | K45: 0 | L45: 222
A46: 21 | B46: 4532 | C46: 21 | D46: 4552 | E46: 21 | F46: 4558 | K46: 0 | L46: 222
A47: 21 | B47: 4672 | C47: 21 | D47: 4675 | E47: 21 | F47: 4685 | K47: 0 | L47: 222
A48: 21 | B48: 4799 | C48: 21 | D48: 4803 | E48: 21 | F48: 4810 | K48: 0 | L48: 222
A49: 21 | B49: 4906 | C49: 21 | D49: 4908 | E49: 21 | F49: 4912 | K49: 0 | L49: 222
A50: 21 | B50: 5003 | C50: 21 | D50: 5018 | E50: 21 | F50: 5024 | K50: 0 | L50: 222
A51: 21 | B51: 5140 | C51: 21 | D51: 5147 | E51: 21 | F51: 5153 | K51: 1 | L51: 222

Sheet !M907A5T.AYL
A1: Report for:!M907A5T.AYL
A2: Date: | B2: <date>
A3: Hen: | B3: <hen> | F3: Correct Sequence | G3: =Start!J2 -> 222 | P3: Total Sequences in Data | Q3: =4994-COUNTBLANK(L7:L5000) -> 40 | V3: Total Sequences in Block Data | W3: =COUNTA(L7:L13) -> 7 | AA3: Total Sequences in Block Data | AB3: =COUNTA(L14:L19) -> 6 | AF3: Total Sequences in Block Data | AG3: =COUNTA(L20:L26) -> 7 | AK3: Total Sequences in Block Data | AL3: =COUNTA(L27:L33) -> 7 | AP3: Total Sequences in Block Data | AQ3: =COUNTA(L34:L39) -> 6 | AU3: Total Sequences in Block Data | AV3: =COUNTA(L40:L46) -> 7
P4: Total Sequences in Summary | Q4: =SUM(O7:O14) -> 40 | V4: Total Sequences in Block Summary | W4: =SUM(U7:U14) -> 7 | AA4: Total Sequences in Block Summary | AB4: =SUM(Z7:Z14) -> 6 | AF4: Total Sequences in Block Summary | AG4: =SUM(AE7:AE14) -> 7 | AK4: Total Sequences in Block Summary | AL4: =SUM(AJ7:AJ14) -> 7 | AP4: Total Sequences in Block Summary | AQ4: =SUM(AO7:AO14) -> 6 | AU4: Total Sequences in Block Summary | AV4: =SUM(AT7:AT14) -> 7
T5: Block 1 | Y5: Block 2 | AD5: Block 3 | AI5: Block 4 | AN5: Block 5 | AS5: Block 6
A6: Sequence Component 1 | B6: Time 1 | C6: Sequence Component 2 | D6: Time 2 | E6: Sequence Component 3 | F6: Time 3 | G6: Sequence Component 4 | H6: Time 4 | I6: Sequence Component 5 | J6: Time 5 | K6: Correct? 0=No 1=Yes | L6: Sequence | N6: Frequency | P6: Relative Frequency | Q6: Variability | T6: Frequency | V6: Relative Frequency | W6: Variability | Y6: Frequency | AA6: Relative Frequency | AB6: Variability | AD6: Frequency | AF6: Relative Frequency | AG6: Variability | AI6: Frequency | AK6: Relative Frequency | AL6: Variability | AN6: Frequency | AP6: Relative Frequency | AQ6: Variability | AS6: Frequency | AU6: Relative Frequency | AV6: Variability
A7: 21 | B7: 8 | C7: 21 | D7: 25 | E7: 21 | F7: 30 | K7: 0 | L7: 222 | N7: 111 | O7: =COUNTIF($L$7:$L$500,N7) -> 0 | P7: =O7/$Q$4 -> 0 | Q7: =IF(P7=0,0,(P7*((LOG(P7))/LOG(2)))) -> 0 | T7: =N7 -> 111 | U7: =COUNTIF(L7:L13,T7) -> 0 | V7: =U7/(W4-U14) ->  | W7: =IF(V7=0,0,(V7*((LOG(V7))/LOG(2)))) ->  | Y7: =N7 -> 111 | Z7: =COUNTIF(L14:L19,Y7) -> 0 | AA7: =Z7/(AB4-Z14) ->  | AB7: =IF(AA7=0,0,(AA7*((LOG(AA7))/LOG(2)))) ->  | AD7: =N7 -> 111 | AE7: =COUNTIF(L20:L26,AD7) -> 0 | AF7: =AE7/(AG4-AE14) ->  | AG7: =IF(AF7=0,0,(AF7*((LOG(AF7))/LOG(2)))) ->  | AI7: =N7 -> 111 | AJ7: =COUNTIF(L27:L33,AI7) -> 0 | AK7: =AJ7/(AL4-AJ14) ->  | AL7: =IF(AK7=0,0,(AK7*((LOG(AK7))/LOG(2)))) ->  | AN7: =N7 -> 111 | AO7: =COUNTIF(L34:L39,AN7) -> 0 | AP7: =AO7/(AQ4-AO14) ->  | AQ7: =IF(AP7=0,0,(AP7*((LOG(AP7))/LOG(2)))) ->  | AS7: =N7 -> 111 | AT7: =COUNTIF(L40:L46,AS7) -> 0 | AU7: =AT7/(AV4-AT14) ->  | AV7: =IF(AU7=0,0,(AU7*((LOG(AU7))/LOG(2)))) -> 
A8: 21 | B8: 119 | C8: 21 | D8: 123 | E8: 21 | F8: 137 | K8: 0 | L8: 222 | N8: 112 | O8: =COUNTIF($L$7:$L$500,N8) -> 0 | P8: =O8/$Q$4 -> 0 | Q8: =IF(P8=0,0,(P8*((LOG(P8))/LOG(2)))) -> 0 | T8: =N8 -> 112 | U8: =COUNTIF(L7:L13,T8) -> 0 | V8: =U8/(W4-U14) ->  | W8: =IF(V8=0,0,(V8*((LOG(V8))/LOG(2)))) ->  | Y8: =N8 -> 112 | Z8: =COUNTIF(L14:L19,Y8) -> 0 | AA8: =Z8/(AB4-Z14) ->  | AB8: =IF(AA8=0,0,(AA8*((LOG(AA8))/LOG(2)))) ->  | AD8: =N8 -> 112 | AE8: =COUNTIF(L20:L26,AD8) -> 0 | AF8: =AE8/(AG4-AE14) ->  | AG8: =IF(AF8=0,0,(AF8*((LOG(AF8))/LOG(2)))) ->  | AI8: =N8 -> 112 | AJ8: =COUNTIF(L27:L33,AI8) -> 0 | AK8: =AJ8/(AL4-AJ14) ->  | AL8: =IF(AK8=0,0,(AK8*((LOG(AK8))/LOG(2)))) ->  | AN8: =N8 -> 112 | AO8: =COUNTIF(L34:L39,AN8) -> 0 | AP8: =AO8/(AQ4-AO14) ->  | AQ8: =IF(AP8=0,0,(AP8*((LOG(AP8))/LOG(2)))) ->  | AS8: =N8 -> 112 | AT8: =COUNTIF(L40:L46,AS8) -> 0 | AU8: =AT8/(AV4-AT14) ->  | AV8: =IF(AU8=0,0,(AU8*((LOG(AU8))/LOG(2)))) -> 
A9: 21 | B9: 254 | C9: 21 | D9: 259 | E9: 21 | F9: 272 | K9: 0 | L9: 222 | N9: 121 | O9: =COUNTIF($L$7:$L$500,N9) -> 0 | P9: =O9/$Q$4 -> 0 | Q9: =IF(P9=0,0,(P9*((LOG(P9))/LOG(2)))) -> 0 | T9: =N9 -> 121 | U9: =COUNTIF(L7:L13,T9) -> 0 | V9: =U9/(W4-U14) ->  | W9: =IF(V9=0,0,(V9*((LOG(V9))/LOG(2)))) ->  | Y9: =N9 -> 121 | Z9: =COUNTIF(L14:L19,Y9) -> 0 | AA9: =Z9/(AB4-Z14) ->  | AB9: =IF(AA9=0,0,(AA9*((LOG(AA9))/LOG(2)))) ->  | AD9: =N9 -> 121 | AE9: =COUNTIF(L20:L26,AD9) -> 0 | AF9: =AE9/(AG4-AE14) ->  | AG9: =IF(AF9=0,0,(AF9*((LOG(AF9))/LOG(2)))) ->  | AI9: =N9 -> 121 | AJ9: =COUNTIF(L27:L33,AI9) -> 0 | AK9: =AJ9/(AL4-AJ14) ->  | AL9: =IF(AK9=0,0,(AK9*((LOG(AK9))/LOG(2)))) ->  | AN9: =N9 -> 121 | AO9: =COUNTIF(L34:L39,AN9) -> 0 | AP9: =AO9/(AQ4-AO14) ->  | AQ9: =IF(AP9=0,0,(AP9*((LOG(AP9))/LOG(2)))) ->  | AS9: =N9 -> 121 | AT9: =COUNTIF(L40:L46,AS9) -> 0 | AU9: =AT9/(AV4-AT14) ->  | AV9: =IF(AU9=0,0,(AU9*((LOG(AU9))/LOG(2)))) -> 
A10: 21 | B10: 359 | C10: 21 | D10: 381 | E10: 21 | F10: 388 | K10: 0 | L10: 222 | N10: 122 | O10: =COUNTIF($L$7:$L$500,N10) -> 0 | P10: =O10/$Q$4 -> 0 | Q10: =IF(P10=0,0,(P10*((LOG(P10))/LOG(2)))) -> 0 | T10: =N10 -> 122 | U10: =COUNTIF(L7:L13,T10) -> 0 | V10: =U10/(W4-U14) ->  | W10: =IF(V10=0,0,(V10*((LOG(V10))/LOG(2)))) ->  | Y10: =N10 -> 122 | Z10: =COUNTIF(L14:L19,Y10) -> 0 | AA10: =Z10/(AB4-Z14) ->  | AB10: =IF(AA10=0,0,(AA10*((LOG(AA10))/LOG(2)))) ->  | AD10: =N10 -> 122 | AE10: =COUNTIF(L20:L26,AD10) -> 0 | AF10: =AE10/(AG4-AE14) ->  | AG10: =IF(AF10=0,0,(AF10*((LOG(AF10))/LOG(2)))) ->  | AI10: =N10 -> 122 | AJ10: =COUNTIF(L27:L33,AI10) -> 0 | AK10: =AJ10/(AL4-AJ14) ->  | AL10: =IF(AK10=0,0,(AK10*((LOG(AK10))/LOG(2)))) ->  | AN10: =N10 -> 122 | AO10: =COUNTIF(L34:L39,AN10) -> 0 | AP10: =AO10/(AQ4-AO14) ->  | AQ10: =IF(AP10=0,0,(AP10*((LOG(AP10))/LOG(2)))) ->  | AS10: =N10 -> 122 | AT10: =COUNTIF(L40:L46,AS10) -> 0 | AU10: =AT10/(AV4-AT14) ->  | AV10: =IF(AU10=0,0,(AU10*((LOG(AU10))/LOG(2)))) -> 
A11: 21 | B11: 485 | C11: 21 | D11: 487 | E11: 21 | F11: 491 | K11: 0 | L11: 222 | N11: 211 | O11: =COUNTIF($L$7:$L$500,N11) -> 0 | P11: =O11/$Q$4 -> 0 | Q11: =IF(P11=0,0,(P11*((LOG(P11))/LOG(2)))) -> 0 | T11: =N11 -> 211 | U11: =COUNTIF(L7:L13,T11) -> 0 | V11: =U11/(W4-U14) ->  | W11: =IF(V11=0,0,(V11*((LOG(V11))/LOG(2)))) ->  | Y11: =N11 -> 211 | Z11: =COUNTIF(L14:L19,Y11) -> 0 | AA11: =Z11/(AB4-Z14) ->  | AB11: =IF(AA11=0,0,(AA11*((LOG(AA11))/LOG(2)))) ->  | AD11: =N11 -> 211 | AE11: =COUNTIF(L20:L26,AD11) -> 0 | AF11: =AE11/(AG4-AE14) ->  | AG11: =IF(AF11=0,0,(AF11*((LOG(AF11))/LOG(2)))) ->  | AI11: =N11 -> 211 | AJ11: =COUNTIF(L27:L33,AI11) -> 0 | AK11: =AJ11/(AL4-AJ14) ->  | AL11: =IF(AK11=0,0,(AK11*((LOG(AK11))/LOG(2)))) ->  | AN11: =N11 -> 211 | AO11: =COUNTIF(L34:L39,AN11) -> 0 | AP11: =AO11/(AQ4-AO14) ->  | AQ11: =IF(AP11=0,0,(AP11*((LOG(AP11))/LOG(2)))) ->  | AS11: =N11 -> 211 | AT11: =COUNTIF(L40:L46,AS11) -> 0 | AU11: =AT11/(AV4-AT14) ->  | AV11: =IF(AU11=0,0,(AU11*((LOG(AU11))/LOG(2)))) -> 
A12: 21 | B12: 582 | C12: 21 | D12: 585 | E12: 21 | F12: 589 | K12: 0 | L12: 222 | N12: 212 | O12: =COUNTIF($L$7:$L$500,N12) -> 0 | P12: =O12/$Q$4 -> 0 | Q12: =IF(P12=0,0,(P12*((LOG(P12))/LOG(2)))) -> 0 | T12: =N12 -> 212 | U12: =COUNTIF(L7:L13,T12) -> 0 | V12: =U12/(W4-U14) ->  | W12: =IF(V12=0,0,(V12*((LOG(V12))/LOG(2)))) ->  | Y12: =N12 -> 212 | Z12: =COUNTIF(L14:L19,Y12) -> 0 | AA12: =Z12/(AB4-Z14) ->  | AB12: =IF(AA12=0,0,(AA12*((LOG(AA12))/LOG(2)))) ->  | AD12: =N12 -> 212 | AE12: =COUNTIF(L20:L26,AD12) -> 0 | AF12: =AE12/(AG4-AE14) ->  | AG12: =IF(AF12=0,0,(AF12*((LOG(AF12))/LOG(2)))) ->  | AI12: =N12 -> 212 | AJ12: =COUNTIF(L27:L33,AI12) -> 0 | AK12: =AJ12/(AL4-AJ14) ->  | AL12: =IF(AK12=0,0,(AK12*((LOG(AK12))/LOG(2)))) ->  | AN12: =N12 -> 212 | AO12: =COUNTIF(L34:L39,AN12) -> 0 | AP12: =AO12/(AQ4-AO14) ->  | AQ12: =IF(AP12=0,0,(AP12*((LOG(AP12))/LOG(2)))) ->  | AS12: =N12 -> 212 | AT12: =COUNTIF(L40:L46,AS12) -> 0 | AU12: =AT12/(AV4-AT14) ->  | AV12: =IF(AU12=0,0,(AU12*((LOG(AU12))/LOG(2)))) -> 
A13: 21 | B13: 681 | C13: 21 | D13: 686 | E13: 21 | F13: 692 | K13: 0 | L13: 222 | N13: 221 | O13: =COUNTIF($L$7:$L$500,N13) -> 0 | P13: =O13/$Q$4 -> 0 | Q13: =IF(P13=0,0,(P13*((LOG(P13))/LOG(2)))) -> 0 | T13: =N13 -> 221 | U13: =COUNTIF(L7:L13,T13) -> 0 | V13: =U13/(W4-U14) ->  | W13: =IF(V13=0,0,(V13*((LOG(V13))/LOG(2)))) ->  | Y13: =N13 -> 221 | Z13: =COUNTIF(L14:L19,Y13) -> 0 | AA13: =Z13/(AB4-Z14) ->  | AB13: =IF(AA13=0,0,(AA13*((LOG(AA13))/LOG(2)))) ->  | AD13: =N13 -> 221 | AE13: =COUNTIF(L20:L26,AD13) -> 0 | AF13: =AE13/(AG4-AE14) ->  | AG13: =IF(AF13=0,0,(AF13*((LOG(AF13))/LOG(2)))) ->  | AI13: =N13 -> 221 | AJ13: =COUNTIF(L27:L33,AI13) -> 0 | AK13: =AJ13/(AL4-AJ14) ->  | AL13: =IF(AK13=0,0,(AK13*((LOG(AK13))/LOG(2)))) ->  | AN13: =N13 -> 221 | AO13: =COUNTIF(L34:L39,AN13) -> 0 | AP13: =AO13/(AQ4-AO14) ->  | AQ13: =IF(AP13=0,0,(AP13*((LOG(AP13))/LOG(2)))) ->  | AS13: =N13 -> 221 | AT13: =COUNTIF(L40:L46,AS13) -> 0 | AU13: =AT13/(AV4-AT14) ->  | AV13: =IF(AU13=0,0,(AU13*((LOG(AU13))/LOG(2)))) -> 
A14: 21 | B14: 803 | C14: 21 | D14: 807 | E14: 21 | F14: 814 | K14: 0 | L14: 222 | N14: 222 | O14: =COUNTIF($L$7:$L$500,N14) -> 40 | P14: =O14/$Q$4 -> 1 | Q14: =IF(P14=0,0,(P14*((LOG(P14))/LOG(2)))) -> 0 | T14: =N14 -> 222 | U14: =COUNTIF(L7:L13,T14) -> 7 | Y14: =N14 -> 222 | Z14: =COUNTIF(L14:L19,Y14) -> 6 | AD14: =N14 -> 222 | AE14: =COUNTIF(L20:L26,AD14) -> 7 | AI14: =N14 -> 222 | AJ14: =COUNTIF(L27:L33,AI14) -> 7 | AN14: =N14 -> 222 | AO14: =COUNTIF(L34:L39,AN14) -> 6 | AS14: =N14 -> 222 | AT14: =COUNTIF(L40:L46,AS14) -> 7
A15: 21 | B15: 921 | C15: 21 | D15: 924 | E15: 21 | F15: 927 | K15: 0 | L15: 222 | P15: =SUM(P7:P14) -> 1 | Q15: =-SUM(Q7:Q14) -> 0 | V15: =SUM(V7:V14) ->  | W15: =-SUM(W7:W14) ->  | AA15: =SUM(AA7:AA14) ->  | AB15: =-SUM(AB7:AB14) ->  | AF15: =SUM(AF7:AF14) ->  | AG15: =-SUM(AG7:AG14) ->  | AK15: =SUM(AK7:AK14) ->  | AL15: =-SUM(AL7:AL14) ->  | AP15: =SUM(AP7:AP14) ->  | AQ15: =-SUM(AQ7:AQ14) ->  | AU15: =SUM(AU7:AU14) ->  | AV15: =-SUM(AV7:AV14) -> 
A16: 21 | B16: 1020 | C16: 21 | D16: 1025 | E16: 21 | F16: 1032 | K16: 0 | L16: 222 | P16: U= | Q16: =Q15/(LOG(Q4)/LOG(2)) -> 0 | V16: U1= | W16: =W15/(LOG(W4)/LOG(2)) ->  | AA16: U2= | AB16: =AB15/(LOG(AB4)/LOG(2)) ->  | AF16: U3= | AG16: =AG15/(LOG(AG4)/LOG(2)) ->  | AK16: U4= | AL16: =AL15/(LOG(AL4)/LOG(2)) ->  | AP16: U5= | AQ16: =AQ15/(LOG(AQ4)/LOG(2)) ->  | AU16: U6= | AV16: =AV15/(LOG(AV4)/LOG(2)) -> 
A17: 21 | B17: 1126 | C17: 21 | D17: 1132 | E17: 21 | F17: 1141 | K17: 0 | L17: 222
A18: 21 | B18: 1236 | C18: 21 | D18: 1242 | E18: 21 | F18: 1249 | K18: 0 | L18: 222
A19: 21 | B19: 1360 | C19: 21 | D19: 1364 | E19: 21 | F19: 1368 | K19: 0 | L19: 222 | N19: Total Target Seq
A20: 21 | B20: 1584 | C20: 21 | D20: 1587 | E20: 21 | F20: 1593 | K20: 0 | L20: 222 | N20: =COUNTIF(L7:L46,G3) -> 40 | P20: 7 | Q20: 6 | R20: 7 | S20: 7 | T20: 6 | U20: 7
A21: 21 | B21: 1692 | C21: 21 | D21: 1698 | E21: 21 | F21: 1704 | K21: 0 | L21: 222 | P21: % of reinforcement given in 6 equal intervals based on number of trials
A22: 21 | B22: 1797 | C22: 21 | D22: 1803 | E22: 21 | F22: 1810 | K22: 0 | L22: 222 | P22: %_1 | Q22: %_2 | R22: %_3 | S22: %_4 | T22: %_5 | U22: %_6
A23: 21 | B23: 1938 | C23: 21 | D23: 1941 | E23: 21 | F23: 1944 | K23: 0 | L23: 222 | O23: target sequence | P23: =$G$3 -> 222 | Q23: =$G$3 -> 222 | R23: =$G$3 -> 222 | S23: =$G$3 -> 222 | T23: =$G$3 -> 222 | U23: =$G$3 -> 222
A24: 21 | B24: 2035 | C24: 21 | D24: 2041 | E24: 21 | F24: 2047 | K24: 0 | L24: 222 | O24: total reinforcement | P24: =U14 -> 7 | Q24: =Z14 -> 6 | R24: =AE14 -> 7 | S24: =AJ14 -> 7 | T24: =AO14 -> 6 | U24: =AT14 -> 7
A25: 21 | B25: 2197 | C25: 21 | D25: 2205 | E25: 21 | F25: 2217 | K25: 0 | L25: 222 | O25: % target
A26: 21 | B26: 2322 | C26: 21 | D26: 2340 | E26: 21 | F26: 2347 | K26: 0 | L26: 222 | O26: CCRF
A27: 21 | B27: 2444 | C27: 21 | D27: 2449 | E27: 21 | F27: 2465 | K27: 0 | L27: 222 | O27: % CCRf
A28: 21 | B28: 2640 | C28: 21 | D28: 2643 | E28: 21 | F28: 2646 | K28: 0 | L28: 222 | O28: average response rate | P28: =F13/P20 -> 98.85714286 | Q28: =(F19-F13)/Q20 -> 112.6666667 | R28: =(F26-F19)/R20 -> 139.8571429 | S28: =(F33-F26)/S20 -> 125.8571429 | T28: =(F39-F33)/T20 -> 118 | U28: =(F46-F39)/U20 -> 112.2857143
A29: 21 | B29: 2738 | C29: 21 | D29: 2741 | E29: 21 | F29: 2744 | K29: 0 | L29: 222
A30: 21 | B30: 2835 | C30: 21 | D30: 2837 | E30: 21 | F30: 2851 | K30: 0 | L30: 222
A31: 21 | B31: 3004 | C31: 21 | D31: 3007 | E31: 21 | F31: 3020 | K31: 0 | L31: 222
A32: 21 | B32: 3114 | C32: 21 | D32: 3122 | E32: 21 | F32: 3127 | K32: 0 | L32: 222
A33: 21 | B33: 3221 | C33: 21 | D33: 3224 | E33: 21 | F33: 3228 | K33: 0 | L33: 222
A34: 21 | B34: 3332 | C34: 21 | D34: 3335 | E34: 21 | F34: 3339 | K34: 0 | L34: 222
A35: 21 | B35: 3432 | C35: 21 | D35: 3443 | E35: 21 | F35: 3453 | K35: 0 | L35: 222
A36: 21 | B36: 3547 | C36: 21 | D36: 3563 | E36: 21 | F36: 3574 | K36: 0 | L36: 222
A37: 21 | B37: 3699 | C37: 21 | D37: 3705 | E37: 21 | F37: 3710 | K37: 0 | L37: 222
A38: 21 | B38: 3801 | C38: 21 | D38: 3817 | E38: 21 | F38: 3822 | K38: 0 | L38: 222
A39: 21 | B39: 3914 | C39: 21 | D39: 3930 | E39: 21 | F39: 3936 | K39: 0 | L39: 222
A40: 21 | B40: 4028 | C40: 21 | D40: 4032 | E40: 21 | F40: 4048 | K40: 0 | L40: 222
A41: 21 | B41: 4154 | C41: 21 | D41: 4156 | E41: 21 | F41: 4161 | K41: 0 | L41: 222
A42: 21 | B42: 4257 | C42: 21 | D42: 4265 | E42: 21 | F42: 4273 | K42: 0 | L42: 222
A43: 21 | B43: 4365 | C43: 21 | D43: 4378 | E43: 21 | F43: 4384 | K43: 0 | L43: 222
A44: 21 | B44: 4484 | C44: 21 | D44: 4487 | E44: 21 | F44: 4493 | K44: 0 | L44: 222
A45: 21 | B45: 4587 | C45: 21 | D45: 4591 | E45: 21 | F45: 4597 | K45: 0 | L45: 222
A46: 21 | B46: 4708 | C46: 21 | D46: 4716 | E46: 21 | F46: 4722 | K46: 1 | L46: 222

Sheet !M908A5T.AYL
A1: Report for:!M908A5T.AYL
A2: Date: | B2: <date>
A3: Hen: | B3: <hen> | F3: Correct Sequence | G3: =Start!J2 -> 222 | P3: Total Sequences in Data | Q3: =4994-COUNTBLANK(L7:L5000) -> 42 | V3: Total Sequences in Block Data | W3: =COUNTA(L7:L13) -> 7 | AA3: Total Sequences in Block Data | AB3: =COUNTA(L14:L20) -> 7 | AF3: Total Sequences in Block Data | AG3: =COUNTA(L21:L27) -> 7 | AK3: Total Sequences in Block Data | AL3: =COUNTA(L28:L34) -> 7 | AP3: Total Sequences in Block Data | AQ3: =COUNTA(L35:L41) -> 7 | AU3: Total Sequences in Block Data | AV3: =COUNTA(L42:L48) -> 7
P4: Total Sequences in Summary | Q4: =SUM(O7:O14) -> 42 | V4: Total Sequences in Block Summary | W4: =SUM(U7:U14) -> 7 | AA4: Total Sequences in Block Summary | AB4: =SUM(Z7:Z14) -> 7 | AF4: Total Sequences in Block Summary | AG4: =SUM(AE7:AE14) -> 7 | AK4: Total Sequences in Block Summary | AL4: =SUM(AJ7:AJ14) -> 7 | AP4: Total Sequences in Block Summary | AQ4: =SUM(AO7:AO14) -> 7 | AU4: Total Sequences in Block Summary | AV4: =SUM(AT7:AT14) -> 7
T5: Block 1 | Y5: Block 2 | AD5: Block 3 | AI5: Block 4 | AN5: Block 5 | AS5: Block 6
A6: Sequence Component 1 | B6: Time 1 | C6: Sequence Component 2 | D6: Time 2 | E6: Sequence Component 3 | F6: Time 3 | G6: Sequence Component 4 | H6: Time 4 | I6: Sequence Component 5 | J6: Time 5 | K6: Correct? 0=No 1=Yes | L6: Sequence | N6: Frequency | P6: Relative Frequency | Q6: Variability | T6: Frequency | V6: Relative Frequency | W6: Variability | Y6: Frequency | AA6: Relative Frequency | AB6: Variability | AD6: Frequency | AF6: Relative Frequency | AG6: Variability | AI6: Frequency | AK6: Relative Frequency | AL6: Variability | AN6: Frequency | AP6: Relative Frequency | AQ6: Variability | AS6: Frequency | AU6: Relative Frequency | AV6: Variability
A7: 12 | B7: 36 | C7: 14 | D7: 45 | E7: 23 | F7: 53 | K7: 0 | L7: 112 | N7: 111 | O7: =COUNTIF($L$7:$L$500,N7) -> 0 | P7: =O7/$Q$4 -> 0 | Q7: =IF(P7=0,0,(P7*((LOG(P7))/LOG(2)))) -> 0 | T7: =N7 -> 111 | U7: =COUNTIF(L7:L13,T7) -> 0 | V7: =U7/(W4-U14) -> 0 | W7: =IF(V7=0,0,(V7*((LOG(V7))/LOG(2)))) -> 0 | Y7: =N7 -> 111 | Z7: =COUNTIF(L14:L20,Y7) -> 0 | AA7: =Z7/(AB4-Z14) -> 0 | AB7: =IF(AA7=0,0,(AA7*((LOG(AA7))/LOG(2)))) -> 0 | AD7: =N7 -> 111 | AE7: =COUNTIF(L21:L27,AD7) -> 0 | AF7: =AE7/(AG4-AE14) ->  | AG7: =IF(AF7=0,0,(AF7*((LOG(AF7))/LOG(2)))) ->  | AI7: =N7 -> 111 | AJ7: =COUNTIF(L28:L34,AI7) -> 0 | AK7: =AJ7/(AL4-AJ14) ->  | AL7: =IF(AK7=0,0,(AK7*((LOG(AK7))/LOG(2)))) ->  | AN7: =N7 -> 111 | AO7: =COUNTIF(L35:L41,AN7) -> 0 | AP7: =AO7/(AQ4-AO14) ->  | AQ7: =IF(AP7=0,0,(AP7*((LOG(AP7))/LOG(2)))) ->  | AS7: =N7 -> 111 | AT7: =COUNTIF(L42:L48,AS7) -> 0 | AU7: =AT7/(AV4-AT14) ->  | AV7: =IF(AU7=0,0,(AU7*((LOG(AU7))/LOG(2)))) -> 
A8: 12 | B8: 152 | C8: 23 | D8: 161 | E8: 23 | F8: 164 | K8: 0 | L8: 122 | N8: 112 | O8: =COUNTIF($L$7:$L$500,N8) -> 1 | P8: =O8/$Q$4 -> 0.02380952381 | Q8: =IF(P8=0,0,(P8*((LOG(P8))/LOG(2)))) -> -0.1283885101 | T8: =N8 -> 112 | U8: =COUNTIF(L7:L13,T8) -> 1 | V8: =U8/(W4-U14) -> 0.5 | W8: =IF(V8=0,0,(V8*((LOG(V8))/LOG(2)))) -> -0.5 | Y8: =N8 -> 112 | Z8: =COUNTIF(L14:L20,Y8) -> 0 | AA8: =Z8/(AB4-Z14) -> 0 | AB8: =IF(AA8=0,0,(AA8*((LOG(AA8))/LOG(2)))) -> 0 | AD8: =N8 -> 112 | AE8: =COUNTIF(L21:L27,AD8) -> 0 | AF8: =AE8/(AG4-AE14) ->  | AG8: =IF(AF8=0,0,(AF8*((LOG(AF8))/LOG(2)))) ->  | AI8: =N8 -> 112 | AJ8: =COUNTIF(L28:L34,AI8) -> 0 | AK8: =AJ8/(AL4-AJ14) ->  | AL8: =IF(AK8=0,0,(AK8*((LOG(AK8))/LOG(2)))) ->  | AN8: =N8 -> 112 | AO8: =COUNTIF(L35:L41,AN8) -> 0 | AP8: =AO8/(AQ4-AO14) ->  | AQ8: =IF(AP8=0,0,(AP8*((LOG(AP8))/LOG(2)))) ->  | AS8: =N8 -> 112 | AT8: =COUNTIF(L42:L48,AS8) -> 0 | AU8: =AT8/(AV4-AT14) ->  | AV8: =IF(AU8=0,0,(AU8*((LOG(AU8))/LOG(2)))) -> 
A9: 21 | B9: 298 | C9: 21 | D9: 302 | E9: 21 | F9: 307 | K9: 0 | L9: 222 | N9: 121 | O9: =COUNTIF($L$7:$L$500,N9) -> 0 | P9: =O9/$Q$4 -> 0 | Q9: =IF(P9=0,0,(P9*((LOG(P9))/LOG(2)))) -> 0 | T9: =N9 -> 121 | U9: =COUNTIF(L7:L13,T9) -> 0 | V9: =U9/(W4-U14) -> 0 | W9: =IF(V9=0,0,(V9*((LOG(V9))/LOG(2)))) -> 0 | Y9: =N9 -> 121 | Z9: =COUNTIF(L14:L20,Y9) -> 0 | AA9: =Z9/(AB4-Z14) -> 0 | AB9: =IF(AA9=0,0,(AA9*((LOG(AA9))/LOG(2)))) -> 0 | AD9: =N9 -> 121 | AE9: =COUNTIF(L21:L27,AD9) -> 0 | AF9: =AE9/(AG4-AE14) ->  | AG9: =IF(AF9=0,0,(AF9*((LOG(AF9))/LOG(2)))) ->  | AI9: =N9 -> 121 | AJ9: =COUNTIF(L28:L34,AI9) -> 0 | AK9: =AJ9/(AL4-AJ14) ->  | AL9: =IF(AK9=0,0,(AK9*((LOG(AK9))/LOG(2)))) ->  | AN9: =N9 -> 121 | AO9: =COUNTIF(L35:L41,AN9) -> 0 | AP9: =AO9/(AQ4-AO14) ->  | AQ9: =IF(AP9=0,0,(AP9*((LOG(AP9))/LOG(2)))) ->  | AS9: =N9 -> 121 | AT9: =COUNTIF(L42:L48,AS9) -> 0 | AU9: =AT9/(AV4-AT14) ->  | AV9: =IF(AU9=0,0,(AU9*((LOG(AU9))/LOG(2)))) -> 
A10: 21 | B10: 399 | C10: 21 | D10: 403 | E10: 21 | F10: 418 | K10: 0 | L10: 222 | N10: 122 | O10: =COUNTIF($L$7:$L$500,N10) -> 1 | P10: =O10/$Q$4 -> 0.02380952381 | Q10: =IF(P10=0,0,(P10*((LOG(P10))/LOG(2)))) -> -0.1283885101 | T10: =N10 -> 122 | U10: =COUNTIF(L7:L13,T10) -> 1 | V10: =U10/(W4-U14) -> 0.5 | W10: =IF(V10=0,0,(V10*((LOG(V10))/LOG(2)))) -> -0.5 | Y10: =N10 -> 122 | Z10: =COUNTIF(L14:L20,Y10) -> 0 | AA10: =Z10/(AB4-Z14) -> 0 | AB10: =IF(AA10=0,0,(AA10*((LOG(AA10))/LOG(2)))) -> 0 | AD10: =N10 -> 122 | AE10: =COUNTIF(L21:L27,AD10) -> 0 | AF10: =AE10/(AG4-AE14) ->  | AG10: =IF(AF10=0,0,(AF10*((LOG(AF10))/LOG(2)))) ->  | AI10: =N10 -> 122 | AJ10: =COUNTIF(L28:L34,AI10) -> 0 | AK10: =AJ10/(AL4-AJ14) ->  | AL10: =IF(AK10=0,0,(AK10*((LOG(AK10))/LOG(2)))) ->  | AN10: =N10 -> 122 | AO10: =COUNTIF(L35:L41,AN10) -> 0 | AP10: =AO10/(AQ4-AO14) ->  | AQ10: =IF(AP10=0,0,(AP10*((LOG(AP10))/LOG(2)))) ->  | AS10: =N10 -> 122 | AT10: =COUNTIF(L42:L48,AS10) -> 0 | AU10: =AT10/(AV4-AT14) ->  | AV10: =IF(AU10=0,0,(AU10*((LOG(AU10))/LOG(2)))) -> 
A11: 21 | B11: 559 | C11: 21 | D11: 562 | E11: 21 | F11: 566 | K11: 0 | L11: 222 | N11: 211 | O11: =COUNTIF($L$7:$L$500,N11) -> 0 | P11: =O11/$Q$4 -> 0 | Q11: =IF(P11=0,0,(P11*((LOG(P11))/LOG(2)))) -> 0 | T11: =N11 -> 211 | U11: =COUNTIF(L7:L13,T11) -> 0 | V11: =U11/(W4-U14) -> 0 | W11: =IF(V11=0,0,(V11*((LOG(V11))/LOG(2)))) -> 0 | Y11: =N11 -> 211 | Z11: =COUNTIF(L14:L20,Y11) -> 0 | AA11: =Z11/(AB4-Z14) -> 0 | AB11: =IF(AA11=0,0,(AA11*((LOG(AA11))/LOG(2)))) -> 0 | AD11: =N11 -> 211 | AE11: =COUNTIF(L21:L27,AD11) -> 0 | AF11: =AE11/(AG4-AE14) ->  | AG11: =IF(AF11=0,0,(AF11*((LOG(AF11))/LOG(2)))) ->  | AI11: =N11 -> 211 | AJ11: =COUNTIF(L28:L34,AI11) -> 0 | AK11: =AJ11/(AL4-AJ14) ->  | AL11: =IF(AK11=0,0,(AK11*((LOG(AK11))/LOG(2)))) ->  | AN11: =N11 -> 211 | AO11: =COUNTIF(L35:L41,AN11) -> 0 | AP11: =AO11/(AQ4-AO14) ->  | AQ11: =IF(AP11=0,0,(AP11*((LOG(AP11))/LOG(2)))) ->  | AS11: =N11 -> 211 | AT11: =COUNTIF(L42:L48,AS11) -> 0 | AU11: =AT11/(AV4-AT14) ->  | AV11: =IF(AU11=0,0,(AU11*((LOG(AU11))/LOG(2)))) -> 
A12: 21 | B12: 656 | C12: 21 | D12: 659 | E12: 21 | F12: 665 | K12: 0 | L12: 222 | N12: 212 | O12: =COUNTIF($L$7:$L$500,N12) -> 0 | P12: =O12/$Q$4 -> 0 | Q12: =IF(P12=0,0,(P12*((LOG(P12))/LOG(2)))) -> 0 | T12: =N12 -> 212 | U12: =COUNTIF(L7:L13,T12) -> 0 | V12: =U12/(W4-U14) -> 0 | W12: =IF(V12=0,0,(V12*((LOG(V12))/LOG(2)))) -> 0 | Y12: =N12 -> 212 | Z12: =COUNTIF(L14:L20,Y12) -> 0 | AA12: =Z12/(AB4-Z14) -> 0 | AB12: =IF(AA12=0,0,(AA12*((LOG(AA12))/LOG(2)))) -> 0 | AD12: =N12 -> 212 | AE12: =COUNTIF(L21:L27,AD12) -> 0 | AF12: =AE12/(AG4-AE14) ->  | AG12: =IF(AF12=0,0,(AF12*((LOG(AF12))/LOG(2)))) ->  | AI12: =N12 -> 212 | AJ12: =COUNTIF(L28:L34,AI12) -> 0 | AK12: =AJ12/(AL4-AJ14) ->  | AL12: =IF(AK12=0,0,(AK12*((LOG(AK12))/LOG(2)))) ->  | AN12: =N12 -> 212 | AO12: =COUNTIF(L35:L41,AN12) -> 0 | AP12: =AO12/(AQ4-AO14) ->  | AQ12: =IF(AP12=0,0,(AP12*((LOG(AP12))/LOG(2)))) ->  | AS12: =N12 -> 212 | AT12: =COUNTIF(L42:L48,AS12) -> 0 | AU12: =AT12/(AV4-AT14) ->  | AV12: =IF(AU12=0,0,(AU12*((LOG(AU12))/LOG(2)))) -> 
A13: 21 | B13: 762 | C13: 21 | D13: 768 | E13: 21 | F13: 775 | K13: 0 | L13: 222 | N13: 221 | O13: =COUNTIF($L$7:$L$500,N13) -> 1 | P13: =O13/$Q$4 -> 0.02380952381 | Q13: =IF(P13=0,0,(P13*((LOG(P13))/LOG(2)))) -> -0.1283885101 | T13: =N13 -> 221 | U13: =COUNTIF(L7:L13,T13) -> 0 | V13: =U13/(W4-U14) -> 0 | W13: =IF(V13=0,0,(V13*((LOG(V13))/LOG(2)))) -> 0 | Y13: =N13 -> 221 | Z13: =COUNTIF(L14:L20,Y13) -> 1 | AA13: =Z13/(AB4-Z14) -> 1 | AB13: =IF(AA13=0,0,(AA13*((LOG(AA13))/LOG(2)))) -> 0 | AD13: =N13 -> 221 | AE13: =COUNTIF(L21:L27,AD13) -> 0 | AF13: =AE13/(AG4-AE14) ->  | AG13: =IF(AF13=0,0,(AF13*((LOG(AF13))/LOG(2)))) ->  | AI13: =N13 -> 221 | AJ13: =COUNTIF(L28:L34,AI13) -> 0 | AK13: =AJ13/(AL4-AJ14) ->  | AL13: =IF(AK13=0,0,(AK13*((LOG(AK13))/LOG(2)))) ->  | AN13: =N13 -> 221 | AO13: =COUNTIF(L35:L41,AN13) -> 0 | AP13: =AO13/(AQ4-AO14) ->  | AQ13: =IF(AP13=0,0,(AP13*((LOG(AP13))/LOG(2)))) ->  | AS13: =N13 -> 221 | AT13: =COUNTIF(L42:L48,AS13) -> 0 | AU13: =AT13/(AV4-AT14) ->  | AV13: =IF(AU13=0,0,(AU13*((LOG(AU13))/LOG(2)))) -> 
A14: 21 | B14: 864 | C14: 21 | D14: 871 | E14: 21 | F14: 879 | K14: 0 | L14: 222 | N14: 222 | O14: =COUNTIF($L$7:$L$500,N14) -> 39 | P14: =O14/$Q$4 -> 0.9285714286 | Q14: =IF(P14=0,0,(P14*((LOG(P14))/LOG(2)))) -> -0.09927840364 | T14: =N14 -> 222 | U14: =COUNTIF(L7:L13,T14) -> 5 | Y14: =N14 -> 222 | Z14: =COUNTIF(L14:L20,Y14) -> 6 | AD14: =N14 -> 222 | AE14: =COUNTIF(L21:L27,AD14) -> 7 | AI14: =N14 -> 222 | AJ14: =COUNTIF(L28:L34,AI14) -> 7 | AN14: =N14 -> 222 | AO14: =COUNTIF(L35:L41,AN14) -> 7 | AS14: =N14 -> 222 | AT14: =COUNTIF(L42:L48,AS14) -> 7
A15: 21 | B15: 970 | C15: 21 | D15: 977 | E15: 21 | F15: 984 | K15: 0 | L15: 222 | P15: =SUM(P7:P14) -> 1 | Q15: =-SUM(Q7:Q14) -> 0.4844439338 | V15: =SUM(V7:V14) -> 1 | W15: =-SUM(W7:W14) -> 1 | AA15: =SUM(AA7:AA14) -> 1 | AB15: =-SUM(AB7:AB14) -> 0 | AF15: =SUM(AF7:AF14) ->  | AG15: =-SUM(AG7:AG14) ->  | AK15: =SUM(AK7:AK14) ->  | AL15: =-SUM(AL7:AL14) ->  | AP15: =SUM(AP7:AP14) ->  | AQ15: =-SUM(AQ7:AQ14) ->  | AU15: =SUM(AU7:AU14) ->  | AV15: =-SUM(AV7:AV14) -> 
A16: 21 | B16: 1077 | C16: 21 | D16: 1083 | E16: 21 | F16: 1089 | K16: 0 | L16: 222 | P16: U= | Q16: =Q15/(LOG(Q4)/LOG(2)) -> 0.08983965443 | V16: U1= | W16: =W15/(LOG(W4)/LOG(2)) -> 0.3562071871 | AA16: U2= | AB16: =AB15/(LOG(AB4)/LOG(2)) -> 0 | AF16: U3= | AG16: =AG15/(LOG(AG4)/LOG(2)) ->  | AK16: U4= | AL16: =AL15/(LOG(AL4)/LOG(2)) ->  | AP16: U5= | AQ16: =AQ15/(LOG(AQ4)/LOG(2)) ->  | AU16: U6= | AV16: =AV15/(LOG(AV4)/LOG(2)) -> 
A17: 21 | B17: 1189 | C17: 21 | D17: 1191 | E17: 12 | F17: 1193 | K17: 0 | L17: 221
A18: 21 | B18: 1299 | C18: 21 | D18: 1302 | E18: 21 | F18: 1308 | K18: 0 | L18: 222
A19: 21 | B19: 1475 | C19: 21 | D19: 1479 | E19: 21 | F19: 1485 | K19: 0 | L19: 222 | N19: Total Target Seq
A20: 21 | B20: 1629 | C20: 21 | D20: 1634 | E20: 21 | F20: 1637 | K20: 0 | L20: 222 | N20: =COUNTIF(L7:L48,G3) -> 39 | P20: 7 | Q20: 7 | R20: 7 | S20: 7 | T20: 7 | U20: 7
A21: 21 | B21: 1731 | C21: 21 | D21: 1734 | E21: 21 | F21: 1749 | K21: 0 | L21: 222 | P21: % of reinforcement given in 6 equal intervals based on number of trials
A22: 21 | B22: 1853 | C22: 21 | D22: 1855 | E22: 21 | F22: 1862 | K22: 0 | L22: 222 | P22: %_1 | Q22: %_2 | R22: %_3 | S22: %_4 | T22: %_5 | U22: %_6
A23: 21 | B23: 2020 | C23: 21 | D23: 2023 | E23: 21 | F23: 2027 | K23: 0 | L23: 222 | O23: target sequence | P23: =$G$3 -> 222 | Q23: =$G$3 -> 222 | R23: =$G$3 -> 222 | S23: =$G$3 -> 222 | T23: =$G$3 -> 222 | U23: =$G$3 -> 222
A24: 21 | B24: 2122 | C24: 21 | D24: 2128 | E24: 21 | F24: 2134 | K24: 0 | L24: 222 | O24: total reinforcement | P24: =U14 -> 5 | Q24: =Z14 -> 6 | R24: =AE14 -> 7 | S24: =AJ14 -> 7 | T24: =AO14 -> 7 | U24: =AT14 -> 7
A25: 21 | B25: 2287 | C25: 21 | D25: 2293 | E25: 21 | F25: 2299 | K25: 0 | L25: 222 | O25: % target
A26: 21 | B26: 2400 | C26: 21 | D26: 2406 | E26: 21 | F26: 2411 | K26: 0 | L26: 222 | O26: CCRF
A27: 21 | B27: 2569 | C27: 21 | D27: 2572 | E27: 21 | F27: 2581 | K27: 0 | L27: 222 | O27: % CCRf
A28: 21 | B28: 2680 | C28: 21 | D28: 2685 | E28: 21 | F28: 2690 | K28: 0 | L28: 222 | O28: average response rate | P28: =F13/P20 -> 110.7142857 | Q28: =(F20-F13)/Q20 -> 123.1428571 | R28: =(F27-F20)/R20 -> 134.8571429 | S28: =(F34-F27)/S20 -> 151 | T28: =(F41-F34)/T20 -> 140.7142857 | U28: =(F48-F41)/U20 -> 120.1428571
A29: 21 | B29: 2782 | C29: 21 | D29: 2790 | E29: 21 | F29: 2797 | K29: 0 | L29: 222
A30: 21 | B30: 2952 | C30: 21 | D30: 2956 | E30: 21 | F30: 2963 | K30: 0 | L30: 222
A31: 21 | B31: 3223 | C31: 21 | D31: 3231 | E31: 21 | F31: 3255 | K31: 0 | L31: 222
A32: 21 | B32: 3379 | C32: 21 | D32: 3383 | E32: 21 | F32: 3390 | K32: 0 | L32: 222
A33: 21 | B33: 3482 | C33: 21 | D33: 3485 | E33: 21 | F33: 3492 | K33: 0 | L33: 222
A34: 21 | B34: 3629 | C34: 21 | D34: 3632 | E34: 21 | F34: 3638 | K34: 0 | L34: 222
A35: 21 | B35: 3907 | C35: 21 | D35: 3909 | E35: 21 | F35: 3913 | K35: 0 | L35: 222
A36: 21 | B36: 4006 | C36: 21 | D36: 4020 | E36: 21 | F36: 4042 | K36: 0 | L36: 222
A37: 21 | B37: 4136 | C37: 21 | D37: 4140 | E37: 21 | F37: 4146 | K37: 0 | L37: 222
A38: 21 | B38: 4277 | C38: 21 | D38: 4280 | E38: 21 | F38: 4287 | K38: 0 | L38: 222
A39: 21 | B39: 4391 | C39: 21 | D39: 4396 | E39: 21 | F39: 4401 | K39: 0 | L39: 222
A40: 21 | B40: 4501 | C40: 21 | D40: 4503 | E40: 21 | F40: 4507 | K40: 0 | L40: 222
A41: 21 | B41: 4611 | C41: 21 | D41: 4617 | E41: 21 | F41: 4623 | K41: 0 | L41: 222
A42: 21 | B42: 4737 | C42: 21 | D42: 4741 | E42: 21 | F42: 4748 | K42: 0 | L42: 222
A43: 21 | B43: 4870 | C43: 21 | D43: 4881 | E43: 21 | F43: 4887 | K43: 0 | L43: 222
A44: 21 | B44: 4983 | C44: 21 | D44: 4986 | E44: 21 | F44: 4991 | K44: 0 | L44: 222
A45: 21 | B45: 5105 | C45: 21 | D45: 5110 | E45: 21 | F45: 5117 | K45: 0 | L45: 222
A46: 21 | B46: 5232 | C46: 21 | D46: 5234 | E46: 21 | F46: 5239 | K46: 0 | L46: 222
A47: 21 | B47: 5332 | C47: 21 | D47: 5336 | E47: 21 | F47: 5342 | K47: 0 | L47: 222
A48: 21 | B48: 5446 | C48: 21 | D48: 5457 | E48: 21 | F48: 5464 | K48: 1 | L48: 222

Sheet !M910B5T.AYL
A1: Report for:!M910B5T.AYL
A2: Date: | B2: <date>
A3: Hen: | B3: <hen> | F3: Correct Sequence | G3: =Start!J2 -> 222 | P3: Total Sequences in Data | Q3: =4994-COUNTBLANK(L7:L5000) -> 61 | V3: Total Sequences in Block Data | W3: =COUNTA(L7:L16) -> 10 | AA3: Total Sequences in Block Data | AB3: =COUNTA(L17:L26) -> 10 | AF3: Total Sequences in Block Data | AG3: =COUNTA(L27:L37) -> 11 | AK3: Total Sequences in Block Data | AL3: =COUNTA(L38:L47) -> 10 | AP3: Total Sequences in Block Data | AQ3: =COUNTA(L48:L57) -> 10 | AU3: Total Sequences in Block Data | AV3: =COUNTA(L58:L67) -> 10
P4: Total Sequences in Summary | Q4: =SUM(O7:O14) -> 61 | V4: Total Sequences in Block Summary | W4: =SUM(U7:U14) -> 10 | AA4: Total Sequences in Block Summary | AB4: =SUM(Z7:Z14) -> 10 | AF4: Total Sequences in Block Summary | AG4: =SUM(AE7:AE14) -> 11 | AK4: Total Sequences in Block Summary | AL4: =SUM(AJ7:AJ14) -> 10 | AP4: Total Sequences in Block Summary | AQ4: =SUM(AO7:AO14) -> 10 | AU4: Total Sequences in Block Summary | AV4: =SUM(AT7:AT14) -> 10
T5: Block 1 | Y5: Block 2 | AD5: Block 3 | AI5: Block 4 | AN5: Block 5 | AS5: Block 6
A6: Sequence Component 1 | B6: Time 1 | C6: Sequence Component 2 | D6: Time 2 | E6: Sequence Component 3 | F6: Time 3 | G6: Sequence Component 4 | H6: Time 4 | I6: Sequence Component 5 | J6: Time 5 | K6: Correct? 0=No 1=Yes | L6: Sequence | N6: Frequency | P6: Relative Frequency | Q6: Variability | T6: Frequency | V6: Relative Frequency | W6: Variability | Y6: Frequency | AA6: Relative Frequency | AB6: Variability | AD6: Frequency | AF6: Relative Frequency | AG6: Variability | AI6: Frequency | AK6: Relative Frequency | AL6: Variability | AN6: Frequency | AP6: Relative Frequency | AQ6: Variability | AS6: Frequency | AU6: Relative Frequency | AV6: Variability
A7: 21 | B7: 16 | C7: 21 | D7: 20 | E7: 12 | F7: 22 | K7: 0 | L7: 221 | N7: 111 | O7: =COUNTIF($L$7:$L$500,N7) -> 8 | P7: =O7/$Q$4 -> 0.131147541 | Q7: =IF(P7=0,0,(P7*((LOG(P7))/LOG(2)))) -> -0.3843589951 | T7: =N7 -> 111 | U7: =COUNTIF(L7:L16,T7) -> 3 | V7: =U7/(W4-U14) -> 0.375 | W7: =IF(V7=0,0,(V7*((LOG(V7))/LOG(2)))) -> -0.5306390622 | Y7: =N7 -> 111 | Z7: =COUNTIF(L17:L26,Y7) -> 1 | AA7: =Z7/(AB4-Z14) -> 0.2 | AB7: =IF(AA7=0,0,(AA7*((LOG(AA7))/LOG(2)))) -> -0.464385619 | AD7: =N7 -> 111 | AE7: =COUNTIF(L27:L37,AD7) -> 0 | AF7: =AE7/(AG4-AE14) -> 0 | AG7: =IF(AF7=0,0,(AF7*((LOG(AF7))/LOG(2)))) -> 0 | AI7: =N7 -> 111 | AJ7: =COUNTIF(L38:L47,AI7) -> 3 | AK7: =AJ7/(AL4-AJ14) -> 0.5 | AL7: =IF(AK7=0,0,(AK7*((LOG(AK7))/LOG(2)))) -> -0.5 | AN7: =N7 -> 111 | AO7: =COUNTIF(L48:L57,AN7) -> 1 | AP7: =AO7/(AQ4-AO14) -> 0.5 | AQ7: =IF(AP7=0,0,(AP7*((LOG(AP7))/LOG(2)))) -> -0.5 | AS7: =N7 -> 111 | AT7: =COUNTIF(L58:L67,AS7) -> 0 | AU7: =AT7/(AV4-AT14) -> 0 | AV7: =IF(AU7=0,0,(AU7*((LOG(AU7))/LOG(2)))) -> 0
A8: 12 | B8: 122 | C8: 14 | D8: 126 | E8: 23 | F8: 131 | K8: 0 | L8: 112 | N8: 112 | O8: =COUNTIF($L$7:$L$500,N8) -> 7 | P8: =O8/$Q$4 -> 0.1147540984 | Q8: =IF(P8=0,0,(P8*((LOG(P8))/LOG(2)))) -> -0.3584209329 | T8: =N8 -> 112 | U8: =COUNTIF(L7:L16,T8) -> 1 | V8: =U8/(W4-U14) -> 0.125 | W8: =IF(V8=0,0,(V8*((LOG(V8))/LOG(2)))) -> -0.375 | Y8: =N8 -> 112 | Z8: =COUNTIF(L17:L26,Y8) -> 3 | AA8: =Z8/(AB4-Z14) -> 0.6 | AB8: =IF(AA8=0,0,(AA8*((LOG(AA8))/LOG(2)))) -> -0.4421793565 | AD8: =N8 -> 112 | AE8: =COUNTIF(L27:L37,AD8) -> 0 | AF8: =AE8/(AG4-AE14) -> 0 | AG8: =IF(AF8=0,0,(AF8*((LOG(AF8))/LOG(2)))) -> 0 | AI8: =N8 -> 112 | AJ8: =COUNTIF(L38:L47,AI8) -> 1 | AK8: =AJ8/(AL4-AJ14) -> 0.1666666667 | AL8: =IF(AK8=0,0,(AK8*((LOG(AK8))/LOG(2)))) -> -0.4308270835 | AN8: =N8 -> 112 | AO8: =COUNTIF(L48:L57,AN8) -> 1 | AP8: =AO8/(AQ4-AO14) -> 0.5 | AQ8: =IF(AP8=0,0,(AP8*((LOG(AP8))/LOG(2)))) -> -0.5 | AS8: =N8 -> 112 | AT8: =COUNTIF(L58:L67,AS8) -> 1 | AU8: =AT8/(AV4-AT14) -> 0.5 | AV8: =IF(AU8=0,0,(AU8*((LOG(AU8))/LOG(2)))) -> -0.5
A9: 12 | B9: 223 | C9: 14 | D9: 227 | E9: 14 | F9: 233 | K9: 0 | L9: 111 | N9: 121 | O9: =COUNTIF($L$7:$L$500,N9) -> 2 | P9: =O9/$Q$4 -> 0.03278688525 | Q9: =IF(P9=0,0,(P9*((LOG(P9))/LOG(2)))) -> -0.1616635193 | T9: =N9 -> 121 | U9: =COUNTIF(L7:L16,T9) -> 1 | V9: =U9/(W4-U14) -> 0.125 | W9: =IF(V9=0,0,(V9*((LOG(V9))/LOG(2)))) -> -0.375 | Y9: =N9 -> 121 | Z9: =COUNTIF(L17:L26,Y9) -> 1 | AA9: =Z9/(AB4-Z14) -> 0.2 | AB9: =IF(AA9=0,0,(AA9*((LOG(AA9))/LOG(2)))) -> -0.464385619 | AD9: =N9 -> 121 | AE9: =COUNTIF(L27:L37,AD9) -> 0 | AF9: =AE9/(AG4-AE14) -> 0 | AG9: =IF(AF9=0,0,(AF9*((LOG(AF9))/LOG(2)))) -> 0 | AI9: =N9 -> 121 | AJ9: =COUNTIF(L38:L47,AI9) -> 0 | AK9: =AJ9/(AL4-AJ14) -> 0 | AL9: =IF(AK9=0,0,(AK9*((LOG(AK9))/LOG(2)))) -> 0 | AN9: =N9 -> 121 | AO9: =COUNTIF(L48:L57,AN9) -> 0 | AP9: =AO9/(AQ4-AO14) -> 0 | AQ9: =IF(AP9=0,0,(AP9*((LOG(AP9))/LOG(2)))) -> 0 | AS9: =N9 -> 121 | AT9: =COUNTIF(L58:L67,AS9) -> 0 | AU9: =AT9/(AV4-AT14) -> 0 | AV9: =IF(AU9=0,0,(AU9*((LOG(AU9))/LOG(2)))) -> 0
A10: 12 | B10: 329 | C10: 14 | D10: 333 | E10: 14 | F10: 338 | K10: 0 | L10: 111 | N10: 122 | O10: =COUNTIF($L$7:$L$500,N10) -> 5 | P10: =O10/$Q$4 -> 0.08196721311 | Q10: =IF(P10=0,0,(P10*((LOG(P10))/LOG(2)))) -> -0.2958040363 | T10: =N10 -> 122 | U10: =COUNTIF(L7:L16,T10) -> 2 | V10: =U10/(W4-U14) -> 0.25 | W10: =IF(V10=0,0,(V10*((LOG(V10))/LOG(2)))) -> -0.5 | Y10: =N10 -> 122 | Z10: =COUNTIF(L17:L26,Y10) -> 0 | AA10: =Z10/(AB4-Z14) -> 0 | AB10: =IF(AA10=0,0,(AA10*((LOG(AA10))/LOG(2)))) -> 0 | AD10: =N10 -> 122 | AE10: =COUNTIF(L27:L37,AD10) -> 1 | AF10: =AE10/(AG4-AE14) -> 1 | AG10: =IF(AF10=0,0,(AF10*((LOG(AF10))/LOG(2)))) -> 0 | AI10: =N10 -> 122 | AJ10: =COUNTIF(L38:L47,AI10) -> 2 | AK10: =AJ10/(AL4-AJ14) -> 0.3333333333 | AL10: =IF(AK10=0,0,(AK10*((LOG(AK10))/LOG(2)))) -> -0.5283208336 | AN10: =N10 -> 122 | AO10: =COUNTIF(L48:L57,AN10) -> 0 | AP10: =AO10/(AQ4-AO14) -> 0 | AQ10: =IF(AP10=0,0,(AP10*((LOG(AP10))/LOG(2)))) -> 0 | AS10: =N10 -> 122 | AT10: =COUNTIF(L58:L67,AS10) -> 0 | AU10: =AT10/(AV4-AT14) -> 0 | AV10: =IF(AU10=0,0,(AU10*((LOG(AU10))/LOG(2)))) -> 0
A11: 12 | B11: 432 | C11: 23 | D11: 436 | E11: 23 | F11: 447 | K11: 0 | L11: 122 | N11: 211 | O11: =COUNTIF($L$7:$L$500,N11) -> 0 | P11: =O11/$Q$4 -> 0 | Q11: =IF(P11=0,0,(P11*((LOG(P11))/LOG(2)))) -> 0 | T11: =N11 -> 211 | U11: =COUNTIF(L7:L16,T11) -> 0 | V11: =U11/(W4-U14) -> 0 | W11: =IF(V11=0,0,(V11*((LOG(V11))/LOG(2)))) -> 0 | Y11: =N11 -> 211 | Z11: =COUNTIF(L17:L26,Y11) -> 0 | AA11: =Z11/(AB4-Z14) -> 0 | AB11: =IF(AA11=0,0,(AA11*((LOG(AA11))/LOG(2)))) -> 0 | AD11: =N11 -> 211 | AE11: =COUNTIF(L27:L37,AD11) -> 0 | AF11: =AE11/(AG4-AE14) -> 0 | AG11: =IF(AF11=0,0,(AF11*((LOG(AF11))/LOG(2)))) -> 0 | AI11: =N11 -> 211 | AJ11: =COUNTIF(L38:L47,AI11) -> 0 | AK11: =AJ11/(AL4-AJ14) -> 0 | AL11: =IF(AK11=0,0,(AK11*((LOG(AK11))/LOG(2)))) -> 0 | AN11: =N11 -> 211 | AO11: =COUNTIF(L48:L57,AN11) -> 0 | AP11: =AO11/(AQ4-AO14) -> 0 | AQ11: =IF(AP11=0,0,(AP11*((LOG(AP11))/LOG(2)))) -> 0 | AS11: =N11 -> 211 | AT11: =COUNTIF(L58:L67,AS11) -> 0 | AU11: =AT11/(AV4-AT14) -> 0 | AV11: =IF(AU11=0,0,(AU11*((LOG(AU11))/LOG(2)))) -> 0
A12: 21 | B12: 547 | C12: 21 | D12: 558 | E12: 21 | F12: 561 | K12: 0 | L12: 222 | N12: 212 | O12: =COUNTIF($L$7:$L$500,N12) -> 0 | P12: =O12/$Q$4 -> 0 | Q12: =IF(P12=0,0,(P12*((LOG(P12))/LOG(2)))) -> 0 | T12: =N12 -> 212 | U12: =COUNTIF(L7:L16,T12) -> 0 | V12: =U12/(W4-U14) -> 0 | W12: =IF(V12=0,0,(V12*((LOG(V12))/LOG(2)))) -> 0 | Y12: =N12 -> 212 | Z12: =COUNTIF(L17:L26,Y12) -> 0 | AA12: =Z12/(AB4-Z14) -> 0 | AB12: =IF(AA12=0,0,(AA12*((LOG(AA12))/LOG(2)))) -> 0 | AD12: =N12 -> 212 | AE12: =COUNTIF(L27:L37,AD12) -> 0 | AF12: =AE12/(AG4-AE14) -> 0 | AG12: =IF(AF12=0,0,(AF12*((LOG(AF12))/LOG(2)))) -> 0 | AI12: =N12 -> 212 | AJ12: =COUNTIF(L38:L47,AI12) -> 0 | AK12: =AJ12/(AL4-AJ14) -> 0 | AL12: =IF(AK12=0,0,(AK12*((LOG(AK12))/LOG(2)))) -> 0 | AN12: =N12 -> 212 | AO12: =COUNTIF(L48:L57,AN12) -> 0 | AP12: =AO12/(AQ4-AO14) -> 0 | AQ12: =IF(AP12=0,0,(AP12*((LOG(AP12))/LOG(2)))) -> 0 | AS12: =N12 -> 212 | AT12: =COUNTIF(L58:L67,AS12) -> 0 | AU12: =AT12/(AV4-AT14) -> 0 | AV12: =IF(AU12=0,0,(AU12*((LOG(AU12))/LOG(2)))) -> 0
A13: 12 | B13: 673 | C13: 14 | D13: 679 | E13: 14 | F13: 685 | K13: 0 | L13: 111 | N13: 221 | O13: =COUNTIF($L$7:$L$500,N13) -> 2 | P13: =O13/$Q$4 -> 0.03278688525 | Q13: =IF(P13=0,0,(P13*((LOG(P13))/LOG(2)))) -> -0.1616635193 | T13: =N13 -> 221 | U13: =COUNTIF(L7:L16,T13) -> 1 | V13: =U13/(W4-U14) -> 0.125 | W13: =IF(V13=0,0,(V13*((LOG(V13))/LOG(2)))) -> -0.375 | Y13: =N13 -> 221 | Z13: =COUNTIF(L17:L26,Y13) -> 0 | AA13: =Z13/(AB4-Z14) -> 0 | AB13: =IF(AA13=0,0,(AA13*((LOG(AA13))/LOG(2)))) -> 0 | AD13: =N13 -> 221 | AE13: =COUNTIF(L27:L37,AD13) -> 0 | AF13: =AE13/(AG4-AE14) -> 0 | AG13: =IF(AF13=0,0,(AF13*((LOG(AF13))/LOG(2)))) -> 0 | AI13: =N13 -> 221 | AJ13: =COUNTIF(L38:L47,AI13) -> 0 | AK13: =AJ13/(AL4-AJ14) -> 0 | AL13: =IF(AK13=0,0,(AK13*((LOG(AK13))/LOG(2)))) -> 0 | AN13: =N13 -> 221 | AO13: =COUNTIF(L48:L57,AN13) -> 0 | AP13: =AO13/(AQ4-AO14) -> 0 | AQ13: =IF(AP13=0,0,(AP13*((LOG(AP13))/LOG(2)))) -> 0 | AS13: =N13 -> 221 | AT13: =COUNTIF(L58:L67,AS13) -> 1 | AU13: =AT13/(AV4-AT14) -> 0.5 | AV13: =IF(AU13=0,0,(AU13*((LOG(AU13))/LOG(2)))) -> -0.5
A14: 12 | B14: 779 | C14: 23 | D14: 783 | E14: 23 | F14: 787 | K14: 0 | L14: 122 | N14: 222 | O14: =COUNTIF($L$7:$L$500,N14) -> 37 | P14: =O14/$Q$4 -> 0.606557377 | Q14: =IF(P14=0,0,(P14*((LOG(P14))/LOG(2)))) -> -0.4375001141 | T14: =N14 -> 222 | U14: =COUNTIF(L7:L16,T14) -> 2 | Y14: =N14 -> 222 | Z14: =COUNTIF(L17:L26,Y14) -> 5 | AD14: =N14 -> 222 | AE14: =COUNTIF(L27:L37,AD14) -> 10 | AI14: =N14 -> 222 | AJ14: =COUNTIF(L38:L47,AI14) -> 4 | AN14: =N14 -> 222 | AO14: =COUNTIF(L48:L57,AN14) -> 8 | AS14: =N14 -> 222 | AT14: =COUNTIF(L58:L67,AS14) -> 8
A15: 21 | B15: 897 | C15: 21 | D15: 899 | E15: 21 | F15: 905 | K15: 0 | L15: 222 | P15: =SUM(P7:P14) -> 1 | Q15: =-SUM(Q7:Q14) -> 1.799411117 | V15: =SUM(V7:V14) -> 1 | W15: =-SUM(W7:W14) -> 2.155639062 | AA15: =SUM(AA7:AA14) -> 1 | AB15: =-SUM(AB7:AB14) -> 1.370950594 | AF15: =SUM(AF7:AF14) -> 1 | AG15: =-SUM(AG7:AG14) -> 0 | AK15: =SUM(AK7:AK14) -> 1 | AL15: =-SUM(AL7:AL14) -> 1.459147917 | AP15: =SUM(AP7:AP14) -> 1 | AQ15: =-SUM(AQ7:AQ14) -> 1 | AU15: =SUM(AU7:AU14) -> 1 | AV15: =-SUM(AV7:AV14) -> 1
A16: 12 | B16: 1037 | C16: 23 | D16: 1045 | E16: 14 | F16: 1050 | K16: 0 | L16: 121 | P16: U= | Q16: =Q15/(LOG(Q4)/LOG(2)) -> 0.3034042842 | V16: U1= | W16: =W15/(LOG(W4)/LOG(2)) -> 0.6489120176 | AA16: U2= | AB16: =AB15/(LOG(AB4)/LOG(2)) -> 0.4126972515 | AF16: U3= | AG16: =AG15/(LOG(AG4)/LOG(2)) -> 0 | AK16: U4= | AL16: =AL15/(LOG(AL4)/LOG(2)) -> 0.4392472911 | AP16: U5= | AQ16: =AQ15/(LOG(AQ4)/LOG(2)) -> 0.3010299957 | AU16: U6= | AV16: =AV15/(LOG(AV4)/LOG(2)) -> 0.3010299957
A17: 21 | B17: 1158 | C17: 21 | D17: 1163 | E17: 21 | F17: 1168 | K17: 0 | L17: 222
A18: 21 | B18: 1331 | C18: 21 | D18: 1334 | E18: 21 | F18: 1339 | K18: 0 | L18: 222
A19: 12 | B19: 1434 | C19: 14 | D19: 1441 | E19: 23 | F19: 1446 | K19: 0 | L19: 112 | N19: Total Target Seq
A20: 12 | B20: 1575 | C20: 14 | D20: 1586 | E20: 14 | F20: 1593 | K20: 0 | L20: 111 | N20: =COUNTIF(L7:L67,G3) -> 37 | P20: 10 | Q20: 10 | R20: 11 | S20: 10 | T20: 10 | U20: 10
A21: 21 | B21: 1689 | C21: 21 | D21: 1691 | E21: 21 | F21: 1702 | K21: 0 | L21: 222 | P21: % of reinforcement given in 6 equal intervals based on number of trials
A22: 21 | B22: 1812 | C22: 21 | D22: 1816 | E22: 21 | F22: 1821 | K22: 0 | L22: 222 | P22: %_1 | Q22: %_2 | R22: %_3 | S22: %_4 | T22: %_5 | U22: %_6
A23: 12 | B23: 1919 | C23: 14 | D23: 1933 | E23: 23 | F23: 1937 | K23: 0 | L23: 112 | O23: target sequence | P23: =$G$3 -> 222 | Q23: =$G$3 -> 222 | R23: =$G$3 -> 222 | S23: =$G$3 -> 222 | T23: =$G$3 -> 222 | U23: =$G$3 -> 222
A24: 12 | B24: 2033 | C24: 23 | D24: 2040 | E24: 14 | F24: 2042 | K24: 0 | L24: 121 | O24: total reinforcement | P24: =U14 -> 2 | Q24: =Z14 -> 5 | R24: =AE14 -> 10 | S24: =AJ14 -> 4 | T24: =AO14 -> 8 | U24: =AT14 -> 8
A25: 21 | B25: 2142 | C25: 21 | D25: 2155 | E25: 21 | F25: 2160 | K25: 0 | L25: 222 | O25: % target
A26: 12 | B26: 2298 | C26: 14 | D26: 2303 | E26: 23 | F26: 2312 | K26: 0 | L26: 112 | O26: CCRF
A27: 21 | B27: 2410 | C27: 21 | D27: 2422 | E27: 21 | F27: 2426 | K27: 0 | L27: 222 | O27: % CCRf
A28: 21 | B28: 2520 | C28: 21 | D28: 2523 | E28: 21 | F28: 2537 | K28: 0 | L28: 222 | O28: average response rate | P28: =F16/P20 -> 105 | Q28: =(F26-F16)/Q20 -> 126.2 | R28: =(F37-F26)/R20 -> 122.3636364 | S28: =(F47-F37)/S20 -> 124.6 | T28: =(F57-F47)/T20 -> 147.1 | U28: =(F67-F57)/U20 -> 129.4
A29: 12 | B29: 2650 | C29: 23 | D29: 2661 | E29: 23 | F29: 2668 | K29: 0 | L29: 122
A30: 21 | B30: 2764 | C30: 21 | D30: 2766 | E30: 21 | F30: 2776 | K30: 0 | L30: 222
A31: 21 | B31: 2874 | C31: 21 | D31: 2877 | E31: 21 | F31: 2886 | K31: 0 | L31: 222
A32: 21 | B32: 3002 | C32: 21 | D32: 3006 | E32: 21 | F32: 3012 | K32: 0 | L32: 222
A33: 21 | B33: 3133 | C33: 21 | D33: 3136 | E33: 21 | F33: 3139 | K33: 0 | L33: 222
A34: 21 | B34: 3230 | C34: 21 | D34: 3236 | E34: 21 | F34: 3242 | K34: 0 | L34: 222
A35: 21 | B35: 3354 | C35: 21 | D35: 3370 | E35: 21 | F35: 3380 | K35: 0 | L35: 222
A36: 21 | B36: 3471 | C36: 21 | D36: 3473 | E36: 21 | F36: 3482 | K36: 0 | L36: 222
A37: 21 | B37: 3650 | C37: 21 | D37: 3654 | E37: 21 | F37: 3658 | K37: 0 | L37: 222
A38: 12 | B38: 3756 | C38: 14 | D38: 3763 | E38: 23 | F38: 3767 | K38: 0 | L38: 112
A39: 12 | B39: 3892 | C39: 23 | D39: 3895 | E39: 23 | F39: 3901 | K39: 0 | L39: 122
A40: 21 | B40: 4010 | C40: 21 | D40: 4013 | E40: 21 | F40: 4019 | K40: 0 | L40: 222
A41: 21 | B41: 4117 | C41: 21 | D41: 4120 | E41: 21 | F41: 4122 | K41: 0 | L41: 222
A42: 12 | B42: 4215 | C42: 14 | D42: 4231 | E42: 14 | F42: 4239 | K42: 0 | L42: 111
A43: 21 | B43: 4342 | C43: 21 | D43: 4346 | E43: 21 | F43: 4351 | K43: 0 | L43: 222
A44: 21 | B44: 4443 | C44: 21 | D44: 4457 | E44: 21 | F44: 4460 | K44: 0 | L44: 222
A45: 12 | B45: 4549 | C45: 23 | D45: 4589 | E45: 23 | F45: 4592 | K45: 0 | L45: 122
A46: 12 | B46: 4755 | C46: 14 | D46: 4769 | E46: 14 | F46: 4778 | K46: 0 | L46: 111
A47: 12 | B47: 4872 | C47: 14 | D47: 4892 | E47: 14 | F47: 4904 | K47: 0 | L47: 111
A48: 21 | B48: 5089 | C48: 21 | D48: 5094 | E48: 21 | F48: 5098 | K48: 0 | L48: 222
A49: 21 | B49: 5245 | C49: 21 | D49: 5248 | E49: 21 | F49: 5252 | K49: 0 | L49: 222
A50: 21 | B50: 5346 | C50: 21 | D50: 5360 | E50: 21 | F50: 5363 | K50: 0 | L50: 222
A51: 12 | B51: 5502 | C51: 14 | D51: 5506 | E51: 14 | F51: 5511 | K51: 0 | L51: 111
A52: 21 | B52: 5614 | C52: 21 | D52: 5620 | E52: 21 | F52: 5622 | K52: 0 | L52: 222
A53: 21 | B53: 5749 | C53: 21 | D53: 5756 | E53: 21 | F53: 5760 | K53: 0 | L53: 222
A54: 21 | B54: 5898 | C54: 21 | D54: 5909 | E54: 21 | F54: 5913 | K54: 0 | L54: 222
A55: 21 | B55: 6021 | C55: 21 | D55: 6026 | E55: 21 | F55: 6030 | K55: 0 | L55: 222
A56: 21 | B56: 6124 | C56: 21 | D56: 6135 | E56: 21 | F56: 6149 | K56: 0 | L56: 222
A57: 12 | B57: 6357 | C57: 14 | D57: 6362 | E57: 23 | F57: 6375 | K57: 0 | L57: 112
A58: 21 | B58: 6478 | C58: 21 | D58: 6482 | E58: 21 | F58: 6488 | K58: 0 | L58: 222
A59: 21 | B59: 6607 | C59: 21 | D59: 6610 | E59: 21 | F59: 6617 | K59: 0 | L59: 222
A60: 12 | B60: 6756 | C60: 14 | D60: 6765 | E60: 23 | F60: 6784 | K60: 0 | L60: 112
A61: 21 | B61: 6890 | C61: 21 | D61: 6894 | E61: 12 | F61: 6899 | K61: 0 | L61: 221
A62: 21 | B62: 7017 | C62: 21 | D62: 7022 | E62: 21 | F62: 7026 | K62: 0 | L62: 222
A63: 21 | B63: 7178 | C63: 21 | D63: 7182 | E63: 21 | F63: 7187 | K63: 0 | L63: 222
A64: 21 | B64: 7278 | C64: 21 | D64: 7289 | E64: 21 | F64: 7292 | K64: 0 | L64: 222
A65: 21 | B65: 7386 | C65: 21 | D65: 7393 | E65: 21 | F65: 7397 | K65: 0 | L65: 222
A66: 21 | B66: 7503 | C66: 21 | D66: 7506 | E66: 21 | F66: 7510 | K66: 0 | L66: 222
A67: 21 | B67: 7658 | C67: 21 | D67: 7663 | E67: 21 | F67: 7669 | K67: 1 | L67: 222

Sheet !M911A3T.AYL
A1: Report for:!M911A3T.AYL
A2: Date: | B2: <date>
A3: Hen: | B3: <hen> | F3: Correct Sequence | G3: =Start!J2 -> 222 | P3: Total Sequences in Data | Q3: =4994-COUNTBLANK(L7:L5000) -> 40 | V3: Total Sequences in Block Data | W3: =COUNTA(L7:L13) -> 7 | AA3: Total Sequences in Block Data | AB3: =COUNTA(L14:L19) -> 6 | AF3: Total Sequences in Block Data | AG3: =COUNTA(L20:L26) -> 7 | AK3: Total Sequences in Block Data | AL3: =COUNTA(L27:L33) -> 7 | AP3: Total Sequences in Block Data | AQ3: =COUNTA(L34:L39) -> 6 | AU3: Total Sequences in Block Data | AV3: =COUNTA(L40:L46) -> 7
P4: Total Sequences in Summary | Q4: =SUM(O7:O14) -> 40 | V4: Total Sequences in Block Summary | W4: =SUM(U7:U14) -> 7 | AA4: Total Sequences in Block Summary | AB4: =SUM(Z7:Z14) -> 6 | AF4: Total Sequences in Block Summary | AG4: =SUM(AE7:AE14) -> 7 | AK4: Total Sequences in Block Summary | AL4: =SUM(AJ7:AJ14) -> 7 | AP4: Total Sequences in Block Summary | AQ4: =SUM(AO7:AO14) -> 6 | AU4: Total Sequences in Block Summary | AV4: =SUM(AT7:AT14) -> 7
T5: Block 1 | Y5: Block 2 | AD5: Block 3 | AI5: Block 4 | AN5: Block 5 | AS5: Block 6
A6: Sequence Component 1 | B6: Time 1 | C6: Sequence Component 2 | D6: Time 2 | E6: Sequence Component 3 | F6: Time 3 | G6: Sequence Component 4 | H6: Time 4 | I6: Sequence Component 5 | J6: Time 5 | K6: Correct? 0=No 1=Yes | L6: Sequence | N6: Frequency | P6: Relative Frequency | Q6: Variability | T6: Frequency | V6: Relative Frequency | W6: Variability | Y6: Frequency | AA6: Relative Frequency | AB6: Variability | AD6: Frequency | AF6: Relative Frequency | AG6: Variability | AI6: Frequency | AK6: Relative Frequency | AL6: Variability | AN6: Frequency | AP6: Relative Frequency | AQ6: Variability | AS6: Frequency | AU6: Relative Frequency | AV6: Variability
A7: 21 | B7: 24 | C7: 21 | D7: 28 | E7: 21 | F7: 35 | K7: 0 | L7: 222 | N7: 111 | O7: =COUNTIF($L$7:$L$500,N7) -> 0 | P7: =O7/$Q$4 -> 0 | Q7: =IF(P7=0,0,(P7*((LOG(P7))/LOG(2)))) -> 0 | T7: =N7 -> 111 | U7: =COUNTIF(L7:L13,T7) -> 0 | V7: =U7/(W4-U14) ->  | W7: =IF(V7=0,0,(V7*((LOG(V7))/LOG(2)))) ->  | Y7: =N7 -> 111 | Z7: =COUNTIF(L14:L19,Y7) -> 0 | AA7: =Z7/(AB4-Z14) ->  | AB7: =IF(AA7=0,0,(AA7*((LOG(AA7))/LOG(2)))) ->  | AD7: =N7 -> 111 | AE7: =COUNTIF(L20:L26,AD7) -> 0 | AF7: =AE7/(AG4-AE14) ->  | AG7: =IF(AF7=0,0,(AF7*((LOG(AF7))/LOG(2)))) ->  | AI7: =N7 -> 111 | AJ7: =COUNTIF(L27:L33,AI7) -> 0 | AK7: =AJ7/(AL4-AJ14) ->  | AL7: =IF(AK7=0,0,(AK7*((LOG(AK7))/LOG(2)))) ->  | AN7: =N7 -> 111 | AO7: =COUNTIF(L34:L39,AN7) -> 0 | AP7: =AO7/(AQ4-AO14) ->  | AQ7: =IF(AP7=0,0,(AP7*((LOG(AP7))/LOG(2)))) ->  | AS7: =N7 -> 111 | AT7: =COUNTIF(L40:L46,AS7) -> 0 | AU7: =AT7/(AV4-AT14) ->  | AV7: =IF(AU7=0,0,(AU7*((LOG(AU7))/LOG(2)))) -> 
A8: 21 | B8: 154 | C8: 21 | D8: 160 | E8: 21 | F8: 166 | K8: 0 | L8: 222 | N8: 112 | O8: =COUNTIF($L$7:$L$500,N8) -> 0 | P8: =O8/$Q$4 -> 0 | Q8: =IF(P8=0,0,(P8*((LOG(P8))/LOG(2)))) -> 0 | T8: =N8 -> 112 | U8: =COUNTIF(L7:L13,T8) -> 0 | V8: =U8/(W4-U14) ->  | W8: =IF(V8=0,0,(V8*((LOG(V8))/LOG(2)))) ->  | Y8: =N8 -> 112 | Z8: =COUNTIF(L14:L19,Y8) -> 0 | AA8: =Z8/(AB4-Z14) ->  | AB8: =IF(AA8=0,0,(AA8*((LOG(AA8))/LOG(2)))) ->  | AD8: =N8 -> 112 | AE8: =COUNTIF(L20:L26,AD8) -> 0 | AF8: =AE8/(AG4-AE14) ->  | AG8: =IF(AF8=0,0,(AF8*((LOG(AF8))/LOG(2)))) ->  | AI8: =N8 -> 112 | AJ8: =COUNTIF(L27:L33,AI8) -> 0 | AK8: =AJ8/(AL4-AJ14) ->  | AL8: =IF(AK8=0,0,(AK8*((LOG(AK8))/LOG(2)))) ->  | AN8: =N8 -> 112 | AO8: =COUNTIF(L34:L39,AN8) -> 0 | AP8: =AO8/(AQ4-AO14) ->  | AQ8: =IF(AP8=0,0,(AP8*((LOG(AP8))/LOG(2)))) ->  | AS8: =N8 -> 112 | AT8: =COUNTIF(L40:L46,AS8) -> 0 | AU8: =AT8/(AV4-AT14) ->  | AV8: =IF(AU8=0,0,(AU8*((LOG(AU8))/LOG(2)))) -> 
A9: 21 | B9: 260 | C9: 21 | D9: 264 | E9: 21 | F9: 274 | K9: 0 | L9: 222 | N9: 121 | O9: =COUNTIF($L$7:$L$500,N9) -> 0 | P9: =O9/$Q$4 -> 0 | Q9: =IF(P9=0,0,(P9*((LOG(P9))/LOG(2)))) -> 0 | T9: =N9 -> 121 | U9: =COUNTIF(L7:L13,T9) -> 0 | V9: =U9/(W4-U14) ->  | W9: =IF(V9=0,0,(V9*((LOG(V9))/LOG(2)))) ->  | Y9: =N9 -> 121 | Z9: =COUNTIF(L14:L19,Y9) -> 0 | AA9: =Z9/(AB4-Z14) ->  | AB9: =IF(AA9=0,0,(AA9*((LOG(AA9))/LOG(2)))) ->  | AD9: =N9 -> 121 | AE9: =COUNTIF(L20:L26,AD9) -> 0 | AF9: =AE9/(AG4-AE14) ->  | AG9: =IF(AF9=0,0,(AF9*((LOG(AF9))/LOG(2)))) ->  | AI9: =N9 -> 121 | AJ9: =COUNTIF(L27:L33,AI9) -> 0 | AK9: =AJ9/(AL4-AJ14) ->  | AL9: =IF(AK9=0,0,(AK9*((LOG(AK9))/LOG(2)))) ->  | AN9: =N9 -> 121 | AO9: =COUNTIF(L34:L39,AN9) -> 0 | AP9: =AO9/(AQ4-AO14) ->  | AQ9: =IF(AP9=0,0,(AP9*((LOG(AP9))/LOG(2)))) ->  | AS9: =N9 -> 121 | AT9: =COUNTIF(L40:L46,AS9) -> 0 | AU9: =AT9/(AV4-AT14) ->  | AV9: =IF(AU9=0,0,(AU9*((LOG(AU9))/LOG(2)))) -> 
A10: 21 | B10: 374 | C10: 21 | D10: 379 | E10: 21 | F10: 384 | K10: 0 | L10: 222 | N10: 122 | O10: =COUNTIF($L$7:$L$500,N10) -> 0 | P10: =O10/$Q$4 -> 0 | Q10: =IF(P10=0,0,(P10*((LOG(P10))/LOG(2)))) -> 0 | T10: =N10 -> 122 | U10: =COUNTIF(L7:L13,T10) -> 0 | V10: =U10/(W4-U14) ->  | W10: =IF(V10=0,0,(V10*((LOG(V10))/LOG(2)))) ->  | Y10: =N10 -> 122 | Z10: =COUNTIF(L14:L19,Y10) -> 0 | AA10: =Z10/(AB4-Z14) ->  | AB10: =IF(AA10=0,0,(AA10*((LOG(AA10))/LOG(2)))) ->  | AD10: =N10 -> 122 | AE10: =COUNTIF(L20:L26,AD10) -> 0 | AF10: =AE10/(AG4-AE14) ->  | AG10: =IF(AF10=0,0,(AF10*((LOG(AF10))/LOG(2)))) ->  | AI10: =N10 -> 122 | AJ10: =COUNTIF(L27:L33,AI10) -> 0 | AK10: =AJ10/(AL4-AJ14) ->  | AL10: =IF(AK10=0,0,(AK10*((LOG(AK10))/LOG(2)))) ->  | AN10: =N10 -> 122 | AO10: =COUNTIF(L34:L39,AN10) -> 0 | AP10: =AO10/(AQ4-AO14) ->  | AQ10: =IF(AP10=0,0,(AP10*((LOG(AP10))/LOG(2)))) ->  | AS10: =N10 -> 122 | AT10: =COUNTIF(L40:L46,AS10) -> 0 | AU10: =AT10/(AV4-AT14) ->  | AV10: =IF(AU10=0,0,(AU10*((LOG(AU10))/LOG(2)))) -> 
A11: 21 | B11: 479 | C11: 21 | D11: 486 | E11: 21 | F11: 500 | K11: 0 | L11: 222 | N11: 211 | O11: =COUNTIF($L$7:$L$500,N11) -> 0 | P11: =O11/$Q$4 -> 0 | Q11: =IF(P11=0,0,(P11*((LOG(P11))/LOG(2)))) -> 0 | T11: =N11 -> 211 | U11: =COUNTIF(L7:L13,T11) -> 0 | V11: =U11/(W4-U14) ->  | W11: =IF(V11=0,0,(V11*((LOG(V11))/LOG(2)))) ->  | Y11: =N11 -> 211 | Z11: =COUNTIF(L14:L19,Y11) -> 0 | AA11: =Z11/(AB4-Z14) ->  | AB11: =IF(AA11=0,0,(AA11*((LOG(AA11))/LOG(2)))) ->  | AD11: =N11 -> 211 | AE11: =COUNTIF(L20:L26,AD11) -> 0 | AF11: =AE11/(AG4-AE14) ->  | AG11: =IF(AF11=0,0,(AF11*((LOG(AF11))/LOG(2)))) ->  | AI11: =N11 -> 211 | AJ11: =COUNTIF(L27:L33,AI11) -> 0 | AK11: =AJ11/(AL4-AJ14) ->  | AL11: =IF(AK11=0,0,(AK11*((LOG(AK11))/LOG(2)))) ->  | AN11: =N11 -> 211 | AO11: =COUNTIF(L34:L39,AN11) -> 0 | AP11: =AO11/(AQ4-AO14) ->  | AQ11: =IF(AP11=0,0,(AP11*((LOG(AP11))/LOG(2)))) ->  | AS11: =N11 -> 211 | AT11: =COUNTIF(L40:L46,AS11) -> 0 | AU11: =AT11/(AV4-AT14) ->  | AV11: =IF(AU11=0,0,(AU11*((LOG(AU11))/LOG(2)))) -> 
A12: 21 | B12: 626 | C12: 21 | D12: 630 | E12: 21 | F12: 635 | K12: 0 | L12: 222 | N12: 212 | O12: =COUNTIF($L$7:$L$500,N12) -> 0 | P12: =O12/$Q$4 -> 0 | Q12: =IF(P12=0,0,(P12*((LOG(P12))/LOG(2)))) -> 0 | T12: =N12 -> 212 | U12: =COUNTIF(L7:L13,T12) -> 0 | V12: =U12/(W4-U14) ->  | W12: =IF(V12=0,0,(V12*((LOG(V12))/LOG(2)))) ->  | Y12: =N12 -> 212 | Z12: =COUNTIF(L14:L19,Y12) -> 0 | AA12: =Z12/(AB4-Z14) ->  | AB12: =IF(AA12=0,0,(AA12*((LOG(AA12))/LOG(2)))) ->  | AD12: =N12 -> 212 | AE12: =COUNTIF(L20:L26,AD12) -> 0 | AF12: =AE12/(AG4-AE14) ->  | AG12: =IF(AF12=0,0,(AF12*((LOG(AF12))/LOG(2)))) ->  | AI12: =N12 -> 212 | AJ12: =COUNTIF(L27:L33,AI12) -> 0 | AK12: =AJ12/(AL4-AJ14) ->  | AL12: =IF(AK12=0,0,(AK12*((LOG(AK12))/LOG(2)))) ->  | AN12: =N12 -> 212 | AO12: =COUNTIF(L34:L39,AN12) -> 0 | AP12: =AO12/(AQ4-AO14) ->  | AQ12: =IF(AP12=0,0,(AP12*((LOG(AP12))/LOG(2)))) ->  | AS12: =N12 -> 212 | AT12: =COUNTIF(L40:L46,AS12) -> 0 | AU12: =AT12/(AV4-AT14) ->  | AV12: =IF(AU12=0,0,(AU12*((LOG(AU12))/LOG(2)))) -> 
A13: 21 | B13: 727 | C13: 21 | D13: 731 | E13: 21 | F13: 736 | K13: 0 | L13: 222 | N13: 221 | O13: =COUNTIF($L$7:$L$500,N13) -> 0 | P13: =O13/$Q$4 -> 0 | Q13: =IF(P13=0,0,(P13*((LOG(P13))/LOG(2)))) -> 0 | T13: =N13 -> 221 | U13: =COUNTIF(L7:L13,T13) -> 0 | V13: =U13/(W4-U14) ->  | W13: =IF(V13=0,0,(V13*((LOG(V13))/LOG(2)))) ->  | Y13: =N13 -> 221 | Z13: =COUNTIF(L14:L19,Y13) -> 0 | AA13: =Z13/(AB4-Z14) ->  | AB13: =IF(AA13=0,0,(AA13*((LOG(AA13))/LOG(2)))) ->  | AD13: =N13 -> 221 | AE13: =COUNTIF(L20:L26,AD13) -> 0 | AF13: =AE13/(AG4-AE14) ->  | AG13: =IF(AF13=0,0,(AF13*((LOG(AF13))/LOG(2)))) ->  | AI13: =N13 -> 221 | AJ13: =COUNTIF(L27:L33,AI13) -> 0 | AK13: =AJ13/(AL4-AJ14) ->  | AL13: =IF(AK13=0,0,(AK13*((LOG(AK13))/LOG(2)))) ->  | AN13: =N13 -> 221 | AO13: =COUNTIF(L34:L39,AN13) -> 0 | AP13: =AO13/(AQ4-AO14) ->  | AQ13: =IF(AP13=0,0,(AP13*((LOG(AP13))/LOG(2)))) ->  | AS13: =N13 -> 221 | AT13: =COUNTIF(L40:L46,AS13) -> 0 | AU13: =AT13/(AV4-AT14) ->  | AV13: =IF(AU13=0,0,(AU13*((LOG(AU13))/LOG(2)))) -> 
A14: 21 | B14: 827 | C14: 21 | D14: 832 | E14: 21 | F14: 838 | K14: 0 | L14: 222 | N14: 222 | O14: =COUNTIF($L$7:$L$500,N14) -> 40 | P14: =O14/$Q$4 -> 1 | Q14: =IF(P14=0,0,(P14*((LOG(P14))/LOG(2)))) -> 0 | T14: =N14 -> 222 | U14: =COUNTIF(L7:L13,T14) -> 7 | Y14: =N14 -> 222 | Z14: =COUNTIF(L14:L19,Y14) -> 6 | AD14: =N14 -> 222 | AE14: =COUNTIF(L20:L26,AD14) -> 7 | AI14: =N14 -> 222 | AJ14: =COUNTIF(L27:L33,AI14) -> 7 | AN14: =N14 -> 222 | AO14: =COUNTIF(L34:L39,AN14) -> 6 | AS14: =N14 -> 222 | AT14: =COUNTIF(L40:L46,AS14) -> 7
A15: 21 | B15: 934 | C15: 21 | D15: 939 | E15: 21 | F15: 945 | K15: 0 | L15: 222 | P15: =SUM(P7:P14) -> 1 | Q15: =-SUM(Q7:Q14) -> 0 | V15: =SUM(V7:V14) ->  | W15: =-SUM(W7:W14) ->  | AA15: =SUM(AA7:AA14) ->  | AB15: =-SUM(AB7:AB14) ->  | AF15: =SUM(AF7:AF14) ->  | AG15: =-SUM(AG7:AG14) ->  | AK15: =SUM(AK7:AK14) ->  | AL15: =-SUM(AL7:AL14) ->  | AP15: =SUM(AP7:AP14) ->  | AQ15: =-SUM(AQ7:AQ14) ->  | AU15: =SUM(AU7:AU14) ->  | AV15: =-SUM(AV7:AV14) -> 
A16: 21 | B16: 1049 | C16: 21 | D16: 1053 | E16: 21 | F16: 1057 | K16: 0 | L16: 222 | P16: U= | Q16: =Q15/(LOG(Q4)/LOG(2)) -> 0 | V16: U1= | W16: =W15/(LOG(W4)/LOG(2)) ->  | AA16: U2= | AB16: =AB15/(LOG(AB4)/LOG(2)) ->  | AF16: U3= | AG16: =AG15/(LOG(AG4)/LOG(2)) ->  | AK16: U4= | AL16: =AL15/(LOG(AL4)/LOG(2)) ->  | AP16: U5= | AQ16: =AQ15/(LOG(AQ4)/LOG(2)) ->  | AU16: U6= | AV16: =AV15/(LOG(AV4)/LOG(2)) -> 
A17: 21 | B17: 1339 | C17: 21 | D17: 1344 | E17: 21 | F17: 1351 | K17: 0 | L17: 222
A18: 21 | B18: 1489 | C18: 21 | D18: 1492 | E18: 21 | F18: 1523 | K18: 0 | L18: 222
A19: 21 | B19: 1616 | C19: 21 | D19: 1620 | E19: 21 | F19: 1629 | K19: 0 | L19: 222 | N19: Total Target Seq
A20: 21 | B20: 1722 | C20: 21 | D20: 1725 | E20: 21 | F20: 1730 | K20: 0 | L20: 222 | N20: =COUNTIF(L7:L46,G3) -> 40 | P20: 7 | Q20: 6 | R20: 7 | S20: 7 | T20: 6 | U20: 7
A21: 21 | B21: 1824 | C21: 21 | D21: 1828 | E21: 21 | F21: 1844 | K21: 0 | L21: 222 | P21: % of reinforcement given in 6 equal intervals based on number of trials
A22: 21 | B22: 1963 | C22: 21 | D22: 1969 | E22: 21 | F22: 1975 | K22: 0 | L22: 222 | P22: %_1 | Q22: %_2 | R22: %_3 | S22: %_4 | T22: %_5 | U22: %_6
A23: 21 | B23: 2218 | C23: 21 | D23: 2221 | E23: 21 | F23: 2227 | K23: 0 | L23: 222 | O23: target sequence | P23: =$G$3 -> 222 | Q23: =$G$3 -> 222 | R23: =$G$3 -> 222 | S23: =$G$3 -> 222 | T23: =$G$3 -> 222 | U23: =$G$3 -> 222
A24: 21 | B24: 3332 | C24: 21 | D24: 3341 | E24: 21 | F24: 3349 | K24: 0 | L24: 222 | O24: total reinforcement | P24: =U14 -> 7 | Q24: =Z14 -> 6 | R24: =AE14 -> 7 | S24: =AJ14 -> 7 | T24: =AO14 -> 6 | U24: =AT14 -> 7
A25: 21 | B25: 3453 | C25: 21 | D25: 3456 | E25: 21 | F25: 3460 | K25: 0 | L25: 222 | O25: % target
A26: 21 | B26: 4371 | C26: 21 | D26: 4391 | E26: 21 | F26: 4406 | K26: 0 | L26: 222 | O26: CCRF
A27: 21 | B27: 5394 | C27: 21 | D27: 5401 | E27: 21 | F27: 5408 | K27: 0 | L27: 222 | O27: % CCRf
A28: 21 | B28: 5506 | C28: 21 | D28: 5511 | E28: 21 | F28: 5516 | K28: 0 | L28: 222 | O28: average response rate | P28: =F13/P20 -> 105.1428571 | Q28: =(F19-F13)/Q20 -> 148.8333333 | R28: =(F26-F19)/R20 -> 396.7142857 | S28: =(F33-F26)/S20 -> 278.4285714 | T28: =(F39-F33)/T20 -> 332.1666667 | U28: =(F46-F39)/U20 -> 494.8571429
A29: 21 | B29: 5609 | C29: 21 | D29: 5623 | E29: 21 | F29: 5626 | K29: 0 | L29: 222
A30: 21 | B30: 5723 | C30: 21 | D30: 5728 | E30: 21 | F30: 5741 | K30: 0 | L30: 222
A31: 21 | B31: 5867 | C31: 21 | D31: 5869 | E31: 21 | F31: 5877 | K31: 0 | L31: 222
A32: 21 | B32: 6012 | C32: 21 | D32: 6018 | E32: 21 | F32: 6023 | K32: 0 | L32: 222
A33: 21 | B33: 6345 | C33: 21 | D33: 6349 | E33: 21 | F33: 6355 | K33: 0 | L33: 222
A34: 21 | B34: 6470 | C34: 21 | D34: 6476 | E34: 21 | F34: 6487 | K34: 0 | L34: 222
A35: 21 | B35: 6632 | C35: 21 | D35: 6634 | E35: 21 | F35: 6639 | K35: 0 | L35: 222
A36: 21 | B36: 6769 | C36: 21 | D36: 6773 | E36: 21 | F36: 6776 | K36: 0 | L36: 222
A37: 21 | B37: 7056 | C37: 21 | D37: 7067 | E37: 21 | F37: 7075 | K37: 0 | L37: 222
A38: 21 | B38: 7744 | C38: 21 | D38: 7749 | E38: 21 | F38: 7756 | K38: 0 | L38: 222
A39: 21 | B39: 8328 | C39: 21 | D39: 8337 | E39: 21 | F39: 8348 | K39: 0 | L39: 222
A40: 21 | B40: 8441 | C40: 21 | D40: 8446 | E40: 21 | F40: 8451 | K40: 0 | L40: 222
A41: 21 | B41: 8620 | C41: 21 | D41: 8623 | E41: 21 | F41: 8631 | K41: 0 | L41: 222
A42: 21 | B42: 8748 | C42: 21 | D42: 8756 | E42: 21 | F42: 8761 | K42: 0 | L42: 222
A43: 21 | B43: 9555 | C43: 21 | D43: 9558 | E43: 21 | F43: 9562 | K43: 0 | L43: 222
A44: 21 | B44: 10020 | C44: 21 | D44: 10052 | E44: 21 | F44: 10065 | K44: 0 | L44: 222
A45: 21 | B45: 11677 | C45: 21 | D45: 11680 | E45: 21 | F45: 11690 | K45: 0 | L45: 222
A46: 21 | B46: 11801 | C46: 21 | D46: 11808 | E46: 21 | F46: 11812 | K46: 1 | L46: 222

Sheet !M912A4T.AYL
A1: Report for:!M912A4T.AYL
A2: Date: | B2: <date>
A3: Hen: | B3: <hen> | F3: Correct Sequence | G3: =Start!J2 -> 222 | P3: Total Sequences in Data | Q3: =4994-COUNTBLANK(L7:L5000) -> 41 | V3: Total Sequences in Block Data | W3: =COUNTA(L7:L13) -> 7 | AA3: Total Sequences in Block Data | AB3: =COUNTA(L14:L20) -> 7 | AF3: Total Sequences in Block Data | AG3: =COUNTA(L21:L26) -> 6 | AK3: Total Sequences in Block Data | AL3: =COUNTA(L27:L33) -> 7 | AP3: Total Sequences in Block Data | AQ3: =COUNTA(L34:L40) -> 7 | AU3: Total Sequences in Block Data | AV3: =COUNTA(L41:L47) -> 7
P4: Total Sequences in Summary | Q4: =SUM(O7:O14) -> 41 | V4: Total Sequences in Block Summary | W4: =SUM(U7:U14) -> 7 | AA4: Total Sequences in Block Summary | AB4: =SUM(Z7:Z14) -> 7 | AF4: Total Sequences in Block Summary | AG4: =SUM(AE7:AE14) -> 6 | AK4: Total Sequences in Block Summary | AL4: =SUM(AJ7:AJ14) -> 7 | AP4: Total Sequences in Block Summary | AQ4: =SUM(AO7:AO14) -> 7 | AU4: Total Sequences in Block Summary | AV4: =SUM(AT7:AT14) -> 7
T5: Block 1 | Y5: Block 2 | AD5: Block 3 | AI5: Block 4 | AN5: Block 5 | AS5: Block 6
A6: Sequence Component 1 | B6: Time 1 | C6: Sequence Component 2 | D6: Time 2 | E6: Sequence Component 3 | F6: Time 3 | G6: Sequence Component 4 | H6: Time 4 | I6: Sequence Component 5 | J6: Time 5 | K6: Correct? 0=No 1=Yes | L6: Sequence | N6: Frequency | P6: Relative Frequency | Q6: Variability | T6: Frequency | V6: Relative Frequency | W6: Variability | Y6: Frequency | AA6: Relative Frequency | AB6: Variability | AD6: Frequency | AF6: Relative Frequency | AG6: Variability | AI6: Frequency | AK6: Relative Frequency | AL6: Variability | AN6: Frequency | AP6: Relative Frequency | AQ6: Variability | AS6: Frequency | AU6: Relative Frequency | AV6: Variability
A7: 12 | B7: 7 | C7: 23 | D7: 14 | E7: 23 | F7: 18 | K7: 0 | L7: 122 | N7: 111 | O7: =COUNTIF($L$7:$L$500,N7) -> 0 | P7: =O7/$Q$4 -> 0 | Q7: =IF(P7=0,0,(P7*((LOG(P7))/LOG(2)))) -> 0 | T7: =N7 -> 111 | U7: =COUNTIF(L7:L13,T7) -> 0 | V7: =U7/(W4-U14) -> 0 | W7: =IF(V7=0,0,(V7*((LOG(V7))/LOG(2)))) -> 0 | Y7: =N7 -> 111 | Z7: =COUNTIF(L14:L20,Y7) -> 0 | AA7: =Z7/(AB4-Z14) ->  | AB7: =IF(AA7=0,0,(AA7*((LOG(AA7))/LOG(2)))) ->  | AD7: =N7 -> 111 | AE7: =COUNTIF(L21:L26,AD7) -> 0 | AF7: =AE7/(AG4-AE14) ->  | AG7: =IF(AF7=0,0,(AF7*((LOG(AF7))/LOG(2)))) ->  | AI7: =N7 -> 111 | AJ7: =COUNTIF(L27:L33,AI7) -> 0 | AK7: =AJ7/(AL4-AJ14) ->  | AL7: =IF(AK7=0,0,(AK7*((LOG(AK7))/LOG(2)))) ->  | AN7: =N7 -> 111 | AO7: =COUNTIF(L34:L40,AN7) -> 0 | AP7: =AO7/(AQ4-AO14) ->  | AQ7: =IF(AP7=0,0,(AP7*((LOG(AP7))/LOG(2)))) ->  | AS7: =N7 -> 111 | AT7: =COUNTIF(L41:L47,AS7) -> 0 | AU7: =AT7/(AV4-AT14) ->  | AV7: =IF(AU7=0,0,(AU7*((LOG(AU7))/LOG(2)))) -> 
A8: 21 | B8: 122 | C8: 21 | D8: 129 | E8: 21 | F8: 133 | K8: 0 | L8: 222 | N8: 112 | O8: =COUNTIF($L$7:$L$500,N8) -> 0 | P8: =O8/$Q$4 -> 0 | Q8: =IF(P8=0,0,(P8*((LOG(P8))/LOG(2)))) -> 0 | T8: =N8 -> 112 | U8: =COUNTIF(L7:L13,T8) -> 0 | V8: =U8/(W4-U14) -> 0 | W8: =IF(V8=0,0,(V8*((LOG(V8))/LOG(2)))) -> 0 | Y8: =N8 -> 112 | Z8: =COUNTIF(L14:L20,Y8) -> 0 | AA8: =Z8/(AB4-Z14) ->  | AB8: =IF(AA8=0,0,(AA8*((LOG(AA8))/LOG(2)))) ->  | AD8: =N8 -> 112 | AE8: =COUNTIF(L21:L26,AD8) -> 0 | AF8: =AE8/(AG4-AE14) ->  | AG8: =IF(AF8=0,0,(AF8*((LOG(AF8))/LOG(2)))) ->  | AI8: =N8 -> 112 | AJ8: =COUNTIF(L27:L33,AI8) -> 0 | AK8: =AJ8/(AL4-AJ14) ->  | AL8: =IF(AK8=0,0,(AK8*((LOG(AK8))/LOG(2)))) ->  | AN8: =N8 -> 112 | AO8: =COUNTIF(L34:L40,AN8) -> 0 | AP8: =AO8/(AQ4-AO14) ->  | AQ8: =IF(AP8=0,0,(AP8*((LOG(AP8))/LOG(2)))) ->  | AS8: =N8 -> 112 | AT8: =COUNTIF(L41:L47,AS8) -> 0 | AU8: =AT8/(AV4-AT14) ->  | AV8: =IF(AU8=0,0,(AU8*((LOG(AU8))/LOG(2)))) -> 
A9: 21 | B9: 254 | C9: 21 | D9: 260 | E9: 21 | F9: 264 | K9: 0 | L9: 222 | N9: 121 | O9: =COUNTIF($L$7:$L$500,N9) -> 0 | P9: =O9/$Q$4 -> 0 | Q9: =IF(P9=0,0,(P9*((LOG(P9))/LOG(2)))) -> 0 | T9: =N9 -> 121 | U9: =COUNTIF(L7:L13,T9) -> 0 | V9: =U9/(W4-U14) -> 0 | W9: =IF(V9=0,0,(V9*((LOG(V9))/LOG(2)))) -> 0 | Y9: =N9 -> 121 | Z9: =COUNTIF(L14:L20,Y9) -> 0 | AA9: =Z9/(AB4-Z14) ->  | AB9: =IF(AA9=0,0,(AA9*((LOG(AA9))/LOG(2)))) ->  | AD9: =N9 -> 121 | AE9: =COUNTIF(L21:L26,AD9) -> 0 | AF9: =AE9/(AG4-AE14) ->  | AG9: =IF(AF9=0,0,(AF9*((LOG(AF9))/LOG(2)))) ->  | AI9: =N9 -> 121 | AJ9: =COUNTIF(L27:L33,AI9) -> 0 | AK9: =AJ9/(AL4-AJ14) ->  | AL9: =IF(AK9=0,0,(AK9*((LOG(AK9))/LOG(2)))) ->  | AN9: =N9 -> 121 | AO9: =COUNTIF(L34:L40,AN9) -> 0 | AP9: =AO9/(AQ4-AO14) ->  | AQ9: =IF(AP9=0,0,(AP9*((LOG(AP9))/LOG(2)))) ->  | AS9: =N9 -> 121 | AT9: =COUNTIF(L41:L47,AS9) -> 0 | AU9: =AT9/(AV4-AT14) ->  | AV9: =IF(AU9=0,0,(AU9*((LOG(AU9))/LOG(2)))) -> 
A10: 21 | B10: 356 | C10: 21 | D10: 359 | E10: 21 | F10: 372 | K10: 0 | L10: 222 | N10: 122 | O10: =COUNTIF($L$7:$L$500,N10) -> 1 | P10: =O10/$Q$4 -> 0.0243902439 | Q10: =IF(P10=0,0,(P10*((LOG(P10))/LOG(2)))) -> -0.1306720001 | T10: =N10 -> 122 | U10: =COUNTIF(L7:L13,T10) -> 1 | V10: =U10/(W4-U14) -> 1 | W10: =IF(V10=0,0,(V10*((LOG(V10))/LOG(2)))) -> 0 | Y10: =N10 -> 122 | Z10: =COUNTIF(L14:L20,Y10) -> 0 | AA10: =Z10/(AB4-Z14) ->  | AB10: =IF(AA10=0,0,(AA10*((LOG(AA10))/LOG(2)))) ->  | AD10: =N10 -> 122 | AE10: =COUNTIF(L21:L26,AD10) -> 0 | AF10: =AE10/(AG4-AE14) ->  | AG10: =IF(AF10=0,0,(AF10*((LOG(AF10))/LOG(2)))) ->  | AI10: =N10 -> 122 | AJ10: =COUNTIF(L27:L33,AI10) -> 0 | AK10: =AJ10/(AL4-AJ14) ->  | AL10: =IF(AK10=0,0,(AK10*((LOG(AK10))/LOG(2)))) ->  | AN10: =N10 -> 122 | AO10: =COUNTIF(L34:L40,AN10) -> 0 | AP10: =AO10/(AQ4-AO14) ->  | AQ10: =IF(AP10=0,0,(AP10*((LOG(AP10))/LOG(2)))) ->  | AS10: =N10 -> 122 | AT10: =COUNTIF(L41:L47,AS10) -> 0 | AU10: =AT10/(AV4-AT14) ->  | AV10: =IF(AU10=0,0,(AU10*((LOG(AU10))/LOG(2)))) -> 
A11: 21 | B11: 467 | C11: 21 | D11: 470 | E11: 21 | F11: 476 | K11: 0 | L11: 222 | N11: 211 | O11: =COUNTIF($L$7:$L$500,N11) -> 0 | P11: =O11/$Q$4 -> 0 | Q11: =IF(P11=0,0,(P11*((LOG(P11))/LOG(2)))) -> 0 | T11: =N11 -> 211 | U11: =COUNTIF(L7:L13,T11) -> 0 | V11: =U11/(W4-U14) -> 0 | W11: =IF(V11=0,0,(V11*((LOG(V11))/LOG(2)))) -> 0 | Y11: =N11 -> 211 | Z11: =COUNTIF(L14:L20,Y11) -> 0 | AA11: =Z11/(AB4-Z14) ->  | AB11: =IF(AA11=0,0,(AA11*((LOG(AA11))/LOG(2)))) ->  | AD11: =N11 -> 211 | AE11: =COUNTIF(L21:L26,AD11) -> 0 | AF11: =AE11/(AG4-AE14) ->  | AG11: =IF(AF11=0,0,(AF11*((LOG(AF11))/LOG(2)))) ->  | AI11: =N11 -> 211 | AJ11: =COUNTIF(L27:L33,AI11) -> 0 | AK11: =AJ11/(AL4-AJ14) ->  | AL11: =IF(AK11=0,0,(AK11*((LOG(AK11))/LOG(2)))) ->  | AN11: =N11 -> 211 | AO11: =COUNTIF(L34:L40,AN11) -> 0 | AP11: =AO11/(AQ4-AO14) ->  | AQ11: =IF(AP11=0,0,(AP11*((LOG(AP11))/LOG(2)))) ->  | AS11: =N11 -> 211 | AT11: =COUNTIF(L41:L47,AS11) -> 0 | AU11: =AT11/(AV4-AT14) ->  | AV11: =IF(AU11=0,0,(AU11*((LOG(AU11))/LOG(2)))) -> 
A12: 21 | B12: 584 | C12: 21 | D12: 604 | E12: 21 | F12: 614 | K12: 0 | L12: 222 | N12: 212 | O12: =COUNTIF($L$7:$L$500,N12) -> 0 | P12: =O12/$Q$4 -> 0 | Q12: =IF(P12=0,0,(P12*((LOG(P12))/LOG(2)))) -> 0 | T12: =N12 -> 212 | U12: =COUNTIF(L7:L13,T12) -> 0 | V12: =U12/(W4-U14) -> 0 | W12: =IF(V12=0,0,(V12*((LOG(V12))/LOG(2)))) -> 0 | Y12: =N12 -> 212 | Z12: =COUNTIF(L14:L20,Y12) -> 0 | AA12: =Z12/(AB4-Z14) ->  | AB12: =IF(AA12=0,0,(AA12*((LOG(AA12))/LOG(2)))) ->  | AD12: =N12 -> 212 | AE12: =COUNTIF(L21:L26,AD12) -> 0 | AF12: =AE12/(AG4-AE14) ->  | AG12: =IF(AF12=0,0,(AF12*((LOG(AF12))/LOG(2)))) ->  | AI12: =N12 -> 212 | AJ12: =COUNTIF(L27:L33,AI12) -> 0 | AK12: =AJ12/(AL4-AJ14) ->  | AL12: =IF(AK12=0,0,(AK12*((LOG(AK12))/LOG(2)))) ->  | AN12: =N12 -> 212 | AO12: =COUNTIF(L34:L40,AN12) -> 0 | AP12: =AO12/(AQ4-AO14) ->  | AQ12: =IF(AP12=0,0,(AP12*((LOG(AP12))/LOG(2)))) ->  | AS12: =N12 -> 212 | AT12: =COUNTIF(L41:L47,AS12) -> 0 | AU12: =AT12/(AV4-AT14) ->  | AV12: =IF(AU12=0,0,(AU12*((LOG(AU12))/LOG(2)))) -> 
A13: 21 | B13: 710 | C13: 21 | D13: 712 | E13: 21 | F13: 716 | K13: 0 | L13: 222 | N13: 221 | O13: =COUNTIF($L$7:$L$500,N13) -> 0 | P13: =O13/$Q$4 -> 0 | Q13: =IF(P13=0,0,(P13*((LOG(P13))/LOG(2)))) -> 0 | T13: =N13 -> 221 | U13: =COUNTIF(L7:L13,T13) -> 0 | V13: =U13/(W4-U14) -> 0 | W13: =IF(V13=0,0,(V13*((LOG(V13))/LOG(2)))) -> 0 | Y13: =N13 -> 221 | Z13: =COUNTIF(L14:L20,Y13) -> 0 | AA13: =Z13/(AB4-Z14) ->  | AB13: =IF(AA13=0,0,(AA13*((LOG(AA13))/LOG(2)))) ->  | AD13: =N13 -> 221 | AE13: =COUNTIF(L21:L26,AD13) -> 0 | AF13: =AE13/(AG4-AE14) ->  | AG13: =IF(AF13=0,0,(AF13*((LOG(AF13))/LOG(2)))) ->  | AI13: =N13 -> 221 | AJ13: =COUNTIF(L27:L33,AI13) -> 0 | AK13: =AJ13/(AL4-AJ14) ->  | AL13: =IF(AK13=0,0,(AK13*((LOG(AK13))/LOG(2)))) ->  | AN13: =N13 -> 221 | AO13: =COUNTIF(L34:L40,AN13) -> 0 | AP13: =AO13/(AQ4-AO14) ->  | AQ13: =IF(AP13=0,0,(AP13*((LOG(AP13))/LOG(2)))) ->  | AS13: =N13 -> 221 | AT13: =COUNTIF(L41:L47,AS13) -> 0 | AU13: =AT13/(AV4-AT14) ->  | AV13: =IF(AU13=0,0,(AU13*((LOG(AU13))/LOG(2)))) -> 
A14: 21 | B14: 810 | C14: 21 | D14: 812 | E14: 21 | F14: 817 | K14: 0 | L14: 222 | N14: 222 | O14: =COUNTIF($L$7:$L$500,N14) -> 40 | P14: =O14/$Q$4 -> 0.9756097561 | Q14: =IF(P14=0,0,(P14*((LOG(P14))/LOG(2)))) -> -0.03475503388 | T14: =N14 -> 222 | U14: =COUNTIF(L7:L13,T14) -> 6 | Y14: =N14 -> 222 | Z14: =COUNTIF(L14:L20,Y14) -> 7 | AD14: =N14 -> 222 | AE14: =COUNTIF(L21:L26,AD14) -> 6 | AI14: =N14 -> 222 | AJ14: =COUNTIF(L27:L33,AI14) -> 7 | AN14: =N14 -> 222 | AO14: =COUNTIF(L34:L40,AN14) -> 7 | AS14: =N14 -> 222 | AT14: =COUNTIF(L41:L47,AS14) -> 7
A15: 21 | B15: 910 | C15: 21 | D15: 913 | E15: 21 | F15: 919 | K15: 0 | L15: 222 | P15: =SUM(P7:P14) -> 1 | Q15: =-SUM(Q7:Q14) -> 0.165427034 | V15: =SUM(V7:V14) -> 1 | W15: =-SUM(W7:W14) -> 0 | AA15: =SUM(AA7:AA14) ->  | AB15: =-SUM(AB7:AB14) ->  | AF15: =SUM(AF7:AF14) ->  | AG15: =-SUM(AG7:AG14) ->  | AK15: =SUM(AK7:AK14) ->  | AL15: =-SUM(AL7:AL14) ->  | AP15: =SUM(AP7:AP14) ->  | AQ15: =-SUM(AQ7:AQ14) ->  | AU15: =SUM(AU7:AU14) ->  | AV15: =-SUM(AV7:AV14) -> 
A16: 21 | B16: 1011 | C16: 21 | D16: 1028 | E16: 21 | F16: 1041 | K16: 0 | L16: 222 | P16: U= | Q16: =Q15/(LOG(Q4)/LOG(2)) -> 0.03087735478 | V16: U1= | W16: =W15/(LOG(W4)/LOG(2)) -> 0 | AA16: U2= | AB16: =AB15/(LOG(AB4)/LOG(2)) ->  | AF16: U3= | AG16: =AG15/(LOG(AG4)/LOG(2)) ->  | AK16: U4= | AL16: =AL15/(LOG(AL4)/LOG(2)) ->  | AP16: U5= | AQ16: =AQ15/(LOG(AQ4)/LOG(2)) ->  | AU16: U6= | AV16: =AV15/(LOG(AV4)/LOG(2)) -> 
A17: 21 | B17: 1135 | C17: 21 | D17: 1161 | E17: 21 | F17: 1169 | K17: 0 | L17: 222
A18: 21 | B18: 1262 | C18: 21 | D18: 1266 | E18: 21 | F18: 1273 | K18: 0 | L18: 222
A19: 21 | B19: 1363 | C19: 21 | D19: 1383 | E19: 21 | F19: 1402 | K19: 0 | L19: 222 | N19: Total Target Seq
A20: 21 | B20: 1494 | C20: 21 | D20: 1501 | E20: 21 | F20: 1504 | K20: 0 | L20: 222 | N20: =COUNTIF(L7:L47,G3) -> 40 | P20: 7 | Q20: 7 | R20: 6 | S20: 7 | T20: 7 | U20: 7
A21: 21 | B21: 1641 | C21: 21 | D21: 1647 | E21: 21 | F21: 1665 | K21: 0 | L21: 222 | P21: % of reinforcement given in 6 equal intervals based on number of trials
A22: 21 | B22: 1759 | C22: 21 | D22: 1778 | E22: 21 | F22: 1782 | K22: 0 | L22: 222 | P22: %_1 | Q22: %_2 | R22: %_3 | S22: %_4 | T22: %_5 | U22: %_6
A23: 21 | B23: 3623 | C23: 21 | D23: 3641 | E23: 21 | F23: 3649 | K23: 0 | L23: 222 | O23: target sequence | P23: =$G$3 -> 222 | Q23: =$G$3 -> 222 | R23: =$G$3 -> 222 | S23: =$G$3 -> 222 | T23: =$G$3 -> 222 | U23: =$G$3 -> 222
A24: 21 | B24: 3748 | C24: 21 | D24: 3752 | E24: 21 | F24: 3758 | K24: 0 | L24: 222 | O24: total reinforcement | P24: =U14 -> 6 | Q24: =Z14 -> 7 | R24: =AE14 -> 6 | S24: =AJ14 -> 7 | T24: =AO14 -> 7 | U24: =AT14 -> 7
A25: 21 | B25: 3851 | C25: 21 | D25: 3854 | E25: 21 | F25: 3868 | K25: 0 | L25: 222 | O25: % target
A26: 21 | B26: 3962 | C26: 21 | D26: 3966 | E26: 21 | F26: 3969 | K26: 0 | L26: 222 | O26: CCRF
A27: 21 | B27: 4068 | C27: 21 | D27: 4078 | E27: 21 | F27: 4103 | K27: 0 | L27: 222 | O27: % CCRf
A28: 21 | B28: 4249 | C28: 21 | D28: 4254 | E28: 21 | F28: 4273 | K28: 0 | L28: 222 | O28: average response rate | P28: =F13/P20 -> 102.2857143 | Q28: =(F20-F13)/Q20 -> 112.5714286 | R28: =(F26-F20)/R20 -> 410.8333333 | S28: =(F33-F26)/S20 -> 206.2857143 | T28: =(F40-F33)/T20 -> 216.1428571 | U28: =(F47-F40)/U20 -> 496.2857143
A29: 21 | B29: 4373 | C29: 21 | D29: 4377 | E29: 21 | F29: 4387 | K29: 0 | L29: 222
A30: 21 | B30: 4877 | C30: 21 | D30: 4881 | E30: 21 | F30: 4889 | K30: 0 | L30: 222
A31: 21 | B31: 5165 | C31: 21 | D31: 5169 | E31: 21 | F31: 5174 | K31: 0 | L31: 222
A32: 21 | B32: 5287 | C32: 21 | D32: 5291 | E32: 21 | F32: 5294 | K32: 0 | L32: 222
A33: 21 | B33: 5403 | C33: 21 | D33: 5408 | E33: 21 | F33: 5413 | K33: 0 | L33: 222
A34: 21 | B34: 5663 | C34: 21 | D34: 5669 | E34: 21 | F34: 5677 | K34: 0 | L34: 222
A35: 21 | B35: 5775 | C35: 21 | D35: 5783 | E35: 21 | F35: 5790 | K35: 0 | L35: 222
A36: 21 | B36: 6064 | C36: 21 | D36: 6066 | E36: 21 | F36: 6069 | K36: 0 | L36: 222
A37: 21 | B37: 6576 | C37: 21 | D37: 6582 | E37: 21 | F37: 6587 | K37: 0 | L37: 222
A38: 21 | B38: 6680 | C38: 21 | D38: 6684 | E38: 21 | F38: 6687 | K38: 0 | L38: 222
A39: 21 | B39: 6791 | C39: 21 | D39: 6797 | E39: 21 | F39: 6818 | K39: 0 | L39: 222
A40: 21 | B40: 6911 | C40: 21 | D40: 6914 | E40: 21 | F40: 6926 | K40: 0 | L40: 222
A41: 21 | B41: 7020 | C41: 21 | D41: 7027 | E41: 21 | F41: 7034 | K41: 0 | L41: 222
A42: 21 | B42: 7539 | C42: 21 | D42: 7542 | E42: 21 | F42: 7547 | K42: 0 | L42: 222
A43: 21 | B43: 7668 | C43: 21 | D43: 7676 | E43: 21 | F43: 7685 | K43: 0 | L43: 222
A44: 21 | B44: 8369 | C44: 21 | D44: 8374 | E44: 21 | F44: 8398 | K44: 0 | L44: 222
A45: 21 | B45: 8691 | C45: 21 | D45: 8697 | E45: 21 | F45: 8708 | K45: 0 | L45: 222
A46: 21 | B46: 9389 | C46: 21 | D46: 9395 | E46: 21 | F46: 9401 | K46: 0 | L46: 222
A47: 21 | B47: 10389 | C47: 21 | D47: 10393 | E47: 21 | F47: 10400 | K47: 1 | L47: 222

Sheet !M913A0T.AYL
A1: Report for:!M913A0T.AYL
A2: Date: | B2: <date>
A3: Hen: | B3: <hen> | F3: Correct Sequence | G3: =Start!J2 -> 222 | P3: Total Sequences in Data | Q3: =4994-COUNTBLANK(L7:L5000) -> 40 | V3: Total Sequences in Block Data | W3: =COUNTA(L7:L13) -> 7 | AA3: Total Sequences in Block Data | AB3: =COUNTA(L14:L19) -> 6 | AF3: Total Sequences in Block Data | AG3: =COUNTA(L20:L26) -> 7 | AK3: Total Sequences in Block Data | AL3: =COUNTA(L27:L33) -> 7 | AP3: Total Sequences in Block Data | AQ3: =COUNTA(L34:L39) -> 6 | AU3: Total Sequences in Block Data | AV3: =COUNTA(L40:L46) -> 7
P4: Total Sequences in Summary | Q4: =SUM(O7:O14) -> 40 | V4: Total Sequences in Block Summary | W4: =SUM(U7:U14) -> 7 | AA4: Total Sequences in Block Summary | AB4: =SUM(Z7:Z14) -> 6 | AF4: Total Sequences in Block Summary | AG4: =SUM(AE7:AE14) -> 7 | AK4: Total Sequences in Block Summary | AL4: =SUM(AJ7:AJ14) -> 7 | AP4: Total Sequences in Block Summary | AQ4: =SUM(AO7:AO14) -> 6 | AU4: Total Sequences in Block Summary | AV4: =SUM(AT7:AT14) -> 7
T5: Block 1 | Y5: Block 2 | AD5: Block 3 | AI5: Block 4 | AN5: Block 5 | AS5: Block 6
A6: Sequence Component 1 | B6: Time 1 | C6: Sequence Component 2 | D6: Time 2 | E6: Sequence Component 3 | F6: Time 3 | G6: Sequence Component 4 | H6: Time 4 | I6: Sequence Component 5 | J6: Time 5 | K6: Correct? 0=No 1=Yes | L6: Sequence | N6: Frequency | P6: Relative Frequency | Q6: Variability | T6: Frequency | V6: Relative Frequency | W6: Variability | Y6: Frequency | AA6: Relative Frequency | AB6: Variability | AD6: Frequency | AF6: Relative Frequency | AG6: Variability | AI6: Frequency | AK6: Relative Frequency | AL6: Variability | AN6: Frequency | AP6: Relative Frequency | AQ6: Variability | AS6: Frequency | AU6: Relative Frequency | AV6: Variability
A7: 21 | B7: 35 | C7: 21 | D7: 61 | E7: 21 | F7: 66 | K7: 0 | L7: 222 | N7: 111 | O7: =COUNTIF($L$7:$L$500,N7) -> 0 | P7: =O7/$Q$4 -> 0 | Q7: =IF(P7=0,0,(P7*((LOG(P7))/LOG(2)))) -> 0 | T7: =N7 -> 111 | U7: =COUNTIF(L7:L13,T7) -> 0 | V7: =U7/(W4-U14) ->  | W7: =IF(V7=0,0,(V7*((LOG(V7))/LOG(2)))) ->  | Y7: =N7 -> 111 | Z7: =COUNTIF(L14:L19,Y7) -> 0 | AA7: =Z7/(AB4-Z14) ->  | AB7: =IF(AA7=0,0,(AA7*((LOG(AA7))/LOG(2)))) ->  | AD7: =N7 -> 111 | AE7: =COUNTIF(L20:L26,AD7) -> 0 | AF7: =AE7/(AG4-AE14) ->  | AG7: =IF(AF7=0,0,(AF7*((LOG(AF7))/LOG(2)))) ->  | AI7: =N7 -> 111 | AJ7: =COUNTIF(L27:L33,AI7) -> 0 | AK7: =AJ7/(AL4-AJ14) ->  | AL7: =IF(AK7=0,0,(AK7*((LOG(AK7))/LOG(2)))) ->  | AN7: =N7 -> 111 | AO7: =COUNTIF(L34:L39,AN7) -> 0 | AP7: =AO7/(AQ4-AO14) ->  | AQ7: =IF(AP7=0,0,(AP7*((LOG(AP7))/LOG(2)))) ->  | AS7: =N7 -> 111 | AT7: =COUNTIF(L40:L46,AS7) -> 0 | AU7: =AT7/(AV4-AT14) ->  | AV7: =IF(AU7=0,0,(AU7*((LOG(AU7))/LOG(2)))) -> 
A8: 21 | B8: 161 | C8: 21 | D8: 168 | E8: 21 | F8: 186 | K8: 0 | L8: 222 | N8: 112 | O8: =COUNTIF($L$7:$L$500,N8) -> 0 | P8: =O8/$Q$4 -> 0 | Q8: =IF(P8=0,0,(P8*((LOG(P8))/LOG(2)))) -> 0 | T8: =N8 -> 112 | U8: =COUNTIF(L7:L13,T8) -> 0 | V8: =U8/(W4-U14) ->  | W8: =IF(V8=0,0,(V8*((LOG(V8))/LOG(2)))) ->  | Y8: =N8 -> 112 | Z8: =COUNTIF(L14:L19,Y8) -> 0 | AA8: =Z8/(AB4-Z14) ->  | AB8: =IF(AA8=0,0,(AA8*((LOG(AA8))/LOG(2)))) ->  | AD8: =N8 -> 112 | AE8: =COUNTIF(L20:L26,AD8) -> 0 | AF8: =AE8/(AG4-AE14) ->  | AG8: =IF(AF8=0,0,(AF8*((LOG(AF8))/LOG(2)))) ->  | AI8: =N8 -> 112 | AJ8: =COUNTIF(L27:L33,AI8) -> 0 | AK8: =AJ8/(AL4-AJ14) ->  | AL8: =IF(AK8=0,0,(AK8*((LOG(AK8))/LOG(2)))) ->  | AN8: =N8 -> 112 | AO8: =COUNTIF(L34:L39,AN8) -> 0 | AP8: =AO8/(AQ4-AO14) ->  | AQ8: =IF(AP8=0,0,(AP8*((LOG(AP8))/LOG(2)))) ->  | AS8: =N8 -> 112 | AT8: =COUNTIF(L40:L46,AS8) -> 0 | AU8: =AT8/(AV4-AT14) ->  | AV8: =IF(AU8=0,0,(AU8*((LOG(AU8))/LOG(2)))) -> 
A9: 21 | B9: 287 | C9: 21 | D9: 292 | E9: 21 | F9: 298 | K9: 0 | L9: 222 | N9: 121 | O9: =COUNTIF($L$7:$L$500,N9) -> 0 | P9: =O9/$Q$4 -> 0 | Q9: =IF(P9=0,0,(P9*((LOG(P9))/LOG(2)))) -> 0 | T9: =N9 -> 121 | U9: =COUNTIF(L7:L13,T9) -> 0 | V9: =U9/(W4-U14) ->  | W9: =IF(V9=0,0,(V9*((LOG(V9))/LOG(2)))) ->  | Y9: =N9 -> 121 | Z9: =COUNTIF(L14:L19,Y9) -> 0 | AA9: =Z9/(AB4-Z14) ->  | AB9: =IF(AA9=0,0,(AA9*((LOG(AA9))/LOG(2)))) ->  | AD9: =N9 -> 121 | AE9: =COUNTIF(L20:L26,AD9) -> 0 | AF9: =AE9/(AG4-AE14) ->  | AG9: =IF(AF9=0,0,(AF9*((LOG(AF9))/LOG(2)))) ->  | AI9: =N9 -> 121 | AJ9: =COUNTIF(L27:L33,AI9) -> 0 | AK9: =AJ9/(AL4-AJ14) ->  | AL9: =IF(AK9=0,0,(AK9*((LOG(AK9))/LOG(2)))) ->  | AN9: =N9 -> 121 | AO9: =COUNTIF(L34:L39,AN9) -> 0 | AP9: =AO9/(AQ4-AO14) ->  | AQ9: =IF(AP9=0,0,(AP9*((LOG(AP9))/LOG(2)))) ->  | AS9: =N9 -> 121 | AT9: =COUNTIF(L40:L46,AS9) -> 0 | AU9: =AT9/(AV4-AT14) ->  | AV9: =IF(AU9=0,0,(AU9*((LOG(AU9))/LOG(2)))) -> 
A10: 21 | B10: 389 | C10: 21 | D10: 392 | E10: 21 | F10: 404 | K10: 0 | L10: 222 | N10: 122 | O10: =COUNTIF($L$7:$L$500,N10) -> 0 | P10: =O10/$Q$4 -> 0 | Q10: =IF(P10=0,0,(P10*((LOG(P10))/LOG(2)))) -> 0 | T10: =N10 -> 122 | U10: =COUNTIF(L7:L13,T10) -> 0 | V10: =U10/(W4-U14) ->  | W10: =IF(V10=0,0,(V10*((LOG(V10))/LOG(2)))) ->  | Y10: =N10 -> 122 | Z10: =COUNTIF(L14:L19,Y10) -> 0 | AA10: =Z10/(AB4-Z14) ->  | AB10: =IF(AA10=0,0,(AA10*((LOG(AA10))/LOG(2)))) ->  | AD10: =N10 -> 122 | AE10: =COUNTIF(L20:L26,AD10) -> 0 | AF10: =AE10/(AG4-AE14) ->  | AG10: =IF(AF10=0,0,(AF10*((LOG(AF10))/LOG(2)))) ->  | AI10: =N10 -> 122 | AJ10: =COUNTIF(L27:L33,AI10) -> 0 | AK10: =AJ10/(AL4-AJ14) ->  | AL10: =IF(AK10=0,0,(AK10*((LOG(AK10))/LOG(2)))) ->  | AN10: =N10 -> 122 | AO10: =COUNTIF(L34:L39,AN10) -> 0 | AP10: =AO10/(AQ4-AO14) ->  | AQ10: =IF(AP10=0,0,(AP10*((LOG(AP10))/LOG(2)))) ->  | AS10: =N10 -> 122 | AT10: =COUNTIF(L40:L46,AS10) -> 0 | AU10: =AT10/(AV4-AT14) ->  | AV10: =IF(AU10=0,0,(AU10*((LOG(AU10))/LOG(2)))) -> 
A11: 21 | B11: 495 | C11: 21 | D11: 496 | E11: 21 | F11: 503 | K11: 0 | L11: 222 | N11: 211 | O11: =COUNTIF($L$7:$L$500,N11) -> 0 | P11: =O11/$Q$4 -> 0 | Q11: =IF(P11=0,0,(P11*((LOG(P11))/LOG(2)))) -> 0 | T11: =N11 -> 211 | U11: =COUNTIF(L7:L13,T11) -> 0 | V11: =U11/(W4-U14) ->  | W11: =IF(V11=0,0,(V11*((LOG(V11))/LOG(2)))) ->  | Y11: =N11 -> 211 | Z11: =COUNTIF(L14:L19,Y11) -> 0 | AA11: =Z11/(AB4-Z14) ->  | AB11: =IF(AA11=0,0,(AA11*((LOG(AA11))/LOG(2)))) ->  | AD11: =N11 -> 211 | AE11: =COUNTIF(L20:L26,AD11) -> 0 | AF11: =AE11/(AG4-AE14) ->  | AG11: =IF(AF11=0,0,(AF11*((LOG(AF11))/LOG(2)))) ->  | AI11: =N11 -> 211 | AJ11: =COUNTIF(L27:L33,AI11) -> 0 | AK11: =AJ11/(AL4-AJ14) ->  | AL11: =IF(AK11=0,0,(AK11*((LOG(AK11))/LOG(2)))) ->  | AN11: =N11 -> 211 | AO11: =COUNTIF(L34:L39,AN11) -> 0 | AP11: =AO11/(AQ4-AO14) ->  | AQ11: =IF(AP11=0,0,(AP11*((LOG(AP11))/LOG(2)))) ->  | AS11: =N11 -> 211 | AT11: =COUNTIF(L40:L46,AS11) -> 0 | AU11: =AT11/(AV4-AT14) ->  | AV11: =IF(AU11=0,0,(AU11*((LOG(AU11))/LOG(2)))) -> 
A12: 21 | B12: 595 | C12: 21 | D12: 607 | E12: 21 | F12: 615 | K12: 0 | L12: 222 | N12: 212 | O12: =COUNTIF($L$7:$L$500,N12) -> 0 | P12: =O12/$Q$4 -> 0 | Q12: =IF(P12=0,0,(P12*((LOG(P12))/LOG(2)))) -> 0 | T12: =N12 -> 212 | U12: =COUNTIF(L7:L13,T12) -> 0 | V12: =U12/(W4-U14) ->  | W12: =IF(V12=0,0,(V12*((LOG(V12))/LOG(2)))) ->  | Y12: =N12 -> 212 | Z12: =COUNTIF(L14:L19,Y12) -> 0 | AA12: =Z12/(AB4-Z14) ->  | AB12: =IF(AA12=0,0,(AA12*((LOG(AA12))/LOG(2)))) ->  | AD12: =N12 -> 212 | AE12: =COUNTIF(L20:L26,AD12) -> 0 | AF12: =AE12/(AG4-AE14) ->  | AG12: =IF(AF12=0,0,(AF12*((LOG(AF12))/LOG(2)))) ->  | AI12: =N12 -> 212 | AJ12: =COUNTIF(L27:L33,AI12) -> 0 | AK12: =AJ12/(AL4-AJ14) ->  | AL12: =IF(AK12=0,0,(AK12*((LOG(AK12))/LOG(2)))) ->  | AN12: =N12 -> 212 | AO12: =COUNTIF(L34:L39,AN12) -> 0 | AP12: =AO12/(AQ4-AO14) ->  | AQ12: =IF(AP12=0,0,(AP12*((LOG(AP12))/LOG(2)))) ->  | AS12: =N12 -> 212 | AT12: =COUNTIF(L40:L46,AS12) -> 0 | AU12: =AT12/(AV4-AT14) ->  | AV12: =IF(AU12=0,0,(AU12*((LOG(AU12))/LOG(2)))) -> 
A13: 21 | B13: 707 | C13: 21 | D13: 709 | E13: 21 | F13: 712 | K13: 0 | L13: 222 | N13: 221 | O13: =COUNTIF($L$7:$L$500,N13) -> 0 | P13: =O13/$Q$4 -> 0 | Q13: =IF(P13=0,0,(P13*((LOG(P13))/LOG(2)))) -> 0 | T13: =N13 -> 221 | U13: =COUNTIF(L7:L13,T13) -> 0 | V13: =U13/(W4-U14) ->  | W13: =IF(V13=0,0,(V13*((LOG(V13))/LOG(2)))) ->  | Y13: =N13 -> 221 | Z13: =COUNTIF(L14:L19,Y13) -> 0 | AA13: =Z13/(AB4-Z14) ->  | AB13: =IF(AA13=0,0,(AA13*((LOG(AA13))/LOG(2)))) ->  | AD13: =N13 -> 221 | AE13: =COUNTIF(L20:L26,AD13) -> 0 | AF13: =AE13/(AG4-AE14) ->  | AG13: =IF(AF13=0,0,(AF13*((LOG(AF13))/LOG(2)))) ->  | AI13: =N13 -> 221 | AJ13: =COUNTIF(L27:L33,AI13) -> 0 | AK13: =AJ13/(AL4-AJ14) ->  | AL13: =IF(AK13=0,0,(AK13*((LOG(AK13))/LOG(2)))) ->  | AN13: =N13 -> 221 | AO13: =COUNTIF(L34:L39,AN13) -> 0 | AP13: =AO13/(AQ4-AO14) ->  | AQ13: =IF(AP13=0,0,(AP13*((LOG(AP13))/LOG(2)))) ->  | AS13: =N13 -> 221 | AT13: =COUNTIF(L40:L46,AS13) -> 0 | AU13: =AT13/(AV4-AT14) ->  | AV13: =IF(AU13=0,0,(AU13*((LOG(AU13))/LOG(2)))) -> 
A14: 21 | B14: 804 | C14: 21 | D14: 808 | E14: 21 | F14: 813 | K14: 0 | L14: 222 | N14: 222 | O14: =COUNTIF($L$7:$L$500,N14) -> 40 | P14: =O14/$Q$4 -> 1 | Q14: =IF(P14=0,0,(P14*((LOG(P14))/LOG(2)))) -> 0 | T14: =N14 -> 222 | U14: =COUNTIF(L7:L13,T14) -> 7 | Y14: =N14 -> 222 | Z14: =COUNTIF(L14:L19,Y14) -> 6 | AD14: =N14 -> 222 | AE14: =COUNTIF(L20:L26,AD14) -> 7 | AI14: =N14 -> 222 | AJ14: =COUNTIF(L27:L33,AI14) -> 7 | AN14: =N14 -> 222 | AO14: =COUNTIF(L34:L39,AN14) -> 6 | AS14: =N14 -> 222 | AT14: =COUNTIF(L40:L46,AS14) -> 7
A15: 21 | B15: 906 | C15: 21 | D15: 910 | E15: 21 | F15: 914 | K15: 0 | L15: 222 | P15: =SUM(P7:P14) -> 1 | Q15: =-SUM(Q7:Q14) -> 0 | V15: =SUM(V7:V14) ->  | W15: =-SUM(W7:W14) ->  | AA15: =SUM(AA7:AA14) ->  | AB15: =-SUM(AB7:AB14) ->  | AF15: =SUM(AF7:AF14) ->  | AG15: =-SUM(AG7:AG14) ->  | AK15: =SUM(AK7:AK14) ->  | AL15: =-SUM(AL7:AL14) ->  | AP15: =SUM(AP7:AP14) ->  | AQ15: =-SUM(AQ7:AQ14) ->  | AU15: =SUM(AU7:AU14) ->  | AV15: =-SUM(AV7:AV14) -> 
A16: 21 | B16: 1009 | C16: 21 | D16: 1014 | E16: 21 | F16: 1024 | K16: 0 | L16: 222 | P16: U= | Q16: =Q15/(LOG(Q4)/LOG(2)) -> 0 | V16: U1= | W16: =W15/(LOG(W4)/LOG(2)) ->  | AA16: U2= | AB16: =AB15/(LOG(AB4)/LOG(2)) ->  | AF16: U3= | AG16: =AG15/(LOG(AG4)/LOG(2)) ->  | AK16: U4= | AL16: =AL15/(LOG(AL4)/LOG(2)) ->  | AP16: U5= | AQ16: =AQ15/(LOG(AQ4)/LOG(2)) ->  | AU16: U6= | AV16: =AV15/(LOG(AV4)/LOG(2)) -> 
A17: 21 | B17: 1119 | C17: 21 | D17: 1123 | E17: 21 | F17: 1129 | K17: 0 | L17: 222
A18: 21 | B18: 1233 | C18: 21 | D18: 1237 | E18: 21 | F18: 1243 | K18: 0 | L18: 222
A19: 21 | B19: 1336 | C19: 21 | D19: 1343 | E19: 21 | F19: 1349 | K19: 0 | L19: 222 | N19: Total Target Seq
A20: 21 | B20: 1444 | C20: 21 | D20: 1451 | E20: 21 | F20: 1461 | K20: 0 | L20: 222 | N20: =COUNTIF(L7:L46,G3) -> 40 | P20: 7 | Q20: 6 | R20: 7 | S20: 7 | T20: 6 | U20: 7
A21: 21 | B21: 1558 | C21: 21 | D21: 1562 | E21: 21 | F21: 1568 | K21: 0 | L21: 222 | P21: % of reinforcement given in 6 equal intervals based on number of trials
A22: 21 | B22: 1662 | C22: 21 | D22: 1664 | E22: 21 | F22: 1671 | K22: 0 | L22: 222 | P22: %_1 | Q22: %_2 | R22: %_3 | S22: %_4 | T22: %_5 | U22: %_6
A23: 21 | B23: 1763 | C23: 21 | D23: 1766 | E23: 21 | F23: 1780 | K23: 0 | L23: 222 | O23: target sequence | P23: =$G$3 -> 222 | Q23: =$G$3 -> 222 | R23: =$G$3 -> 222 | S23: =$G$3 -> 222 | T23: =$G$3 -> 222 | U23: =$G$3 -> 222
A24: 21 | B24: 1891 | C24: 21 | D24: 1907 | E24: 21 | F24: 1915 | K24: 0 | L24: 222 | O24: total reinforcement | P24: =U14 -> 7 | Q24: =Z14 -> 6 | R24: =AE14 -> 7 | S24: =AJ14 -> 7 | T24: =AO14 -> 6 | U24: =AT14 -> 7
A25: 21 | B25: 2009 | C25: 21 | D25: 2012 | E25: 21 | F25: 2024 | K25: 0 | L25: 222 | O25: % target
A26: 21 | B26: 2116 | C26: 21 | D26: 2120 | E26: 21 | F26: 2122 | K26: 0 | L26: 222 | O26: CCRF
A27: 21 | B27: 2216 | C27: 21 | D27: 2220 | E27: 21 | F27: 2226 | K27: 0 | L27: 222 | O27: % CCRf
A28: 21 | B28: 2317 | C28: 21 | D28: 2320 | E28: 21 | F28: 2327 | K28: 0 | L28: 222 | O28: average response rate | P28: =F13/P20 -> 101.7142857 | Q28: =(F19-F13)/Q20 -> 106.1666667 | R28: =(F26-F19)/R20 -> 110.4285714 | S28: =(F33-F26)/S20 -> 126.2857143 | T28: =(F39-F33)/T20 -> 152 | U28: =(F46-F39)/U20 -> 114.4285714
A29: 21 | B29: 2462 | C29: 21 | D29: 2467 | E29: 21 | F29: 2470 | K29: 0 | L29: 222
A30: 21 | B30: 2601 | C30: 21 | D30: 2605 | E30: 21 | F30: 2611 | K30: 0 | L30: 222
A31: 21 | B31: 2704 | C31: 21 | D31: 2708 | E31: 21 | F31: 2719 | K31: 0 | L31: 222
A32: 21 | B32: 2868 | C32: 21 | D32: 2872 | E32: 21 | F32: 2879 | K32: 0 | L32: 222
A33: 21 | B33: 3000 | C33: 21 | D33: 3002 | E33: 21 | F33: 3006 | K33: 0 | L33: 222
A34: 21 | B34: 3112 | C34: 21 | D34: 3116 | E34: 21 | F34: 3120 | K34: 0 | L34: 222
A35: 21 | B35: 3256 | C35: 21 | D35: 3259 | E35: 21 | F35: 3264 | K35: 0 | L35: 222
A36: 21 | B36: 3395 | C36: 21 | D36: 3401 | E36: 21 | F36: 3408 | K36: 0 | L36: 222
A37: 21 | B37: 3504 | C37: 21 | D37: 3517 | E37: 21 | F37: 3528 | K37: 0 | L37: 222
A38: 21 | B38: 3788 | C38: 21 | D38: 3792 | E38: 21 | F38: 3796 | K38: 0 | L38: 222
A39: 21 | B39: 3888 | C39: 21 | D39: 3895 | E39: 21 | F39: 3918 | K39: 0 | L39: 222
A40: 21 | B40: 4015 | C40: 21 | D40: 4021 | E40: 21 | F40: 4027 | K40: 0 | L40: 222
A41: 21 | B41: 4123 | C41: 21 | D41: 4127 | E41: 21 | F41: 4129 | K41: 0 | L41: 222
A42: 21 | B42: 4227 | C42: 21 | D42: 4234 | E42: 21 | F42: 4238 | K42: 0 | L42: 222
A43: 21 | B43: 4330 | C43: 21 | D43: 4333 | E43: 21 | F43: 4337 | K43: 0 | L43: 222
A44: 21 | B44: 4440 | C44: 21 | D44: 4444 | E44: 21 | F44: 4448 | K44: 0 | L44: 222
A45: 21 | B45: 4540 | C45: 21 | D45: 4553 | E45: 21 | F45: 4561 | K45: 0 | L45: 222
A46: 21 | B46: 4710 | C46: 21 | D46: 4714 | E46: 21 | F46: 4719 | K46: 1 | L46: 222

Sheet !M914B3T.AYL
A1: Report for:!M914B3T.AYL
A2: Date: | B2: <date>
A3: Hen: | B3: <hen> | F3: Correct Sequence | G3: =Start!J2 -> 222 | P3: Total Sequences in Data | Q3: =4994-COUNTBLANK(L7:L5000) -> 40 | V3: Total Sequences in Block Data | W3: =COUNTA(L7:L13) -> 7 | AA3: Total Sequences in Block Data | AB3: =COUNTA(L14:L19) -> 6 | AF3: Total Sequences in Block Data | AG3: =COUNTA(L20:L26) -> 7 | AK3: Total Sequences in Block Data | AL3: =COUNTA(L27:L33) -> 7 | AP3: Total Sequences in Block Data | AQ3: =COUNTA(L34:L39) -> 6 | AU3: Total Sequences in Block Data | AV3: =COUNTA(L40:L46) -> 7
P4: Total Sequences in Summary | Q4: =SUM(O7:O14) -> 40 | V4: Total Sequences in Block Summary | W4: =SUM(U7:U14) -> 7 | AA4: Total Sequences in Block Summary | AB4: =SUM(Z7:Z14) -> 6 | AF4: Total Sequences in Block Summary | AG4: =SUM(AE7:AE14) -> 7 | AK4: Total Sequences in Block Summary | AL4: =SUM(AJ7:AJ14) -> 7 | AP4: Total Sequences in Block Summary | AQ4: =SUM(AO7:AO14) -> 6 | AU4: Total Sequences in Block Summary | AV4: =SUM(AT7:AT14) -> 7
T5: Block 1 | Y5: Block 2 | AD5: Block 3 | AI5: Block 4 | AN5: Block 5 | AS5: Block 6
A6: Sequence Component 1 | B6: Time 1 | C6: Sequence Component 2 | D6: Time 2 | E6: Sequence Component 3 | F6: Time 3 | G6: Sequence Component 4 | H6: Time 4 | I6: Sequence Component 5 | J6: Time 5 | K6: Correct? 0=No 1=Yes | L6: Sequence | N6: Frequency | P6: Relative Frequency | Q6: Variability | T6: Frequency | V6: Relative Frequency | W6: Variability | Y6: Frequency | AA6: Relative Frequency | AB6: Variability | AD6: Frequency | AF6: Relative Frequency | AG6: Variability | AI6: Frequency | AK6: Relative Frequency | AL6: Variability | AN6: Frequency | AP6: Relative Frequency | AQ6: Variability | AS6: Frequency | AU6: Relative Frequency | AV6: Variability
A7: 21 | B7: 15 | C7: 21 | D7: 17 | E7: 21 | F7: 22 | K7: 0 | L7: 222 | N7: 111 | O7: =COUNTIF($L$7:$L$500,N7) -> 0 | P7: =O7/$Q$4 -> 0 | Q7: =IF(P7=0,0,(P7*((LOG(P7))/LOG(2)))) -> 0 | T7: =N7 -> 111 | U7: =COUNTIF(L7:L13,T7) -> 0 | V7: =U7/(W4-U14) ->  | W7: =IF(V7=0,0,(V7*((LOG(V7))/LOG(2)))) ->  | Y7: =N7 -> 111 | Z7: =COUNTIF(L14:L19,Y7) -> 0 | AA7: =Z7/(AB4-Z14) ->  | AB7: =IF(AA7=0,0,(AA7*((LOG(AA7))/LOG(2)))) ->  | AD7: =N7 -> 111 | AE7: =COUNTIF(L20:L26,AD7) -> 0 | AF7: =AE7/(AG4-AE14) ->  | AG7: =IF(AF7=0,0,(AF7*((LOG(AF7))/LOG(2)))) ->  | AI7: =N7 -> 111 | AJ7: =COUNTIF(L27:L33,AI7) -> 0 | AK7: =AJ7/(AL4-AJ14) ->  | AL7: =IF(AK7=0,0,(AK7*((LOG(AK7))/LOG(2)))) ->  | AN7: =N7 -> 111 | AO7: =COUNTIF(L34:L39,AN7) -> 0 | AP7: =AO7/(AQ4-AO14) ->  | AQ7: =IF(AP7=0,0,(AP7*((LOG(AP7))/LOG(2)))) ->  | AS7: =N7 -> 111 | AT7: =COUNTIF(L40:L46,AS7) -> 0 | AU7: =AT7/(AV4-AT14) ->  | AV7: =IF(AU7=0,0,(AU7*((LOG(AU7))/LOG(2)))) -> 
A8: 21 | B8: 128 | C8: 21 | D8: 133 | E8: 21 | F8: 137 | K8: 0 | L8: 222 | N8: 112 | O8: =COUNTIF($L$7:$L$500,N8) -> 0 | P8: =O8/$Q$4 -> 0 | Q8: =IF(P8=0,0,(P8*((LOG(P8))/LOG(2)))) -> 0 | T8: =N8 -> 112 | U8: =COUNTIF(L7:L13,T8) -> 0 | V8: =U8/(W4-U14) ->  | W8: =IF(V8=0,0,(V8*((LOG(V8))/LOG(2)))) ->  | Y8: =N8 -> 112 | Z8: =COUNTIF(L14:L19,Y8) -> 0 | AA8: =Z8/(AB4-Z14) ->  | AB8: =IF(AA8=0,0,(AA8*((LOG(AA8))/LOG(2)))) ->  | AD8: =N8 -> 112 | AE8: =COUNTIF(L20:L26,AD8) -> 0 | AF8: =AE8/(AG4-AE14) ->  | AG8: =IF(AF8=0,0,(AF8*((LOG(AF8))/LOG(2)))) ->  | AI8: =N8 -> 112 | AJ8: =COUNTIF(L27:L33,AI8) -> 0 | AK8: =AJ8/(AL4-AJ14) ->  | AL8: =IF(AK8=0,0,(AK8*((LOG(AK8))/LOG(2)))) ->  | AN8: =N8 -> 112 | AO8: =COUNTIF(L34:L39,AN8) -> 0 | AP8: =AO8/(AQ4-AO14) ->  | AQ8: =IF(AP8=0,0,(AP8*((LOG(AP8))/LOG(2)))) ->  | AS8: =N8 -> 112 | AT8: =COUNTIF(L40:L46,AS8) -> 0 | AU8: =AT8/(AV4-AT14) ->  | AV8: =IF(AU8=0,0,(AU8*((LOG(AU8))/LOG(2)))) -> 
A9: 21 | B9: 231 | C9: 21 | D9: 232 | E9: 21 | F9: 238 | K9: 0 | L9: 222 | N9: 121 | O9: =COUNTIF($L$7:$L$500,N9) -> 0 | P9: =O9/$Q$4 -> 0 | Q9: =IF(P9=0,0,(P9*((LOG(P9))/LOG(2)))) -> 0 | T9: =N9 -> 121 | U9: =COUNTIF(L7:L13,T9) -> 0 | V9: =U9/(W4-U14) ->  | W9: =IF(V9=0,0,(V9*((LOG(V9))/LOG(2)))) ->  | Y9: =N9 -> 121 | Z9: =COUNTIF(L14:L19,Y9) -> 0 | AA9: =Z9/(AB4-Z14) ->  | AB9: =IF(AA9=0,0,(AA9*((LOG(AA9))/LOG(2)))) ->  | AD9: =N9 -> 121 | AE9: =COUNTIF(L20:L26,AD9) -> 0 | AF9: =AE9/(AG4-AE14) ->  | AG9: =IF(AF9=0,0,(AF9*((LOG(AF9))/LOG(2)))) ->  | AI9: =N9 -> 121 | AJ9: =COUNTIF(L27:L33,AI9) -> 0 | AK9: =AJ9/(AL4-AJ14) ->  | AL9: =IF(AK9=0,0,(AK9*((LOG(AK9))/LOG(2)))) ->  | AN9: =N9 -> 121 | AO9: =COUNTIF(L34:L39,AN9) -> 0 | AP9: =AO9/(AQ4-AO14) ->  | AQ9: =IF(AP9=0,0,(AP9*((LOG(AP9))/LOG(2)))) ->  | AS9: =N9 -> 121 | AT9: =COUNTIF(L40:L46,AS9) -> 0 | AU9: =AT9/(AV4-AT14) ->  | AV9: =IF(AU9=0,0,(AU9*((LOG(AU9))/LOG(2)))) -> 
A10: 21 | B10: 334 | C10: 21 | D10: 341 | E10: 21 | F10: 355 | K10: 0 | L10: 222 | N10: 122 | O10: =COUNTIF($L$7:$L$500,N10) -> 0 | P10: =O10/$Q$4 -> 0 | Q10: =IF(P10=0,0,(P10*((LOG(P10))/LOG(2)))) -> 0 | T10: =N10 -> 122 | U10: =COUNTIF(L7:L13,T10) -> 0 | V10: =U10/(W4-U14) ->  | W10: =IF(V10=0,0,(V10*((LOG(V10))/LOG(2)))) ->  | Y10: =N10 -> 122 | Z10: =COUNTIF(L14:L19,Y10) -> 0 | AA10: =Z10/(AB4-Z14) ->  | AB10: =IF(AA10=0,0,(AA10*((LOG(AA10))/LOG(2)))) ->  | AD10: =N10 -> 122 | AE10: =COUNTIF(L20:L26,AD10) -> 0 | AF10: =AE10/(AG4-AE14) ->  | AG10: =IF(AF10=0,0,(AF10*((LOG(AF10))/LOG(2)))) ->  | AI10: =N10 -> 122 | AJ10: =COUNTIF(L27:L33,AI10) -> 0 | AK10: =AJ10/(AL4-AJ14) ->  | AL10: =IF(AK10=0,0,(AK10*((LOG(AK10))/LOG(2)))) ->  | AN10: =N10 -> 122 | AO10: =COUNTIF(L34:L39,AN10) -> 0 | AP10: =AO10/(AQ4-AO14) ->  | AQ10: =IF(AP10=0,0,(AP10*((LOG(AP10))/LOG(2)))) ->  | AS10: =N10 -> 122 | AT10: =COUNTIF(L40:L46,AS10) -> 0 | AU10: =AT10/(AV4-AT14) ->  | AV10: =IF(AU10=0,0,(AU10*((LOG(AU10))/LOG(2)))) -> 
A11: 21 | B11: 450 | C11: 21 | D11: 453 | E11: 21 | F11: 458 | K11: 0 | L11: 222 | N11: 211 | O11: =COUNTIF($L$7:$L$500,N11) -> 0 | P11: =O11/$Q$4 -> 0 | Q11: =IF(P11=0,0,(P11*((LOG(P11))/LOG(2)))) -> 0 | T11: =N11 -> 211 | U11: =COUNTIF(L7:L13,T11) -> 0 | V11: =U11/(W4-U14) ->  | W11: =IF(V11=0,0,(V11*((LOG(V11))/LOG(2)))) ->  | Y11: =N11 -> 211 | Z11: =COUNTIF(L14:L19,Y11) -> 0 | AA11: =Z11/(AB4-Z14) ->  | AB11: =IF(AA11=0,0,(AA11*((LOG(AA11))/LOG(2)))) ->  | AD11: =N11 -> 211 | AE11: =COUNTIF(L20:L26,AD11) -> 0 | AF11: =AE11/(AG4-AE14) ->  | AG11: =IF(AF11=0,0,(AF11*((LOG(AF11))/LOG(2)))) ->  | AI11: =N11 -> 211 | AJ11: =COUNTIF(L27:L33,AI11) -> 0 | AK11: =AJ11/(AL4-AJ14) ->  | AL11: =IF(AK11=0,0,(AK11*((LOG(AK11))/LOG(2)))) ->  | AN11: =N11 -> 211 | AO11: =COUNTIF(L34:L39,AN11) -> 0 | AP11: =AO11/(AQ4-AO14) ->  | AQ11: =IF(AP11=0,0,(AP11*((LOG(AP11))/LOG(2)))) ->  | AS11: =N11 -> 211 | AT11: =COUNTIF(L40:L46,AS11) -> 0 | AU11: =AT11/(AV4-AT14) ->  | AV11: =IF(AU11=0,0,(AU11*((LOG(AU11))/LOG(2)))) -> 
A12: 21 | B12: 552 | C12: 21 | D12: 555 | E12: 21 | F12: 558 | K12: 0 | L12: 222 | N12: 212 | O12: =COUNTIF($L$7:$L$500,N12) -> 0 | P12: =O12/$Q$4 -> 0 | Q12: =IF(P12=0,0,(P12*((LOG(P12))/LOG(2)))) -> 0 | T12: =N12 -> 212 | U12: =COUNTIF(L7:L13,T12) -> 0 | V12: =U12/(W4-U14) ->  | W12: =IF(V12=0,0,(V12*((LOG(V12))/LOG(2)))) ->  | Y12: =N12 -> 212 | Z12: =COUNTIF(L14:L19,Y12) -> 0 | AA12: =Z12/(AB4-Z14) ->  | AB12: =IF(AA12=0,0,(AA12*((LOG(AA12))/LOG(2)))) ->  | AD12: =N12 -> 212 | AE12: =COUNTIF(L20:L26,AD12) -> 0 | AF12: =AE12/(AG4-AE14) ->  | AG12: =IF(AF12=0,0,(AF12*((LOG(AF12))/LOG(2)))) ->  | AI12: =N12 -> 212 | AJ12: =COUNTIF(L27:L33,AI12) -> 0 | AK12: =AJ12/(AL4-AJ14) ->  | AL12: =IF(AK12=0,0,(AK12*((LOG(AK12))/LOG(2)))) ->  | AN12: =N12 -> 212 | AO12: =COUNTIF(L34:L39,AN12) -> 0 | AP12: =AO12/(AQ4-AO14) ->  | AQ12: =IF(AP12=0,0,(AP12*((LOG(AP12))/LOG(2)))) ->  | AS12: =N12 -> 212 | AT12: =COUNTIF(L40:L46,AS12) -> 0 | AU12: =AT12/(AV4-AT14) ->  | AV12: =IF(AU12=0,0,(AU12*((LOG(AU12))/LOG(2)))) -> 
A13: 21 | B13: 651 | C13: 21 | D13: 654 | E13: 21 | F13: 667 | K13: 0 | L13: 222 | N13: 221 | O13: =COUNTIF($L$7:$L$500,N13) -> 0 | P13: =O13/$Q$4 -> 0 | Q13: =IF(P13=0,0,(P13*((LOG(P13))/LOG(2)))) -> 0 | T13: =N13 -> 221 | U13: =COUNTIF(L7:L13,T13) -> 0 | V13: =U13/(W4-U14) ->  | W13: =IF(V13=0,0,(V13*((LOG(V13))/LOG(2)))) ->  | Y13: =N13 -> 221 | Z13: =COUNTIF(L14:L19,Y13) -> 0 | AA13: =Z13/(AB4-Z14) ->  | AB13: =IF(AA13=0,0,(AA13*((LOG(AA13))/LOG(2)))) ->  | AD13: =N13 -> 221 | AE13: =COUNTIF(L20:L26,AD13) -> 0 | AF13: =AE13/(AG4-AE14) ->  | AG13: =IF(AF13=0,0,(AF13*((LOG(AF13))/LOG(2)))) ->  | AI13: =N13 -> 221 | AJ13: =COUNTIF(L27:L33,AI13) -> 0 | AK13: =AJ13/(AL4-AJ14) ->  | AL13: =IF(AK13=0,0,(AK13*((LOG(AK13))/LOG(2)))) ->  | AN13: =N13 -> 221 | AO13: =COUNTIF(L34:L39,AN13) -> 0 | AP13: =AO13/(AQ4-AO14) ->  | AQ13: =IF(AP13=0,0,(AP13*((LOG(AP13))/LOG(2)))) ->  | AS13: =N13 -> 221 | AT13: =COUNTIF(L40:L46,AS13) -> 0 | AU13: =AT13/(AV4-AT14) ->  | AV13: =IF(AU13=0,0,(AU13*((LOG(AU13))/LOG(2)))) -> 
A14: 21 | B14: 758 | C14: 21 | D14: 761 | E14: 21 | F14: 767 | K14: 0 | L14: 222 | N14: 222 | O14: =COUNTIF($L$7:$L$500,N14) -> 40 | P14: =O14/$Q$4 -> 1 | Q14: =IF(P14=0,0,(P14*((LOG(P14))/LOG(2)))) -> 0 | T14: =N14 -> 222 | U14: =COUNTIF(L7:L13,T14) -> 7 | Y14: =N14 -> 222 | Z14: =COUNTIF(L14:L19,Y14) -> 6 | AD14: =N14 -> 222 | AE14: =COUNTIF(L20:L26,AD14) -> 7 | AI14: =N14 -> 222 | AJ14: =COUNTIF(L27:L33,AI14) -> 7 | AN14: =N14 -> 222 | AO14: =COUNTIF(L34:L39,AN14) -> 6 | AS14: =N14 -> 222 | AT14: =COUNTIF(L40:L46,AS14) -> 7
A15: 21 | B15: 863 | C15: 21 | D15: 868 | E15: 21 | F15: 875 | K15: 0 | L15: 222 | P15: =SUM(P7:P14) -> 1 | Q15: =-SUM(Q7:Q14) -> 0 | V15: =SUM(V7:V14) ->  | W15: =-SUM(W7:W14) ->  | AA15: =SUM(AA7:AA14) ->  | AB15: =-SUM(AB7:AB14) ->  | AF15: =SUM(AF7:AF14) ->  | AG15: =-SUM(AG7:AG14) ->  | AK15: =SUM(AK7:AK14) ->  | AL15: =-SUM(AL7:AL14) ->  | AP15: =SUM(AP7:AP14) ->  | AQ15: =-SUM(AQ7:AQ14) ->  | AU15: =SUM(AU7:AU14) ->  | AV15: =-SUM(AV7:AV14) -> 
A16: 21 | B16: 967 | C16: 21 | D16: 970 | E16: 21 | F16: 975 | K16: 0 | L16: 222 | P16: U= | Q16: =Q15/(LOG(Q4)/LOG(2)) -> 0 | V16: U1= | W16: =W15/(LOG(W4)/LOG(2)) ->  | AA16: U2= | AB16: =AB15/(LOG(AB4)/LOG(2)) ->  | AF16: U3= | AG16: =AG15/(LOG(AG4)/LOG(2)) ->  | AK16: U4= | AL16: =AL15/(LOG(AL4)/LOG(2)) ->  | AP16: U5= | AQ16: =AQ15/(LOG(AQ4)/LOG(2)) ->  | AU16: U6= | AV16: =AV15/(LOG(AV4)/LOG(2)) -> 
A17: 21 | B17: 1068 | C17: 21 | D17: 1072 | E17: 21 | F17: 1082 | K17: 0 | L17: 222
A18: 21 | B18: 1172 | C18: 21 | D18: 1174 | E18: 21 | F18: 1177 | K18: 0 | L18: 222
A19: 21 | B19: 1270 | C19: 21 | D19: 1273 | E19: 21 | F19: 1277 | K19: 0 | L19: 222 | N19: Total Target Seq
A20: 21 | B20: 1396 | C20: 21 | D20: 1398 | E20: 21 | F20: 1401 | K20: 0 | L20: 222 | N20: =COUNTIF(L7:L46,G3) -> 40 | P20: 7 | Q20: 6 | R20: 7 | S20: 7 | T20: 6 | U20: 7
A21: 21 | B21: 1505 | C21: 21 | D21: 1508 | E21: 21 | F21: 1513 | K21: 0 | L21: 222 | P21: % of reinforcement given in 6 equal intervals based on number of trials
A22: 21 | B22: 1613 | C22: 21 | D22: 1619 | E22: 21 | F22: 1625 | K22: 0 | L22: 222 | P22: %_1 | Q22: %_2 | R22: %_3 | S22: %_4 | T22: %_5 | U22: %_6
A23: 21 | B23: 1727 | C23: 21 | D23: 1731 | E23: 21 | F23: 1737 | K23: 0 | L23: 222 | O23: target sequence | P23: =$G$3 -> 222 | Q23: =$G$3 -> 222 | R23: =$G$3 -> 222 | S23: =$G$3 -> 222 | T23: =$G$3 -> 222 | U23: =$G$3 -> 222
A24: 21 | B24: 1853 | C24: 21 | D24: 1859 | E24: 21 | F24: 1867 | K24: 0 | L24: 222 | O24: total reinforcement | P24: =U14 -> 7 | Q24: =Z14 -> 6 | R24: =AE14 -> 7 | S24: =AJ14 -> 7 | T24: =AO14 -> 6 | U24: =AT14 -> 7
A25: 21 | B25: 1961 | C25: 21 | D25: 1967 | E25: 21 | F25: 1978 | K25: 0 | L25: 222 | O25: % target
A26: 21 | B26: 2074 | C26: 21 | D26: 2084 | E26: 21 | F26: 2092 | K26: 0 | L26: 222 | O26: CCRF
A27: 21 | B27: 2202 | C27: 21 | D27: 2212 | E27: 21 | F27: 2219 | K27: 0 | L27: 222 | O27: % CCRf
A28: 21 | B28: 2312 | C28: 21 | D28: 2316 | E28: 21 | F28: 2336 | K28: 0 | L28: 222 | O28: average response rate | P28: =F13/P20 -> 95.28571429 | Q28: =(F19-F13)/Q20 -> 101.6666667 | R28: =(F26-F19)/R20 -> 116.4285714 | S28: =(F33-F26)/S20 -> 110.4285714 | T28: =(F39-F33)/T20 -> 123.3333333 | U28: =(F46-F39)/U20 -> 125.5714286
A29: 21 | B29: 2429 | C29: 21 | D29: 2435 | E29: 21 | F29: 2441 | K29: 0 | L29: 222
A30: 21 | B30: 2544 | C30: 21 | D30: 2547 | E30: 21 | F30: 2550 | K30: 0 | L30: 222
A31: 21 | B31: 2653 | C31: 21 | D31: 2657 | E31: 21 | F31: 2662 | K31: 0 | L31: 222
A32: 21 | B32: 2755 | C32: 21 | D32: 2757 | E32: 21 | F32: 2761 | K32: 0 | L32: 222
A33: 21 | B33: 2858 | C33: 21 | D33: 2861 | E33: 21 | F33: 2865 | K33: 0 | L33: 222
A34: 21 | B34: 2959 | C34: 21 | D34: 2964 | E34: 21 | F34: 2970 | K34: 0 | L34: 222
A35: 21 | B35: 3066 | C35: 21 | D35: 3072 | E35: 21 | F35: 3077 | K35: 0 | L35: 222
A36: 21 | B36: 3255 | C36: 21 | D36: 3258 | E36: 21 | F36: 3262 | K36: 0 | L36: 222
A37: 21 | B37: 3375 | C37: 21 | D37: 3380 | E37: 21 | F37: 3385 | K37: 0 | L37: 222
A38: 21 | B38: 3484 | C38: 21 | D38: 3488 | E38: 21 | F38: 3493 | K38: 0 | L38: 222
A39: 21 | B39: 3597 | C39: 21 | D39: 3601 | E39: 21 | F39: 3605 | K39: 0 | L39: 222
A40: 21 | B40: 3697 | C40: 21 | D40: 3700 | E40: 21 | F40: 3704 | K40: 0 | L40: 222
A41: 21 | B41: 3814 | C41: 21 | D41: 3818 | E41: 21 | F41: 3822 | K41: 0 | L41: 222
A42: 21 | B42: 3915 | C42: 21 | D42: 3918 | E42: 21 | F42: 3922 | K42: 0 | L42: 222
A43: 21 | B43: 4031 | C43: 21 | D43: 4035 | E43: 21 | F43: 4038 | K43: 0 | L43: 222
A44: 21 | B44: 4200 | C44: 21 | D44: 4204 | E44: 21 | F44: 4218 | K44: 0 | L44: 222
A45: 21 | B45: 4340 | C45: 21 | D45: 4343 | E45: 21 | F45: 4347 | K45: 0 | L45: 222
A46: 21 | B46: 4477 | C46: 21 | D46: 4479 | E46: 21 | F46: 4484 | K46: 1 | L46: 222

Sheet !M915B2T.AYL
A1: Report for:!M915B2T.AYL
A2: Date: | B2: <date>
A3: Hen: | B3: <hen> | F3: Correct Sequence | G3: =Start!J2 -> 222 | P3: Total Sequences in Data | Q3: =4994-COUNTBLANK(L7:L5000) -> 40 | V3: Total Sequences in Block Data | W3: =COUNTA(L7:L13) -> 7 | AA3: Total Sequences in Block Data | AB3: =COUNTA(L14:L19) -> 6 | AF3: Total Sequences in Block Data | AG3: =COUNTA(L20:L26) -> 7 | AK3: Total Sequences in Block Data | AL3: =COUNTA(L27:L33) -> 7 | AP3: Total Sequences in Block Data | AQ3: =COUNTA(L34:L39) -> 6 | AU3: Total Sequences in Block Data | AV3: =COUNTA(L40:L46) -> 7
P4: Total Sequences in Summary | Q4: =SUM(O7:O14) -> 40 | V4: Total Sequences in Block Summary | W4: =SUM(U7:U14) -> 7 | AA4: Total Sequences in Block Summary | AB4: =SUM(Z7:Z14) -> 6 | AF4: Total Sequences in Block Summary | AG4: =SUM(AE7:AE14) -> 7 | AK4: Total Sequences in Block Summary | AL4: =SUM(AJ7:AJ14) -> 7 | AP4: Total Sequences in Block Summary | AQ4: =SUM(AO7:AO14) -> 6 | AU4: Total Sequences in Block Summary | AV4: =SUM(AT7:AT14) -> 7
T5: Block 1 | Y5: Block 2 | AD5: Block 3 | AI5: Block 4 | AN5: Block 5 | AS5: Block 6
A6: Sequence Component 1 | B6: Time 1 | C6: Sequence Component 2 | D6: Time 2 | E6: Sequence Component 3 | F6: Time 3 | G6: Sequence Component 4 | H6: Time 4 | I6: Sequence Component 5 | J6: Time 5 | K6: Correct? 0=No 1=Yes | L6: Sequence | N6: Frequency | P6: Relative Frequency | Q6: Variability | T6: Frequency | V6: Relative Frequency | W6: Variability | Y6: Frequency | AA6: Relative Frequency | AB6: Variability | AD6: Frequency | AF6: Relative Frequency | AG6: Variability | AI6: Frequency | AK6: Relative Frequency | AL6: Variability | AN6: Frequency | AP6: Relative Frequency | AQ6: Variability | AS6: Frequency | AU6: Relative Frequency | AV6: Variability
A7: 21 | B7: 25 | C7: 21 | D7: 30 | E7: 21 | F7: 43 | K7: 0 | L7: 222 | N7: 111 | O7: =COUNTIF($L$7:$L$500,N7) -> 0 | P7: =O7/$Q$4 -> 0 | Q7: =IF(P7=0,0,(P7*((LOG(P7))/LOG(2)))) -> 0 | T7: =N7 -> 111 | U7: =COUNTIF(L7:L13,T7) -> 0 | V7: =U7/(W4-U14) ->  | W7: =IF(V7=0,0,(V7*((LOG(V7))/LOG(2)))) ->  | Y7: =N7 -> 111 | Z7: =COUNTIF(L14:L19,Y7) -> 0 | AA7: =Z7/(AB4-Z14) ->  | AB7: =IF(AA7=0,0,(AA7*((LOG(AA7))/LOG(2)))) ->  | AD7: =N7 -> 111 | AE7: =COUNTIF(L20:L26,AD7) -> 0 | AF7: =AE7/(AG4-AE14) ->  | AG7: =IF(AF7=0,0,(AF7*((LOG(AF7))/LOG(2)))) ->  | AI7: =N7 -> 111 | AJ7: =COUNTIF(L27:L33,AI7) -> 0 | AK7: =AJ7/(AL4-AJ14) ->  | AL7: =IF(AK7=0,0,(AK7*((LOG(AK7))/LOG(2)))) ->  | AN7: =N7 -> 111 | AO7: =COUNTIF(L34:L39,AN7) -> 0 | AP7: =AO7/(AQ4-AO14) ->  | AQ7: =IF(AP7=0,0,(AP7*((LOG(AP7))/LOG(2)))) ->  | AS7: =N7 -> 111 | AT7: =COUNTIF(L40:L46,AS7) -> 0 | AU7: =AT7/(AV4-AT14) ->  | AV7: =IF(AU7=0,0,(AU7*((LOG(AU7))/LOG(2)))) -> 
A8: 21 | B8: 150 | C8: 21 | D8: 156 | E8: 21 | F8: 162 | K8: 0 | L8: 222 | N8: 112 | O8: =COUNTIF($L$7:$L$500,N8) -> 0 | P8: =O8/$Q$4 -> 0 | Q8: =IF(P8=0,0,(P8*((LOG(P8))/LOG(2)))) -> 0 | T8: =N8 -> 112 | U8: =COUNTIF(L7:L13,T8) -> 0 | V8: =U8/(W4-U14) ->  | W8: =IF(V8=0,0,(V8*((LOG(V8))/LOG(2)))) ->  | Y8: =N8 -> 112 | Z8: =COUNTIF(L14:L19,Y8) -> 0 | AA8: =Z8/(AB4-Z14) ->  | AB8: =IF(AA8=0,0,(AA8*((LOG(AA8))/LOG(2)))) ->  | AD8: =N8 -> 112 | AE8: =COUNTIF(L20:L26,AD8) -> 0 | AF8: =AE8/(AG4-AE14) ->  | AG8: =IF(AF8=0,0,(AF8*((LOG(AF8))/LOG(2)))) ->  | AI8: =N8 -> 112 | AJ8: =COUNTIF(L27:L33,AI8) -> 0 | AK8: =AJ8/(AL4-AJ14) ->  | AL8: =IF(AK8=0,0,(AK8*((LOG(AK8))/LOG(2)))) ->  | AN8: =N8 -> 112 | AO8: =COUNTIF(L34:L39,AN8) -> 0 | AP8: =AO8/(AQ4-AO14) ->  | AQ8: =IF(AP8=0,0,(AP8*((LOG(AP8))/LOG(2)))) ->  | AS8: =N8 -> 112 | AT8: =COUNTIF(L40:L46,AS8) -> 0 | AU8: =AT8/(AV4-AT14) ->  | AV8: =IF(AU8=0,0,(AU8*((LOG(AU8))/LOG(2)))) -> 
A9: 21 | B9: 255 | C9: 21 | D9: 258 | E9: 21 | F9: 262 | K9: 0 | L9: 222 | N9: 121 | O9: =COUNTIF($L$7:$L$500,N9) -> 0 | P9: =O9/$Q$4 -> 0 | Q9: =IF(P9=0,0,(P9*((LOG(P9))/LOG(2)))) -> 0 | T9: =N9 -> 121 | U9: =COUNTIF(L7:L13,T9) -> 0 | V9: =U9/(W4-U14) ->  | W9: =IF(V9=0,0,(V9*((LOG(V9))/LOG(2)))) ->  | Y9: =N9 -> 121 | Z9: =COUNTIF(L14:L19,Y9) -> 0 | AA9: =Z9/(AB4-Z14) ->  | AB9: =IF(AA9=0,0,(AA9*((LOG(AA9))/LOG(2)))) ->  | AD9: =N9 -> 121 | AE9: =COUNTIF(L20:L26,AD9) -> 0 | AF9: =AE9/(AG4-AE14) ->  | AG9: =IF(AF9=0,0,(AF9*((LOG(AF9))/LOG(2)))) ->  | AI9: =N9 -> 121 | AJ9: =COUNTIF(L27:L33,AI9) -> 0 | AK9: =AJ9/(AL4-AJ14) ->  | AL9: =IF(AK9=0,0,(AK9*((LOG(AK9))/LOG(2)))) ->  | AN9: =N9 -> 121 | AO9: =COUNTIF(L34:L39,AN9) -> 0 | AP9: =AO9/(AQ4-AO14) ->  | AQ9: =IF(AP9=0,0,(AP9*((LOG(AP9))/LOG(2)))) ->  | AS9: =N9 -> 121 | AT9: =COUNTIF(L40:L46,AS9) -> 0 | AU9: =AT9/(AV4-AT14) ->  | AV9: =IF(AU9=0,0,(AU9*((LOG(AU9))/LOG(2)))) -> 
A10: 21 | B10: 357 | C10: 21 | D10: 379 | E10: 21 | F10: 386 | K10: 0 | L10: 222 | N10: 122 | O10: =COUNTIF($L$7:$L$500,N10) -> 0 | P10: =O10/$Q$4 -> 0 | Q10: =IF(P10=0,0,(P10*((LOG(P10))/LOG(2)))) -> 0 | T10: =N10 -> 122 | U10: =COUNTIF(L7:L13,T10) -> 0 | V10: =U10/(W4-U14) ->  | W10: =IF(V10=0,0,(V10*((LOG(V10))/LOG(2)))) ->  | Y10: =N10 -> 122 | Z10: =COUNTIF(L14:L19,Y10) -> 0 | AA10: =Z10/(AB4-Z14) ->  | AB10: =IF(AA10=0,0,(AA10*((LOG(AA10))/LOG(2)))) ->  | AD10: =N10 -> 122 | AE10: =COUNTIF(L20:L26,AD10) -> 0 | AF10: =AE10/(AG4-AE14) ->  | AG10: =IF(AF10=0,0,(AF10*((LOG(AF10))/LOG(2)))) ->  | AI10: =N10 -> 122 | AJ10: =COUNTIF(L27:L33,AI10) -> 0 | AK10: =AJ10/(AL4-AJ14) ->  | AL10: =IF(AK10=0,0,(AK10*((LOG(AK10))/LOG(2)))) ->  | AN10: =N10 -> 122 | AO10: =COUNTIF(L34:L39,AN10) -> 0 | AP10: =AO10/(AQ4-AO14) ->  | AQ10: =IF(AP10=0,0,(AP10*((LOG(AP10))/LOG(2)))) ->  | AS10: =N10 -> 122 | AT10: =COUNTIF(L40:L46,AS10) -> 0 | AU10: =AT10/(AV4-AT14) ->  | AV10: =IF(AU10=0,0,(AU10*((LOG(AU10))/LOG(2)))) -> 
A11: 21 | B11: 481 | C11: 21 | D11: 485 | E11: 21 | F11: 495 | K11: 0 | L11: 222 | N11: 211 | O11: =COUNTIF($L$7:$L$500,N11) -> 0 | P11: =O11/$Q$4 -> 0 | Q11: =IF(P11=0,0,(P11*((LOG(P11))/LOG(2)))) -> 0 | T11: =N11 -> 211 | U11: =COUNTIF(L7:L13,T11) -> 0 | V11: =U11/(W4-U14) ->  | W11: =IF(V11=0,0,(V11*((LOG(V11))/LOG(2)))) ->  | Y11: =N11 -> 211 | Z11: =COUNTIF(L14:L19,Y11) -> 0 | AA11: =Z11/(AB4-Z14) ->  | AB11: =IF(AA11=0,0,(AA11*((LOG(AA11))/LOG(2)))) ->  | AD11: =N11 -> 211 | AE11: =COUNTIF(L20:L26,AD11) -> 0 | AF11: =AE11/(AG4-AE14) ->  | AG11: =IF(AF11=0,0,(AF11*((LOG(AF11))/LOG(2)))) ->  | AI11: =N11 -> 211 | AJ11: =COUNTIF(L27:L33,AI11) -> 0 | AK11: =AJ11/(AL4-AJ14) ->  | AL11: =IF(AK11=0,0,(AK11*((LOG(AK11))/LOG(2)))) ->  | AN11: =N11 -> 211 | AO11: =COUNTIF(L34:L39,AN11) -> 0 | AP11: =AO11/(AQ4-AO14) ->  | AQ11: =IF(AP11=0,0,(AP11*((LOG(AP11))/LOG(2)))) ->  | AS11: =N11 -> 211 | AT11: =COUNTIF(L40:L46,AS11) -> 0 | AU11: =AT11/(AV4-AT14) ->  | AV11: =IF(AU11=0,0,(AU11*((LOG(AU11))/LOG(2)))) -> 
A12: 21 | B12: 601 | C12: 21 | D12: 605 | E12: 21 | F12: 628 | K12: 0 | L12: 222 | N12: 212 | O12: =COUNTIF($L$7:$L$500,N12) -> 0 | P12: =O12/$Q$4 -> 0 | Q12: =IF(P12=0,0,(P12*((LOG(P12))/LOG(2)))) -> 0 | T12: =N12 -> 212 | U12: =COUNTIF(L7:L13,T12) -> 0 | V12: =U12/(W4-U14) ->  | W12: =IF(V12=0,0,(V12*((LOG(V12))/LOG(2)))) ->  | Y12: =N12 -> 212 | Z12: =COUNTIF(L14:L19,Y12) -> 0 | AA12: =Z12/(AB4-Z14) ->  | AB12: =IF(AA12=0,0,(AA12*((LOG(AA12))/LOG(2)))) ->  | AD12: =N12 -> 212 | AE12: =COUNTIF(L20:L26,AD12) -> 0 | AF12: =AE12/(AG4-AE14) ->  | AG12: =IF(AF12=0,0,(AF12*((LOG(AF12))/LOG(2)))) ->  | AI12: =N12 -> 212 | AJ12: =COUNTIF(L27:L33,AI12) -> 0 | AK12: =AJ12/(AL4-AJ14) ->  | AL12: =IF(AK12=0,0,(AK12*((LOG(AK12))/LOG(2)))) ->  | AN12: =N12 -> 212 | AO12: =COUNTIF(L34:L39,AN12) -> 0 | AP12: =AO12/(AQ4-AO14) ->  | AQ12: =IF(AP12=0,0,(AP12*((LOG(AP12))/LOG(2)))) ->  | AS12: =N12 -> 212 | AT12: =COUNTIF(L40:L46,AS12) -> 0 | AU12: =AT12/(AV4-AT14) ->  | AV12: =IF(AU12=0,0,(AU12*((LOG(AU12))/LOG(2)))) -> 
A13: 21 | B13: 722 | C13: 21 | D13: 727 | E13: 21 | F13: 737 | K13: 0 | L13: 222 | N13: 221 | O13: =COUNTIF($L$7:$L$500,N13) -> 0 | P13: =O13/$Q$4 -> 0 | Q13: =IF(P13=0,0,(P13*((LOG(P13))/LOG(2)))) -> 0 | T13: =N13 -> 221 | U13: =COUNTIF(L7:L13,T13) -> 0 | V13: =U13/(W4-U14) ->  | W13: =IF(V13=0,0,(V13*((LOG(V13))/LOG(2)))) ->  | Y13: =N13 -> 221 | Z13: =COUNTIF(L14:L19,Y13) -> 0 | AA13: =Z13/(AB4-Z14) ->  | AB13: =IF(AA13=0,0,(AA13*((LOG(AA13))/LOG(2)))) ->  | AD13: =N13 -> 221 | AE13: =COUNTIF(L20:L26,AD13) -> 0 | AF13: =AE13/(AG4-AE14) ->  | AG13: =IF(AF13=0,0,(AF13*((LOG(AF13))/LOG(2)))) ->  | AI13: =N13 -> 221 | AJ13: =COUNTIF(L27:L33,AI13) -> 0 | AK13: =AJ13/(AL4-AJ14) ->  | AL13: =IF(AK13=0,0,(AK13*((LOG(AK13))/LOG(2)))) ->  | AN13: =N13 -> 221 | AO13: =COUNTIF(L34:L39,AN13) -> 0 | AP13: =AO13/(AQ4-AO14) ->  | AQ13: =IF(AP13=0,0,(AP13*((LOG(AP13))/LOG(2)))) ->  | AS13: =N13 -> 221 | AT13: =COUNTIF(L40:L46,AS13) -> 0 | AU13: =AT13/(AV4-AT14) ->  | AV13: =IF(AU13=0,0,(AU13*((LOG(AU13))/LOG(2)))) -> 
A14: 21 | B14: 884 | C14: 21 | D14: 888 | E14: 21 | F14: 895 | K14: 0 | L14: 222 | N14: 222 | O14: =COUNTIF($L$7:$L$500,N14) -> 40 | P14: =O14/$Q$4 -> 1 | Q14: =IF(P14=0,0,(P14*((LOG(P14))/LOG(2)))) -> 0 | T14: =N14 -> 222 | U14: =COUNTIF(L7:L13,T14) -> 7 | Y14: =N14 -> 222 | Z14: =COUNTIF(L14:L19,Y14) -> 6 | AD14: =N14 -> 222 | AE14: =COUNTIF(L20:L26,AD14) -> 7 | AI14: =N14 -> 222 | AJ14: =COUNTIF(L27:L33,AI14) -> 7 | AN14: =N14 -> 222 | AO14: =COUNTIF(L34:L39,AN14) -> 6 | AS14: =N14 -> 222 | AT14: =COUNTIF(L40:L46,AS14) -> 7
A15: 21 | B15: 989 | C15: 21 | D15: 991 | E15: 21 | F15: 994 | K15: 0 | L15: 222 | P15: =SUM(P7:P14) -> 1 | Q15: =-SUM(Q7:Q14) -> 0 | V15: =SUM(V7:V14) ->  | W15: =-SUM(W7:W14) ->  | AA15: =SUM(AA7:AA14) ->  | AB15: =-SUM(AB7:AB14) ->  | AF15: =SUM(AF7:AF14) ->  | AG15: =-SUM(AG7:AG14) ->  | AK15: =SUM(AK7:AK14) ->  | AL15: =-SUM(AL7:AL14) ->  | AP15: =SUM(AP7:AP14) ->  | AQ15: =-SUM(AQ7:AQ14) ->  | AU15: =SUM(AU7:AU14) ->  | AV15: =-SUM(AV7:AV14) -> 
A16: 21 | B16: 1088 | C16: 21 | D16: 1092 | E16: 21 | F16: 1097 | K16: 0 | L16: 222 | P16: U= | Q16: =Q15/(LOG(Q4)/LOG(2)) -> 0 | V16: U1= | W16: =W15/(LOG(W4)/LOG(2)) ->  | AA16: U2= | AB16: =AB15/(LOG(AB4)/LOG(2)) ->  | AF16: U3= | AG16: =AG15/(LOG(AG4)/LOG(2)) ->  | AK16: U4= | AL16: =AL15/(LOG(AL4)/LOG(2)) ->  | AP16: U5= | AQ16: =AQ15/(LOG(AQ4)/LOG(2)) ->  | AU16: U6= | AV16: =AV15/(LOG(AV4)/LOG(2)) -> 
A17: 21 | B17: 1192 | C17: 21 | D17: 1196 | E17: 21 | F17: 1211 | K17: 0 | L17: 222
A18: 21 | B18: 1307 | C18: 21 | D18: 1311 | E18: 21 | F18: 1316 | K18: 0 | L18: 222
A19: 21 | B19: 1413 | C19: 21 | D19: 1420 | E19: 21 | F19: 1424 | K19: 0 | L19: 222 | N19: Total Target Seq
A20: 21 | B20: 1517 | C20: 21 | D20: 1520 | E20: 21 | F20: 1526 | K20: 0 | L20: 222 | N20: =COUNTIF(L7:L46,G3) -> 40 | P20: 7 | Q20: 6 | R20: 7 | S20: 7 | T20: 6 | U20: 7
A21: 21 | B21: 1619 | C21: 21 | D21: 1625 | E21: 21 | F21: 1641 | K21: 0 | L21: 222 | P21: % of reinforcement given in 6 equal intervals based on number of trials
A22: 21 | B22: 1736 | C22: 21 | D22: 1740 | E22: 21 | F22: 1748 | K22: 0 | L22: 222 | P22: %_1 | Q22: %_2 | R22: %_3 | S22: %_4 | T22: %_5 | U22: %_6
A23: 21 | B23: 1840 | C23: 21 | D23: 1843 | E23: 21 | F23: 1847 | K23: 0 | L23: 222 | O23: target sequence | P23: =$G$3 -> 222 | Q23: =$G$3 -> 222 | R23: =$G$3 -> 222 | S23: =$G$3 -> 222 | T23: =$G$3 -> 222 | U23: =$G$3 -> 222
A24: 21 | B24: 1941 | C24: 21 | D24: 1945 | E24: 21 | F24: 1951 | K24: 0 | L24: 222 | O24: total reinforcement | P24: =U14 -> 7 | Q24: =Z14 -> 6 | R24: =AE14 -> 7 | S24: =AJ14 -> 7 | T24: =AO14 -> 6 | U24: =AT14 -> 7
A25: 21 | B25: 2047 | C25: 21 | D25: 2065 | E25: 21 | F25: 2072 | K25: 0 | L25: 222 | O25: % target
A26: 21 | B26: 2165 | C26: 21 | D26: 2169 | E26: 21 | F26: 2173 | K26: 0 | L26: 222 | O26: CCRF
A27: 21 | B27: 2266 | C27: 21 | D27: 2271 | E27: 21 | F27: 2276 | K27: 0 | L27: 222 | O27: % CCRf
A28: 21 | B28: 2370 | C28: 21 | D28: 2374 | E28: 21 | F28: 2383 | K28: 0 | L28: 222 | O28: average response rate | P28: =F13/P20 -> 105.2857143 | Q28: =(F19-F13)/Q20 -> 114.5 | R28: =(F26-F19)/R20 -> 107 | S28: =(F33-F26)/S20 -> 107.2857143 | T28: =(F39-F33)/T20 -> 106.8333333 | U28: =(F46-F39)/U20 -> 130.7142857
A29: 21 | B29: 2476 | C29: 21 | D29: 2479 | E29: 21 | F29: 2483 | K29: 0 | L29: 222
A30: 21 | B30: 2577 | C30: 21 | D30: 2581 | E30: 21 | F30: 2584 | K30: 0 | L30: 222
A31: 21 | B31: 2677 | C31: 21 | D31: 2682 | E31: 21 | F31: 2687 | K31: 0 | L31: 222
A32: 21 | B32: 2783 | C32: 21 | D32: 2786 | E32: 21 | F32: 2792 | K32: 0 | L32: 222
A33: 21 | B33: 2918 | C33: 21 | D33: 2919 | E33: 21 | F33: 2924 | K33: 0 | L33: 222
A34: 21 | B34: 3017 | C34: 21 | D34: 3020 | E34: 21 | F34: 3025 | K34: 0 | L34: 222
A35: 21 | B35: 3120 | C35: 21 | D35: 3123 | E35: 21 | F35: 3128 | K35: 0 | L35: 222
A36: 21 | B36: 3221 | C36: 21 | D36: 3224 | E36: 21 | F36: 3228 | K36: 0 | L36: 222
A37: 21 | B37: 3341 | C37: 21 | D37: 3344 | E37: 21 | F37: 3348 | K37: 0 | L37: 222
A38: 21 | B38: 3449 | C38: 21 | D38: 3453 | E38: 21 | F38: 3459 | K38: 0 | L38: 222
A39: 21 | B39: 3552 | C39: 21 | D39: 3559 | E39: 21 | F39: 3565 | K39: 0 | L39: 222
A40: 21 | B40: 3778 | C40: 21 | D40: 3783 | E40: 21 | F40: 3788 | K40: 0 | L40: 222
A41: 21 | B41: 3886 | C41: 21 | D41: 3891 | E41: 21 | F41: 3895 | K41: 0 | L41: 222
A42: 21 | B42: 4022 | C42: 21 | D42: 4027 | E42: 21 | F42: 4046 | K42: 0 | L42: 222
A43: 21 | B43: 4158 | C43: 21 | D43: 4161 | E43: 21 | F43: 4167 | K43: 0 | L43: 222
A44: 21 | B44: 4260 | C44: 21 | D44: 4266 | E44: 21 | F44: 4271 | K44: 0 | L44: 222
A45: 21 | B45: 4366 | C45: 21 | D45: 4370 | E45: 21 | F45: 4373 | K45: 0 | L45: 222
A46: 21 | B46: 4473 | C46: 21 | D46: 4475 | E46: 21 | F46: 4480 | K46: 1 | L46: 222

Sheet !M916A4T.AYL
A1: Report for:!M916A4T.AYL
A2: Date: | B2: <date>
A3: Hen: | B3: <hen> | F3: Correct Sequence | G3: =Start!J2 -> 222 | P3: Total Sequences in Data | Q3: =4994-COUNTBLANK(L7:L5000) -> 40 | V3: Total Sequences in Block Data | W3: =COUNTA(L7:L13) -> 7 | AA3: Total Sequences in Block Data | AB3: =COUNTA(L14:L19) -> 6 | AF3: Total Sequences in Block Data | AG3: =COUNTA(L20:L26) -> 7 | AK3: Total Sequences in Block Data | AL3: =COUNTA(L27:L33) -> 7 | AP3: Total Sequences in Block Data | AQ3: =COUNTA(L34:L39) -> 6 | AU3: Total Sequences in Block Data | AV3: =COUNTA(L40:L46) -> 7
P4: Total Sequences in Summary | Q4: =SUM(O7:O14) -> 40 | V4: Total Sequences in Block Summary | W4: =SUM(U7:U14) -> 7 | AA4: Total Sequences in Block Summary | AB4: =SUM(Z7:Z14) -> 6 | AF4: Total Sequences in Block Summary | AG4: =SUM(AE7:AE14) -> 7 | AK4: Total Sequences in Block Summary | AL4: =SUM(AJ7:AJ14) -> 7 | AP4: Total Sequences in Block Summary | AQ4: =SUM(AO7:AO14) -> 6 | AU4: Total Sequences in Block Summary | AV4: =SUM(AT7:AT14) -> 7
T5: Block 1 | Y5: Block 2 | AD5: Block 3 | AI5: Block 4 | AN5: Block 5 | AS5: Block 6
A6: Sequence Component 1 | B6: Time 1 | C6: Sequence Component 2 | D6: Time 2 | E6: Sequence Component 3 | F6: Time 3 | G6: Sequence Component 4 | H6: Time 4 | I6: Sequence Component 5 | J6: Time 5 | K6: Correct? 0=No 1=Yes | L6: Sequence | N6: Frequency | P6: Relative Frequency | Q6: Variability | T6: Frequency | V6: Relative Frequency | W6: Variability | Y6: Frequency | AA6: Relative Frequency | AB6: Variability | AD6: Frequency | AF6: Relative Frequency | AG6: Variability | AI6: Frequency | AK6: Relative Frequency | AL6: Variability | AN6: Frequency | AP6: Relative Frequency | AQ6: Variability | AS6: Frequency | AU6: Relative Frequency | AV6: Variability
A7: 21 | B7: 11 | C7: 21 | D7: 20 | E7: 21 | F7: 34 | K7: 0 | L7: 222 | N7: 111 | O7: =COUNTIF($L$7:$L$500,N7) -> 0 | P7: =O7/$Q$4 -> 0 | Q7: =IF(P7=0,0,(P7*((LOG(P7))/LOG(2)))) -> 0 | T7: =N7 -> 111 | U7: =COUNTIF(L7:L13,T7) -> 0 | V7: =U7/(W4-U14) ->  | W7: =IF(V7=0,0,(V7*((LOG(V7))/LOG(2)))) ->  | Y7: =N7 -> 111 | Z7: =COUNTIF(L14:L19,Y7) -> 0 | AA7: =Z7/(AB4-Z14) ->  | AB7: =IF(AA7=0,0,(AA7*((LOG(AA7))/LOG(2)))) ->  | AD7: =N7 -> 111 | AE7: =COUNTIF(L20:L26,AD7) -> 0 | AF7: =AE7/(AG4-AE14) ->  | AG7: =IF(AF7=0,0,(AF7*((LOG(AF7))/LOG(2)))) ->  | AI7: =N7 -> 111 | AJ7: =COUNTIF(L27:L33,AI7) -> 0 | AK7: =AJ7/(AL4-AJ14) ->  | AL7: =IF(AK7=0,0,(AK7*((LOG(AK7))/LOG(2)))) ->  | AN7: =N7 -> 111 | AO7: =COUNTIF(L34:L39,AN7) -> 0 | AP7: =AO7/(AQ4-AO14) ->  | AQ7: =IF(AP7=0,0,(AP7*((LOG(AP7))/LOG(2)))) ->  | AS7: =N7 -> 111 | AT7: =COUNTIF(L40:L46,AS7) -> 0 | AU7: =AT7/(AV4-AT14) ->  | AV7: =IF(AU7=0,0,(AU7*((LOG(AU7))/LOG(2)))) -> 
A8: 21 | B8: 136 | C8: 21 | D8: 150 | E8: 21 | F8: 154 | K8: 0 | L8: 222 | N8: 112 | O8: =COUNTIF($L$7:$L$500,N8) -> 0 | P8: =O8/$Q$4 -> 0 | Q8: =IF(P8=0,0,(P8*((LOG(P8))/LOG(2)))) -> 0 | T8: =N8 -> 112 | U8: =COUNTIF(L7:L13,T8) -> 0 | V8: =U8/(W4-U14) ->  | W8: =IF(V8=0,0,(V8*((LOG(V8))/LOG(2)))) ->  | Y8: =N8 -> 112 | Z8: =COUNTIF(L14:L19,Y8) -> 0 | AA8: =Z8/(AB4-Z14) ->  | AB8: =IF(AA8=0,0,(AA8*((LOG(AA8))/LOG(2)))) ->  | AD8: =N8 -> 112 | AE8: =COUNTIF(L20:L26,AD8) -> 0 | AF8: =AE8/(AG4-AE14) ->  | AG8: =IF(AF8=0,0,(AF8*((LOG(AF8))/LOG(2)))) ->  | AI8: =N8 -> 112 | AJ8: =COUNTIF(L27:L33,AI8) -> 0 | AK8: =AJ8/(AL4-AJ14) ->  | AL8: =IF(AK8=0,0,(AK8*((LOG(AK8))/LOG(2)))) ->  | AN8: =N8 -> 112 | AO8: =COUNTIF(L34:L39,AN8) -> 0 | AP8: =AO8/(AQ4-AO14) ->  | AQ8: =IF(AP8=0,0,(AP8*((LOG(AP8))/LOG(2)))) ->  | AS8: =N8 -> 112 | AT8: =COUNTIF(L40:L46,AS8) -> 0 | AU8: =AT8/(AV4-AT14) ->  | AV8: =IF(AU8=0,0,(AU8*((LOG(AU8))/LOG(2)))) -> 
A9: 21 | B9: 248 | C9: 21 | D9: 251 | E9: 21 | F9: 265 | K9: 0 | L9: 222 | N9: 121 | O9: =COUNTIF($L$7:$L$500,N9) -> 0 | P9: =O9/$Q$4 -> 0 | Q9: =IF(P9=0,0,(P9*((LOG(P9))/LOG(2)))) -> 0 | T9: =N9 -> 121 | U9: =COUNTIF(L7:L13,T9) -> 0 | V9: =U9/(W4-U14) ->  | W9: =IF(V9=0,0,(V9*((LOG(V9))/LOG(2)))) ->  | Y9: =N9 -> 121 | Z9: =COUNTIF(L14:L19,Y9) -> 0 | AA9: =Z9/(AB4-Z14) ->  | AB9: =IF(AA9=0,0,(AA9*((LOG(AA9))/LOG(2)))) ->  | AD9: =N9 -> 121 | AE9: =COUNTIF(L20:L26,AD9) -> 0 | AF9: =AE9/(AG4-AE14) ->  | AG9: =IF(AF9=0,0,(AF9*((LOG(AF9))/LOG(2)))) ->  | AI9: =N9 -> 121 | AJ9: =COUNTIF(L27:L33,AI9) -> 0 | AK9: =AJ9/(AL4-AJ14) ->  | AL9: =IF(AK9=0,0,(AK9*((LOG(AK9))/LOG(2)))) ->  | AN9: =N9 -> 121 | AO9: =COUNTIF(L34:L39,AN9) -> 0 | AP9: =AO9/(AQ4-AO14) ->  | AQ9: =IF(AP9=0,0,(AP9*((LOG(AP9))/LOG(2)))) ->  | AS9: =N9 -> 121 | AT9: =COUNTIF(L40:L46,AS9) -> 0 | AU9: =AT9/(AV4-AT14) ->  | AV9: =IF(AU9=0,0,(AU9*((LOG(AU9))/LOG(2)))) -> 
A10: 21 | B10: 359 | C10: 21 | D10: 371 | E10: 21 | F10: 378 | K10: 0 | L10: 222 | N10: 122 | O10: =COUNTIF($L$7:$L$500,N10) -> 0 | P10: =O10/$Q$4 -> 0 | Q10: =IF(P10=0,0,(P10*((LOG(P10))/LOG(2)))) -> 0 | T10: =N10 -> 122 | U10: =COUNTIF(L7:L13,T10) -> 0 | V10: =U10/(W4-U14) ->  | W10: =IF(V10=0,0,(V10*((LOG(V10))/LOG(2)))) ->  | Y10: =N10 -> 122 | Z10: =COUNTIF(L14:L19,Y10) -> 0 | AA10: =Z10/(AB4-Z14) ->  | AB10: =IF(AA10=0,0,(AA10*((LOG(AA10))/LOG(2)))) ->  | AD10: =N10 -> 122 | AE10: =COUNTIF(L20:L26,AD10) -> 0 | AF10: =AE10/(AG4-AE14) ->  | AG10: =IF(AF10=0,0,(AF10*((LOG(AF10))/LOG(2)))) ->  | AI10: =N10 -> 122 | AJ10: =COUNTIF(L27:L33,AI10) -> 0 | AK10: =AJ10/(AL4-AJ14) ->  | AL10: =IF(AK10=0,0,(AK10*((LOG(AK10))/LOG(2)))) ->  | AN10: =N10 -> 122 | AO10: =COUNTIF(L34:L39,AN10) -> 0 | AP10: =AO10/(AQ4-AO14) ->  | AQ10: =IF(AP10=0,0,(AP10*((LOG(AP10))/LOG(2)))) ->  | AS10: =N10 -> 122 | AT10: =COUNTIF(L40:L46,AS10) -> 0 | AU10: =AT10/(AV4-AT14) ->  | AV10: =IF(AU10=0,0,(AU10*((LOG(AU10))/LOG(2)))) -> 
A11: 21 | B11: 470 | C11: 21 | D11: 472 | E11: 21 | F11: 478 | K11: 0 | L11: 222 | N11: 211 | O11: =COUNTIF($L$7:$L$500,N11) -> 0 | P11: =O11/$Q$4 -> 0 | Q11: =IF(P11=0,0,(P11*((LOG(P11))/LOG(2)))) -> 0 | T11: =N11 -> 211 | U11: =COUNTIF(L7:L13,T11) -> 0 | V11: =U11/(W4-U14) ->  | W11: =IF(V11=0,0,(V11*((LOG(V11))/LOG(2)))) ->  | Y11: =N11 -> 211 | Z11: =COUNTIF(L14:L19,Y11) -> 0 | AA11: =Z11/(AB4-Z14) ->  | AB11: =IF(AA11=0,0,(AA11*((LOG(AA11))/LOG(2)))) ->  | AD11: =N11 -> 211 | AE11: =COUNTIF(L20:L26,AD11) -> 0 | AF11: =AE11/(AG4-AE14) ->  | AG11: =IF(AF11=0,0,(AF11*((LOG(AF11))/LOG(2)))) ->  | AI11: =N11 -> 211 | AJ11: =COUNTIF(L27:L33,AI11) -> 0 | AK11: =AJ11/(AL4-AJ14) ->  | AL11: =IF(AK11=0,0,(AK11*((LOG(AK11))/LOG(2)))) ->  | AN11: =N11 -> 211 | AO11: =COUNTIF(L34:L39,AN11) -> 0 | AP11: =AO11/(AQ4-AO14) ->  | AQ11: =IF(AP11=0,0,(AP11*((LOG(AP11))/LOG(2)))) ->  | AS11: =N11 -> 211 | AT11: =COUNTIF(L40:L46,AS11) -> 0 | AU11: =AT11/(AV4-AT14) ->  | AV11: =IF(AU11=0,0,(AU11*((LOG(AU11))/LOG(2)))) -> 
A12: 21 | B12: 585 | C12: 21 | D12: 590 | E12: 21 | F12: 609 | K12: 0 | L12: 222 | N12: 212 | O12: =COUNTIF($L$7:$L$500,N12) -> 0 | P12: =O12/$Q$4 -> 0 | Q12: =IF(P12=0,0,(P12*((LOG(P12))/LOG(2)))) -> 0 | T12: =N12 -> 212 | U12: =COUNTIF(L7:L13,T12) -> 0 | V12: =U12/(W4-U14) ->  | W12: =IF(V12=0,0,(V12*((LOG(V12))/LOG(2)))) ->  | Y12: =N12 -> 212 | Z12: =COUNTIF(L14:L19,Y12) -> 0 | AA12: =Z12/(AB4-Z14) ->  | AB12: =IF(AA12=0,0,(AA12*((LOG(AA12))/LOG(2)))) ->  | AD12: =N12 -> 212 | AE12: =COUNTIF(L20:L26,AD12) -> 0 | AF12: =AE12/(AG4-AE14) ->  | AG12: =IF(AF12=0,0,(AF12*((LOG(AF12))/LOG(2)))) ->  | AI12: =N12 -> 212 | AJ12: =COUNTIF(L27:L33,AI12) -> 0 | AK12: =AJ12/(AL4-AJ14) ->  | AL12: =IF(AK12=0,0,(AK12*((LOG(AK12))/LOG(2)))) ->  | AN12: =N12 -> 212 | AO12: =COUNTIF(L34:L39,AN12) -> 0 | AP12: =AO12/(AQ4-AO14) ->  | AQ12: =IF(AP12=0,0,(AP12*((LOG(AP12))/LOG(2)))) ->  | AS12: =N12 -> 212 | AT12: =COUNTIF(L40:L46,AS12) -> 0 | AU12: =AT12/(AV4-AT14) ->  | AV12: =IF(AU12=0,0,(AU12*((LOG(AU12))/LOG(2)))) -> 
A13: 21 | B13: 702 | C13: 21 | D13: 706 | E13: 21 | F13: 709 | K13: 0 | L13: 222 | N13: 221 | O13: =COUNTIF($L$7:$L$500,N13) -> 0 | P13: =O13/$Q$4 -> 0 | Q13: =IF(P13=0,0,(P13*((LOG(P13))/LOG(2)))) -> 0 | T13: =N13 -> 221 | U13: =COUNTIF(L7:L13,T13) -> 0 | V13: =U13/(W4-U14) ->  | W13: =IF(V13=0,0,(V13*((LOG(V13))/LOG(2)))) ->  | Y13: =N13 -> 221 | Z13: =COUNTIF(L14:L19,Y13) -> 0 | AA13: =Z13/(AB4-Z14) ->  | AB13: =IF(AA13=0,0,(AA13*((LOG(AA13))/LOG(2)))) ->  | AD13: =N13 -> 221 | AE13: =COUNTIF(L20:L26,AD13) -> 0 | AF13: =AE13/(AG4-AE14) ->  | AG13: =IF(AF13=0,0,(AF13*((LOG(AF13))/LOG(2)))) ->  | AI13: =N13 -> 221 | AJ13: =COUNTIF(L27:L33,AI13) -> 0 | AK13: =AJ13/(AL4-AJ14) ->  | AL13: =IF(AK13=0,0,(AK13*((LOG(AK13))/LOG(2)))) ->  | AN13: =N13 -> 221 | AO13: =COUNTIF(L34:L39,AN13) -> 0 | AP13: =AO13/(AQ4-AO14) ->  | AQ13: =IF(AP13=0,0,(AP13*((LOG(AP13))/LOG(2)))) ->  | AS13: =N13 -> 221 | AT13: =COUNTIF(L40:L46,AS13) -> 0 | AU13: =AT13/(AV4-AT14) ->  | AV13: =IF(AU13=0,0,(AU13*((LOG(AU13))/LOG(2)))) -> 
A14: 21 | B14: 808 | C14: 21 | D14: 814 | E14: 21 | F14: 818 | K14: 0 | L14: 222 | N14: 222 | O14: =COUNTIF($L$7:$L$500,N14) -> 40 | P14: =O14/$Q$4 -> 1 | Q14: =IF(P14=0,0,(P14*((LOG(P14))/LOG(2)))) -> 0 | T14: =N14 -> 222 | U14: =COUNTIF(L7:L13,T14) -> 7 | Y14: =N14 -> 222 | Z14: =COUNTIF(L14:L19,Y14) -> 6 | AD14: =N14 -> 222 | AE14: =COUNTIF(L20:L26,AD14) -> 7 | AI14: =N14 -> 222 | AJ14: =COUNTIF(L27:L33,AI14) -> 7 | AN14: =N14 -> 222 | AO14: =COUNTIF(L34:L39,AN14) -> 6 | AS14: =N14 -> 222 | AT14: =COUNTIF(L40:L46,AS14) -> 7
A15: 21 | B15: 923 | C15: 21 | D15: 927 | E15: 21 | F15: 936 | K15: 0 | L15: 222 | P15: =SUM(P7:P14) -> 1 | Q15: =-SUM(Q7:Q14) -> 0 | V15: =SUM(V7:V14) ->  | W15: =-SUM(W7:W14) ->  | AA15: =SUM(AA7:AA14) ->  | AB15: =-SUM(AB7:AB14) ->  | AF15: =SUM(AF7:AF14) ->  | AG15: =-SUM(AG7:AG14) ->  | AK15: =SUM(AK7:AK14) ->  | AL15: =-SUM(AL7:AL14) ->  | AP15: =SUM(AP7:AP14) ->  | AQ15: =-SUM(AQ7:AQ14) ->  | AU15: =SUM(AU7:AU14) ->  | AV15: =-SUM(AV7:AV14) -> 
A16: 21 | B16: 1032 | C16: 21 | D16: 1042 | E16: 21 | F16: 1067 | K16: 0 | L16: 222 | P16: U= | Q16: =Q15/(LOG(Q4)/LOG(2)) -> 0 | V16: U1= | W16: =W15/(LOG(W4)/LOG(2)) ->  | AA16: U2= | AB16: =AB15/(LOG(AB4)/LOG(2)) ->  | AF16: U3= | AG16: =AG15/(LOG(AG4)/LOG(2)) ->  | AK16: U4= | AL16: =AL15/(LOG(AL4)/LOG(2)) ->  | AP16: U5= | AQ16: =AQ15/(LOG(AQ4)/LOG(2)) ->  | AU16: U6= | AV16: =AV15/(LOG(AV4)/LOG(2)) -> 
A17: 21 | B17: 1161 | C17: 21 | D17: 1166 | E17: 21 | F17: 1178 | K17: 0 | L17: 222
A18: 21 | B18: 1272 | C18: 21 | D18: 1276 | E18: 21 | F18: 1283 | K18: 0 | L18: 222
A19: 21 | B19: 1416 | C19: 21 | D19: 1440 | E19: 21 | F19: 1456 | K19: 0 | L19: 222 | N19: Total Target Seq
A20: 21 | B20: 1569 | C20: 21 | D20: 1572 | E20: 21 | F20: 1576 | K20: 0 | L20: 222 | N20: =COUNTIF(L7:L46,G3) -> 40 | P20: 7 | Q20: 6 | R20: 7 | S20: 7 | T20: 6 | U20: 7
A21: 21 | B21: 1671 | C21: 21 | D21: 1673 | E21: 21 | F21: 1679 | K21: 0 | L21: 222 | P21: % of reinforcement given in 6 equal intervals based on number of trials
A22: 21 | B22: 1771 | C22: 21 | D22: 1774 | E22: 21 | F22: 1780 | K22: 0 | L22: 222 | P22: %_1 | Q22: %_2 | R22: %_3 | S22: %_4 | T22: %_5 | U22: %_6
A23: 21 | B23: 1890 | C23: 21 | D23: 1894 | E23: 21 | F23: 1900 | K23: 0 | L23: 222 | O23: target sequence | P23: =$G$3 -> 222 | Q23: =$G$3 -> 222 | R23: =$G$3 -> 222 | S23: =$G$3 -> 222 | T23: =$G$3 -> 222 | U23: =$G$3 -> 222
A24: 21 | B24: 1994 | C24: 21 | D24: 1998 | E24: 21 | F24: 2001 | K24: 0 | L24: 222 | O24: total reinforcement | P24: =U14 -> 7 | Q24: =Z14 -> 6 | R24: =AE14 -> 7 | S24: =AJ14 -> 7 | T24: =AO14 -> 6 | U24: =AT14 -> 7
A25: 21 | B25: 2098 | C25: 21 | D25: 2118 | E25: 21 | F25: 2128 | K25: 0 | L25: 222 | O25: % target
A26: 21 | B26: 2239 | C26: 21 | D26: 2242 | E26: 21 | F26: 2247 | K26: 0 | L26: 222 | O26: CCRF
A27: 21 | B27: 2341 | C27: 21 | D27: 2345 | E27: 21 | F27: 2350 | K27: 0 | L27: 222 | O27: % CCRf
A28: 21 | B28: 2484 | C28: 21 | D28: 2494 | E28: 21 | F28: 2500 | K28: 0 | L28: 222 | O28: average response rate | P28: =F13/P20 -> 101.2857143 | Q28: =(F19-F13)/Q20 -> 124.5 | R28: =(F26-F19)/R20 -> 113 | S28: =(F33-F26)/S20 -> 117 | T28: =(F39-F33)/T20 -> 118 | U28: =(F46-F39)/U20 -> 275.4285714
A29: 21 | B29: 2607 | C29: 21 | D29: 2616 | E29: 21 | F29: 2630 | K29: 0 | L29: 222
A30: 21 | B30: 2727 | C30: 21 | D30: 2729 | E30: 21 | F30: 2734 | K30: 0 | L30: 222
A31: 21 | B31: 2831 | C31: 21 | D31: 2835 | E31: 21 | F31: 2844 | K31: 0 | L31: 222
A32: 21 | B32: 2943 | C32: 21 | D32: 2947 | E32: 21 | F32: 2955 | K32: 0 | L32: 222
A33: 21 | B33: 3059 | C33: 21 | D33: 3062 | E33: 21 | F33: 3066 | K33: 0 | L33: 222
A34: 21 | B34: 3165 | C34: 21 | D34: 3169 | E34: 21 | F34: 3193 | K34: 0 | L34: 222
A35: 21 | B35: 3314 | C35: 21 | D35: 3317 | E35: 21 | F35: 3322 | K35: 0 | L35: 222
A36: 21 | B36: 3415 | C36: 21 | D36: 3425 | E36: 21 | F36: 3443 | K36: 0 | L36: 222
A37: 21 | B37: 3543 | C37: 21 | D37: 3561 | E37: 21 | F37: 3570 | K37: 0 | L37: 222
A38: 21 | B38: 3664 | C38: 21 | D38: 3668 | E38: 21 | F38: 3673 | K38: 0 | L38: 222
A39: 21 | B39: 3767 | C39: 21 | D39: 3770 | E39: 21 | F39: 3774 | K39: 0 | L39: 222
A40: 21 | B40: 3869 | C40: 21 | D40: 3873 | E40: 21 | F40: 3888 | K40: 0 | L40: 222
A41: 21 | B41: 3988 | C41: 21 | D41: 3991 | E41: 21 | F41: 4003 | K41: 0 | L41: 222
A42: 21 | B42: 5240 | C42: 21 | D42: 5245 | E42: 21 | F42: 5265 | K42: 0 | L42: 222
A43: 21 | B43: 5370 | C43: 21 | D43: 5373 | E43: 21 | F43: 5378 | K43: 0 | L43: 222
A44: 21 | B44: 5473 | C44: 21 | D44: 5484 | E44: 21 | F44: 5494 | K44: 0 | L44: 222
A45: 21 | B45: 5590 | C45: 21 | D45: 5593 | E45: 21 | F45: 5597 | K45: 0 | L45: 222
A46: 21 | B46: 5693 | C46: 21 | D46: 5697 | E46: 21 | F46: 5702 | K46: 1 | L46: 222

Sheet !M917A4T.AYL
A1: Report for:!M917A4T.AYL
A2: Date: | B2: <date>
A3: Hen: | B3: <hen> | F3: Correct Sequence | G3: =Start!J2 -> 222 | P3: Total Sequences in Data | Q3: =4994-COUNTBLANK(L7:L5000) -> 40 | V3: Total Sequences in Block Data | W3: =COUNTA(L7:L13) -> 7 | AA3: Total Sequences in Block Data | AB3: =COUNTA(L14:L19) -> 6 | AF3: Total Sequences in Block Data | AG3: =COUNTA(L20:L26) -> 7 | AK3: Total Sequences in Block Data | AL3: =COUNTA(L27:L33) -> 7 | AP3: Total Sequences in Block Data | AQ3: =COUNTA(L34:L39) -> 6 | AU3: Total Sequences in Block Data | AV3: =COUNTA(L40:L46) -> 7
P4: Total Sequences in Summary | Q4: =SUM(O7:O14) -> 40 | V4: Total Sequences in Block Summary | W4: =SUM(U7:U14) -> 7 | AA4: Total Sequences in Block Summary | AB4: =SUM(Z7:Z14) -> 6 | AF4: Total Sequences in Block Summary | AG4: =SUM(AE7:AE14) -> 7 | AK4: Total Sequences in Block Summary | AL4: =SUM(AJ7:AJ14) -> 7 | AP4: Total Sequences in Block Summary | AQ4: =SUM(AO7:AO14) -> 6 | AU4: Total Sequences in Block Summary | AV4: =SUM(AT7:AT14) -> 7
T5: Block 1 | Y5: Block 2 | AD5: Block 3 | AI5: Block 4 | AN5: Block 5 | AS5: Block 6
A6: Sequence Component 1 | B6: Time 1 | C6: Sequence Component 2 | D6: Time 2 | E6: Sequence Component 3 | F6: Time 3 | G6: Sequence Component 4 | H6: Time 4 | I6: Sequence Component 5 | J6: Time 5 | K6: Correct? 0=No 1=Yes | L6: Sequence | N6: Frequency | P6: Relative Frequency | Q6: Variability | T6: Frequency | V6: Relative Frequency | W6: Variability | Y6: Frequency | AA6: Relative Frequency | AB6: Variability | AD6: Frequency | AF6: Relative Frequency | AG6: Variability | AI6: Frequency | AK6: Relative Frequency | AL6: Variability | AN6: Frequency | AP6: Relative Frequency | AQ6: Variability | AS6: Frequency | AU6: Relative Frequency | AV6: Variability
A7: 21 | B7: 7 | C7: 21 | D7: 18 | E7: 21 | F7: 22 | K7: 0 | L7: 222 | N7: 111 | O7: =COUNTIF($L$7:$L$500,N7) -> 0 | P7: =O7/$Q$4 -> 0 | Q7: =IF(P7=0,0,(P7*((LOG(P7))/LOG(2)))) -> 0 | T7: =N7 -> 111 | U7: =COUNTIF(L7:L13,T7) -> 0 | V7: =U7/(W4-U14) ->  | W7: =IF(V7=0,0,(V7*((LOG(V7))/LOG(2)))) ->  | Y7: =N7 -> 111 | Z7: =COUNTIF(L14:L19,Y7) -> 0 | AA7: =Z7/(AB4-Z14) ->  | AB7: =IF(AA7=0,0,(AA7*((LOG(AA7))/LOG(2)))) ->  | AD7: =N7 -> 111 | AE7: =COUNTIF(L20:L26,AD7) -> 0 | AF7: =AE7/(AG4-AE14) ->  | AG7: =IF(AF7=0,0,(AF7*((LOG(AF7))/LOG(2)))) ->  | AI7: =N7 -> 111 | AJ7: =COUNTIF(L27:L33,AI7) -> 0 | AK7: =AJ7/(AL4-AJ14) ->  | AL7: =IF(AK7=0,0,(AK7*((LOG(AK7))/LOG(2)))) ->  | AN7: =N7 -> 111 | AO7: =COUNTIF(L34:L39,AN7) -> 0 | AP7: =AO7/(AQ4-AO14) ->  | AQ7: =IF(AP7=0,0,(AP7*((LOG(AP7))/LOG(2)))) ->  | AS7: =N7 -> 111 | AT7: =COUNTIF(L40:L46,AS7) -> 0 | AU7: =AT7/(AV4-AT14) ->  | AV7: =IF(AU7=0,0,(AU7*((LOG(AU7))/LOG(2)))) -> 
A8: 21 | B8: 126 | C8: 21 | D8: 130 | E8: 21 | F8: 134 | K8: 0 | L8: 222 | N8: 112 | O8: =COUNTIF($L$7:$L$500,N8) -> 0 | P8: =O8/$Q$4 -> 0 | Q8: =IF(P8=0,0,(P8*((LOG(P8))/LOG(2)))) -> 0 | T8: =N8 -> 112 | U8: =COUNTIF(L7:L13,T8) -> 0 | V8: =U8/(W4-U14) ->  | W8: =IF(V8=0,0,(V8*((LOG(V8))/LOG(2)))) ->  | Y8: =N8 -> 112 | Z8: =COUNTIF(L14:L19,Y8) -> 0 | AA8: =Z8/(AB4-Z14) ->  | AB8: =IF(AA8=0,0,(AA8*((LOG(AA8))/LOG(2)))) ->  | AD8: =N8 -> 112 | AE8: =COUNTIF(L20:L26,AD8) -> 0 | AF8: =AE8/(AG4-AE14) ->  | AG8: =IF(AF8=0,0,(AF8*((LOG(AF8))/LOG(2)))) ->  | AI8: =N8 -> 112 | AJ8: =COUNTIF(L27:L33,AI8) -> 0 | AK8: =AJ8/(AL4-AJ14) ->  | AL8: =IF(AK8=0,0,(AK8*((LOG(AK8))/LOG(2)))) ->  | AN8: =N8 -> 112 | AO8: =COUNTIF(L34:L39,AN8) -> 0 | AP8: =AO8/(AQ4-AO14) ->  | AQ8: =IF(AP8=0,0,(AP8*((LOG(AP8))/LOG(2)))) ->  | AS8: =N8 -> 112 | AT8: =COUNTIF(L40:L46,AS8) -> 0 | AU8: =AT8/(AV4-AT14) ->  | AV8: =IF(AU8=0,0,(AU8*((LOG(AU8))/LOG(2)))) -> 
A9: 21 | B9: 235 | C9: 21 | D9: 238 | E9: 21 | F9: 242 | K9: 0 | L9: 222 | N9: 121 | O9: =COUNTIF($L$7:$L$500,N9) -> 0 | P9: =O9/$Q$4 -> 0 | Q9: =IF(P9=0,0,(P9*((LOG(P9))/LOG(2)))) -> 0 | T9: =N9 -> 121 | U9: =COUNTIF(L7:L13,T9) -> 0 | V9: =U9/(W4-U14) ->  | W9: =IF(V9=0,0,(V9*((LOG(V9))/LOG(2)))) ->  | Y9: =N9 -> 121 | Z9: =COUNTIF(L14:L19,Y9) -> 0 | AA9: =Z9/(AB4-Z14) ->  | AB9: =IF(AA9=0,0,(AA9*((LOG(AA9))/LOG(2)))) ->  | AD9: =N9 -> 121 | AE9: =COUNTIF(L20:L26,AD9) -> 0 | AF9: =AE9/(AG4-AE14) ->  | AG9: =IF(AF9=0,0,(AF9*((LOG(AF9))/LOG(2)))) ->  | AI9: =N9 -> 121 | AJ9: =COUNTIF(L27:L33,AI9) -> 0 | AK9: =AJ9/(AL4-AJ14) ->  | AL9: =IF(AK9=0,0,(AK9*((LOG(AK9))/LOG(2)))) ->  | AN9: =N9 -> 121 | AO9: =COUNTIF(L34:L39,AN9) -> 0 | AP9: =AO9/(AQ4-AO14) ->  | AQ9: =IF(AP9=0,0,(AP9*((LOG(AP9))/LOG(2)))) ->  | AS9: =N9 -> 121 | AT9: =COUNTIF(L40:L46,AS9) -> 0 | AU9: =AT9/(AV4-AT14) ->  | AV9: =IF(AU9=0,0,(AU9*((LOG(AU9))/LOG(2)))) -> 
A10: 21 | B10: 345 | C10: 21 | D10: 367 | E10: 21 | F10: 381 | K10: 0 | L10: 222 | N10: 122 | O10: =COUNTIF($L$7:$L$500,N10) -> 0 | P10: =O10/$Q$4 -> 0 | Q10: =IF(P10=0,0,(P10*((LOG(P10))/LOG(2)))) -> 0 | T10: =N10 -> 122 | U10: =COUNTIF(L7:L13,T10) -> 0 | V10: =U10/(W4-U14) ->  | W10: =IF(V10=0,0,(V10*((LOG(V10))/LOG(2)))) ->  | Y10: =N10 -> 122 | Z10: =COUNTIF(L14:L19,Y10) -> 0 | AA10: =Z10/(AB4-Z14) ->  | AB10: =IF(AA10=0,0,(AA10*((LOG(AA10))/LOG(2)))) ->  | AD10: =N10 -> 122 | AE10: =COUNTIF(L20:L26,AD10) -> 0 | AF10: =AE10/(AG4-AE14) ->  | AG10: =IF(AF10=0,0,(AF10*((LOG(AF10))/LOG(2)))) ->  | AI10: =N10 -> 122 | AJ10: =COUNTIF(L27:L33,AI10) -> 0 | AK10: =AJ10/(AL4-AJ14) ->  | AL10: =IF(AK10=0,0,(AK10*((LOG(AK10))/LOG(2)))) ->  | AN10: =N10 -> 122 | AO10: =COUNTIF(L34:L39,AN10) -> 0 | AP10: =AO10/(AQ4-AO14) ->  | AQ10: =IF(AP10=0,0,(AP10*((LOG(AP10))/LOG(2)))) ->  | AS10: =N10 -> 122 | AT10: =COUNTIF(L40:L46,AS10) -> 0 | AU10: =AT10/(AV4-AT14) ->  | AV10: =IF(AU10=0,0,(AU10*((LOG(AU10))/LOG(2)))) -> 
A11: 21 | B11: 532 | C11: 21 | D11: 537 | E11: 21 | F11: 542 | K11: 0 | L11: 222 | N11: 211 | O11: =COUNTIF($L$7:$L$500,N11) -> 0 | P11: =O11/$Q$4 -> 0 | Q11: =IF(P11=0,0,(P11*((LOG(P11))/LOG(2)))) -> 0 | T11: =N11 -> 211 | U11: =COUNTIF(L7:L13,T11) -> 0 | V11: =U11/(W4-U14) ->  | W11: =IF(V11=0,0,(V11*((LOG(V11))/LOG(2)))) ->  | Y11: =N11 -> 211 | Z11: =COUNTIF(L14:L19,Y11) -> 0 | AA11: =Z11/(AB4-Z14) ->  | AB11: =IF(AA11=0,0,(AA11*((LOG(AA11))/LOG(2)))) ->  | AD11: =N11 -> 211 | AE11: =COUNTIF(L20:L26,AD11) -> 0 | AF11: =AE11/(AG4-AE14) ->  | AG11: =IF(AF11=0,0,(AF11*((LOG(AF11))/LOG(2)))) ->  | AI11: =N11 -> 211 | AJ11: =COUNTIF(L27:L33,AI11) -> 0 | AK11: =AJ11/(AL4-AJ14) ->  | AL11: =IF(AK11=0,0,(AK11*((LOG(AK11))/LOG(2)))) ->  | AN11: =N11 -> 211 | AO11: =COUNTIF(L34:L39,AN11) -> 0 | AP11: =AO11/(AQ4-AO14) ->  | AQ11: =IF(AP11=0,0,(AP11*((LOG(AP11))/LOG(2)))) ->  | AS11: =N11 -> 211 | AT11: =COUNTIF(L40:L46,AS11) -> 0 | AU11: =AT11/(AV4-AT14) ->  | AV11: =IF(AU11=0,0,(AU11*((LOG(AU11))/LOG(2)))) -> 
A12: 21 | B12: 639 | C12: 21 | D12: 642 | E12: 21 | F12: 648 | K12: 0 | L12: 222 | N12: 212 | O12: =COUNTIF($L$7:$L$500,N12) -> 0 | P12: =O12/$Q$4 -> 0 | Q12: =IF(P12=0,0,(P12*((LOG(P12))/LOG(2)))) -> 0 | T12: =N12 -> 212 | U12: =COUNTIF(L7:L13,T12) -> 0 | V12: =U12/(W4-U14) ->  | W12: =IF(V12=0,0,(V12*((LOG(V12))/LOG(2)))) ->  | Y12: =N12 -> 212 | Z12: =COUNTIF(L14:L19,Y12) -> 0 | AA12: =Z12/(AB4-Z14) ->  | AB12: =IF(AA12=0,0,(AA12*((LOG(AA12))/LOG(2)))) ->  | AD12: =N12 -> 212 | AE12: =COUNTIF(L20:L26,AD12) -> 0 | AF12: =AE12/(AG4-AE14) ->  | AG12: =IF(AF12=0,0,(AF12*((LOG(AF12))/LOG(2)))) ->  | AI12: =N12 -> 212 | AJ12: =COUNTIF(L27:L33,AI12) -> 0 | AK12: =AJ12/(AL4-AJ14) ->  | AL12: =IF(AK12=0,0,(AK12*((LOG(AK12))/LOG(2)))) ->  | AN12: =N12 -> 212 | AO12: =COUNTIF(L34:L39,AN12) -> 0 | AP12: =AO12/(AQ4-AO14) ->  | AQ12: =IF(AP12=0,0,(AP12*((LOG(AP12))/LOG(2)))) ->  | AS12: =N12 -> 212 | AT12: =COUNTIF(L40:L46,AS12) -> 0 | AU12: =AT12/(AV4-AT14) ->  | AV12: =IF(AU12=0,0,(AU12*((LOG(AU12))/LOG(2)))) -> 
A13: 21 | B13: 754 | C13: 21 | D13: 758 | E13: 21 | F13: 765 | K13: 0 | L13: 222 | N13: 221 | O13: =COUNTIF($L$7:$L$500,N13) -> 0 | P13: =O13/$Q$4 -> 0 | Q13: =IF(P13=0,0,(P13*((LOG(P13))/LOG(2)))) -> 0 | T13: =N13 -> 221 | U13: =COUNTIF(L7:L13,T13) -> 0 | V13: =U13/(W4-U14) ->  | W13: =IF(V13=0,0,(V13*((LOG(V13))/LOG(2)))) ->  | Y13: =N13 -> 221 | Z13: =COUNTIF(L14:L19,Y13) -> 0 | AA13: =Z13/(AB4-Z14) ->  | AB13: =IF(AA13=0,0,(AA13*((LOG(AA13))/LOG(2)))) ->  | AD13: =N13 -> 221 | AE13: =COUNTIF(L20:L26,AD13) -> 0 | AF13: =AE13/(AG4-AE14) ->  | AG13: =IF(AF13=0,0,(AF13*((LOG(AF13))/LOG(2)))) ->  | AI13: =N13 -> 221 | AJ13: =COUNTIF(L27:L33,AI13) -> 0 | AK13: =AJ13/(AL4-AJ14) ->  | AL13: =IF(AK13=0,0,(AK13*((LOG(AK13))/LOG(2)))) ->  | AN13: =N13 -> 221 | AO13: =COUNTIF(L34:L39,AN13) -> 0 | AP13: =AO13/(AQ4-AO14) ->  | AQ13: =IF(AP13=0,0,(AP13*((LOG(AP13))/LOG(2)))) ->  | AS13: =N13 -> 221 | AT13: =COUNTIF(L40:L46,AS13) -> 0 | AU13: =AT13/(AV4-AT14) ->  | AV13: =IF(AU13=0,0,(AU13*((LOG(AU13))/LOG(2)))) -> 
A14: 21 | B14: 856 | C14: 21 | D14: 859 | E14: 21 | F14: 864 | K14: 0 | L14: 222 | N14: 222 | O14: =COUNTIF($L$7:$L$500,N14) -> 40 | P14: =O14/$Q$4 -> 1 | Q14: =IF(P14=0,0,(P14*((LOG(P14))/LOG(2)))) -> 0 | T14: =N14 -> 222 | U14: =COUNTIF(L7:L13,T14) -> 7 | Y14: =N14 -> 222 | Z14: =COUNTIF(L14:L19,Y14) -> 6 | AD14: =N14 -> 222 | AE14: =COUNTIF(L20:L26,AD14) -> 7 | AI14: =N14 -> 222 | AJ14: =COUNTIF(L27:L33,AI14) -> 7 | AN14: =N14 -> 222 | AO14: =COUNTIF(L34:L39,AN14) -> 6 | AS14: =N14 -> 222 | AT14: =COUNTIF(L40:L46,AS14) -> 7
A15: 21 | B15: 956 | C15: 21 | D15: 959 | E15: 21 | F15: 964 | K15: 0 | L15: 222 | P15: =SUM(P7:P14) -> 1 | Q15: =-SUM(Q7:Q14) -> 0 | V15: =SUM(V7:V14) ->  | W15: =-SUM(W7:W14) ->  | AA15: =SUM(AA7:AA14) ->  | AB15: =-SUM(AB7:AB14) ->  | AF15: =SUM(AF7:AF14) ->  | AG15: =-SUM(AG7:AG14) ->  | AK15: =SUM(AK7:AK14) ->  | AL15: =-SUM(AL7:AL14) ->  | AP15: =SUM(AP7:AP14) ->  | AQ15: =-SUM(AQ7:AQ14) ->  | AU15: =SUM(AU7:AU14) ->  | AV15: =-SUM(AV7:AV14) -> 
A16: 21 | B16: 1084 | C16: 21 | D16: 1087 | E16: 21 | F16: 1091 | K16: 0 | L16: 222 | P16: U= | Q16: =Q15/(LOG(Q4)/LOG(2)) -> 0 | V16: U1= | W16: =W15/(LOG(W4)/LOG(2)) ->  | AA16: U2= | AB16: =AB15/(LOG(AB4)/LOG(2)) ->  | AF16: U3= | AG16: =AG15/(LOG(AG4)/LOG(2)) ->  | AK16: U4= | AL16: =AL15/(LOG(AL4)/LOG(2)) ->  | AP16: U5= | AQ16: =AQ15/(LOG(AQ4)/LOG(2)) ->  | AU16: U6= | AV16: =AV15/(LOG(AV4)/LOG(2)) -> 
A17: 21 | B17: 1183 | C17: 21 | D17: 1186 | E17: 21 | F17: 1206 | K17: 0 | L17: 222
A18: 21 | B18: 1299 | C18: 21 | D18: 1302 | E18: 21 | F18: 1307 | K18: 0 | L18: 222
A19: 21 | B19: 1399 | C19: 21 | D19: 1402 | E19: 21 | F19: 1406 | K19: 0 | L19: 222 | N19: Total Target Seq
A20: 21 | B20: 2395 | C20: 21 | D20: 2419 | E20: 21 | F20: 2433 | K20: 0 | L20: 222 | N20: =COUNTIF(L7:L46,G3) -> 40 | P20: 7 | Q20: 6 | R20: 7 | S20: 7 | T20: 6 | U20: 7
A21: 21 | B21: 2950 | C21: 21 | D21: 2958 | E21: 21 | F21: 2966 | K21: 0 | L21: 222 | P21: % of reinforcement given in 6 equal intervals based on number of trials
A22: 21 | B22: 3075 | C22: 21 | D22: 3092 | E22: 21 | F22: 3096 | K22: 0 | L22: 222 | P22: %_1 | Q22: %_2 | R22: %_3 | S22: %_4 | T22: %_5 | U22: %_6
A23: 21 | B23: 3228 | C23: 21 | D23: 3232 | E23: 21 | F23: 3237 | K23: 0 | L23: 222 | O23: target sequence | P23: =$G$3 -> 222 | Q23: =$G$3 -> 222 | R23: =$G$3 -> 222 | S23: =$G$3 -> 222 | T23: =$G$3 -> 222 | U23: =$G$3 -> 222
A24: 21 | B24: 3352 | C24: 21 | D24: 3355 | E24: 21 | F24: 3362 | K24: 0 | L24: 222 | O24: total reinforcement | P24: =U14 -> 7 | Q24: =Z14 -> 6 | R24: =AE14 -> 7 | S24: =AJ14 -> 7 | T24: =AO14 -> 6 | U24: =AT14 -> 7
A25: 21 | B25: 3455 | C25: 21 | D25: 3458 | E25: 21 | F25: 3466 | K25: 0 | L25: 222 | O25: % target
A26: 21 | B26: 3559 | C26: 21 | D26: 3563 | E26: 21 | F26: 3576 | K26: 0 | L26: 222 | O26: CCRF
A27: 21 | B27: 3668 | C27: 21 | D27: 3671 | E27: 21 | F27: 3689 | K27: 0 | L27: 222 | O27: % CCRf
A28: 21 | B28: 3787 | C28: 21 | D28: 3791 | E28: 21 | F28: 3798 | K28: 0 | L28: 222 | O28: average response rate | P28: =F13/P20 -> 109.2857143 | Q28: =(F19-F13)/Q20 -> 106.8333333 | R28: =(F26-F19)/R20 -> 310 | S28: =(F33-F26)/S20 -> 111 | T28: =(F39-F33)/T20 -> 134.5 | U28: =(F46-F39)/U20 -> 121.4285714
A29: 21 | B29: 3892 | C29: 21 | D29: 3895 | E29: 21 | F29: 3917 | K29: 0 | L29: 222
A30: 21 | B30: 4009 | C30: 21 | D30: 4012 | E30: 21 | F30: 4015 | K30: 0 | L30: 222
A31: 21 | B31: 4111 | C31: 21 | D31: 4116 | E31: 21 | F31: 4131 | K31: 0 | L31: 222
A32: 21 | B32: 4232 | C32: 21 | D32: 4242 | E32: 21 | F32: 4251 | K32: 0 | L32: 222
A33: 21 | B33: 4345 | C33: 21 | D33: 4349 | E33: 21 | F33: 4353 | K33: 0 | L33: 222
A34: 21 | B34: 4446 | C34: 21 | D34: 4449 | E34: 21 | F34: 4455 | K34: 0 | L34: 222
A35: 21 | B35: 4549 | C35: 21 | D35: 4554 | E35: 21 | F35: 4568 | K35: 0 | L35: 222
A36: 21 | B36: 4770 | C36: 21 | D36: 4774 | E36: 21 | F36: 4785 | K36: 0 | L36: 222
A37: 21 | B37: 4883 | C37: 21 | D37: 4896 | E37: 21 | F37: 4902 | K37: 0 | L37: 222
A38: 21 | B38: 5009 | C38: 21 | D38: 5016 | E38: 21 | F38: 5036 | K38: 0 | L38: 222
A39: 21 | B39: 5143 | C39: 21 | D39: 5147 | E39: 21 | F39: 5160 | K39: 0 | L39: 222
A40: 21 | B40: 5258 | C40: 21 | D40: 5270 | E40: 21 | F40: 5274 | K40: 0 | L40: 222
A41: 21 | B41: 5383 | C41: 21 | D41: 5386 | E41: 21 | F41: 5399 | K41: 0 | L41: 222
A42: 21 | B42: 5499 | C42: 21 | D42: 5505 | E42: 21 | F42: 5514 | K42: 0 | L42: 222
A43: 21 | B43: 5634 | C43: 21 | D43: 5637 | E43: 21 | F43: 5642 | K43: 0 | L43: 222
A44: 21 | B44: 5752 | C44: 21 | D44: 5755 | E44: 21 | F44: 5759 | K44: 0 | L44: 222
A45: 21 | B45: 5893 | C45: 21 | D45: 5897 | E45: 21 | F45: 5903 | K45: 0 | L45: 222
A46: 21 | B46: 5994 | C46: 21 | D46: 6006 | E46: 21 | F46: 6010 | K46: 1 | L46: 222

Sheet !M918A2T.AYL
A1: Report for:!M918A2T.AYL
A2: Date: | B2: <date>
A3: Hen: | B3: <hen> | F3: Correct Sequence | G3: =Start!J2 -> 222 | P3: Total Sequences in Data | Q3: =4994-COUNTBLANK(L7:L5000) -> 40 | V3: Total Sequences in Block Data | W3: =COUNTA(L7:L13) -> 7 | AA3: Total Sequences in Block Data | AB3: =COUNTA(L14:L19) -> 6 | AF3: Total Sequences in Block Data | AG3: =COUNTA(L20:L26) -> 7 | AK3: Total Sequences in Block Data | AL3: =COUNTA(L27:L33) -> 7 | AP3: Total Sequences in Block Data | AQ3: =COUNTA(L34:L39) -> 6 | AU3: Total Sequences in Block Data | AV3: =COUNTA(L40:L46) -> 7
P4: Total Sequences in Summary | Q4: =SUM(O7:O14) -> 40 | V4: Total Sequences in Block Summary | W4: =SUM(U7:U14) -> 7 | AA4: Total Sequences in Block Summary | AB4: =SUM(Z7:Z14) -> 6 | AF4: Total Sequences in Block Summary | AG4: =SUM(AE7:AE14) -> 7 | AK4: Total Sequences in Block Summary | AL4: =SUM(AJ7:AJ14) -> 7 | AP4: Total Sequences in Block Summary | AQ4: =SUM(AO7:AO14) -> 6 | AU4: Total Sequences in Block Summary | AV4: =SUM(AT7:AT14) -> 7
T5: Block 1 | Y5: Block 2 | AD5: Block 3 | AI5: Block 4 | AN5: Block 5 | AS5: Block 6
A6: Sequence Component 1 | B6: Time 1 | C6: Sequence Component 2 | D6: Time 2 | E6: Sequence Component 3 | F6: Time 3 | G6: Sequence Component 4 | H6: Time 4 | I6: Sequence Component 5 | J6: Time 5 | K6: Correct? 0=No 1=Yes | L6: Sequence | N6: Frequency | P6: Relative Frequency | Q6: Variability | T6: Frequency | V6: Relative Frequency | W6: Variability | Y6: Frequency | AA6: Relative Frequency | AB6: Variability | AD6: Frequency | AF6: Relative Frequency | AG6: Variability | AI6: Frequency | AK6: Relative Frequency | AL6: Variability | AN6: Frequency | AP6: Relative Frequency | AQ6: Variability | AS6: Frequency | AU6: Relative Frequency | AV6: Variability
A7: 21 | B7: 17 | C7: 21 | D7: 21 | E7: 21 | F7: 26 | K7: 0 | L7: 222 | N7: 111 | O7: =COUNTIF($L$7:$L$500,N7) -> 0 | P7: =O7/$Q$4 -> 0 | Q7: =IF(P7=0,0,(P7*((LOG(P7))/LOG(2)))) -> 0 | T7: =N7 -> 111 | U7: =COUNTIF(L7:L13,T7) -> 0 | V7: =U7/(W4-U14) ->  | W7: =IF(V7=0,0,(V7*((LOG(V7))/LOG(2)))) ->  | Y7: =N7 -> 111 | Z7: =COUNTIF(L14:L19,Y7) -> 0 | AA7: =Z7/(AB4-Z14) ->  | AB7: =IF(AA7=0,0,(AA7*((LOG(AA7))/LOG(2)))) ->  | AD7: =N7 -> 111 | AE7: =COUNTIF(L20:L26,AD7) -> 0 | AF7: =AE7/(AG4-AE14) ->  | AG7: =IF(AF7=0,0,(AF7*((LOG(AF7))/LOG(2)))) ->  | AI7: =N7 -> 111 | AJ7: =COUNTIF(L27:L33,AI7) -> 0 | AK7: =AJ7/(AL4-AJ14) ->  | AL7: =IF(AK7=0,0,(AK7*((LOG(AK7))/LOG(2)))) ->  | AN7: =N7 -> 111 | AO7: =COUNTIF(L34:L39,AN7) -> 0 | AP7: =AO7/(AQ4-AO14) ->  | AQ7: =IF(AP7=0,0,(AP7*((LOG(AP7))/LOG(2)))) ->  | AS7: =N7 -> 111 | AT7: =COUNTIF(L40:L46,AS7) -> 0 | AU7: =AT7/(AV4-AT14) ->  | AV7: =IF(AU7=0,0,(AU7*((LOG(AU7))/LOG(2)))) -> 
A8: 21 | B8: 119 | C8: 21 | D8: 145 | E8: 21 | F8: 153 | K8: 0 | L8: 222 | N8: 112 | O8: =COUNTIF($L$7:$L$500,N8) -> 0 | P8: =O8/$Q$4 -> 0 | Q8: =IF(P8=0,0,(P8*((LOG(P8))/LOG(2)))) -> 0 | T8: =N8 -> 112 | U8: =COUNTIF(L7:L13,T8) -> 0 | V8: =U8/(W4-U14) ->  | W8: =IF(V8=0,0,(V8*((LOG(V8))/LOG(2)))) ->  | Y8: =N8 -> 112 | Z8: =COUNTIF(L14:L19,Y8) -> 0 | AA8: =Z8/(AB4-Z14) ->  | AB8: =IF(AA8=0,0,(AA8*((LOG(AA8))/LOG(2)))) ->  | AD8: =N8 -> 112 | AE8: =COUNTIF(L20:L26,AD8) -> 0 | AF8: =AE8/(AG4-AE14) ->  | AG8: =IF(AF8=0,0,(AF8*((LOG(AF8))/LOG(2)))) ->  | AI8: =N8 -> 112 | AJ8: =COUNTIF(L27:L33,AI8) -> 0 | AK8: =AJ8/(AL4-AJ14) ->  | AL8: =IF(AK8=0,0,(AK8*((LOG(AK8))/LOG(2)))) ->  | AN8: =N8 -> 112 | AO8: =COUNTIF(L34:L39,AN8) -> 0 | AP8: =AO8/(AQ4-AO14) ->  | AQ8: =IF(AP8=0,0,(AP8*((LOG(AP8))/LOG(2)))) ->  | AS8: =N8 -> 112 | AT8: =COUNTIF(L40:L46,AS8) -> 0 | AU8: =AT8/(AV4-AT14) ->  | AV8: =IF(AU8=0,0,(AU8*((LOG(AU8))/LOG(2)))) -> 
A9: 21 | B9: 246 | C9: 21 | D9: 254 | E9: 21 | F9: 260 | K9: 0 | L9: 222 | N9: 121 | O9: =COUNTIF($L$7:$L$500,N9) -> 0 | P9: =O9/$Q$4 -> 0 | Q9: =IF(P9=0,0,(P9*((LOG(P9))/LOG(2)))) -> 0 | T9: =N9 -> 121 | U9: =COUNTIF(L7:L13,T9) -> 0 | V9: =U9/(W4-U14) ->  | W9: =IF(V9=0,0,(V9*((LOG(V9))/LOG(2)))) ->  | Y9: =N9 -> 121 | Z9: =COUNTIF(L14:L19,Y9) -> 0 | AA9: =Z9/(AB4-Z14) ->  | AB9: =IF(AA9=0,0,(AA9*((LOG(AA9))/LOG(2)))) ->  | AD9: =N9 -> 121 | AE9: =COUNTIF(L20:L26,AD9) -> 0 | AF9: =AE9/(AG4-AE14) ->  | AG9: =IF(AF9=0,0,(AF9*((LOG(AF9))/LOG(2)))) ->  | AI9: =N9 -> 121 | AJ9: =COUNTIF(L27:L33,AI9) -> 0 | AK9: =AJ9/(AL4-AJ14) ->  | AL9: =IF(AK9=0,0,(AK9*((LOG(AK9))/LOG(2)))) ->  | AN9: =N9 -> 121 | AO9: =COUNTIF(L34:L39,AN9) -> 0 | AP9: =AO9/(AQ4-AO14) ->  | AQ9: =IF(AP9=0,0,(AP9*((LOG(AP9))/LOG(2)))) ->  | AS9: =N9 -> 121 | AT9: =COUNTIF(L40:L46,AS9) -> 0 | AU9: =AT9/(AV4-AT14) ->  | AV9: =IF(AU9=0,0,(AU9*((LOG(AU9))/LOG(2)))) -> 
A10: 21 | B10: 378 | C10: 21 | D10: 383 | E10: 21 | F10: 390 | K10: 0 | L10: 222 | N10: 122 | O10: =COUNTIF($L$7:$L$500,N10) -> 0 | P10: =O10/$Q$4 -> 0 | Q10: =IF(P10=0,0,(P10*((LOG(P10))/LOG(2)))) -> 0 | T10: =N10 -> 122 | U10: =COUNTIF(L7:L13,T10) -> 0 | V10: =U10/(W4-U14) ->  | W10: =IF(V10=0,0,(V10*((LOG(V10))/LOG(2)))) ->  | Y10: =N10 -> 122 | Z10: =COUNTIF(L14:L19,Y10) -> 0 | AA10: =Z10/(AB4-Z14) ->  | AB10: =IF(AA10=0,0,(AA10*((LOG(AA10))/LOG(2)))) ->  | AD10: =N10 -> 122 | AE10: =COUNTIF(L20:L26,AD10) -> 0 | AF10: =AE10/(AG4-AE14) ->  | AG10: =IF(AF10=0,0,(AF10*((LOG(AF10))/LOG(2)))) ->  | AI10: =N10 -> 122 | AJ10: =COUNTIF(L27:L33,AI10) -> 0 | AK10: =AJ10/(AL4-AJ14) ->  | AL10: =IF(AK10=0,0,(AK10*((LOG(AK10))/LOG(2)))) ->  | AN10: =N10 -> 122 | AO10: =COUNTIF(L34:L39,AN10) -> 0 | AP10: =AO10/(AQ4-AO14) ->  | AQ10: =IF(AP10=0,0,(AP10*((LOG(AP10))/LOG(2)))) ->  | AS10: =N10 -> 122 | AT10: =COUNTIF(L40:L46,AS10) -> 0 | AU10: =AT10/(AV4-AT14) ->  | AV10: =IF(AU10=0,0,(AU10*((LOG(AU10))/LOG(2)))) -> 
A11: 21 | B11: 485 | C11: 21 | D11: 487 | E11: 21 | F11: 497 | K11: 0 | L11: 222 | N11: 211 | O11: =COUNTIF($L$7:$L$500,N11) -> 0 | P11: =O11/$Q$4 -> 0 | Q11: =IF(P11=0,0,(P11*((LOG(P11))/LOG(2)))) -> 0 | T11: =N11 -> 211 | U11: =COUNTIF(L7:L13,T11) -> 0 | V11: =U11/(W4-U14) ->  | W11: =IF(V11=0,0,(V11*((LOG(V11))/LOG(2)))) ->  | Y11: =N11 -> 211 | Z11: =COUNTIF(L14:L19,Y11) -> 0 | AA11: =Z11/(AB4-Z14) ->  | AB11: =IF(AA11=0,0,(AA11*((LOG(AA11))/LOG(2)))) ->  | AD11: =N11 -> 211 | AE11: =COUNTIF(L20:L26,AD11) -> 0 | AF11: =AE11/(AG4-AE14) ->  | AG11: =IF(AF11=0,0,(AF11*((LOG(AF11))/LOG(2)))) ->  | AI11: =N11 -> 211 | AJ11: =COUNTIF(L27:L33,AI11) -> 0 | AK11: =AJ11/(AL4-AJ14) ->  | AL11: =IF(AK11=0,0,(AK11*((LOG(AK11))/LOG(2)))) ->  | AN11: =N11 -> 211 | AO11: =COUNTIF(L34:L39,AN11) -> 0 | AP11: =AO11/(AQ4-AO14) ->  | AQ11: =IF(AP11=0,0,(AP11*((LOG(AP11))/LOG(2)))) ->  | AS11: =N11 -> 211 | AT11: =COUNTIF(L40:L46,AS11) -> 0 | AU11: =AT11/(AV4-AT14) ->  | AV11: =IF(AU11=0,0,(AU11*((LOG(AU11))/LOG(2)))) -> 
A12: 21 | B12: 625 | C12: 21 | D12: 641 | E12: 21 | F12: 650 | K12: 0 | L12: 222 | N12: 212 | O12: =COUNTIF($L$7:$L$500,N12) -> 0 | P12: =O12/$Q$4 -> 0 | Q12: =IF(P12=0,0,(P12*((LOG(P12))/LOG(2)))) -> 0 | T12: =N12 -> 212 | U12: =COUNTIF(L7:L13,T12) -> 0 | V12: =U12/(W4-U14) ->  | W12: =IF(V12=0,0,(V12*((LOG(V12))/LOG(2)))) ->  | Y12: =N12 -> 212 | Z12: =COUNTIF(L14:L19,Y12) -> 0 | AA12: =Z12/(AB4-Z14) ->  | AB12: =IF(AA12=0,0,(AA12*((LOG(AA12))/LOG(2)))) ->  | AD12: =N12 -> 212 | AE12: =COUNTIF(L20:L26,AD12) -> 0 | AF12: =AE12/(AG4-AE14) ->  | AG12: =IF(AF12=0,0,(AF12*((LOG(AF12))/LOG(2)))) ->  | AI12: =N12 -> 212 | AJ12: =COUNTIF(L27:L33,AI12) -> 0 | AK12: =AJ12/(AL4-AJ14) ->  | AL12: =IF(AK12=0,0,(AK12*((LOG(AK12))/LOG(2)))) ->  | AN12: =N12 -> 212 | AO12: =COUNTIF(L34:L39,AN12) -> 0 | AP12: =AO12/(AQ4-AO14) ->  | AQ12: =IF(AP12=0,0,(AP12*((LOG(AP12))/LOG(2)))) ->  | AS12: =N12 -> 212 | AT12: =COUNTIF(L40:L46,AS12) -> 0 | AU12: =AT12/(AV4-AT14) ->  | AV12: =IF(AU12=0,0,(AU12*((LOG(AU12))/LOG(2)))) -> 
A13: 21 | B13: 835 | C13: 21 | D13: 839 | E13: 21 | F13: 844 | K13: 0 | L13: 222 | N13: 221 | O13: =COUNTIF($L$7:$L$500,N13) -> 0 | P13: =O13/$Q$4 -> 0 | Q13: =IF(P13=0,0,(P13*((LOG(P13))/LOG(2)))) -> 0 | T13: =N13 -> 221 | U13: =COUNTIF(L7:L13,T13) -> 0 | V13: =U13/(W4-U14) ->  | W13: =IF(V13=0,0,(V13*((LOG(V13))/LOG(2)))) ->  | Y13: =N13 -> 221 | Z13: =COUNTIF(L14:L19,Y13) -> 0 | AA13: =Z13/(AB4-Z14) ->  | AB13: =IF(AA13=0,0,(AA13*((LOG(AA13))/LOG(2)))) ->  | AD13: =N13 -> 221 | AE13: =COUNTIF(L20:L26,AD13) -> 0 | AF13: =AE13/(AG4-AE14) ->  | AG13: =IF(AF13=0,0,(AF13*((LOG(AF13))/LOG(2)))) ->  | AI13: =N13 -> 221 | AJ13: =COUNTIF(L27:L33,AI13) -> 0 | AK13: =AJ13/(AL4-AJ14) ->  | AL13: =IF(AK13=0,0,(AK13*((LOG(AK13))/LOG(2)))) ->  | AN13: =N13 -> 221 | AO13: =COUNTIF(L34:L39,AN13) -> 0 | AP13: =AO13/(AQ4-AO14) ->  | AQ13: =IF(AP13=0,0,(AP13*((LOG(AP13))/LOG(2)))) ->  | AS13: =N13 -> 221 | AT13: =COUNTIF(L40:L46,AS13) -> 0 | AU13: =AT13/(AV4-AT14) ->  | AV13: =IF(AU13=0,0,(AU13*((LOG(AU13))/LOG(2)))) -> 
A14: 21 | B14: 942 | C14: 21 | D14: 948 | E14: 21 | F14: 967 | K14: 0 | L14: 222 | N14: 222 | O14: =COUNTIF($L$7:$L$500,N14) -> 40 | P14: =O14/$Q$4 -> 1 | Q14: =IF(P14=0,0,(P14*((LOG(P14))/LOG(2)))) -> 0 | T14: =N14 -> 222 | U14: =COUNTIF(L7:L13,T14) -> 7 | Y14: =N14 -> 222 | Z14: =COUNTIF(L14:L19,Y14) -> 6 | AD14: =N14 -> 222 | AE14: =COUNTIF(L20:L26,AD14) -> 7 | AI14: =N14 -> 222 | AJ14: =COUNTIF(L27:L33,AI14) -> 7 | AN14: =N14 -> 222 | AO14: =COUNTIF(L34:L39,AN14) -> 6 | AS14: =N14 -> 222 | AT14: =COUNTIF(L40:L46,AS14) -> 7
A15: 21 | B15: 1077 | C15: 21 | D15: 1080 | E15: 21 | F15: 1086 | K15: 0 | L15: 222 | P15: =SUM(P7:P14) -> 1 | Q15: =-SUM(Q7:Q14) -> 0 | V15: =SUM(V7:V14) ->  | W15: =-SUM(W7:W14) ->  | AA15: =SUM(AA7:AA14) ->  | AB15: =-SUM(AB7:AB14) ->  | AF15: =SUM(AF7:AF14) ->  | AG15: =-SUM(AG7:AG14) ->  | AK15: =SUM(AK7:AK14) ->  | AL15: =-SUM(AL7:AL14) ->  | AP15: =SUM(AP7:AP14) ->  | AQ15: =-SUM(AQ7:AQ14) ->  | AU15: =SUM(AU7:AU14) ->  | AV15: =-SUM(AV7:AV14) -> 
A16: 21 | B16: 1182 | C16: 21 | D16: 1187 | E16: 21 | F16: 1192 | K16: 0 | L16: 222 | P16: U= | Q16: =Q15/(LOG(Q4)/LOG(2)) -> 0 | V16: U1= | W16: =W15/(LOG(W4)/LOG(2)) ->  | AA16: U2= | AB16: =AB15/(LOG(AB4)/LOG(2)) ->  | AF16: U3= | AG16: =AG15/(LOG(AG4)/LOG(2)) ->  | AK16: U4= | AL16: =AL15/(LOG(AL4)/LOG(2)) ->  | AP16: U5= | AQ16: =AQ15/(LOG(AQ4)/LOG(2)) ->  | AU16: U6= | AV16: =AV15/(LOG(AV4)/LOG(2)) -> 
A17: 21 | B17: 1288 | C17: 21 | D17: 1292 | E17: 21 | F17: 1297 | K17: 0 | L17: 222
A18: 21 | B18: 1392 | C18: 21 | D18: 1397 | E18: 21 | F18: 1407 | K18: 0 | L18: 222
A19: 21 | B19: 1555 | C19: 21 | D19: 1558 | E19: 21 | F19: 1562 | K19: 0 | L19: 222 | N19: Total Target Seq
A20: 21 | B20: 1657 | C20: 21 | D20: 1663 | E20: 21 | F20: 1670 | K20: 0 | L20: 222 | N20: =COUNTIF(L7:L46,G3) -> 40 | P20: 7 | Q20: 6 | R20: 7 | S20: 7 | T20: 6 | U20: 7
A21: 21 | B21: 1766 | C21: 21 | D21: 1771 | E21: 21 | F21: 1777 | K21: 0 | L21: 222 | P21: % of reinforcement given in 6 equal intervals based on number of trials
A22: 21 | B22: 1901 | C22: 21 | D22: 1904 | E22: 21 | F22: 1909 | K22: 0 | L22: 222 | P22: %_1 | Q22: %_2 | R22: %_3 | S22: %_4 | T22: %_5 | U22: %_6
A23: 21 | B23: 2003 | C23: 21 | D23: 2009 | E23: 21 | F23: 2015 | K23: 0 | L23: 222 | O23: target sequence | P23: =$G$3 -> 222 | Q23: =$G$3 -> 222 | R23: =$G$3 -> 222 | S23: =$G$3 -> 222 | T23: =$G$3 -> 222 | U23: =$G$3 -> 222
A24: 21 | B24: 2110 | C24: 21 | D24: 2123 | E24: 21 | F24: 2132 | K24: 0 | L24: 222 | O24: total reinforcement | P24: =U14 -> 7 | Q24: =Z14 -> 6 | R24: =AE14 -> 7 | S24: =AJ14 -> 7 | T24: =AO14 -> 6 | U24: =AT14 -> 7
A25: 21 | B25: 2227 | C25: 21 | D25: 2232 | E25: 21 | F25: 2236 | K25: 0 | L25: 222 | O25: % target
A26: 21 | B26: 2331 | C26: 21 | D26: 2335 | E26: 21 | F26: 2343 | K26: 0 | L26: 222 | O26: CCRF
A27: 21 | B27: 2437 | C27: 21 | D27: 2452 | E27: 21 | F27: 2456 | K27: 0 | L27: 222 | O27: % CCRf
A28: 21 | B28: 2551 | C28: 21 | D28: 2553 | E28: 21 | F28: 2557 | K28: 0 | L28: 222 | O28: average response rate | P28: =F13/P20 -> 120.5714286 | Q28: =(F19-F13)/Q20 -> 119.6666667 | R28: =(F26-F19)/R20 -> 111.5714286 | S28: =(F33-F26)/S20 -> 108.5714286 | T28: =(F39-F33)/T20 -> 175.5 | U28: =(F46-F39)/U20 -> 385.5714286
A29: 21 | B29: 2652 | C29: 21 | D29: 2656 | E29: 21 | F29: 2660 | K29: 0 | L29: 222
A30: 21 | B30: 2753 | C30: 21 | D30: 2757 | E30: 21 | F30: 2764 | K30: 0 | L30: 222
A31: 21 | B31: 2861 | C31: 21 | D31: 2867 | E31: 21 | F31: 2877 | K31: 0 | L31: 222
A32: 21 | B32: 2982 | C32: 21 | D32: 2984 | E32: 21 | F32: 2988 | K32: 0 | L32: 222
A33: 21 | B33: 3096 | C33: 21 | D33: 3098 | E33: 21 | F33: 3103 | K33: 0 | L33: 222
A34: 21 | B34: 3195 | C34: 21 | D34: 3204 | E34: 21 | F34: 3208 | K34: 0 | L34: 222
A35: 21 | B35: 3301 | C35: 21 | D35: 3304 | E35: 21 | F35: 3308 | K35: 0 | L35: 222
A36: 21 | B36: 3418 | C36: 21 | D36: 3421 | E36: 21 | F36: 3425 | K36: 0 | L36: 222
A37: 21 | B37: 3704 | C37: 21 | D37: 3706 | E37: 21 | F37: 3710 | K37: 0 | L37: 222
A38: 21 | B38: 3802 | C38: 21 | D38: 3815 | E38: 21 | F38: 3828 | K38: 0 | L38: 222
A39: 21 | B39: 4144 | C39: 21 | D39: 4149 | E39: 21 | F39: 4156 | K39: 0 | L39: 222
A40: 21 | B40: 4250 | C40: 21 | D40: 4253 | E40: 21 | F40: 4257 | K40: 0 | L40: 222
A41: 21 | B41: 4363 | C41: 21 | D41: 4366 | E41: 21 | F41: 4380 | K41: 0 | L41: 222
A42: 21 | B42: 4472 | C42: 21 | D42: 4475 | E42: 21 | F42: 4479 | K42: 0 | L42: 222
A43: 21 | B43: 4578 | C43: 21 | D43: 4583 | E43: 21 | F43: 4590 | K43: 0 | L43: 222
A44: 21 | B44: 4728 | C44: 21 | D44: 4740 | E44: 21 | F44: 4744 | K44: 0 | L44: 222
A45: 21 | B45: 5503 | C45: 21 | D45: 5505 | E45: 21 | F45: 5518 | K45: 0 | L45: 222
A46: 21 | B46: 6830 | C46: 21 | D46: 6847 | E46: 21 | F46: 6855 | K46: 1 | L46: 222

Sheet !M919A3T.AYL
A1: Report for:!M919A3T.AYL
A2: Date: | B2: <date>
A3: Hen: | B3: <hen> | F3: Correct Sequence | G3: =Start!J2 -> 222 | P3: Total Sequences in Data | Q3: =4994-COUNTBLANK(L7:L5000) -> 42 | V3: Total Sequences in Block Data | W3: =COUNTA(L7:L13) -> 7 | AA3: Total Sequences in Block Data | AB3: =COUNTA(L14:L20) -> 7 | AF3: Total Sequences in Block Data | AG3: =COUNTA(L21:L27) -> 7 | AK3: Total Sequences in Block Data | AL3: =COUNTA(L28:L34) -> 7 | AP3: Total Sequences in Block Data | AQ3: =COUNTA(L35:L41) -> 7 | AU3: Total Sequences in Block Data | AV3: =COUNTA(L42:L48) -> 7
P4: Total Sequences in Summary | Q4: =SUM(O7:O14) -> 42 | V4: Total Sequences in Block Summary | W4: =SUM(U7:U14) -> 7 | AA4: Total Sequences in Block Summary | AB4: =SUM(Z7:Z14) -> 7 | AF4: Total Sequences in Block Summary | AG4: =SUM(AE7:AE14) -> 7 | AK4: Total Sequences in Block Summary | AL4: =SUM(AJ7:AJ14) -> 7 | AP4: Total Sequences in Block Summary | AQ4: =SUM(AO7:AO14) -> 7 | AU4: Total Sequences in Block Summary | AV4: =SUM(AT7:AT14) -> 7
T5: Block 1 | Y5: Block 2 | AD5: Block 3 | AI5: Block 4 | AN5: Block 5 | AS5: Block 6
A6: Sequence Component 1 | B6: Time 1 | C6: Sequence Component 2 | D6: Time 2 | E6: Sequence Component 3 | F6: Time 3 | G6: Sequence Component 4 | H6: Time 4 | I6: Sequence Component 5 | J6: Time 5 | K6: Correct? 0=No 1=Yes | L6: Sequence | N6: Frequency | P6: Relative Frequency | Q6: Variability | T6: Frequency | V6: Relative Frequency | W6: Variability | Y6: Frequency | AA6: Relative Frequency | AB6: Variability | AD6: Frequency | AF6: Relative Frequency | AG6: Variability | AI6: Frequency | AK6: Relative Frequency | AL6: Variability | AN6: Frequency | AP6: Relative Frequency | AQ6: Variability | AS6: Frequency | AU6: Relative Frequency | AV6: Variability
A7: 12 | B7: 6 | C7: 23 | D7: 12 | E7: 23 | F7: 15 | K7: 0 | L7: 122 | N7: 111 | O7: =COUNTIF($L$7:$L$500,N7) -> 0 | P7: =O7/$Q$4 -> 0 | Q7: =IF(P7=0,0,(P7*((LOG(P7))/LOG(2)))) -> 0 | T7: =N7 -> 111 | U7: =COUNTIF(L7:L13,T7) -> 0 | V7: =U7/(W4-U14) -> 0 | W7: =IF(V7=0,0,(V7*((LOG(V7))/LOG(2)))) -> 0 | Y7: =N7 -> 111 | Z7: =COUNTIF(L14:L20,Y7) -> 0 | AA7: =Z7/(AB4-Z14) ->  | AB7: =IF(AA7=0,0,(AA7*((LOG(AA7))/LOG(2)))) ->  | AD7: =N7 -> 111 | AE7: =COUNTIF(L21:L27,AD7) -> 0 | AF7: =AE7/(AG4-AE14) ->  | AG7: =IF(AF7=0,0,(AF7*((LOG(AF7))/LOG(2)))) ->  | AI7: =N7 -> 111 | AJ7: =COUNTIF(L28:L34,AI7) -> 0 | AK7: =AJ7/(AL4-AJ14) ->  | AL7: =IF(AK7=0,0,(AK7*((LOG(AK7))/LOG(2)))) ->  | AN7: =N7 -> 111 | AO7: =COUNTIF(L35:L41,AN7) -> 0 | AP7: =AO7/(AQ4-AO14) ->  | AQ7: =IF(AP7=0,0,(AP7*((LOG(AP7))/LOG(2)))) ->  | AS7: =N7 -> 111 | AT7: =COUNTIF(L42:L48,AS7) -> 0 | AU7: =AT7/(AV4-AT14) ->  | AV7: =IF(AU7=0,0,(AU7*((LOG(AU7))/LOG(2)))) -> 
A8: 21 | B8: 126 | C8: 21 | D8: 129 | E8: 21 | F8: 133 | K8: 0 | L8: 222 | N8: 112 | O8: =COUNTIF($L$7:$L$500,N8) -> 0 | P8: =O8/$Q$4 -> 0 | Q8: =IF(P8=0,0,(P8*((LOG(P8))/LOG(2)))) -> 0 | T8: =N8 -> 112 | U8: =COUNTIF(L7:L13,T8) -> 0 | V8: =U8/(W4-U14) -> 0 | W8: =IF(V8=0,0,(V8*((LOG(V8))/LOG(2)))) -> 0 | Y8: =N8 -> 112 | Z8: =COUNTIF(L14:L20,Y8) -> 0 | AA8: =Z8/(AB4-Z14) ->  | AB8: =IF(AA8=0,0,(AA8*((LOG(AA8))/LOG(2)))) ->  | AD8: =N8 -> 112 | AE8: =COUNTIF(L21:L27,AD8) -> 0 | AF8: =AE8/(AG4-AE14) ->  | AG8: =IF(AF8=0,0,(AF8*((LOG(AF8))/LOG(2)))) ->  | AI8: =N8 -> 112 | AJ8: =COUNTIF(L28:L34,AI8) -> 0 | AK8: =AJ8/(AL4-AJ14) ->  | AL8: =IF(AK8=0,0,(AK8*((LOG(AK8))/LOG(2)))) ->  | AN8: =N8 -> 112 | AO8: =COUNTIF(L35:L41,AN8) -> 0 | AP8: =AO8/(AQ4-AO14) ->  | AQ8: =IF(AP8=0,0,(AP8*((LOG(AP8))/LOG(2)))) ->  | AS8: =N8 -> 112 | AT8: =COUNTIF(L42:L48,AS8) -> 0 | AU8: =AT8/(AV4-AT14) ->  | AV8: =IF(AU8=0,0,(AU8*((LOG(AU8))/LOG(2)))) -> 
A9: 21 | B9: 367 | C9: 21 | D9: 385 | E9: 21 | F9: 389 | K9: 0 | L9: 222 | N9: 121 | O9: =COUNTIF($L$7:$L$500,N9) -> 0 | P9: =O9/$Q$4 -> 0 | Q9: =IF(P9=0,0,(P9*((LOG(P9))/LOG(2)))) -> 0 | T9: =N9 -> 121 | U9: =COUNTIF(L7:L13,T9) -> 0 | V9: =U9/(W4-U14) -> 0 | W9: =IF(V9=0,0,(V9*((LOG(V9))/LOG(2)))) -> 0 | Y9: =N9 -> 121 | Z9: =COUNTIF(L14:L20,Y9) -> 0 | AA9: =Z9/(AB4-Z14) ->  | AB9: =IF(AA9=0,0,(AA9*((LOG(AA9))/LOG(2)))) ->  | AD9: =N9 -> 121 | AE9: =COUNTIF(L21:L27,AD9) -> 0 | AF9: =AE9/(AG4-AE14) ->  | AG9: =IF(AF9=0,0,(AF9*((LOG(AF9))/LOG(2)))) ->  | AI9: =N9 -> 121 | AJ9: =COUNTIF(L28:L34,AI9) -> 0 | AK9: =AJ9/(AL4-AJ14) ->  | AL9: =IF(AK9=0,0,(AK9*((LOG(AK9))/LOG(2)))) ->  | AN9: =N9 -> 121 | AO9: =COUNTIF(L35:L41,AN9) -> 0 | AP9: =AO9/(AQ4-AO14) ->  | AQ9: =IF(AP9=0,0,(AP9*((LOG(AP9))/LOG(2)))) ->  | AS9: =N9 -> 121 | AT9: =COUNTIF(L42:L48,AS9) -> 0 | AU9: =AT9/(AV4-AT14) ->  | AV9: =IF(AU9=0,0,(AU9*((LOG(AU9))/LOG(2)))) -> 
A10: 12 | B10: 482 | C10: 23 | D10: 501 | E10: 23 | F10: 522 | K10: 0 | L10: 122 | N10: 122 | O10: =COUNTIF($L$7:$L$500,N10) -> 2 | P10: =O10/$Q$4 -> 0.04761904762 | Q10: =IF(P10=0,0,(P10*((LOG(P10))/LOG(2)))) -> -0.2091579725 | T10: =N10 -> 122 | U10: =COUNTIF(L7:L13,T10) -> 2 | V10: =U10/(W4-U14) -> 1 | W10: =IF(V10=0,0,(V10*((LOG(V10))/LOG(2)))) -> 0 | Y10: =N10 -> 122 | Z10: =COUNTIF(L14:L20,Y10) -> 0 | AA10: =Z10/(AB4-Z14) ->  | AB10: =IF(AA10=0,0,(AA10*((LOG(AA10))/LOG(2)))) ->  | AD10: =N10 -> 122 | AE10: =COUNTIF(L21:L27,AD10) -> 0 | AF10: =AE10/(AG4-AE14) ->  | AG10: =IF(AF10=0,0,(AF10*((LOG(AF10))/LOG(2)))) ->  | AI10: =N10 -> 122 | AJ10: =COUNTIF(L28:L34,AI10) -> 0 | AK10: =AJ10/(AL4-AJ14) ->  | AL10: =IF(AK10=0,0,(AK10*((LOG(AK10))/LOG(2)))) ->  | AN10: =N10 -> 122 | AO10: =COUNTIF(L35:L41,AN10) -> 0 | AP10: =AO10/(AQ4-AO14) ->  | AQ10: =IF(AP10=0,0,(AP10*((LOG(AP10))/LOG(2)))) ->  | AS10: =N10 -> 122 | AT10: =COUNTIF(L42:L48,AS10) -> 0 | AU10: =AT10/(AV4-AT14) ->  | AV10: =IF(AU10=0,0,(AU10*((LOG(AU10))/LOG(2)))) -> 
